Workbook

Sheet Summer
A1: OPC 006101 | B1: Long-Term Summer Peak Capabilities
A2: FPL RC-16 | C2: 2013 | D2: 2014 | P2: 2015 | AB2: 2016 | AN2: 2017 | AZ2: 2018 | BL2: 2019 | BX2: 2020 | CJ2: 2021 | CV2: 2022 | DH2: 2023
B3: Unit | C3: Dec | D3: Jan | E3: Feb | F3: Mar | G3: Apr | H3: May | I3: Jun | J3: Jul | K3: Aug | L3: Sep | M3: Oct | N3: Nov | O3: Dec | P3: Jan | Q3: Feb | R3: Mar | S3: Apr | T3: May | U3: Jun | V3: Jul | W3: Aug | X3: Sep | Y3: Oct | Z3: Nov | AA3: Dec | AB3: Jan | AC3: Feb | AD3: Mar | AE3: Apr | AF3: May | AG3: Jun | AH3: Jul | AI3: Aug | AJ3: Sep | AK3: Oct | AL3: Nov | AM3: Dec | AN3: Jan | AO3: Feb | AP3: Mar | AQ3: Apr | AR3: May | AS3: Jun | AT3: Jul | AU3: Aug | AV3: Sep | AW3: Oct | AX3: Nov | AY3: Dec | AZ3: Jan | BA3: Feb | BB3: Mar | BC3: Apr | BD3: May | BE3: Jun | BF3: Jul | BG3: Aug | BH3: Sep | BI3: Oct | BJ3: Nov | BK3: Dec | BL3: Jan | BM3: Feb | BN3: Mar | BO3: Apr | BP3: May | BQ3: Jun | BR3: Jul | BS3: Aug | BT3: Sep | BU3: Oct | BV3: Nov | BW3: Dec | BX3: Jan | BY3: Feb | BZ3: Mar | CA3: Apr | CB3: May | CC3: Jun | CD3: Jul | CE3: Aug | CF3: Sep | CG3: Oct | CH3: Nov | CI3: Dec | CJ3: Jan | CK3: Feb | CL3: Mar | CM3: Apr | CN3: May | CO3: Jun | CP3: Jul | CQ3: Aug | CR3: Sep | CS3: Oct | CT3: Nov | CU3: Dec | CV3: Jan | CW3: Feb | CX3: Mar | CY3: Apr | CZ3: May | DA3: Jun | DB3: Jul | DC3: Aug | DD3: Sep | DE3: Oct | DF3: Nov | DG3: Dec | DH3: Jan | DI3: Feb | DJ3: Mar | DK3: Apr | DL3: May | DM3: Jun | DN3: Jul | DO3: Aug | DP3: Sep | DQ3: Oct | DR3: Nov | DS3: Dec
B4: PCC1 | C4: 0 | D4: 0 | E4: =D4 -> 0 | F4: 0 | G4: 0 | H4: 0 | I4: 0 | J4: 0 | K4: 0 | L4: 0 | M4: 0 | N4: 0 | O4: 0 | P4: 0 | Q4: 0 | R4: 0 | S4: 0 | T4: =S4 -> 0 | U4: 0 | V4: 0 | W4: 0 | X4: 0 | Y4: 0 | Z4: 0 | AA4: 0 | AB4: =AA4 -> 0 | AC4: =AB4 -> 0 | AD4: =AC4 -> 0 | AE4: 0 | AF4: 0 | AG4: 0 | AH4: 0 | AI4: 0 | AJ4: 0 | AK4: 0 | AL4: 0 | AM4: 0 | AN4: =AM4 -> 0 | AO4: =AN4 -> 0 | AP4: =AO4 -> 0 | AQ4: 0 | AR4: 0 | AS4: 0 | AT4: 0 | AU4: 0 | AV4: 0 | AW4: 0 | AX4: 0 | AY4: 0 | AZ4: =AY4 -> 0 | BA4: =AZ4 -> 0 | BB4: =BA4 -> 0 | BC4: 0 | BD4: 0 | BE4: 0 | BF4: 0 | BG4: 0 | BH4: 0 | BI4: 0 | BJ4: 0 | BK4: 0 | BL4: =BK4 -> 0 | BM4: =BL4 -> 0 | BN4: =BM4 -> 0 | BO4: 0 | BP4: 0 | BQ4: 0 | BR4: 0 | BS4: 0 | BT4: 0 | BU4: 0 | BV4: 0 | BW4: 0 | BX4: =BW4 -> 0 | BY4: =BX4 -> 0 | BZ4: =BY4 -> 0 | CA4: 0 | CB4: 0 | CC4: 0 | CD4: 0 | CE4: 0 | CF4: 0 | CG4: 0 | CH4: 0 | CI4: 0 | CJ4: =CI4 -> 0 | CK4: =CJ4 -> 0 | CL4: =CK4 -> 0 | CM4: 0 | CN4: 0 | CO4: 0 | CP4: 0 | CQ4: 0 | CR4: 0 | CS4: 0 | CT4: 0 | CU4: 0 | CV4: =CU4 -> 0 | CW4: =CV4 -> 0 | CX4: =CW4 -> 0 | CY4: 0 | CZ4: 0 | DA4: 0 | DB4: 0 | DC4: 0 | DD4: 0 | DE4: 0 | DF4: 0 | DG4: 0 | DH4: =DG4 -> 0 | DI4: =DH4 -> 0 | DJ4: =DI4 -> 0 | DK4: 0 | DL4: 0 | DM4: 0 | DN4: 0 | DO4: 0 | DP4: 0 | DQ4: 0 | DR4: 0 | DS4: 0
B5: PCC2 | C5: 0 | D5: 0 | E5: 0 | F5: 0 | G5: 0 | H5: 0 | I5: 0 | J5: 0 | K5: 0 | L5: 0 | M5: 0 | N5: 0 | O5: 0 | P5: 0 | Q5: 0 | R5: 0 | S5: 0 | T5: 0 | U5: 0 | V5: 0 | W5: 0 | X5: 0 | Y5: 0 | Z5: 0 | AA5: 0 | AB5: 0 | AC5: 0 | AD5: 0 | AE5: 0 | AF5: 0 | AG5: 0 | AH5: 0 | AI5: 0 | AJ5: 0 | AK5: 0 | AL5: 0 | AM5: 0 | AN5: 0 | AO5: 0 | AP5: 0 | AQ5: 0 | AR5: 0 | AS5: 0 | AT5: 0 | AU5: 0 | AV5: 0 | AW5: 0 | AX5: 0 | AY5: 0 | AZ5: 0 | BA5: 0 | BB5: 0 | BC5: 0 | BD5: 0 | BE5: 0 | BF5: 0 | BG5: 0 | BH5: 0 | BI5: 0 | BJ5: 0 | BK5: 0 | BL5: 0 | BM5: 0 | BN5: 0 | BO5: 0 | BP5: 0 | BQ5: 0 | BR5: 0 | BS5: 0 | BT5: 0 | BU5: 0 | BV5: 0 | BW5: 0 | BX5: 0 | BY5: 0 | BZ5: 0 | CA5: 0 | CB5: 0 | CC5: 0 | CD5: 0 | CE5: 0 | CF5: 0 | CG5: 0 | CH5: 0 | CI5: 0 | CJ5: 0 | CK5: 0 | CL5: 0 | CM5: 0 | CN5: 0 | CO5: 0 | CP5: 0 | CQ5: 0 | CR5: 0 | CS5: 0 | CT5: 0 | CU5: 0 | CV5: 0 | CW5: 0 | CX5: 0 | CY5: 0 | CZ5: 0 | DA5: 0 | DB5: 0 | DC5: 0 | DD5: 0 | DE5: 0 | DF5: 0 | DG5: 0 | DH5: 0 | DI5: 0 | DJ5: 0 | DK5: 0 | DL5: 0 | DM5: 0 | DN5: 0 | DO5: 0 | DP5: 0 | DQ5: 0 | DR5: 0 | DS5: 0
B6: PCC3 | C6: 1210 | D6: 1210 | E6: 1210 | F6: 1210 | G6: 1210 | H6: 1210 | I6: 1210 | J6: 1210 | K6: 1210 | L6: 1210 | M6: 1210 | N6: 1210 | O6: 1210 | P6: 1210 | Q6: 1210 | R6: 1210 | S6: 1210 | T6: 1210 | U6: 1210 | V6: 1210 | W6: 1210 | X6: 1210 | Y6: 1210 | Z6: 1210 | AA6: 1210 | AB6: 1210 | AC6: 1210 | AD6: 1210 | AE6: 1210 | AF6: 1210 | AG6: =AF6 -> 1210 | AH6: 1210 | AI6: 1210 | AJ6: 1210 | AK6: 1210 | AL6: 1210 | AM6: 1210 | AN6: 1210 | AO6: 1210 | AP6: 1210 | AQ6: 1210 | AR6: 1210 | AS6: 1210 | AT6: 1210 | AU6: 1210 | AV6: 1210 | AW6: 1210 | AX6: 1210 | AY6: 1210 | AZ6: 1210 | BA6: 1210 | BB6: 1210 | BC6: 1210 | BD6: 1210 | BE6: 1210 | BF6: 1210 | BG6: 1210 | BH6: 1210 | BI6: 1210 | BJ6: 1210 | BK6: 1210 | BL6: 1210 | BM6: 1210 | BN6: 1210 | BO6: 1210 | BP6: 1210 | BQ6: 1210 | BR6: 1210 | BS6: 1210 | BT6: 1210 | BU6: 1210 | BV6: 1210 | BW6: 1210 | BX6: 1210 | BY6: 1210 | BZ6: 1210 | CA6: 1210 | CB6: 1210 | CC6: 1210 | CD6: 1210 | CE6: 1210 | CF6: 1210 | CG6: 1210 | CH6: 1210 | CI6: 1210 | CJ6: 1210 | CK6: 1210 | CL6: 1210 | CM6: 1210 | CN6: 1210 | CO6: 1210 | CP6: 1210 | CQ6: 1210 | CR6: 1210 | CS6: 1210 | CT6: 1210 | CU6: 1210 | CV6: 1210 | CW6: 1210 | CX6: =CW6+29 -> 1239 | CY6: =CX6 -> 1239 | CZ6: =CY6+29 -> 1268 | DA6: =CZ6 -> 1268 | DB6: =DA6+29 -> 1297 | DC6: 1297 | DD6: 1297 | DE6: 1297 | DF6: 1297 | DG6: 1297 | DH6: 1297 | DI6: 1297 | DJ6: 1297 | DK6: 1297 | DL6: 1297 | DM6: 1297 | DN6: 1297 | DO6: 1297 | DP6: 1297 | DQ6: 1297 | DR6: 1297 | DS6: 1297
B7: PCU5 | C7: 0 | D7: 0 | E7: 0 | F7: 0 | G7: 0 | H7: 0 | I7: 0 | J7: 0 | K7: 0 | L7: 0 | M7: 0 | N7: 0 | O7: 0 | P7: 0 | Q7: 0 | R7: 0 | S7: 0 | T7: 0 | U7: 0 | V7: 0 | W7: 0 | X7: 0 | Y7: 0 | Z7: 0 | AA7: 0 | AB7: 0 | AC7: 0 | AD7: 0 | AE7: 0 | AF7: 0 | AG7: 0 | AH7: 0 | AI7: 0 | AJ7: 0 | AK7: 0 | AL7: 0 | AM7: 0 | AN7: 0 | AO7: 0 | AP7: 0 | AQ7: 0 | AR7: 0 | AS7: 0 | AT7: 0 | AU7: 0 | AV7: 0 | AW7: 0 | AX7: 0 | AY7: 0 | AZ7: 0 | BA7: 0 | BB7: 0 | BC7: 0 | BD7: 0 | BE7: 0 | BF7: 0 | BG7: 0 | BH7: 0 | BI7: 0 | BJ7: 0 | BK7: 0 | BL7: 0 | BM7: 0 | BN7: 0 | BO7: 0 | BP7: 0 | BQ7: 0 | BR7: 0 | BS7: 0 | BT7: 0 | BU7: 0 | BV7: 0 | BW7: 0 | BX7: 0 | BY7: 0 | BZ7: 0 | CA7: 0 | CB7: 0 | CC7: 0 | CD7: 0 | CE7: 0 | CF7: 0 | CG7: 0 | CH7: 0 | CI7: 0 | CJ7: 0 | CK7: 0 | CL7: 0 | CM7: 0 | CN7: 0 | CO7: 0 | CP7: 0 | CQ7: 0 | CR7: 0 | CS7: 0 | CT7: 0 | CU7: 0 | CV7: 0 | CW7: 0 | CX7: 0 | CY7: 0 | CZ7: 0 | DA7: 0 | DB7: 0 | DC7: 0 | DD7: 0 | DE7: 0 | DF7: 0 | DG7: 0 | DH7: 0 | DI7: 0 | DJ7: 0 | DK7: 0 | DL7: 0 | DM7: 0 | DN7: 0 | DO7: 0 | DP7: 0 | DQ7: 0 | DR7: 0 | DS7: 0
B8: PCU6 | C8: 0 | D8: 0 | E8: 0 | F8: 0 | G8: 0 | H8: 0 | I8: 0 | J8: 0 | K8: 0 | L8: 0 | M8: 0 | N8: 0 | O8: 0 | P8: 0 | Q8: 0 | R8: 0 | S8: 0 | T8: 0 | U8: 0 | V8: 0 | W8: 0 | X8: 0 | Y8: 0 | Z8: 0 | AA8: 0 | AB8: 0 | AC8: 0 | AD8: 0 | AE8: 0 | AF8: 0 | AG8: 0 | AH8: 0 | AI8: 0 | AJ8: 0 | AK8: 0 | AL8: 0 | AM8: 0 | AN8: 0 | AO8: 0 | AP8: 0 | AQ8: 0 | AR8: 0 | AS8: 0 | AT8: 0 | AU8: 0 | AV8: 0 | AW8: 0 | AX8: 0 | AY8: 0 | AZ8: 0 | BA8: 0 | BB8: 0 | BC8: 0 | BD8: 0 | BE8: 0 | BF8: 0 | BG8: 0 | BH8: 0 | BI8: 0 | BJ8: 0 | BK8: 0 | BL8: 0 | BM8: 0 | BN8: 0 | BO8: 0 | BP8: 0 | BQ8: 0 | BR8: 0 | BS8: 0 | BT8: 0 | BU8: 0 | BV8: 0 | BW8: 0 | BX8: 0 | BY8: 0 | BZ8: 0 | CA8: 0 | CB8: 0 | CC8: 0 | CD8: 0 | CE8: 0 | CF8: 0 | CG8: 0 | CH8: 0 | CI8: 0 | CJ8: 0 | CK8: 0 | CL8: 0 | CM8: 0 | CN8: 0 | CO8: 0 | CP8: 0 | CQ8: 0 | CR8: 0 | CS8: 0 | CT8: 0 | CU8: 0 | CV8: 0 | CW8: 0 | CX8: 0 | CY8: 0 | CZ8: 0 | DA8: 0 | DB8: 0 | DC8: 0 | DD8: 0 | DE8: 0 | DF8: 0 | DG8: 0 | DH8: 0 | DI8: 0 | DJ8: 0 | DK8: 0 | DL8: 0 | DM8: 0 | DN8: 0 | DO8: 0 | DP8: 0 | DQ8: 0 | DR8: 0 | DS8: 0
B9: PDO | C9: 25 | D9: 25 | E9: 25 | F9: 25 | G9: 25 | H9: 25 | I9: 25 | J9: 25 | K9: 25 | L9: 25 | M9: 25 | N9: 25 | O9: 25 | P9: 25 | Q9: 25 | R9: 25 | S9: 25 | T9: 25 | U9: 25 | V9: 25 | W9: 25 | X9: 25 | Y9: 25 | Z9: 25 | AA9: 25 | AB9: 25 | AC9: 25 | AD9: 25 | AE9: 25 | AF9: 25 | AG9: 25 | AH9: 25 | AI9: 25 | AJ9: 25 | AK9: 25 | AL9: 25 | AM9: 25 | AN9: 25 | AO9: 25 | AP9: 25 | AQ9: 25 | AR9: 25 | AS9: 25 | AT9: 25 | AU9: 25 | AV9: 25 | AW9: 25 | AX9: 25 | AY9: 25 | AZ9: 25 | BA9: 25 | BB9: 25 | BC9: 25 | BD9: 25 | BE9: 25 | BF9: 25 | BG9: 25 | BH9: 25 | BI9: 25 | BJ9: 25 | BK9: 25 | BL9: 25 | BM9: 25 | BN9: 25 | BO9: 25 | BP9: 25 | BQ9: 25 | BR9: 25 | BS9: 25 | BT9: 25 | BU9: 25 | BV9: 25 | BW9: 25 | BX9: 25 | BY9: 25 | BZ9: 25 | CA9: 25 | CB9: 25 | CC9: 25 | CD9: 25 | CE9: 25 | CF9: 25 | CG9: 25 | CH9: 25 | CI9: 25 | CJ9: 25 | CK9: 25 | CL9: 25 | CM9: 25 | CN9: 25 | CO9: 25 | CP9: 25 | CQ9: 25 | CR9: 25 | CS9: 25 | CT9: 25 | CU9: 25 | CV9: 25 | CW9: 25 | CX9: 25 | CY9: 25 | CZ9: 25 | DA9: 25 | DB9: 25 | DC9: 25 | DD9: 25 | DE9: 25 | DF9: 25 | DG9: 25 | DH9: 25 | DI9: 25 | DJ9: 25 | DK9: 25 | DL9: 25 | DM9: 25 | DN9: 25 | DO9: 25 | DP9: 25 | DQ9: 25 | DR9: 25 | DS9: 25
B10: PFL4 | C10: 442 | D10: 442 | E10: 442 | F10: 442 | G10: 442 | H10: 442 | I10: 442 | J10: 442 | K10: 442 | L10: 442 | M10: 442 | N10: 442 | O10: 442 | P10: 442 | Q10: 442 | R10: 442 | S10: 442 | T10: 442 | U10: 442 | V10: 442 | W10: 442 | X10: 442 | Y10: 442 | Z10: 442 | AA10: 442 | AB10: 442 | AC10: 442 | AD10: 442 | AE10: 442 | AF10: 442 | AG10: 442 | AH10: 442 | AI10: 442 | AJ10: 442 | AK10: 442 | AL10: 442 | AM10: 442 | AN10: 442 | AO10: 442 | AP10: 442 | AQ10: 442 | AR10: 442 | AS10: 442 | AT10: 442 | AU10: 442 | AV10: 442 | AW10: 442 | AX10: 442 | AY10: 442 | AZ10: 442 | BA10: 442 | BB10: 442 | BC10: 442 | BD10: 442 | BE10: 442 | BF10: 442 | BG10: 442 | BH10: 442 | BI10: 442 | BJ10: 442 | BK10: 442 | BL10: 442 | BM10: 442 | BN10: 442 | BO10: 442 | BP10: 442 | BQ10: 442 | BR10: 442 | BS10: 442 | BT10: 442 | BU10: 442 | BV10: 442 | BW10: 442 | BX10: 442 | BY10: 442 | BZ10: 442 | CA10: 442 | CB10: 442 | CC10: 442 | CD10: 442 | CE10: 442 | CF10: 442 | CG10: 442 | CH10: 442 | CI10: 442 | CJ10: 442 | CK10: 442 | CL10: 442 | CM10: 442 | CN10: 442 | CO10: 442 | CP10: 442 | CQ10: 442 | CR10: 442 | CS10: 442 | CT10: 442 | CU10: 442 | CV10: 442 | CW10: 442 | CX10: 442 | CY10: 442 | CZ10: 442 | DA10: 442 | DB10: 442 | DC10: 442 | DD10: 442 | DE10: 442 | DF10: 442 | DG10: 442 | DH10: 442 | DI10: 442 | DJ10: 442 | DK10: 442 | DL10: 442 | DM10: 442 | DN10: 442 | DO10: 442 | DP10: 442 | DQ10: 442 | DR10: 442 | DS10: 442
B11: PFL5 | C11: 442 | D11: 442 | E11: 442 | F11: 442 | G11: 442 | H11: 442 | I11: 442 | J11: 442 | K11: 442 | L11: 442 | M11: 442 | N11: 442 | O11: 442 | P11: 442 | Q11: 442 | R11: 442 | S11: 442 | T11: 442 | U11: 442 | V11: 442 | W11: 442 | X11: 442 | Y11: 442 | Z11: 442 | AA11: 442 | AB11: 442 | AC11: 442 | AD11: 442 | AE11: 442 | AF11: 442 | AG11: 442 | AH11: 442 | AI11: 442 | AJ11: 442 | AK11: 442 | AL11: 442 | AM11: 442 | AN11: 442 | AO11: 442 | AP11: 442 | AQ11: 442 | AR11: 442 | AS11: 442 | AT11: 442 | AU11: 442 | AV11: 442 | AW11: 442 | AX11: 442 | AY11: 442 | AZ11: 442 | BA11: 442 | BB11: 442 | BC11: 442 | BD11: 442 | BE11: 442 | BF11: 442 | BG11: 442 | BH11: 442 | BI11: 442 | BJ11: 442 | BK11: 442 | BL11: 442 | BM11: 442 | BN11: 442 | BO11: 442 | BP11: 442 | BQ11: 442 | BR11: 442 | BS11: 442 | BT11: 442 | BU11: 442 | BV11: 442 | BW11: 442 | BX11: 442 | BY11: 442 | BZ11: 442 | CA11: 442 | CB11: 442 | CC11: 442 | CD11: 442 | CE11: 442 | CF11: 442 | CG11: 442 | CH11: 442 | CI11: 442 | CJ11: 442 | CK11: 442 | CL11: 442 | CM11: 442 | CN11: 442 | CO11: 442 | CP11: 442 | CQ11: 442 | CR11: 442 | CS11: 442 | CT11: 442 | CU11: 442 | CV11: 442 | CW11: 442 | CX11: 442 | CY11: 442 | CZ11: 442 | DA11: 442 | DB11: 442 | DC11: 442 | DD11: 442 | DE11: 442 | DF11: 442 | DG11: 442 | DH11: 442 | DI11: 442 | DJ11: 442 | DK11: 442 | DL11: 442 | DM11: 442 | DN11: 442 | DO11: 442 | DP11: 442 | DQ11: 442 | DR11: 442 | DS11: 442
B12: PFL GT1 | C12: 420 | D12: 420 | E12: 420 | F12: 420 | G12: 420 | H12: 420 | I12: 420 | J12: 420 | K12: 420 | L12: 420 | M12: 420 | N12: 420 | O12: 420 | P12: 420 | Q12: 420 | R12: 420 | S12: 420 | T12: 420 | U12: 420 | V12: 420 | W12: 420 | X12: 420 | Y12: 420 | Z12: 420 | AA12: 420 | AB12: 420 | AC12: 420 | AD12: 420 | AE12: 420 | AF12: 420 | AG12: 420 | AH12: 420 | AI12: 420 | AJ12: 420 | AK12: 420 | AL12: 420 | AM12: 420 | AN12: 420 | AO12: 420 | AP12: 420 | AQ12: 420 | AR12: 420 | AS12: 420 | AT12: 420 | AU12: 420 | AV12: 420 | AW12: 420 | AX12: 420 | AY12: 420 | AZ12: 420 | BA12: 420 | BB12: 420 | BC12: 420 | BD12: 420 | BE12: 420 | BF12: 420 | BG12: 420 | BH12: 420 | BI12: 420 | BJ12: 420 | BK12: 420 | BL12: =BK12 -> 420 | BM12: 420 | BN12: 420 | BO12: 420 | BP12: 420 | BQ12: 420 | BR12: 420 | BS12: 420 | BT12: 420 | BU12: 420 | BV12: 420 | BW12: 420 | BX12: 420 | BY12: 420 | BZ12: 420 | CA12: 420 | CB12: 420 | CC12: 420 | CD12: 420 | CE12: 420 | CF12: 420 | CG12: 420 | CH12: 420 | CI12: 420 | CJ12: 420 | CK12: 420 | CL12: 420 | CM12: 420 | CN12: 420 | CO12: 420 | CP12: 420 | CQ12: 420 | CR12: 420 | CS12: 420 | CT12: 420 | CU12: 420 | CV12: 420 | CW12: 420 | CX12: 420 | CY12: 420 | CZ12: 420 | DA12: 420 | DB12: 420 | DC12: 420 | DD12: 420 | DE12: 420 | DF12: 420 | DG12: 420 | DH12: 420 | DI12: 420 | DJ12: 420 | DK12: 420 | DL12: 420 | DM12: 420 | DN12: 420 | DO12: 420 | DP12: 420 | DQ12: 420 | DR12: 420 | DS12: 420
B13: PFL GT2 | C13: 420 | D13: 420 | E13: 420 | F13: 420 | G13: 420 | H13: 420 | I13: 420 | J13: 420 | K13: 420 | L13: 420 | M13: 420 | N13: 420 | O13: 420 | P13: 420 | Q13: 420 | R13: 420 | S13: 420 | T13: 420 | U13: 420 | V13: 420 | W13: 420 | X13: 420 | Y13: 420 | Z13: 420 | AA13: 420 | AB13: 420 | AC13: 420 | AD13: 420 | AE13: 420 | AF13: 420 | AG13: 420 | AH13: 420 | AI13: 420 | AJ13: 420 | AK13: 420 | AL13: 420 | AM13: 420 | AN13: 420 | AO13: 420 | AP13: 420 | AQ13: 420 | AR13: 420 | AS13: 420 | AT13: 420 | AU13: 420 | AV13: 420 | AW13: 420 | AX13: 420 | AY13: 420 | AZ13: 420 | BA13: 420 | BB13: 420 | BC13: 420 | BD13: 420 | BE13: 420 | BF13: 420 | BG13: 420 | BH13: 420 | BI13: 420 | BJ13: 420 | BK13: 420 | BL13: =BK13 -> 420 | BM13: 420 | BN13: 420 | BO13: 420 | BP13: 420 | BQ13: 420 | BR13: 420 | BS13: 420 | BT13: 420 | BU13: 420 | BV13: 420 | BW13: 420 | BX13: 420 | BY13: 420 | BZ13: 420 | CA13: 420 | CB13: 420 | CC13: 420 | CD13: 420 | CE13: 420 | CF13: 420 | CG13: 420 | CH13: 420 | CI13: 420 | CJ13: 420 | CK13: 420 | CL13: 420 | CM13: 420 | CN13: 420 | CO13: 420 | CP13: 420 | CQ13: 420 | CR13: 420 | CS13: 420 | CT13: 420 | CU13: 420 | CV13: 420 | CW13: 420 | CX13: 420 | CY13: 420 | CZ13: 420 | DA13: 420 | DB13: 420 | DC13: 420 | DD13: 420 | DE13: 420 | DF13: 420 | DG13: 420 | DH13: 420 | DI13: 420 | DJ13: 420 | DK13: 420 | DL13: 420 | DM13: 420 | DN13: 420 | DO13: 420 | DP13: 420 | DQ13: 420 | DR13: 420 | DS13: 420
B14: PFL CT | C14: 0 | D14: 0 | E14: 0 | F14: 0 | G14: 0 | H14: 0 | I14: 0 | J14: 0 | K14: 0 | L14: 0 | M14: 0 | N14: 0 | O14: 0 | P14: 0 | Q14: 0 | R14: 0 | S14: 0 | T14: 0 | U14: 0 | V14: 0 | W14: 0 | X14: 0 | Y14: 0 | Z14: 0 | AA14: 0 | AB14: 0 | AC14: 0 | AD14: 0 | AE14: 0 | AF14: 0 | AG14: 0 | AH14: 0 | AI14: 0 | AJ14: 0 | AK14: 0 | AL14: 0 | AM14: 0 | AN14: 0 | AO14: 0 | AP14: 0 | AQ14: 0 | AR14: 0 | AS14: 0 | AT14: 0 | AU14: 0 | AV14: 0 | AW14: 0 | AX14: 0 | AY14: 0 | AZ14: 0 | BA14: 0 | BB14: 0 | BC14: 0 | BD14: 0 | BE14: 0 | BF14: 0 | BG14: 0 | BH14: 0 | BI14: 0 | BJ14: 0 | BK14: 0 | BL14: =BK14 -> 0 | BM14: 0 | BN14: 0 | BO14: 0 | BP14: 0 | BQ14: 0 | BR14: 0 | BS14: 0 | BT14: 0 | BU14: 0 | BV14: 0 | BW14: 0 | BX14: 0 | BY14: 0 | BZ14: 0 | CA14: 0 | CB14: 0 | CC14: 0 | CD14: 0 | CE14: 0 | CF14: 0 | CG14: 0 | CH14: 0 | CI14: 0 | CJ14: 0 | CK14: 0 | CL14: 0 | CM14: 0 | CN14: 0 | CO14: 0 | CP14: 0 | CQ14: 0 | CR14: 0 | CS14: 0 | CT14: 0 | CU14: 0 | CV14: 0 | CW14: 0 | CX14: 0 | CY14: 0 | CZ14: 0 | DA14: 0 | DB14: 0 | DC14: 0 | DD14: 0 | DE14: 0 | DF14: 0 | DG14: 0 | DH14: 0 | DI14: 0 | DJ14: 0 | DK14: 0 | DL14: 0 | DM14: 0 | DN14: 0 | DO14: 0 | DP14: 0 | DQ14: 0 | DR14: 0 | DS14: 0
B15: PFM2 | C15: 1432 | D15: 1436 | E15: 1436 | F15: 1436 | G15: 1436 | H15: 1436 | I15: 1436 | J15: 1436 | K15: 1436 | L15: 1436 | M15: 1436 | N15: 1436 | O15: 1436 | P15: =O15 -> 1436 | Q15: 1436 | R15: =Q15 -> 1436 | S15: 1436 | T15: =S15+8 -> 1444 | U15: =T15+8 -> 1452 | V15: =U15+8 -> 1460 | W15: =V15+8 -> 1468 | X15: =W15+8 -> 1476 | Y15: 1476 | Z15: 1476 | AA15: 1476 | AB15: =AA15+8 -> 1484 | AC15: 1484 | AD15: 1484 | AE15: 1484 | AF15: 1484 | AG15: 1484 | AH15: 1484 | AI15: 1484 | AJ15: 1484 | AK15: 1484 | AL15: 1484 | AM15: 1484 | AN15: 1484 | AO15: 1484 | AP15: 1484 | AQ15: 1484 | AR15: 1484 | AS15: 1484 | AT15: 1484 | AU15: 1484 | AV15: 1484 | AW15: 1484 | AX15: 1484 | AY15: 1484 | AZ15: 1484 | BA15: 1484 | BB15: 1484 | BC15: 1484 | BD15: 1484 | BE15: 1484 | BF15: 1484 | BG15: 1484 | BH15: 1484 | BI15: 1484 | BJ15: 1484 | BK15: 1484 | BL15: 1484 | BM15: 1484 | BN15: 1484 | BO15: 1484 | BP15: 1484 | BQ15: 1484 | BR15: 1484 | BS15: 1484 | BT15: 1484 | BU15: 1484 | BV15: 1484 | BW15: 1484 | BX15: 1484 | BY15: 1484 | BZ15: 1484 | CA15: 1484 | CB15: 1484 | CC15: 1484 | CD15: 1484 | CE15: 1484 | CF15: 1484 | CG15: 1484 | CH15: 1484 | CI15: 1484 | CJ15: 1484 | CK15: 1484 | CL15: 1484 | CM15: 1484 | CN15: 1484 | CO15: 1484 | CP15: 1484 | CQ15: 1484 | CR15: 1484 | CS15: 1484 | CT15: 1484 | CU15: 1484 | CV15: 1484 | CW15: 1484 | CX15: 1484 | CY15: 1484 | CZ15: 1484 | DA15: 1484 | DB15: 1484 | DC15: 1484 | DD15: 1484 | DE15: 1484 | DF15: 1484 | DG15: 1484 | DH15: 1484 | DI15: 1484 | DJ15: 1484 | DK15: 1484 | DL15: 1484 | DM15: 1484 | DN15: 1484 | DO15: 1484 | DP15: 1484 | DQ15: 1484 | DR15: 1484 | DS15: 1484
B16: PFM3 | C16: 315 | D16: 319 | E16: 319 | F16: 319 | G16: 319 | H16: 319 | I16: 319 | J16: 319 | K16: 319 | L16: 319 | M16: 319 | N16: 319 | O16: 319 | P16: 319 | Q16: 319 | R16: 319 | S16: 319 | T16: =S16 -> 319 | U16: 319 | V16: 319 | W16: 319 | X16: 319 | Y16: 319 | Z16: 319 | AA16: 319 | AB16: 319 | AC16: 319 | AD16: 319 | AE16: 319 | AF16: 319 | AG16: 319 | AH16: 319 | AI16: 319 | AJ16: 319 | AK16: 319 | AL16: 319 | AM16: 319 | AN16: 319 | AO16: 319 | AP16: 319 | AQ16: 319 | AR16: 319 | AS16: 319 | AT16: 319 | AU16: 319 | AV16: 319 | AW16: 319 | AX16: 319 | AY16: 319 | AZ16: 319 | BA16: 319 | BB16: 319 | BC16: 319 | BD16: 319 | BE16: 319 | BF16: 319 | BG16: 319 | BH16: 319 | BI16: 319 | BJ16: 319 | BK16: 319 | BL16: 319 | BM16: 319 | BN16: 319 | BO16: 319 | BP16: 319 | BQ16: 319 | BR16: 319 | BS16: 319 | BT16: 319 | BU16: 319 | BV16: 319 | BW16: 319 | BX16: 319 | BY16: 319 | BZ16: 319 | CA16: 319 | CB16: 319 | CC16: 319 | CD16: 319 | CE16: 319 | CF16: 319 | CG16: 319 | CH16: 319 | CI16: 319 | CJ16: 319 | CK16: 319 | CL16: 319 | CM16: 319 | CN16: 319 | CO16: 319 | CP16: 319 | CQ16: 319 | CR16: 319 | CS16: 319 | CT16: 319 | CU16: 319 | CV16: 319 | CW16: 319 | CX16: 319 | CY16: 319 | CZ16: 319 | DA16: 319 | DB16: 319 | DC16: 319 | DD16: 319 | DE16: 319 | DF16: 319 | DG16: 319 | DH16: 319 | DI16: 319 | DJ16: 319 | DK16: 319 | DL16: 319 | DM16: 319 | DN16: 319 | DO16: 319 | DP16: 319 | DQ16: 319 | DR16: 319 | DS16: 319
B17: PFM GT | C17: 648 | D17: 648 | E17: =D17 -> 648 | F17: 648 | G17: 648 | H17: 648 | I17: 648 | J17: 648 | K17: 648 | L17: 648 | M17: 648 | N17: 648 | O17: 648 | P17: 648 | Q17: 648 | R17: 648 | S17: 648 | T17: 648 | U17: 648 | V17: 648 | W17: 648 | X17: 648 | Y17: 648 | Z17: 648 | AA17: 648 | AB17: 648 | AC17: 648 | AD17: 648 | AE17: 648 | AF17: 648 | AG17: 648 | AH17: 648 | AI17: 648 | AJ17: 648 | AK17: 648 | AL17: 648 | AM17: 648 | AN17: 648 | AO17: 648 | AP17: 648 | AQ17: 648 | AR17: 648 | AS17: 648 | AT17: 648 | AU17: 648 | AV17: 648 | AW17: 648 | AX17: 648 | AY17: 648 | AZ17: 648 | BA17: 648 | BB17: 648 | BC17: 648 | BD17: 648 | BE17: 648 | BF17: 648 | BG17: 648 | BH17: 648 | BI17: 648 | BJ17: 648 | BK17: 648 | BL17: 648 | BM17: 648 | BN17: 648 | BO17: 648 | BP17: 648 | BQ17: 648 | BR17: 648 | BS17: 648 | BT17: 648 | BU17: 648 | BV17: 648 | BW17: 648 | BX17: 648 | BY17: 648 | BZ17: 648 | CA17: 648 | CB17: 648 | CC17: 648 | CD17: 648 | CE17: 648 | CF17: 648 | CG17: 648 | CH17: 648 | CI17: 648 | CJ17: 648 | CK17: 648 | CL17: 648 | CM17: 648 | CN17: 648 | CO17: 648 | CP17: 648 | CQ17: 648 | CR17: 648 | CS17: 648 | CT17: 648 | CU17: 648 | CV17: 648 | CW17: 648 | CX17: 648 | CY17: 648 | CZ17: 648 | DA17: 648 | DB17: 648 | DC17: 648 | DD17: 648 | DE17: 648 | DF17: 648 | DG17: 648 | DH17: 648 | DI17: 648 | DJ17: 648 | DK17: 648 | DL17: 648 | DM17: 648 | DN17: 648 | DO17: 648 | DP17: 648 | DQ17: 648 | DR17: 648 | DS17: 648
B18: PJK1 | C18: 127 | D18: 127 | E18: 127 | F18: 127 | G18: 127 | H18: 127 | I18: 127 | J18: 127 | K18: 127 | L18: 127 | M18: 127 | N18: 127 | O18: 127 | P18: 127 | Q18: 127 | R18: 127 | S18: 127 | T18: 127 | U18: 127 | V18: 127 | W18: 127 | X18: 127 | Y18: 127 | Z18: 127 | AA18: 127 | AB18: 127 | AC18: 127 | AD18: 127 | AE18: 127 | AF18: 127 | AG18: 127 | AH18: 127 | AI18: 127 | AJ18: 127 | AK18: 127 | AL18: 127 | AM18: 127 | AN18: 127 | AO18: 127 | AP18: 127 | AQ18: 127 | AR18: 127 | AS18: 127 | AT18: 127 | AU18: 127 | AV18: 127 | AW18: 127 | AX18: 127 | AY18: 127 | AZ18: 127 | BA18: 127 | BB18: 127 | BC18: 127 | BD18: 127 | BE18: 127 | BF18: 127 | BG18: 127 | BH18: 127 | BI18: 127 | BJ18: 127 | BK18: 127 | BL18: 127 | BM18: 127 | BN18: 127 | BO18: 127 | BP18: 127 | BQ18: 127 | BR18: 127 | BS18: 127 | BT18: 127 | BU18: 127 | BV18: 127 | BW18: 127 | BX18: 127 | BY18: 127 | BZ18: 127 | CA18: 127 | CB18: 127 | CC18: 127 | CD18: 127 | CE18: 127 | CF18: 127 | CG18: 127 | CH18: 127 | CI18: 127 | CJ18: 127 | CK18: 127 | CL18: 127 | CM18: 127 | CN18: 127 | CO18: 127 | CP18: 127 | CQ18: 127 | CR18: 127 | CS18: 127 | CT18: 127 | CU18: 127 | CV18: 127 | CW18: 127 | CX18: 127 | CY18: 127 | CZ18: 127 | DA18: 127 | DB18: 127 | DC18: 127 | DD18: 127 | DE18: 127 | DF18: 127 | DG18: 127 | DH18: 127 | DI18: 127 | DJ18: 127 | DK18: 127 | DL18: 127 | DM18: 127 | DN18: 127 | DO18: 127 | DP18: 127 | DQ18: 127 | DR18: 127 | DS18: 127
B19: PJK2 | C19: 127 | D19: 127 | E19: 127 | F19: 127 | G19: 127 | H19: 127 | I19: 127 | J19: 127 | K19: 127 | L19: 127 | M19: 127 | N19: 127 | O19: 127 | P19: 127 | Q19: 127 | R19: 127 | S19: 127 | T19: 127 | U19: 127 | V19: 127 | W19: 127 | X19: 127 | Y19: 127 | Z19: 127 | AA19: 127 | AB19: 127 | AC19: 127 | AD19: 127 | AE19: 127 | AF19: 127 | AG19: 127 | AH19: 127 | AI19: 127 | AJ19: 127 | AK19: 127 | AL19: 127 | AM19: 127 | AN19: 127 | AO19: 127 | AP19: 127 | AQ19: 127 | AR19: 127 | AS19: 127 | AT19: 127 | AU19: 127 | AV19: 127 | AW19: 127 | AX19: 127 | AY19: 127 | AZ19: 127 | BA19: 127 | BB19: 127 | BC19: 127 | BD19: 127 | BE19: 127 | BF19: 127 | BG19: 127 | BH19: 127 | BI19: 127 | BJ19: 127 | BK19: 127 | BL19: 127 | BM19: 127 | BN19: 127 | BO19: 127 | BP19: 127 | BQ19: 127 | BR19: 127 | BS19: 127 | BT19: 127 | BU19: 127 | BV19: 127 | BW19: 127 | BX19: 127 | BY19: 127 | BZ19: 127 | CA19: 127 | CB19: 127 | CC19: 127 | CD19: 127 | CE19: 127 | CF19: 127 | CG19: 127 | CH19: 127 | CI19: 127 | CJ19: 127 | CK19: 127 | CL19: 127 | CM19: 127 | CN19: 127 | CO19: 127 | CP19: 127 | CQ19: 127 | CR19: 127 | CS19: 127 | CT19: 127 | CU19: 127 | CV19: 127 | CW19: 127 | CX19: 127 | CY19: 127 | CZ19: 127 | DA19: 127 | DB19: 127 | DC19: 127 | DD19: 127 | DE19: 127 | DF19: 127 | DG19: 127 | DH19: 127 | DI19: 127 | DJ19: 127 | DK19: 127 | DL19: 127 | DM19: 127 | DN19: 127 | DO19: 127 | DP19: 127 | DQ19: 127 | DR19: 127 | DS19: 127
B20: PMR1 | C20: 826 | D20: 826 | E20: 826 | F20: =E20 -> 826 | G20: =F20 -> 826 | H20: =G20-3 -> 823 | I20: 823 | J20: 823 | K20: 823 | L20: 823 | M20: 823 | N20: 823 | O20: 823 | P20: 823 | Q20: 823 | R20: 823 | S20: 823 | T20: 823 | U20: 823 | V20: 823 | W20: 823 | X20: 823 | Y20: 823 | Z20: 823 | AA20: 823 | AB20: =AA20 -> 823 | AC20: 823 | AD20: =AC20 -> 823 | AE20: 823 | AF20: 823 | AG20: 823 | AH20: 823 | AI20: 823 | AJ20: 823 | AK20: 823 | AL20: 823 | AM20: 823 | AN20: 823 | AO20: 823 | AP20: =AO20 -> 823 | AQ20: =AP20 -> 823 | AR20: 823 | AS20: 823 | AT20: 823 | AU20: 823 | AV20: 823 | AW20: 823 | AX20: 823 | AY20: 823 | AZ20: 823 | BA20: 823 | BB20: =BA20 -> 823 | BC20: =BB20 -> 823 | BD20: 823 | BE20: 823 | BF20: 823 | BG20: 823 | BH20: 823 | BI20: 823 | BJ20: 823 | BK20: 823 | BL20: 823 | BM20: 823 | BN20: =BM20 -> 823 | BO20: =BN20 -> 823 | BP20: 823 | BQ20: 823 | BR20: 823 | BS20: 823 | BT20: 823 | BU20: 823 | BV20: 823 | BW20: 823 | BX20: 823 | BY20: 823 | BZ20: =BY20 -> 823 | CA20: =BZ20 -> 823 | CB20: 823 | CC20: 823 | CD20: 823 | CE20: 823 | CF20: 823 | CG20: 823 | CH20: 823 | CI20: 823 | CJ20: 823 | CK20: 823 | CL20: =CK20 -> 823 | CM20: =CL20 -> 823 | CN20: 823 | CO20: 823 | CP20: 823 | CQ20: 823 | CR20: 823 | CS20: 823 | CT20: 823 | CU20: 823 | CV20: 823 | CW20: 823 | CX20: =CW20 -> 823 | CY20: =CX20 -> 823 | CZ20: 823 | DA20: 823 | DB20: 823 | DC20: 823 | DD20: 823 | DE20: 823 | DF20: 823 | DG20: 823 | DH20: 823 | DI20: 823 | DJ20: =DI20 -> 823 | DK20: =DJ20 -> 823 | DL20: 823 | DM20: 823 | DN20: 823 | DO20: 823 | DP20: 823 | DQ20: 823 | DR20: 823 | DS20: 823
B21: PMR2 | C21: 826 | D21: 826 | E21: 826 | F21: 826 | G21: 826 | H21: 826 | I21: 826 | J21: 826 | K21: 826 | L21: 826 | M21: 826 | N21: 826 | O21: 826 | P21: 826 | Q21: =P21-3 -> 823 | R21: 823 | S21: 823 | T21: 823 | U21: 823 | V21: 823 | W21: 823 | X21: 823 | Y21: 823 | Z21: 823 | AA21: 823 | AB21: 823 | AC21: 823 | AD21: 823 | AE21: 823 | AF21: 823 | AG21: 823 | AH21: 823 | AI21: 823 | AJ21: 823 | AK21: 823 | AL21: 823 | AM21: 823 | AN21: 823 | AO21: 823 | AP21: 823 | AQ21: 823 | AR21: 823 | AS21: 823 | AT21: 823 | AU21: 823 | AV21: 823 | AW21: 823 | AX21: 823 | AY21: 823 | AZ21: 823 | BA21: 823 | BB21: 823 | BC21: 823 | BD21: 823 | BE21: 823 | BF21: 823 | BG21: 823 | BH21: 823 | BI21: 823 | BJ21: 823 | BK21: 823 | BL21: 823 | BM21: 823 | BN21: 823 | BO21: 823 | BP21: 823 | BQ21: 823 | BR21: 823 | BS21: 823 | BT21: 823 | BU21: 823 | BV21: 823 | BW21: 823 | BX21: 823 | BY21: 823 | BZ21: 823 | CA21: 823 | CB21: 823 | CC21: 823 | CD21: 823 | CE21: 823 | CF21: 823 | CG21: 823 | CH21: 823 | CI21: 823 | CJ21: 823 | CK21: 823 | CL21: 823 | CM21: 823 | CN21: 823 | CO21: 823 | CP21: 823 | CQ21: 823 | CR21: 823 | CS21: 823 | CT21: 823 | CU21: 823 | CV21: 823 | CW21: 823 | CX21: 823 | CY21: 823 | CZ21: 823 | DA21: 823 | DB21: 823 | DC21: 823 | DD21: 823 | DE21: 823 | DF21: 823 | DG21: 823 | DH21: 823 | DI21: 823 | DJ21: 823 | DK21: 823 | DL21: 823 | DM21: 823 | DN21: 823 | DO21: 823 | DP21: 823 | DQ21: 823 | DR21: 823 | DS21: 823
B22: PMG3 | C22: 469 | D22: 469 | E22: 469 | F22: 469 | G22: 469 | H22: 469 | I22: 469 | J22: 469 | K22: 469 | L22: 469 | M22: 469 | N22: 469 | O22: 469 | P22: 469 | Q22: 469 | R22: 469 | S22: 469 | T22: 469 | U22: 469 | V22: 469 | W22: 469 | X22: 469 | Y22: 469 | Z22: 469 | AA22: 469 | AB22: 469 | AC22: 469 | AD22: 469 | AE22: 469 | AF22: 469 | AG22: 469 | AH22: 469 | AI22: 469 | AJ22: 469 | AK22: 469 | AL22: 469 | AM22: 469 | AN22: 469 | AO22: 469 | AP22: 469 | AQ22: 469 | AR22: 469 | AS22: 469 | AT22: 469 | AU22: 469 | AV22: 469 | AW22: 469 | AX22: 469 | AY22: 469 | AZ22: 469 | BA22: 469 | BB22: 469 | BC22: 469 | BD22: 469 | BE22: 469 | BF22: 469 | BG22: 469 | BH22: 469 | BI22: 469 | BJ22: 469 | BK22: 469 | BL22: 469 | BM22: 469 | BN22: 469 | BO22: 469 | BP22: 469 | BQ22: 469 | BR22: 469 | BS22: 469 | BT22: 469 | BU22: 469 | BV22: 469 | BW22: 469 | BX22: 469 | BY22: 469 | BZ22: 469 | CA22: 469 | CB22: 469 | CC22: 469 | CD22: 469 | CE22: 469 | CF22: 469 | CG22: 469 | CH22: 469 | CI22: 469 | CJ22: 469 | CK22: 469 | CL22: 469 | CM22: 469 | CN22: 469 | CO22: 469 | CP22: 469 | CQ22: 469 | CR22: 469 | CS22: 469 | CT22: 469 | CU22: 469 | CV22: 469 | CW22: 469 | CX22: 469 | CY22: 469 | CZ22: 469 | DA22: 469 | DB22: 469 | DC22: 469 | DD22: 469 | DE22: 469 | DF22: 469 | DG22: 469 | DH22: 469 | DI22: 469 | DJ22: 469 | DK22: 469 | DL22: 469 | DM22: 469 | DN22: 469 | DO22: 469 | DP22: 469 | DQ22: 469 | DR22: 469 | DS22: 469
B23: PMG4 | C23: 469 | D23: 469 | E23: 469 | F23: 469 | G23: 469 | H23: 469 | I23: 469 | J23: 469 | K23: 469 | L23: 469 | M23: 469 | N23: 469 | O23: 469 | P23: 469 | Q23: 469 | R23: 469 | S23: 469 | T23: 469 | U23: 469 | V23: 469 | W23: 469 | X23: 469 | Y23: 469 | Z23: 469 | AA23: 469 | AB23: 469 | AC23: 469 | AD23: 469 | AE23: 469 | AF23: 469 | AG23: 469 | AH23: 469 | AI23: 469 | AJ23: 469 | AK23: 469 | AL23: 469 | AM23: 469 | AN23: 469 | AO23: 469 | AP23: 469 | AQ23: 469 | AR23: 469 | AS23: 469 | AT23: 469 | AU23: 469 | AV23: 469 | AW23: 469 | AX23: 469 | AY23: 469 | AZ23: 469 | BA23: 469 | BB23: 469 | BC23: 469 | BD23: 469 | BE23: 469 | BF23: 469 | BG23: 469 | BH23: 469 | BI23: 469 | BJ23: 469 | BK23: 469 | BL23: 469 | BM23: 469 | BN23: 469 | BO23: 469 | BP23: 469 | BQ23: 469 | BR23: 469 | BS23: 469 | BT23: 469 | BU23: 469 | BV23: 469 | BW23: 469 | BX23: 469 | BY23: 469 | BZ23: 469 | CA23: 469 | CB23: 469 | CC23: 469 | CD23: 469 | CE23: 469 | CF23: 469 | CG23: 469 | CH23: 469 | CI23: 469 | CJ23: 469 | CK23: 469 | CL23: 469 | CM23: 469 | CN23: 469 | CO23: 469 | CP23: 469 | CQ23: 469 | CR23: 469 | CS23: 469 | CT23: 469 | CU23: 469 | CV23: 469 | CW23: 469 | CX23: 469 | CY23: 469 | CZ23: 469 | DA23: 469 | DB23: 469 | DC23: 469 | DD23: 469 | DE23: 469 | DF23: 469 | DG23: 469 | DH23: 469 | DI23: 469 | DJ23: 469 | DK23: 469 | DL23: 469 | DM23: 469 | DN23: 469 | DO23: 469 | DP23: 469 | DQ23: 469 | DR23: 469 | DS23: 469
B24: PMG8 | C24: 1141 | D24: 1135 | E24: 1135 | F24: 1135 | G24: 1135 | H24: 1135 | I24: 1135 | J24: 1135 | K24: 1135 | L24: 1135 | M24: 1135 | N24: 1135 | O24: 1135 | P24: 1135 | Q24: 1135 | R24: 1135 | S24: 1135 | T24: 1135 | U24: 1135 | V24: 1135 | W24: 1135 | X24: 1135 | Y24: 1135 | Z24: 1135 | AA24: 1135 | AB24: 1135 | AC24: 1135 | AD24: =AC24 -> 1135 | AE24: 1135 | AF24: 1135 | AG24: 1135 | AH24: =AG24 -> 1135 | AI24: 1135 | AJ24: 1135 | AK24: 1135 | AL24: 1135 | AM24: =AL24 -> 1135 | AN24: 1135 | AO24: 1135 | AP24: 1135 | AQ24: 1135 | AR24: 1135 | AS24: 1135 | AT24: =AS24 -> 1135 | AU24: =AT24 -> 1135 | AV24: 1135 | AW24: 1135 | AX24: 1135 | AY24: 1135 | AZ24: 1135 | BA24: 1135 | BB24: 1135 | BC24: 1135 | BD24: 1135 | BE24: 1135 | BF24: 1135 | BG24: 1135 | BH24: 1135 | BI24: 1135 | BJ24: 1135 | BK24: 1135 | BL24: 1135 | BM24: 1135 | BN24: 1135 | BO24: 1135 | BP24: 1135 | BQ24: 1135 | BR24: 1135 | BS24: 1135 | BT24: 1135 | BU24: 1135 | BV24: 1135 | BW24: 1135 | BX24: 1135 | BY24: 1135 | BZ24: 1135 | CA24: 1135 | CB24: 1135 | CC24: 1135 | CD24: 1135 | CE24: 1135 | CF24: 1135 | CG24: 1135 | CH24: 1135 | CI24: 1135 | CJ24: 1135 | CK24: 1135 | CL24: 1135 | CM24: 1135 | CN24: 1135 | CO24: 1135 | CP24: 1135 | CQ24: 1135 | CR24: 1135 | CS24: 1135 | CT24: 1135 | CU24: 1135 | CV24: 1135 | CW24: 1135 | CX24: 1135 | CY24: 1135 | CZ24: 1135 | DA24: 1135 | DB24: 1135 | DC24: 1135 | DD24: 1135 | DE24: 1135 | DF24: 1135 | DG24: 1135 | DH24: 1135 | DI24: 1135 | DJ24: 1135 | DK24: 1135 | DL24: 1135 | DM24: 1135 | DN24: 1135 | DO24: 1135 | DP24: 1135 | DQ24: 1135 | DR24: 1135 | DS24: 1135
B25: PMT1 | C25: 809 | D25: 809 | E25: =D25 -> 809 | F25: 809 | G25: 809 | H25: 809 | I25: 809 | J25: 809 | K25: 809 | L25: 809 | M25: 809 | N25: 809 | O25: 809 | P25: 809 | Q25: 809 | R25: 809 | S25: 809 | T25: 809 | U25: 809 | V25: 809 | W25: 809 | X25: 809 | Y25: 809 | Z25: 809 | AA25: 809 | AB25: 809 | AC25: 809 | AD25: 809 | AE25: 809 | AF25: 809 | AG25: 809 | AH25: 809 | AI25: 809 | AJ25: 809 | AK25: 809 | AL25: 809 | AM25: 809 | AN25: 809 | AO25: 809 | AP25: 809 | AQ25: 809 | AR25: 809 | AS25: 809 | AT25: 809 | AU25: 809 | AV25: 809 | AW25: 809 | AX25: 809 | AY25: 809 | AZ25: 809 | BA25: 809 | BB25: 809 | BC25: 809 | BD25: 809 | BE25: 809 | BF25: 809 | BG25: 809 | BH25: 809 | BI25: 809 | BJ25: 809 | BK25: 809 | BL25: 809 | BM25: 809 | BN25: 809 | BO25: 809 | BP25: 809 | BQ25: 809 | BR25: 809 | BS25: 809 | BT25: 809 | BU25: 809 | BV25: 809 | BW25: 809 | BX25: 809 | BY25: 809 | BZ25: 809 | CA25: 809 | CB25: 809 | CC25: 809 | CD25: 809 | CE25: 809 | CF25: 809 | CG25: 809 | CH25: 809 | CI25: 809 | CJ25: 809 | CK25: 809 | CL25: 809 | CM25: 809 | CN25: 809 | CO25: 809 | CP25: 809 | CQ25: 809 | CR25: 809 | CS25: 809 | CT25: 809 | CU25: 809 | CV25: 809 | CW25: 809 | CX25: 809 | CY25: 809 | CZ25: 809 | DA25: 809 | DB25: 809 | DC25: 809 | DD25: 809 | DE25: 809 | DF25: 809 | DG25: 809 | DH25: 809 | DI25: 809 | DJ25: 809 | DK25: 809 | DL25: 809 | DM25: 809 | DN25: 809 | DO25: 809 | DP25: 809 | DQ25: 809 | DR25: 809 | DS25: 809
B26: PMT2 | C26: 809 | D26: 809 | E26: 809 | F26: 809 | G26: 809 | H26: 809 | I26: 809 | J26: 809 | K26: 809 | L26: 809 | M26: 809 | N26: 809 | O26: 809 | P26: 809 | Q26: 809 | R26: 809 | S26: 809 | T26: 809 | U26: 809 | V26: 809 | W26: 809 | X26: 809 | Y26: 809 | Z26: 809 | AA26: 809 | AB26: 809 | AC26: 809 | AD26: 809 | AE26: 809 | AF26: 809 | AG26: 809 | AH26: 809 | AI26: 809 | AJ26: 809 | AK26: 809 | AL26: 809 | AM26: 809 | AN26: 809 | AO26: 809 | AP26: 809 | AQ26: 809 | AR26: 809 | AS26: 809 | AT26: 809 | AU26: 809 | AV26: 809 | AW26: 809 | AX26: 809 | AY26: 809 | AZ26: 809 | BA26: 809 | BB26: 809 | BC26: 809 | BD26: 809 | BE26: 809 | BF26: 809 | BG26: 809 | BH26: 809 | BI26: 809 | BJ26: 809 | BK26: 809 | BL26: 809 | BM26: 809 | BN26: 809 | BO26: 809 | BP26: 809 | BQ26: 809 | BR26: 809 | BS26: 809 | BT26: 809 | BU26: 809 | BV26: 809 | BW26: 809 | BX26: 809 | BY26: 809 | BZ26: 809 | CA26: 809 | CB26: 809 | CC26: 809 | CD26: 809 | CE26: 809 | CF26: 809 | CG26: 809 | CH26: 809 | CI26: 809 | CJ26: 809 | CK26: 809 | CL26: 809 | CM26: 809 | CN26: 809 | CO26: 809 | CP26: 809 | CQ26: 809 | CR26: 809 | CS26: 809 | CT26: 809 | CU26: 809 | CV26: 809 | CW26: 809 | CX26: 809 | CY26: 809 | CZ26: 809 | DA26: 809 | DB26: 809 | DC26: 809 | DD26: 809 | DE26: 809 | DF26: 809 | DG26: 809 | DH26: 809 | DI26: 809 | DJ26: 809 | DK26: 809 | DL26: 809 | DM26: 809 | DN26: 809 | DO26: 809 | DP26: 809 | DQ26: 809 | DR26: 809 | DS26: 809
B27: PMT3 | C27: 1111 | D27: 1108 | E27: 1108 | F27: 1108 | G27: 1108 | H27: 1108 | I27: =H27+10+11+9 -> 1138 | J27: =I27 -> 1138 | K27: =J27+5 -> 1143 | L27: 1143 | M27: 1143 | N27: 1143 | O27: 1143 | P27: 1143 | Q27: 1143 | R27: 1143 | S27: 1143 | T27: 1143 | U27: 1143 | V27: 1143 | W27: 1143 | X27: 1143 | Y27: 1143 | Z27: 1143 | AA27: 1143 | AB27: 1143 | AC27: =AB27 -> 1143 | AD27: 1143 | AE27: 1143 | AF27: 1143 | AG27: 1143 | AH27: 1143 | AI27: 1143 | AJ27: =AI27 -> 1143 | AK27: =AJ27 -> 1143 | AL27: 1143 | AM27: 1143 | AN27: 1143 | AO27: =AN27 -> 1143 | AP27: =AO27 -> 1143 | AQ27: 1143 | AR27: =AQ27 -> 1143 | AS27: 1143 | AT27: 1143 | AU27: 1143 | AV27: 1143 | AW27: 1143 | AX27: 1143 | AY27: 1143 | AZ27: 1143 | BA27: 1143 | BB27: 1143 | BC27: 1143 | BD27: 1143 | BE27: 1143 | BF27: 1143 | BG27: 1143 | BH27: 1143 | BI27: 1143 | BJ27: 1143 | BK27: 1143 | BL27: 1143 | BM27: 1143 | BN27: 1143 | BO27: 1143 | BP27: 1143 | BQ27: 1143 | BR27: 1143 | BS27: 1143 | BT27: 1143 | BU27: 1143 | BV27: 1143 | BW27: 1143 | BX27: 1143 | BY27: 1143 | BZ27: 1143 | CA27: 1143 | CB27: 1143 | CC27: 1143 | CD27: 1143 | CE27: 1143 | CF27: 1143 | CG27: 1143 | CH27: 1143 | CI27: 1143 | CJ27: 1143 | CK27: 1143 | CL27: 1143 | CM27: 1143 | CN27: 1143 | CO27: 1143 | CP27: 1143 | CQ27: 1143 | CR27: 1143 | CS27: 1143 | CT27: 1143 | CU27: 1143 | CV27: 1143 | CW27: 1143 | CX27: 1143 | CY27: 1143 | CZ27: 1143 | DA27: 1143 | DB27: 1143 | DC27: 1143 | DD27: 1143 | DE27: 1143 | DF27: 1143 | DG27: 1143 | DH27: 1143 | DI27: 1143 | DJ27: 1143 | DK27: 1143 | DL27: 1143 | DM27: 1143 | DN27: 1143 | DO27: 1143 | DP27: 1143 | DQ27: 1143 | DR27: 1143 | DS27: 1143
B28: PPE1 | C28: 0 | D28: 0 | E28: 0 | F28: 0 | G28: 0 | H28: 0 | I28: 0 | J28: 0 | K28: 0 | L28: 0 | M28: 0 | N28: 0 | O28: 0 | P28: 0 | Q28: 0 | R28: 0 | S28: 0 | T28: 0 | U28: 0 | V28: 0 | W28: 0 | X28: 0 | Y28: 0 | Z28: 0 | AA28: 0 | AB28: 0 | AC28: 0 | AD28: 0 | AE28: 0 | AF28: 0 | AG28: 0 | AH28: 0 | AI28: 0 | AJ28: 0 | AK28: 0 | AL28: 0 | AM28: 0 | AN28: 0 | AO28: 0 | AP28: 0 | AQ28: 0 | AR28: 0 | AS28: 0 | AT28: 0 | AU28: 0 | AV28: 0 | AW28: 0 | AX28: 0 | AY28: 0 | AZ28: 0 | BA28: 0 | BB28: 0 | BC28: 0 | BD28: 0 | BE28: 0 | BF28: 0 | BG28: 0 | BH28: 0 | BI28: 0 | BJ28: 0 | BK28: 0 | BL28: 0 | BM28: 0 | BN28: 0 | BO28: 0 | BP28: 0 | BQ28: 0 | BR28: 0 | BS28: 0 | BT28: 0 | BU28: 0 | BV28: 0 | BW28: 0 | BX28: 0 | BY28: 0 | BZ28: 0 | CA28: 0 | CB28: 0 | CC28: 0 | CD28: 0 | CE28: 0 | CF28: 0 | CG28: 0 | CH28: 0 | CI28: 0 | CJ28: 0 | CK28: 0 | CL28: 0 | CM28: 0 | CN28: 0 | CO28: 0 | CP28: 0 | CQ28: 0 | CR28: 0 | CS28: 0 | CT28: 0 | CU28: 0 | CV28: 0 | CW28: 0 | CX28: 0 | CY28: 0 | CZ28: 0 | DA28: 0 | DB28: 0 | DC28: 0 | DD28: 0 | DE28: 0 | DF28: 0 | DG28: 0 | DH28: 0 | DI28: 0 | DJ28: 0 | DK28: 0 | DL28: 0 | DM28: 0 | DN28: 0 | DO28: 0 | DP28: 0 | DQ28: 0 | DR28: 0 | DS28: 0
B29: PPE2 | C29: 0 | D29: 0 | E29: 0 | F29: 0 | G29: 0 | H29: 0 | I29: 0 | J29: 0 | K29: 0 | L29: 0 | M29: 0 | N29: 0 | O29: 0 | P29: 0 | Q29: 0 | R29: 0 | S29: 0 | T29: 0 | U29: 0 | V29: 0 | W29: 0 | X29: 0 | Y29: 0 | Z29: 0 | AA29: 0 | AB29: 0 | AC29: 0 | AD29: 0 | AE29: 0 | AF29: 0 | AG29: 0 | AH29: 0 | AI29: 0 | AJ29: 0 | AK29: 0 | AL29: 0 | AM29: 0 | AN29: 0 | AO29: 0 | AP29: 0 | AQ29: 0 | AR29: 0 | AS29: 0 | AT29: 0 | AU29: 0 | AV29: 0 | AW29: 0 | AX29: 0 | AY29: 0 | AZ29: 0 | BA29: 0 | BB29: 0 | BC29: 0 | BD29: 0 | BE29: 0 | BF29: 0 | BG29: 0 | BH29: 0 | BI29: 0 | BJ29: 0 | BK29: 0 | BL29: 0 | BM29: 0 | BN29: 0 | BO29: 0 | BP29: 0 | BQ29: 0 | BR29: 0 | BS29: 0 | BT29: 0 | BU29: 0 | BV29: 0 | BW29: 0 | BX29: 0 | BY29: 0 | BZ29: 0 | CA29: 0 | CB29: 0 | CC29: 0 | CD29: 0 | CE29: 0 | CF29: 0 | CG29: 0 | CH29: 0 | CI29: 0 | CJ29: 0 | CK29: 0 | CL29: 0 | CM29: 0 | CN29: 0 | CO29: 0 | CP29: 0 | CQ29: 0 | CR29: 0 | CS29: 0 | CT29: 0 | CU29: 0 | CV29: 0 | CW29: 0 | CX29: 0 | CY29: 0 | CZ29: 0 | DA29: 0 | DB29: 0 | DC29: 0 | DD29: 0 | DE29: 0 | DF29: 0 | DG29: 0 | DH29: 0 | DI29: 0 | DJ29: 0 | DK29: 0 | DL29: 0 | DM29: 0 | DN29: 0 | DO29: 0 | DP29: 0 | DQ29: 0 | DR29: 0 | DS29: 0
B30: PPE3 | C30: 0 | D30: 0 | E30: 0 | F30: 0 | G30: 0 | H30: 0 | I30: 0 | J30: 0 | K30: 0 | L30: 0 | M30: 0 | N30: 0 | O30: 0 | P30: 0 | Q30: 0 | R30: 0 | S30: 0 | T30: 0 | U30: 0 | V30: 0 | W30: 0 | X30: 0 | Y30: 0 | Z30: 0 | AA30: 0 | AB30: 0 | AC30: 0 | AD30: 0 | AE30: 0 | AF30: 0 | AG30: 0 | AH30: 0 | AI30: 0 | AJ30: 0 | AK30: 0 | AL30: 0 | AM30: 0 | AN30: 0 | AO30: 0 | AP30: 0 | AQ30: 0 | AR30: 0 | AS30: 0 | AT30: 0 | AU30: 0 | AV30: 0 | AW30: 0 | AX30: 0 | AY30: 0 | AZ30: 0 | BA30: 0 | BB30: 0 | BC30: 0 | BD30: 0 | BE30: 0 | BF30: 0 | BG30: 0 | BH30: 0 | BI30: 0 | BJ30: 0 | BK30: 0 | BL30: 0 | BM30: 0 | BN30: 0 | BO30: 0 | BP30: 0 | BQ30: 0 | BR30: 0 | BS30: 0 | BT30: 0 | BU30: 0 | BV30: 0 | BW30: 0 | BX30: 0 | BY30: 0 | BZ30: 0 | CA30: 0 | CB30: 0 | CC30: 0 | CD30: 0 | CE30: 0 | CF30: 0 | CG30: 0 | CH30: 0 | CI30: 0 | CJ30: 0 | CK30: 0 | CL30: 0 | CM30: 0 | CN30: 0 | CO30: 0 | CP30: 0 | CQ30: 0 | CR30: 0 | CS30: 0 | CT30: 0 | CU30: 0 | CV30: 0 | CW30: 0 | CX30: 0 | CY30: 0 | CZ30: 0 | DA30: 0 | DB30: 0 | DC30: 0 | DD30: 0 | DE30: 0 | DF30: 0 | DG30: 0 | DH30: 0 | DI30: 0 | DJ30: 0 | DK30: 0 | DL30: 0 | DM30: 0 | DN30: 0 | DO30: 0 | DP30: 0 | DQ30: 0 | DR30: 0 | DS30: 0
B31: PPE4 | C31: 0 | D31: 0 | E31: 0 | F31: 0 | G31: 0 | H31: 0 | I31: 0 | J31: 0 | K31: 0 | L31: 0 | M31: 0 | N31: 0 | O31: 0 | P31: 0 | Q31: 0 | R31: 0 | S31: 0 | T31: 0 | U31: 0 | V31: 0 | W31: 0 | X31: 0 | Y31: 0 | Z31: 0 | AA31: 0 | AB31: 0 | AC31: 0 | AD31: 0 | AE31: 0 | AF31: 0 | AG31: 0 | AH31: 0 | AI31: 0 | AJ31: 0 | AK31: 0 | AL31: 0 | AM31: 0 | AN31: 0 | AO31: 0 | AP31: 0 | AQ31: 0 | AR31: 0 | AS31: 0 | AT31: 0 | AU31: 0 | AV31: 0 | AW31: 0 | AX31: 0 | AY31: 0 | AZ31: 0 | BA31: 0 | BB31: 0 | BC31: 0 | BD31: 0 | BE31: 0 | BF31: 0 | BG31: 0 | BH31: 0 | BI31: 0 | BJ31: 0 | BK31: 0 | BL31: 0 | BM31: 0 | BN31: 0 | BO31: 0 | BP31: 0 | BQ31: 0 | BR31: 0 | BS31: 0 | BT31: 0 | BU31: 0 | BV31: 0 | BW31: 0 | BX31: 0 | BY31: 0 | BZ31: 0 | CA31: 0 | CB31: 0 | CC31: 0 | CD31: 0 | CE31: 0 | CF31: 0 | CG31: 0 | CH31: 0 | CI31: 0 | CJ31: 0 | CK31: 0 | CL31: 0 | CM31: 0 | CN31: 0 | CO31: 0 | CP31: 0 | CQ31: 0 | CR31: 0 | CS31: 0 | CT31: 0 | CU31: 0 | CV31: 0 | CW31: 0 | CX31: 0 | CY31: 0 | CZ31: 0 | DA31: 0 | DB31: 0 | DC31: 0 | DD31: 0 | DE31: 0 | DF31: 0 | DG31: 0 | DH31: 0 | DI31: 0 | DJ31: 0 | DK31: 0 | DL31: 0 | DM31: 0 | DN31: 0 | DO31: 0 | DP31: 0 | DQ31: 0 | DR31: 0 | DS31: 0
B32: PPE5 | C32: 0 | D32: 0 | E32: 0 | F32: 0 | G32: 0 | H32: 0 | I32: 0 | J32: 0 | K32: 0 | L32: 0 | M32: 0 | N32: 0 | O32: 0 | P32: 0 | Q32: 0 | R32: 0 | S32: 0 | T32: 0 | U32: 0 | V32: 0 | W32: 0 | X32: 0 | Y32: 0 | Z32: 0 | AA32: 0 | AB32: 0 | AC32: 0 | AD32: 0 | AE32: 0 | AF32: 0 | AG32: =AF32+1237 -> 1237 | AH32: 1237 | AI32: 1237 | AJ32: 1237 | AK32: 1237 | AL32: 1237 | AM32: 1237 | AN32: 1237 | AO32: 1237 | AP32: 1237 | AQ32: 1237 | AR32: 1237 | AS32: 1237 | AT32: 1237 | AU32: 1237 | AV32: 1237 | AW32: 1237 | AX32: 1237 | AY32: 1237 | AZ32: 1237 | BA32: 1237 | BB32: 1237 | BC32: 1237 | BD32: 1237 | BE32: 1237 | BF32: 1237 | BG32: 1237 | BH32: 1237 | BI32: 1237 | BJ32: 1237 | BK32: 1237 | BL32: 1237 | BM32: 1237 | BN32: 1237 | BO32: 1237 | BP32: 1237 | BQ32: 1237 | BR32: 1237 | BS32: 1237 | BT32: 1237 | BU32: 1237 | BV32: 1237 | BW32: 1237 | BX32: 1237 | BY32: 1237 | BZ32: 1237 | CA32: 1237 | CB32: 1237 | CC32: 1237 | CD32: 1237 | CE32: 1237 | CF32: 1237 | CG32: 1237 | CH32: 1237 | CI32: 1237 | CJ32: 1237 | CK32: 1237 | CL32: 1237 | CM32: 1237 | CN32: 1237 | CO32: 1237 | CP32: 1237 | CQ32: 1237 | CR32: 1237 | CS32: 1237 | CT32: 1237 | CU32: 1237 | CV32: 1237 | CW32: 1237 | CX32: 1237 | CY32: 1237 | CZ32: 1237 | DA32: 1237 | DB32: 1237 | DC32: 1237 | DD32: 1237 | DE32: 1237 | DF32: 1237 | DG32: 1237 | DH32: 1237 | DI32: 1237 | DJ32: 1237 | DK32: 1237 | DL32: 1237 | DM32: 1237 | DN32: 1237 | DO32: 1237 | DP32: 1237 | DQ32: 1237 | DR32: 1237 | DS32: 1237
B33: PPE GT | C33: 420 | D33: 420 | E33: 420 | F33: 420 | G33: 420 | H33: 420 | I33: 420 | J33: 420 | K33: 420 | L33: 420 | M33: 420 | N33: 420 | O33: 420 | P33: 420 | Q33: 420 | R33: 420 | S33: 420 | T33: 420 | U33: 420 | V33: 420 | W33: 420 | X33: 420 | Y33: 420 | Z33: 420 | AA33: 420 | AB33: 420 | AC33: 420 | AD33: 420 | AE33: 420 | AF33: 420 | AG33: 420 | AH33: 420 | AI33: 420 | AJ33: 420 | AK33: 420 | AL33: 420 | AM33: 420 | AN33: 420 | AO33: 420 | AP33: 420 | AQ33: 420 | AR33: 420 | AS33: =AR33 -> 420 | AT33: 420 | AU33: 420 | AV33: 420 | AW33: 420 | AX33: 420 | AY33: 420 | AZ33: 420 | BA33: 420 | BB33: 420 | BC33: 420 | BD33: 420 | BE33: =BD33 -> 420 | BF33: 420 | BG33: 420 | BH33: 420 | BI33: 420 | BJ33: 420 | BK33: 420 | BL33: =BK33 -> 420 | BM33: 420 | BN33: 420 | BO33: 420 | BP33: 420 | BQ33: =BP33 -> 420 | BR33: 420 | BS33: 420 | BT33: 420 | BU33: 420 | BV33: 420 | BW33: 420 | BX33: 420 | BY33: 420 | BZ33: 420 | CA33: 420 | CB33: 420 | CC33: =CB33 -> 420 | CD33: 420 | CE33: 420 | CF33: 420 | CG33: 420 | CH33: 420 | CI33: 420 | CJ33: 420 | CK33: 420 | CL33: 420 | CM33: 420 | CN33: 420 | CO33: =CN33 -> 420 | CP33: 420 | CQ33: 420 | CR33: 420 | CS33: 420 | CT33: 420 | CU33: 420 | CV33: 420 | CW33: 420 | CX33: 420 | CY33: 420 | CZ33: 420 | DA33: =CZ33 -> 420 | DB33: 420 | DC33: 420 | DD33: 420 | DE33: 420 | DF33: 420 | DG33: 420 | DH33: 420 | DI33: 420 | DJ33: 420 | DK33: 420 | DL33: 420 | DM33: =DL33 -> 420 | DN33: 420 | DO33: 420 | DP33: 420 | DQ33: 420 | DR33: 420 | DS33: 420
B34: PPN1 | C34: 249 | D34: 247 | E34: 247 | F34: 247 | G34: 247 | H34: 247 | I34: 247 | J34: 247 | K34: 247 | L34: 247 | M34: 247 | N34: 247 | O34: 0 | P34: =O34 -> 0 | Q34: 0 | R34: 0 | S34: 0 | T34: 0 | U34: 0 | V34: 0 | W34: 0 | X34: 0 | Y34: 0 | Z34: 0 | AA34: 0 | AB34: 0 | AC34: 0 | AD34: 0 | AE34: 0 | AF34: 0 | AG34: 0 | AH34: 0 | AI34: 0 | AJ34: 0 | AK34: 0 | AL34: 0 | AM34: 0 | AN34: 0 | AO34: 0 | AP34: 0 | AQ34: 0 | AR34: 0 | AS34: =AR34 -> 0 | AT34: 0 | AU34: 0 | AV34: 0 | AW34: 0 | AX34: 0 | AY34: 0 | AZ34: =AY34 -> 0 | BA34: 0 | BB34: 0 | BC34: 0 | BD34: 0 | BE34: =BD34 -> 0 | BF34: 0 | BG34: 0 | BH34: 0 | BI34: 0 | BJ34: 0 | BK34: 0 | BL34: 0 | BM34: 0 | BN34: 0 | BO34: 0 | BP34: 0 | BQ34: =BP34 -> 0 | BR34: 0 | BS34: 0 | BT34: 0 | BU34: 0 | BV34: 0 | BW34: 0 | BX34: 0 | BY34: 0 | BZ34: 0 | CA34: 0 | CB34: 0 | CC34: =CB34 -> 0 | CD34: 0 | CE34: 0 | CF34: 0 | CG34: 0 | CH34: 0 | CI34: 0 | CJ34: 0 | CK34: 0 | CL34: 0 | CM34: 0 | CN34: 0 | CO34: =CN34 -> 0 | CP34: 0 | CQ34: 0 | CR34: 0 | CS34: 0 | CT34: 0 | CU34: 0 | CV34: 0 | CW34: 0 | CX34: 0 | CY34: 0 | CZ34: 0 | DA34: =CZ34 -> 0 | DB34: 0 | DC34: 0 | DD34: 0 | DE34: 0 | DF34: 0 | DG34: 0 | DH34: 0 | DI34: 0 | DJ34: 0 | DK34: 0 | DL34: 0 | DM34: =DL34 -> 0 | DN34: 0 | DO34: 0 | DP34: 0 | DQ34: 0 | DR34: 0 | DS34: 0
B35: PPN2 | C35: 249 | D35: 247 | E35: 247 | F35: 247 | G35: 247 | H35: 247 | I35: 247 | J35: 247 | K35: 247 | L35: 247 | M35: 247 | N35: 247 | O35: 0 | P35: =O35 -> 0 | Q35: 0 | R35: 0 | S35: 0 | T35: 0 | U35: 0 | V35: 0 | W35: 0 | X35: 0 | Y35: 0 | Z35: 0 | AA35: 0 | AB35: 0 | AC35: 0 | AD35: 0 | AE35: 0 | AF35: 0 | AG35: =AF35 -> 0 | AH35: =AG35 -> 0 | AI35: =AH35 -> 0 | AJ35: =AI35 -> 0 | AK35: =AJ35 -> 0 | AL35: 0 | AM35: 0 | AN35: 0 | AO35: 0 | AP35: 0 | AQ35: 0 | AR35: 0 | AS35: =AR35 -> 0 | AT35: =AS35 -> 0 | AU35: =AT35 -> 0 | AV35: =AU35 -> 0 | AW35: =AV35 -> 0 | AX35: 0 | AY35: 0 | AZ35: =AY35 -> 0 | BA35: 0 | BB35: 0 | BC35: 0 | BD35: 0 | BE35: =BD35 -> 0 | BF35: =BE35 -> 0 | BG35: =BF35 -> 0 | BH35: =BG35 -> 0 | BI35: =BH35 -> 0 | BJ35: 0 | BK35: 0 | BL35: 0 | BM35: 0 | BN35: 0 | BO35: 0 | BP35: 0 | BQ35: =BP35 -> 0 | BR35: =BQ35 -> 0 | BS35: =BR35 -> 0 | BT35: =BS35 -> 0 | BU35: =BT35 -> 0 | BV35: 0 | BW35: 0 | BX35: 0 | BY35: 0 | BZ35: 0 | CA35: 0 | CB35: 0 | CC35: =CB35 -> 0 | CD35: =CC35 -> 0 | CE35: =CD35 -> 0 | CF35: =CE35 -> 0 | CG35: =CF35 -> 0 | CH35: 0 | CI35: 0 | CJ35: 0 | CK35: 0 | CL35: 0 | CM35: 0 | CN35: 0 | CO35: =CN35 -> 0 | CP35: =CO35 -> 0 | CQ35: =CP35 -> 0 | CR35: =CQ35 -> 0 | CS35: =CR35 -> 0 | CT35: 0 | CU35: 0 | CV35: 0 | CW35: 0 | CX35: 0 | CY35: 0 | CZ35: 0 | DA35: =CZ35 -> 0 | DB35: =DA35 -> 0 | DC35: =DB35 -> 0 | DD35: =DC35 -> 0 | DE35: =DD35 -> 0 | DF35: 0 | DG35: 0 | DH35: 0 | DI35: 0 | DJ35: 0 | DK35: 0 | DL35: 0 | DM35: =DL35 -> 0 | DN35: =DM35 -> 0 | DO35: =DN35 -> 0 | DP35: =DO35 -> 0 | DQ35: =DP35 -> 0 | DR35: 0 | DS35: 0
B36: PRV3 | C36: 0 | D36: 0 | E36: =D36 -> 0 | F36: 0 | G36: 0 | H36: 0 | I36: =H36 -> 0 | J36: 0 | K36: 0 | L36: 0 | M36: 0 | N36: 0 | O36: 0 | P36: 0 | Q36: 0 | R36: 0 | S36: 0 | T36: 0 | U36: 0 | V36: 0 | W36: 0 | X36: 0 | Y36: 0 | Z36: 0 | AA36: 0 | AB36: 0 | AC36: 0 | AD36: 0 | AE36: 0 | AF36: 0 | AG36: 0 | AH36: 0 | AI36: 0 | AJ36: 0 | AK36: 0 | AL36: 0 | AM36: 0 | AN36: 0 | AO36: 0 | AP36: 0 | AQ36: 0 | AR36: 0 | AS36: 0 | AT36: 0 | AU36: 0 | AV36: 0 | AW36: 0 | AX36: 0 | AY36: 0 | AZ36: 0 | BA36: 0 | BB36: 0 | BC36: 0 | BD36: 0 | BE36: 0 | BF36: 0 | BG36: 0 | BH36: 0 | BI36: 0 | BJ36: 0 | BK36: 0 | BL36: 0 | BM36: 0 | BN36: 0 | BO36: 0 | BP36: 0 | BQ36: 0 | BR36: 0 | BS36: 0 | BT36: 0 | BU36: 0 | BV36: 0 | BW36: 0 | BX36: 0 | BY36: 0 | BZ36: 0 | CA36: 0 | CB36: 0 | CC36: 0 | CD36: 0 | CE36: 0 | CF36: 0 | CG36: 0 | CH36: 0 | CI36: 0 | CJ36: 0 | CK36: 0 | CL36: 0 | CM36: 0 | CN36: 0 | CO36: 0 | CP36: 0 | CQ36: 0 | CR36: 0 | CS36: 0 | CT36: 0 | CU36: 0 | CV36: 0 | CW36: 0 | CX36: 0 | CY36: 0 | CZ36: 0 | DA36: 0 | DB36: 0 | DC36: 0 | DD36: 0 | DE36: 0 | DF36: 0 | DG36: 0 | DH36: 0 | DI36: 0 | DJ36: 0 | DK36: 0 | DL36: 0 | DM36: 0 | DN36: 0 | DO36: 0 | DP36: 0 | DQ36: 0 | DR36: 0 | DS36: 0
B37: PRV4 | C37: 0 | D37: 0 | E37: 0 | F37: 0 | G37: 0 | H37: 0 | I37: 0 | J37: 0 | K37: 0 | L37: 0 | M37: 0 | N37: 0 | O37: 0 | P37: 0 | Q37: 0 | R37: 0 | S37: 0 | T37: 0 | U37: 0 | V37: 0 | W37: 0 | X37: 0 | Y37: 0 | Z37: 0 | AA37: 0 | AB37: 0 | AC37: 0 | AD37: 0 | AE37: 0 | AF37: 0 | AG37: 0 | AH37: 0 | AI37: 0 | AJ37: =AI37 -> 0 | AK37: 0 | AL37: 0 | AM37: 0 | AN37: 0 | AO37: 0 | AP37: 0 | AQ37: 0 | AR37: 0 | AS37: 0 | AT37: 0 | AU37: 0 | AV37: 0 | AW37: 0 | AX37: 0 | AY37: 0 | AZ37: 0 | BA37: 0 | BB37: 0 | BC37: 0 | BD37: 0 | BE37: 0 | BF37: 0 | BG37: 0 | BH37: 0 | BI37: 0 | BJ37: 0 | BK37: 0 | BL37: 0 | BM37: 0 | BN37: 0 | BO37: 0 | BP37: 0 | BQ37: 0 | BR37: 0 | BS37: 0 | BT37: 0 | BU37: 0 | BV37: 0 | BW37: 0 | BX37: 0 | BY37: 0 | BZ37: 0 | CA37: 0 | CB37: 0 | CC37: 0 | CD37: 0 | CE37: 0 | CF37: 0 | CG37: 0 | CH37: 0 | CI37: 0 | CJ37: 0 | CK37: 0 | CL37: 0 | CM37: 0 | CN37: 0 | CO37: 0 | CP37: 0 | CQ37: 0 | CR37: 0 | CS37: 0 | CT37: 0 | CU37: 0 | CV37: 0 | CW37: 0 | CX37: 0 | CY37: 0 | CZ37: 0 | DA37: 0 | DB37: 0 | DC37: 0 | DD37: 0 | DE37: 0 | DF37: 0 | DG37: 0 | DH37: 0 | DI37: 0 | DJ37: 0 | DK37: 0 | DL37: 0 | DM37: 0 | DN37: 0 | DO37: 0 | DP37: 0 | DQ37: 0 | DR37: 0 | DS37: 0
B38: PRV5 | C38: 0 | D38: 0 | E38: 0 | F38: 0 | G38: =F38+1212 -> 1212 | H38: =G38 -> 1212 | I38: 1212 | J38: 1212 | K38: 1212 | L38: 1212 | M38: 1212 | N38: 1212 | O38: 1212 | P38: 1212 | Q38: 1212 | R38: 1212 | S38: 1212 | T38: 1212 | U38: 1212 | V38: 1212 | W38: 1212 | X38: 1212 | Y38: 1212 | Z38: 1212 | AA38: 1212 | AB38: 1212 | AC38: 1212 | AD38: 1212 | AE38: 1212 | AF38: 1212 | AG38: 1212 | AH38: 1212 | AI38: 1212 | AJ38: 1212 | AK38: 1212 | AL38: 1212 | AM38: 1212 | AN38: 1212 | AO38: 1212 | AP38: 1212 | AQ38: 1212 | AR38: 1212 | AS38: 1212 | AT38: 1212 | AU38: 1212 | AV38: 1212 | AW38: 1212 | AX38: 1212 | AY38: 1212 | AZ38: 1212 | BA38: 1212 | BB38: 1212 | BC38: 1212 | BD38: 1212 | BE38: 1212 | BF38: 1212 | BG38: 1212 | BH38: 1212 | BI38: 1212 | BJ38: 1212 | BK38: 1212 | BL38: 1212 | BM38: 1212 | BN38: 1212 | BO38: 1212 | BP38: 1212 | BQ38: 1212 | BR38: 1212 | BS38: 1212 | BT38: 1212 | BU38: 1212 | BV38: 1212 | BW38: 1212 | BX38: 1212 | BY38: 1212 | BZ38: 1212 | CA38: 1212 | CB38: 1212 | CC38: 1212 | CD38: 1212 | CE38: 1212 | CF38: 1212 | CG38: 1212 | CH38: 1212 | CI38: 1212 | CJ38: 1212 | CK38: 1212 | CL38: 1212 | CM38: 1212 | CN38: 1212 | CO38: 1212 | CP38: 1212 | CQ38: 1212 | CR38: 1212 | CS38: 1212 | CT38: 1212 | CU38: 1212 | CV38: 1212 | CW38: 1212 | CX38: 1212 | CY38: 1212 | CZ38: 1212 | DA38: 1212 | DB38: 1212 | DC38: 1212 | DD38: 1212 | DE38: 1212 | DF38: 1212 | DG38: 1212 | DH38: 1212 | DI38: 1212 | DJ38: 1212 | DK38: 1212 | DL38: =DK38+28 -> 1240 | DM38: =DL38 -> 1240 | DN38: =DM38+28 -> 1268 | DO38: =DN38 -> 1268 | DP38: =DO38 -> 1268 | DQ38: =DP38 -> 1268 | DR38: =DQ38+27 -> 1295 | DS38: 1295
B39: PSC | C39: 10 | D39: 10 | E39: 10 | F39: 10 | G39: 10 | H39: 10 | I39: 10 | J39: 10 | K39: 10 | L39: 10 | M39: 10 | N39: 10 | O39: 10 | P39: 10 | Q39: 10 | R39: 10 | S39: 10 | T39: 10 | U39: 10 | V39: 10 | W39: 10 | X39: 10 | Y39: 10 | Z39: 10 | AA39: 10 | AB39: 10 | AC39: 10 | AD39: 10 | AE39: 10 | AF39: 10 | AG39: 10 | AH39: 10 | AI39: 10 | AJ39: 10 | AK39: 10 | AL39: 10 | AM39: 10 | AN39: 10 | AO39: 10 | AP39: 10 | AQ39: 10 | AR39: 10 | AS39: 10 | AT39: 10 | AU39: 10 | AV39: 10 | AW39: 10 | AX39: 10 | AY39: 10 | AZ39: 10 | BA39: 10 | BB39: 10 | BC39: 10 | BD39: 10 | BE39: 10 | BF39: 10 | BG39: 10 | BH39: 10 | BI39: 10 | BJ39: 10 | BK39: 10 | BL39: 10 | BM39: 10 | BN39: 10 | BO39: 10 | BP39: 10 | BQ39: 10 | BR39: 10 | BS39: 10 | BT39: 10 | BU39: 10 | BV39: 10 | BW39: 10 | BX39: 10 | BY39: 10 | BZ39: 10 | CA39: 10 | CB39: 10 | CC39: 10 | CD39: 10 | CE39: 10 | CF39: 10 | CG39: 10 | CH39: 10 | CI39: 10 | CJ39: 10 | CK39: 10 | CL39: 10 | CM39: 10 | CN39: 10 | CO39: 10 | CP39: 10 | CQ39: 10 | CR39: 10 | CS39: 10 | CT39: 10 | CU39: 10 | CV39: 10 | CW39: 10 | CX39: 10 | CY39: 10 | CZ39: 10 | DA39: 10 | DB39: 10 | DC39: 10 | DD39: 10 | DE39: 10 | DF39: 10 | DG39: 10 | DH39: 10 | DI39: 10 | DJ39: 10 | DK39: 10 | DL39: 10 | DM39: 10 | DN39: 10 | DO39: 10 | DP39: 10 | DQ39: 10 | DR39: 10 | DS39: 10
B40: PSH4 | C40: 643 | D40: 643 | E40: 643 | F40: 643 | G40: 643 | H40: 643 | I40: 643 | J40: 643 | K40: 643 | L40: 643 | M40: 643 | N40: 643 | O40: 643 | P40: 643 | Q40: 643 | R40: 643 | S40: 643 | T40: 643 | U40: 643 | V40: 643 | W40: 643 | X40: 643 | Y40: 643 | Z40: 643 | AA40: 643 | AB40: 643 | AC40: 643 | AD40: 643 | AE40: 643 | AF40: 643 | AG40: 643 | AH40: 643 | AI40: 643 | AJ40: 643 | AK40: 643 | AL40: 643 | AM40: 643 | AN40: 643 | AO40: 643 | AP40: 643 | AQ40: 643 | AR40: 643 | AS40: 643 | AT40: 643 | AU40: 643 | AV40: 643 | AW40: 643 | AX40: 643 | AY40: 643 | AZ40: 643 | BA40: 643 | BB40: 643 | BC40: 643 | BD40: 643 | BE40: 643 | BF40: 643 | BG40: 643 | BH40: 643 | BI40: 643 | BJ40: 643 | BK40: 643 | BL40: 643 | BM40: 643 | BN40: 643 | BO40: 643 | BP40: 643 | BQ40: 643 | BR40: 643 | BS40: 643 | BT40: 643 | BU40: 643 | BV40: 643 | BW40: 643 | BX40: 643 | BY40: 643 | BZ40: 643 | CA40: 643 | CB40: 643 | CC40: 643 | CD40: 643 | CE40: 643 | CF40: 643 | CG40: 643 | CH40: 643 | CI40: 643 | CJ40: 643 | CK40: 643 | CL40: 643 | CM40: 643 | CN40: 643 | CO40: 643 | CP40: 643 | CQ40: 643 | CR40: 643 | CS40: 643 | CT40: 643 | CU40: 643 | CV40: 643 | CW40: 643 | CX40: 643 | CY40: 643 | CZ40: 643 | DA40: 643 | DB40: 643 | DC40: 643 | DD40: 643 | DE40: 643 | DF40: 643 | DG40: 643 | DH40: 643 | DI40: 643 | DJ40: 643 | DK40: 643 | DL40: 643 | DM40: 643 | DN40: 643 | DO40: 643 | DP40: 643 | DQ40: 643 | DR40: 643 | DS40: 643
B41: PSL1 | C41: 981 | D41: 981 | E41: 981 | F41: 981 | G41: 981 | H41: 981 | I41: 981 | J41: 981 | K41: 981 | L41: 981 | M41: 981 | N41: 981 | O41: 981 | P41: 981 | Q41: 981 | R41: 981 | S41: 981 | T41: 981 | U41: 981 | V41: 981 | W41: 981 | X41: 981 | Y41: 981 | Z41: 981 | AA41: 981 | AB41: 981 | AC41: 981 | AD41: 981 | AE41: 981 | AF41: 981 | AG41: 981 | AH41: 981 | AI41: 981 | AJ41: 981 | AK41: 981 | AL41: 981 | AM41: 981 | AN41: 981 | AO41: 981 | AP41: 981 | AQ41: 981 | AR41: 981 | AS41: 981 | AT41: 981 | AU41: 981 | AV41: 981 | AW41: 981 | AX41: 981 | AY41: 981 | AZ41: 981 | BA41: 981 | BB41: 981 | BC41: 981 | BD41: 981 | BE41: 981 | BF41: 981 | BG41: 981 | BH41: 981 | BI41: 981 | BJ41: 981 | BK41: 981 | BL41: 981 | BM41: 981 | BN41: 981 | BO41: 981 | BP41: 981 | BQ41: 981 | BR41: 981 | BS41: 981 | BT41: 981 | BU41: 981 | BV41: 981 | BW41: 981 | BX41: 981 | BY41: 981 | BZ41: =BY41 -> 981 | CA41: 981 | CB41: 981 | CC41: 981 | CD41: 981 | CE41: 981 | CF41: 981 | CG41: 981 | CH41: 981 | CI41: 981 | CJ41: 981 | CK41: 981 | CL41: =CK41 -> 981 | CM41: 981 | CN41: 981 | CO41: 981 | CP41: 981 | CQ41: 981 | CR41: 981 | CS41: 981 | CT41: 981 | CU41: 981 | CV41: 981 | CW41: 981 | CX41: =CW41 -> 981 | CY41: 981 | CZ41: 981 | DA41: 981 | DB41: 981 | DC41: 981 | DD41: 981 | DE41: 981 | DF41: 981 | DG41: 981 | DH41: 981 | DI41: 981 | DJ41: =DI41 -> 981 | DK41: 981 | DL41: 981 | DM41: 981 | DN41: 981 | DO41: 981 | DP41: 981 | DQ41: 981 | DR41: 981 | DS41: 981
B42: PSL2 | C42: 840 | D42: 840 | E42: 840 | F42: 840 | G42: 840 | H42: 840 | I42: 840 | J42: 840 | K42: 840 | L42: 840 | M42: 840 | N42: 840 | O42: 840 | P42: 840 | Q42: 840 | R42: 840 | S42: 840 | T42: 840 | U42: 840 | V42: 840 | W42: 840 | X42: 840 | Y42: 840 | Z42: 840 | AA42: 840 | AB42: 840 | AC42: 840 | AD42: 840 | AE42: 840 | AF42: 840 | AG42: 840 | AH42: 840 | AI42: 840 | AJ42: 840 | AK42: 840 | AL42: 840 | AM42: 840 | AN42: 840 | AO42: 840 | AP42: 840 | AQ42: 840 | AR42: =AQ42 -> 840 | AS42: 840 | AT42: 840 | AU42: 840 | AV42: 840 | AW42: 840 | AX42: 840 | AY42: 840 | AZ42: 840 | BA42: 840 | BB42: 840 | BC42: 840 | BD42: 840 | BE42: 840 | BF42: 840 | BG42: 840 | BH42: =BG42 -> 840 | BI42: 840 | BJ42: 840 | BK42: 840 | BL42: 840 | BM42: 840 | BN42: 840 | BO42: 840 | BP42: 840 | BQ42: 840 | BR42: 840 | BS42: 840 | BT42: 840 | BU42: 840 | BV42: 840 | BW42: 840 | BX42: =BW42 -> 840 | BY42: 840 | BZ42: 840 | CA42: 840 | CB42: 840 | CC42: 840 | CD42: 840 | CE42: 840 | CF42: 840 | CG42: 840 | CH42: 840 | CI42: 840 | CJ42: 840 | CK42: 840 | CL42: 840 | CM42: 840 | CN42: 840 | CO42: 840 | CP42: 840 | CQ42: 840 | CR42: 840 | CS42: 840 | CT42: 840 | CU42: 840 | CV42: 840 | CW42: 840 | CX42: 840 | CY42: 840 | CZ42: 840 | DA42: 840 | DB42: 840 | DC42: 840 | DD42: 840 | DE42: 840 | DF42: 840 | DG42: 840 | DH42: 840 | DI42: 840 | DJ42: 840 | DK42: 840 | DL42: 840 | DM42: 840 | DN42: 840 | DO42: 840 | DP42: 840 | DQ42: 840 | DR42: 840 | DS42: 840
B43: PSN3 | C43: 0 | D43: 0 | E43: 0 | F43: 0 | G43: 0 | H43: 0 | I43: 0 | J43: 0 | K43: 0 | L43: 0 | M43: 0 | N43: 0 | O43: 0 | P43: 0 | Q43: 0 | R43: 0 | S43: 0 | T43: 0 | U43: 0 | V43: 0 | W43: 0 | X43: 0 | Y43: 0 | Z43: 0 | AA43: 0 | AB43: 0 | AC43: 0 | AD43: 0 | AE43: 0 | AF43: 0 | AG43: 0 | AH43: 0 | AI43: 0 | AJ43: 0 | AK43: 0 | AL43: 0 | AM43: 0 | AN43: 0 | AO43: 0 | AP43: 0 | AQ43: 0 | AR43: 0 | AS43: 0 | AT43: 0 | AU43: 0 | AV43: 0 | AW43: 0 | AX43: 0 | AY43: 0 | AZ43: 0 | BA43: 0 | BB43: 0 | BC43: 0 | BD43: 0 | BE43: 0 | BF43: 0 | BG43: 0 | BH43: 0 | BI43: 0 | BJ43: 0 | BK43: 0 | BL43: 0 | BM43: 0 | BN43: 0 | BO43: 0 | BP43: 0 | BQ43: 0 | BR43: 0 | BS43: 0 | BT43: 0 | BU43: 0 | BV43: 0 | BW43: 0 | BX43: 0 | BY43: 0 | BZ43: 0 | CA43: 0 | CB43: 0 | CC43: 0 | CD43: 0 | CE43: 0 | CF43: 0 | CG43: 0 | CH43: 0 | CI43: 0 | CJ43: 0 | CK43: 0 | CL43: 0 | CM43: 0 | CN43: 0 | CO43: 0 | CP43: 0 | CQ43: 0 | CR43: 0 | CS43: 0 | CT43: 0 | CU43: 0 | CV43: 0 | CW43: 0 | CX43: 0 | CY43: 0 | CZ43: 0 | DA43: 0 | DB43: 0 | DC43: 0 | DD43: 0 | DE43: 0 | DF43: 0 | DG43: 0 | DH43: 0 | DI43: 0 | DJ43: 0 | DK43: 0 | DL43: 0 | DM43: 0 | DN43: 0 | DO43: 0 | DP43: 0 | DQ43: 0 | DR43: 0 | DS43: 0
B44: PSR4 | C44: 989 | D44: 1005 | E44: 1005 | F44: 1005 | G44: 1005 | H44: 1005 | I44: 1005 | J44: 1005 | K44: 1005 | L44: 1005 | M44: 1005 | N44: 1005 | O44: 1005 | P44: 1005 | Q44: 1005 | R44: 1005 | S44: 1005 | T44: 1005 | U44: 1005 | V44: 1005 | W44: 1005 | X44: 1005 | Y44: 1005 | Z44: 1005 | AA44: 1005 | AB44: 1005 | AC44: 1005 | AD44: =AC44 -> 1005 | AE44: 1005 | AF44: =AE44 -> 1005 | AG44: 1005 | AH44: =AG44 -> 1005 | AI44: 1005 | AJ44: =AI44 -> 1005 | AK44: 1005 | AL44: 1005 | AM44: 1005 | AN44: 1005 | AO44: 1005 | AP44: 1005 | AQ44: 1005 | AR44: 1005 | AS44: 1005 | AT44: 1005 | AU44: 1005 | AV44: 1005 | AW44: 1005 | AX44: 1005 | AY44: 1005 | AZ44: 1005 | BA44: 1005 | BB44: 1005 | BC44: 1005 | BD44: 1005 | BE44: 1005 | BF44: 1005 | BG44: 1005 | BH44: 1005 | BI44: 1005 | BJ44: 1005 | BK44: 1005 | BL44: 1005 | BM44: 1005 | BN44: 1005 | BO44: 1005 | BP44: 1005 | BQ44: 1005 | BR44: 1005 | BS44: 1005 | BT44: 1005 | BU44: 1005 | BV44: 1005 | BW44: 1005 | BX44: 1005 | BY44: 1005 | BZ44: 1005 | CA44: 1005 | CB44: 1005 | CC44: 1005 | CD44: 1005 | CE44: 1005 | CF44: 1005 | CG44: 1005 | CH44: 1005 | CI44: 1005 | CJ44: 1005 | CK44: 1005 | CL44: 1005 | CM44: 1005 | CN44: 1005 | CO44: 1005 | CP44: 1005 | CQ44: 1005 | CR44: 1005 | CS44: 1005 | CT44: 1005 | CU44: 1005 | CV44: 1005 | CW44: 1005 | CX44: 1005 | CY44: 1005 | CZ44: 1005 | DA44: 1005 | DB44: 1005 | DC44: 1005 | DD44: 1005 | DE44: 1005 | DF44: 1005 | DG44: 1005 | DH44: 1005 | DI44: 1005 | DJ44: 1005 | DK44: 1005 | DL44: 1005 | DM44: 1005 | DN44: 1005 | DO44: 1005 | DP44: 1005 | DQ44: 1005 | DR44: 1005 | DS44: 1005
B45: PSR5 | C45: 991 | D45: 1005 | E45: =D45 -> 1005 | F45: 1005 | G45: 1005 | H45: 1005 | I45: 1005 | J45: 1005 | K45: 1005 | L45: 1005 | M45: 1005 | N45: 1005 | O45: 1005 | P45: 1005 | Q45: 1005 | R45: 1005 | S45: 1005 | T45: 1005 | U45: 1005 | V45: 1005 | W45: 1005 | X45: 1005 | Y45: 1005 | Z45: 1005 | AA45: 1005 | AB45: 1005 | AC45: 1005 | AD45: 1005 | AE45: 1005 | AF45: 1005 | AG45: 1005 | AH45: 1005 | AI45: 1005 | AJ45: 1005 | AK45: 1005 | AL45: =AK45 -> 1005 | AM45: 1005 | AN45: 1005 | AO45: 1005 | AP45: 1005 | AQ45: 1005 | AR45: =AQ45 -> 1005 | AS45: =AR45 -> 1005 | AT45: 1005 | AU45: 1005 | AV45: 1005 | AW45: 1005 | AX45: 1005 | AY45: 1005 | AZ45: 1005 | BA45: 1005 | BB45: 1005 | BC45: 1005 | BD45: 1005 | BE45: 1005 | BF45: 1005 | BG45: 1005 | BH45: 1005 | BI45: 1005 | BJ45: 1005 | BK45: 1005 | BL45: 1005 | BM45: 1005 | BN45: 1005 | BO45: 1005 | BP45: 1005 | BQ45: 1005 | BR45: 1005 | BS45: 1005 | BT45: 1005 | BU45: 1005 | BV45: 1005 | BW45: 1005 | BX45: 1005 | BY45: 1005 | BZ45: 1005 | CA45: 1005 | CB45: 1005 | CC45: 1005 | CD45: 1005 | CE45: 1005 | CF45: 1005 | CG45: 1005 | CH45: 1005 | CI45: 1005 | CJ45: 1005 | CK45: 1005 | CL45: 1005 | CM45: 1005 | CN45: 1005 | CO45: 1005 | CP45: 1005 | CQ45: 1005 | CR45: 1005 | CS45: 1005 | CT45: 1005 | CU45: 1005 | CV45: 1005 | CW45: 1005 | CX45: 1005 | CY45: 1005 | CZ45: 1005 | DA45: 1005 | DB45: 1005 | DC45: 1005 | DD45: 1005 | DE45: 1005 | DF45: 1005 | DG45: 1005 | DH45: 1005 | DI45: 1005 | DJ45: 1005 | DK45: 1005 | DL45: 1005 | DM45: 1005 | DN45: 1005 | DO45: 1005 | DP45: 1005 | DQ45: 1005 | DR45: 1005 | DS45: 1005
B46: PTF1 | C46: 396 | D46: 396 | E46: =D46 -> 396 | F46: 396 | G46: 396 | H46: 396 | I46: 396 | J46: 396 | K46: 396 | L46: 396 | M46: 396 | N46: 396 | O46: 396 | P46: 396 | Q46: 396 | R46: 396 | S46: 396 | T46: 396 | U46: =T46 -> 396 | V46: 396 | W46: 396 | X46: 396 | Y46: 396 | Z46: 396 | AA46: 396 | AB46: 0 | AC46: 0 | AD46: 0 | AE46: 0 | AF46: 0 | AG46: =AF46 -> 0 | AH46: 0 | AI46: 0 | AJ46: 0 | AK46: 0 | AL46: 0 | AM46: 0 | AN46: 0 | AO46: 0 | AP46: 0 | AQ46: 0 | AR46: 0 | AS46: =AR46 -> 0 | AT46: 0 | AU46: 0 | AV46: 0 | AW46: 0 | AX46: 0 | AY46: 0 | AZ46: =AY46 -> 0 | BA46: 0 | BB46: 0 | BC46: 0 | BD46: 0 | BE46: =BD46 -> 0 | BF46: 0 | BG46: 0 | BH46: 0 | BI46: 0 | BJ46: 0 | BK46: 0 | BL46: =BK46 -> 0 | BM46: 0 | BN46: 0 | BO46: 0 | BP46: 0 | BQ46: =BP46 -> 0 | BR46: 0 | BS46: 0 | BT46: 0 | BU46: 0 | BV46: 0 | BW46: 0 | BX46: =BW46 -> 0 | BY46: 0 | BZ46: 0 | CA46: 0 | CB46: 0 | CC46: =CB46 -> 0 | CD46: 0 | CE46: 0 | CF46: 0 | CG46: 0 | CH46: 0 | CI46: 0 | CJ46: =CI46 -> 0 | CK46: 0 | CL46: 0 | CM46: 0 | CN46: 0 | CO46: =CN46 -> 0 | CP46: 0 | CQ46: 0 | CR46: 0 | CS46: 0 | CT46: 0 | CU46: 0 | CV46: =CU46 -> 0 | CW46: 0 | CX46: 0 | CY46: 0 | CZ46: 0 | DA46: =CZ46 -> 0 | DB46: 0 | DC46: 0 | DD46: 0 | DE46: 0 | DF46: 0 | DG46: 0 | DH46: =DG46 -> 0 | DI46: 0 | DJ46: 0 | DK46: 0 | DL46: 0 | DM46: =DL46 -> 0 | DN46: 0 | DO46: 0 | DP46: 0 | DQ46: 0 | DR46: 0 | DS46: 0
B47: PTF2 | C47: 392 | D47: 0 | E47: =D47 -> 0 | F47: 0 | G47: 0 | H47: 0 | I47: 0 | J47: 0 | K47: 0 | L47: 0 | M47: 0 | N47: 0 | O47: 0 | P47: 0 | Q47: 0 | R47: 0 | S47: 0 | T47: 0 | U47: 0 | V47: 0 | W47: 0 | X47: 0 | Y47: 0 | Z47: 0 | AA47: 0 | AB47: 0 | AC47: 0 | AD47: 0 | AE47: 0 | AF47: 0 | AG47: 0 | AH47: 0 | AI47: 0 | AJ47: 0 | AK47: 0 | AL47: 0 | AM47: 0 | AN47: 0 | AO47: 0 | AP47: 0 | AQ47: 0 | AR47: 0 | AS47: 0 | AT47: 0 | AU47: 0 | AV47: 0 | AW47: 0 | AX47: 0 | AY47: 0 | AZ47: 0 | BA47: 0 | BB47: 0 | BC47: 0 | BD47: 0 | BE47: 0 | BF47: 0 | BG47: 0 | BH47: 0 | BI47: 0 | BJ47: 0 | BK47: 0 | BL47: 0 | BM47: 0 | BN47: 0 | BO47: 0 | BP47: 0 | BQ47: 0 | BR47: 0 | BS47: 0 | BT47: 0 | BU47: 0 | BV47: 0 | BW47: 0 | BX47: =BW47 -> 0 | BY47: 0 | BZ47: 0 | CA47: 0 | CB47: 0 | CC47: 0 | CD47: 0 | CE47: 0 | CF47: 0 | CG47: 0 | CH47: 0 | CI47: 0 | CJ47: 0 | CK47: 0 | CL47: 0 | CM47: 0 | CN47: 0 | CO47: 0 | CP47: 0 | CQ47: 0 | CR47: 0 | CS47: 0 | CT47: 0 | CU47: 0 | CV47: 0 | CW47: 0 | CX47: 0 | CY47: 0 | CZ47: 0 | DA47: 0 | DB47: 0 | DC47: 0 | DD47: 0 | DE47: 0 | DF47: 0 | DG47: 0 | DH47: 0 | DI47: 0 | DJ47: 0 | DK47: 0 | DL47: 0 | DM47: 0 | DN47: 0 | DO47: 0 | DP47: 0 | DQ47: 0 | DR47: 0 | DS47: 0
B48: PTN3 | C48: 811 | D48: 811 | E48: 811 | F48: 811 | G48: 811 | H48: 811 | I48: 811 | J48: 811 | K48: 811 | L48: 811 | M48: 811 | N48: 811 | O48: 811 | P48: 811 | Q48: 811 | R48: 811 | S48: 811 | T48: 811 | U48: 811 | V48: 811 | W48: 811 | X48: 811 | Y48: 811 | Z48: 811 | AA48: 811 | AB48: 811 | AC48: 811 | AD48: 811 | AE48: 811 | AF48: 811 | AG48: 811 | AH48: 811 | AI48: 811 | AJ48: 811 | AK48: 811 | AL48: 811 | AM48: 811 | AN48: 811 | AO48: 811 | AP48: 811 | AQ48: 811 | AR48: 811 | AS48: 811 | AT48: 811 | AU48: 811 | AV48: 811 | AW48: 811 | AX48: 811 | AY48: 811 | AZ48: 811 | BA48: 811 | BB48: 811 | BC48: 811 | BD48: 811 | BE48: 811 | BF48: 811 | BG48: 811 | BH48: 811 | BI48: 811 | BJ48: 811 | BK48: 811 | BL48: 811 | BM48: 811 | BN48: 811 | BO48: 811 | BP48: 811 | BQ48: 811 | BR48: 811 | BS48: 811 | BT48: 811 | BU48: 811 | BV48: 811 | BW48: 811 | BX48: 811 | BY48: 811 | BZ48: 811 | CA48: 811 | CB48: 811 | CC48: 811 | CD48: 811 | CE48: 811 | CF48: 811 | CG48: 811 | CH48: 811 | CI48: 811 | CJ48: 811 | CK48: 811 | CL48: 811 | CM48: 811 | CN48: 811 | CO48: 811 | CP48: 811 | CQ48: 811 | CR48: 811 | CS48: 811 | CT48: 811 | CU48: 811 | CV48: 811 | CW48: 811 | CX48: 811 | CY48: 811 | CZ48: 811 | DA48: 811 | DB48: 811 | DC48: 811 | DD48: 811 | DE48: 811 | DF48: 811 | DG48: 811 | DH48: 811 | DI48: 811 | DJ48: 811 | DK48: 811 | DL48: 811 | DM48: 811 | DN48: 811 | DO48: 811 | DP48: 811 | DQ48: 811 | DR48: 811 | DS48: 811
B49: PTN4 | C49: 821 | D49: 821 | E49: 821 | F49: 821 | G49: 821 | H49: 821 | I49: 821 | J49: 821 | K49: 821 | L49: 821 | M49: 821 | N49: 821 | O49: 821 | P49: 821 | Q49: 821 | R49: 821 | S49: 821 | T49: 821 | U49: 821 | V49: 821 | W49: 821 | X49: 821 | Y49: 821 | Z49: 821 | AA49: 821 | AB49: 821 | AC49: 821 | AD49: 821 | AE49: 821 | AF49: 821 | AG49: 821 | AH49: 821 | AI49: 821 | AJ49: 821 | AK49: 821 | AL49: 821 | AM49: 821 | AN49: 821 | AO49: 821 | AP49: 821 | AQ49: 821 | AR49: 821 | AS49: 821 | AT49: 821 | AU49: 821 | AV49: 821 | AW49: 821 | AX49: 821 | AY49: 821 | AZ49: 821 | BA49: 821 | BB49: 821 | BC49: 821 | BD49: 821 | BE49: 821 | BF49: 821 | BG49: 821 | BH49: 821 | BI49: 821 | BJ49: 821 | BK49: 821 | BL49: 821 | BM49: 821 | BN49: 821 | BO49: 821 | BP49: 821 | BQ49: 821 | BR49: 821 | BS49: 821 | BT49: 821 | BU49: 821 | BV49: 821 | BW49: 821 | BX49: 821 | BY49: 821 | BZ49: 821 | CA49: 821 | CB49: 821 | CC49: 821 | CD49: 821 | CE49: 821 | CF49: 821 | CG49: 821 | CH49: 821 | CI49: 821 | CJ49: 821 | CK49: 821 | CL49: 821 | CM49: 821 | CN49: 821 | CO49: 821 | CP49: 821 | CQ49: 821 | CR49: 821 | CS49: 821 | CT49: 821 | CU49: 821 | CV49: 821 | CW49: 821 | CX49: 821 | CY49: 821 | CZ49: 821 | DA49: 821 | DB49: 821 | DC49: 821 | DD49: 821 | DE49: 821 | DF49: 821 | DG49: 821 | DH49: 821 | DI49: 821 | DJ49: 821 | DK49: 821 | DL49: 821 | DM49: 821 | DN49: 821 | DO49: 821 | DP49: 821 | DQ49: 821 | DR49: 821 | DS49: 821
B50: PTF5 | C50: 1148 | D50: 1149 | E50: 1149 | F50: =E50+9+9 -> 1167 | G50: 1167 | H50: =G50+11 -> 1178 | I50: =H50+14 -> 1192 | J50: 1192 | K50: 1192 | L50: 1192 | M50: 1192 | N50: 1192 | O50: 1192 | P50: 1192 | Q50: 1192 | R50: 1192 | S50: 1192 | T50: 1192 | U50: 1192 | V50: 1192 | W50: 1192 | X50: 1192 | Y50: 1192 | Z50: 1192 | AA50: 1192 | AB50: 1192 | AC50: 1192 | AD50: 1192 | AE50: 1192 | AF50: 1192 | AG50: 1192 | AH50: 1192 | AI50: 1192 | AJ50: 1192 | AK50: 1192 | AL50: 1192 | AM50: 1192 | AN50: 1192 | AO50: 1192 | AP50: 1192 | AQ50: 1192 | AR50: 1192 | AS50: 1192 | AT50: =AS50 -> 1192 | AU50: =AT50 -> 1192 | AV50: =AU50 -> 1192 | AW50: =AV50 -> 1192 | AX50: 1192 | AY50: 1192 | AZ50: 1192 | BA50: 1192 | BB50: 1192 | BC50: 1192 | BD50: 1192 | BE50: 1192 | BF50: 1192 | BG50: 1192 | BH50: 1192 | BI50: 1192 | BJ50: 1192 | BK50: 1192 | BL50: 1192 | BM50: 1192 | BN50: 1192 | BO50: 1192 | BP50: 1192 | BQ50: 1192 | BR50: 1192 | BS50: 1192 | BT50: 1192 | BU50: 1192 | BV50: 1192 | BW50: 1192 | BX50: 1192 | BY50: 1192 | BZ50: 1192 | CA50: 1192 | CB50: 1192 | CC50: 1192 | CD50: 1192 | CE50: 1192 | CF50: 1192 | CG50: 1192 | CH50: 1192 | CI50: 1192 | CJ50: 1192 | CK50: 1192 | CL50: 1192 | CM50: 1192 | CN50: 1192 | CO50: 1192 | CP50: 1192 | CQ50: 1192 | CR50: 1192 | CS50: 1192 | CT50: 1192 | CU50: 1192 | CV50: 1192 | CW50: 1192 | CX50: 1192 | CY50: 1192 | CZ50: 1192 | DA50: 1192 | DB50: 1192 | DC50: 1192 | DD50: 1192 | DE50: 1192 | DF50: 1192 | DG50: 1192 | DH50: 1192 | DI50: 1192 | DJ50: 1192 | DK50: 1192 | DL50: 1192 | DM50: 1192 | DN50: 1192 | DO50: 1192 | DP50: 1192 | DQ50: 1192 | DR50: 1192 | DS50: 1192
B51: PTN6 | C51: 0 | D51: 0 | E51: =D51 -> 0 | F51: 0 | G51: 0 | H51: 0 | I51: 0 | J51: 0 | K51: 0 | L51: 0 | M51: 0 | N51: 0 | O51: 0 | P51: 0 | Q51: 0 | R51: 0 | S51: 0 | T51: 0 | U51: 0 | V51: 0 | W51: 0 | X51: 0 | Y51: 0 | Z51: 0 | AA51: 0 | AB51: 0 | AC51: 0 | AD51: 0 | AE51: 0 | AF51: 0 | AG51: 0 | AH51: 0 | AI51: 0 | AJ51: 0 | AK51: 0 | AL51: 0 | AM51: 0 | AN51: 0 | AO51: 0 | AP51: 0 | AQ51: 0 | AR51: 0 | AS51: 0 | AT51: 0 | AU51: 0 | AV51: 0 | AW51: 0 | AX51: 0 | AY51: 0 | AZ51: 0 | BA51: 0 | BB51: 0 | BC51: 0 | BD51: 0 | BE51: 0 | BF51: 0 | BG51: 0 | BH51: 0 | BI51: 0 | BJ51: 0 | BK51: 0 | BL51: 0 | BM51: 0 | BN51: 0 | BO51: 0 | BP51: 0 | BQ51: 0 | BR51: 0 | BS51: 0 | BT51: 0 | BU51: 0 | BV51: 0 | BW51: 0 | BX51: 0 | BY51: 0 | BZ51: 0 | CA51: 0 | CB51: 0 | CC51: 0 | CD51: 0 | CE51: 0 | CF51: 0 | CG51: 0 | CH51: 0 | CI51: 0 | CJ51: 0 | CK51: 0 | CL51: 0 | CM51: 0 | CN51: 0 | CO51: 0 | CP51: 0 | CQ51: 0 | CR51: 0 | CS51: 0 | CT51: 0 | CU51: 0 | CV51: 0 | CW51: 0 | CX51: 0 | CY51: 0 | CZ51: 0 | DA51: =CZ51+1100 -> 1100 | DB51: 1100 | DC51: 1100 | DD51: 1100 | DE51: 1100 | DF51: 1100 | DG51: 1100 | DH51: 1100 | DI51: 1100 | DJ51: 1100 | DK51: 1100 | DL51: 1100 | DM51: 1100 | DN51: 1100 | DO51: 1100 | DP51: 1100 | DQ51: 1100 | DR51: 1100 | DS51: 1100
B52: PTN7 | C52: 0 | D52: 0 | E52: 0 | F52: 0 | G52: 0 | H52: 0 | I52: 0 | J52: 0 | K52: 0 | L52: 0 | M52: 0 | N52: 0 | O52: 0 | P52: 0 | Q52: 0 | R52: 0 | S52: 0 | T52: 0 | U52: 0 | V52: 0 | W52: 0 | X52: 0 | Y52: 0 | Z52: 0 | AA52: 0 | AB52: 0 | AC52: 0 | AD52: 0 | AE52: 0 | AF52: 0 | AG52: 0 | AH52: 0 | AI52: 0 | AJ52: 0 | AK52: 0 | AL52: 0 | AM52: 0 | AN52: 0 | AO52: 0 | AP52: 0 | AQ52: 0 | AR52: 0 | AS52: 0 | AT52: 0 | AU52: =AT52 -> 0 | AV52: 0 | AW52: 0 | AX52: 0 | AY52: 0 | AZ52: 0 | BA52: 0 | BB52: 0 | BC52: 0 | BD52: 0 | BE52: 0 | BF52: 0 | BG52: 0 | BH52: 0 | BI52: =BH52 -> 0 | BJ52: 0 | BK52: 0 | BL52: 0 | BM52: 0 | BN52: 0 | BO52: 0 | BP52: 0 | BQ52: 0 | BR52: 0 | BS52: 0 | BT52: 0 | BU52: 0 | BV52: 0 | BW52: 0 | BX52: 0 | BY52: 0 | BZ52: 0 | CA52: 0 | CB52: 0 | CC52: 0 | CD52: 0 | CE52: 0 | CF52: 0 | CG52: 0 | CH52: 0 | CI52: 0 | CJ52: 0 | CK52: 0 | CL52: 0 | CM52: 0 | CN52: 0 | CO52: 0 | CP52: 0 | CQ52: 0 | CR52: 0 | CS52: 0 | CT52: 0 | CU52: 0 | CV52: 0 | CW52: 0 | CX52: 0 | CY52: 0 | CZ52: 0 | DA52: =CZ52 -> 0 | DB52: 0 | DC52: 0 | DD52: 0 | DE52: 0 | DF52: 0 | DG52: 0 | DH52: 0 | DI52: 0 | DJ52: 0 | DK52: 0 | DL52: 0 | DM52: =DL52+1100 -> 1100 | DN52: 1100 | DO52: 1100 | DP52: 1100 | DQ52: 1100 | DR52: 1100 | DS52: 1100
B53: PTFD | C53: 0 | D53: 0 | E53: 0 | F53: 0 | G53: 0 | H53: 0 | I53: 0 | J53: =I53 -> 0 | K53: 0 | L53: 0 | M53: 0 | N53: 0 | O53: 0 | P53: 0 | Q53: 0 | R53: 0 | S53: 0 | T53: 0 | U53: 0 | V53: 0 | W53: 0 | X53: 0 | Y53: 0 | Z53: 0 | AA53: 0 | AB53: 0 | AC53: 0 | AD53: 0 | AE53: 0 | AF53: 0 | AG53: 0 | AH53: 0 | AI53: 0 | AJ53: 0 | AK53: 0 | AL53: 0 | AM53: 0 | AN53: 0 | AO53: 0 | AP53: 0 | AQ53: 0 | AR53: 0 | AS53: 0 | AT53: 0 | AU53: 0 | AV53: 0 | AW53: 0 | AX53: 0 | AY53: 0 | AZ53: 0 | BA53: 0 | BB53: 0 | BC53: 0 | BD53: 0 | BE53: 0 | BF53: 0 | BG53: 0 | BH53: 0 | BI53: 0 | BJ53: 0 | BK53: 0 | BL53: 0 | BM53: 0 | BN53: 0 | BO53: 0 | BP53: 0 | BQ53: 0 | BR53: 0 | BS53: 0 | BT53: 0 | BU53: 0 | BV53: 0 | BW53: 0 | BX53: 0 | BY53: 0 | BZ53: 0 | CA53: 0 | CB53: 0 | CC53: 0 | CD53: 0 | CE53: 0 | CF53: 0 | CG53: 0 | CH53: 0 | CI53: 0 | CJ53: 0 | CK53: 0 | CL53: 0 | CM53: 0 | CN53: 0 | CO53: 0 | CP53: 0 | CQ53: 0 | CR53: 0 | CS53: 0 | CT53: 0 | CU53: 0 | CV53: 0 | CW53: 0 | CX53: 0 | CY53: 0 | CZ53: 0 | DA53: 0 | DB53: 0 | DC53: 0 | DD53: 0 | DE53: 0 | DF53: 0 | DG53: 0 | DH53: 0 | DI53: 0 | DJ53: 0 | DK53: 0 | DL53: 0 | DM53: 0 | DN53: 0 | DO53: 0 | DP53: 0 | DQ53: 0 | DR53: 0 | DS53: 0
B54: PVB | C54: 0 | D54: 0 | E54: 0 | F54: 0 | G54: 0 | H54: 0 | I54: 0 | J54: 0 | K54: 0 | L54: 0 | M54: 0 | N54: 0 | O54: 0 | P54: =O54 -> 0 | Q54: 0 | R54: 0 | S54: 0 | T54: 0 | U54: 0 | V54: 0 | W54: 0 | X54: 0 | Y54: 0 | Z54: 0 | AA54: 0 | AB54: 0 | AC54: 0 | AD54: 0 | AE54: 0 | AF54: 0 | AG54: 0 | AH54: 0 | AI54: 0 | AJ54: 0 | AK54: 0 | AL54: 0 | AM54: 0 | AN54: =AM54+44 -> 44 | AO54: 44 | AP54: 44 | AQ54: 44 | AR54: 44 | AS54: 44 | AT54: 44 | AU54: 44 | AV54: 44 | AW54: 44 | AX54: 44 | AY54: 44 | AZ54: =AY54 -> 44 | BA54: 44 | BB54: 44 | BC54: 44 | BD54: 44 | BE54: 44 | BF54: 44 | BG54: 44 | BH54: 44 | BI54: 44 | BJ54: 44 | BK54: =BJ54-44 -> 0 | BL54: 0 | BM54: 0 | BN54: 0 | BO54: 0 | BP54: 0 | BQ54: 0 | BR54: 0 | BS54: 0 | BT54: 0 | BU54: 0 | BV54: 0 | BW54: 0 | BX54: 0 | BY54: 0 | BZ54: 0 | CA54: 0 | CB54: 0 | CC54: 0 | CD54: 0 | CE54: 0 | CF54: 0 | CG54: 0 | CH54: 0 | CI54: 0 | CJ54: 0 | CK54: 0 | CL54: 0 | CM54: 0 | CN54: 0 | CO54: 0 | CP54: 0 | CQ54: 0 | CR54: 0 | CS54: 0 | CT54: 0 | CU54: 0 | CV54: 0 | CW54: 0 | CX54: 0 | CY54: 0 | CZ54: 0 | DA54: 0 | DB54: 0 | DC54: 0 | DD54: 0 | DE54: 0 | DF54: 0 | DG54: 0 | DH54: 0 | DI54: 0 | DJ54: 0 | DK54: 0 | DL54: 0 | DM54: 0 | DN54: 0 | DO54: 0 | DP54: 0 | DQ54: 0 | DR54: 0 | DS54: 0
B55: PWC1 | C55: 1219 | D55: 1219 | E55: 1219 | F55: 1219 | G55: 1219 | H55: 1219 | I55: =H55 -> 1219 | J55: =I55 -> 1219 | K55: =J55 -> 1219 | L55: =K55 -> 1219 | M55: =L55 -> 1219 | N55: 1219 | O55: 1219 | P55: 1219 | Q55: 1219 | R55: 1219 | S55: 1219 | T55: 1219 | U55: 1219 | V55: 1219 | W55: 1219 | X55: 1219 | Y55: 1219 | Z55: 1219 | AA55: 1219 | AB55: 1219 | AC55: 1219 | AD55: 1219 | AE55: 1219 | AF55: 1219 | AG55: 1219 | AH55: 1219 | AI55: 1219 | AJ55: 1219 | AK55: 1219 | AL55: 1219 | AM55: 1219 | AN55: 1219 | AO55: 1219 | AP55: 1219 | AQ55: 1219 | AR55: 1219 | AS55: 1219 | AT55: 1219 | AU55: 1219 | AV55: 1219 | AW55: 1219 | AX55: 1219 | AY55: 1219 | AZ55: 1219 | BA55: 1219 | BB55: 1219 | BC55: 1219 | BD55: 1219 | BE55: 1219 | BF55: 1219 | BG55: 1219 | BH55: 1219 | BI55: 1219 | BJ55: 1219 | BK55: 1219 | BL55: 1219 | BM55: 1219 | BN55: 1219 | BO55: 1219 | BP55: 1219 | BQ55: 1219 | BR55: 1219 | BS55: 1219 | BT55: 1219 | BU55: 1219 | BV55: 1219 | BW55: 1219 | BX55: 1219 | BY55: 1219 | BZ55: 1219 | CA55: 1219 | CB55: 1219 | CC55: 1219 | CD55: 1219 | CE55: 1219 | CF55: 1219 | CG55: 1219 | CH55: 1219 | CI55: 1219 | CJ55: 1219 | CK55: 1219 | CL55: 1219 | CM55: 1219 | CN55: 1219 | CO55: 1219 | CP55: 1219 | CQ55: 1219 | CR55: 1219 | CS55: 1219 | CT55: 1219 | CU55: 1219 | CV55: 1219 | CW55: 1219 | CX55: 1219 | CY55: 1219 | CZ55: 1219 | DA55: 1219 | DB55: 1219 | DC55: 1219 | DD55: 1219 | DE55: 1219 | DF55: 1219 | DG55: 1219 | DH55: 1219 | DI55: 1219 | DJ55: 1219 | DK55: 1219 | DL55: 1219 | DM55: 1219 | DN55: 1219 | DO55: 1219 | DP55: 1219 | DQ55: 1219 | DR55: 1219 | DS55: 1219
B56: PWC2 | C56: 1219 | D56: 1219 | E56: 1219 | F56: 1219 | G56: 1219 | H56: 1219 | I56: 1219 | J56: 1219 | K56: 1219 | L56: 1219 | M56: 1219 | N56: 1219 | O56: 1219 | P56: 1219 | Q56: 1219 | R56: 1219 | S56: 1219 | T56: 1219 | U56: 1219 | V56: 1219 | W56: 1219 | X56: 1219 | Y56: 1219 | Z56: 1219 | AA56: 1219 | AB56: 1219 | AC56: 1219 | AD56: 1219 | AE56: 1219 | AF56: 1219 | AG56: 1219 | AH56: 1219 | AI56: 1219 | AJ56: 1219 | AK56: 1219 | AL56: 1219 | AM56: 1219 | AN56: 1219 | AO56: 1219 | AP56: 1219 | AQ56: 1219 | AR56: 1219 | AS56: 1219 | AT56: 1219 | AU56: 1219 | AV56: 1219 | AW56: 1219 | AX56: 1219 | AY56: 1219 | AZ56: 1219 | BA56: 1219 | BB56: 1219 | BC56: 1219 | BD56: 1219 | BE56: 1219 | BF56: 1219 | BG56: 1219 | BH56: 1219 | BI56: 1219 | BJ56: 1219 | BK56: 1219 | BL56: 1219 | BM56: 1219 | BN56: 1219 | BO56: 1219 | BP56: 1219 | BQ56: 1219 | BR56: 1219 | BS56: 1219 | BT56: 1219 | BU56: 1219 | BV56: 1219 | BW56: 1219 | BX56: 1219 | BY56: 1219 | BZ56: 1219 | CA56: 1219 | CB56: 1219 | CC56: 1219 | CD56: 1219 | CE56: 1219 | CF56: 1219 | CG56: 1219 | CH56: 1219 | CI56: 1219 | CJ56: 1219 | CK56: 1219 | CL56: 1219 | CM56: 1219 | CN56: 1219 | CO56: 1219 | CP56: 1219 | CQ56: 1219 | CR56: 1219 | CS56: 1219 | CT56: 1219 | CU56: 1219 | CV56: 1219 | CW56: 1219 | CX56: 1219 | CY56: 1219 | CZ56: 1219 | DA56: 1219 | DB56: 1219 | DC56: 1219 | DD56: 1219 | DE56: 1219 | DF56: 1219 | DG56: 1219 | DH56: 1219 | DI56: 1219 | DJ56: 1219 | DK56: 1219 | DL56: 1219 | DM56: 1219 | DN56: 1219 | DO56: 1219 | DP56: 1219 | DQ56: 1219 | DR56: 1219 | DS56: 1219
B57: PWC3 | C57: 1219 | D57: 1219 | E57: 1219 | F57: 1219 | G57: 1219 | H57: 1219 | I57: 1219 | J57: 1219 | K57: 1219 | L57: 1219 | M57: 1219 | N57: 1219 | O57: 1219 | P57: 1219 | Q57: 1219 | R57: 1219 | S57: 1219 | T57: 1219 | U57: 1219 | V57: 1219 | W57: 1219 | X57: 1219 | Y57: 1219 | Z57: 1219 | AA57: 1219 | AB57: 1219 | AC57: 1219 | AD57: 1219 | AE57: 1219 | AF57: 1219 | AG57: 1219 | AH57: 1219 | AI57: 1219 | AJ57: 1219 | AK57: 1219 | AL57: 1219 | AM57: 1219 | AN57: 1219 | AO57: 1219 | AP57: 1219 | AQ57: 1219 | AR57: 1219 | AS57: 1219 | AT57: 1219 | AU57: 1219 | AV57: 1219 | AW57: 1219 | AX57: 1219 | AY57: 1219 | AZ57: 1219 | BA57: 1219 | BB57: 1219 | BC57: 1219 | BD57: 1219 | BE57: 1219 | BF57: 1219 | BG57: 1219 | BH57: 1219 | BI57: 1219 | BJ57: 1219 | BK57: 1219 | BL57: 1219 | BM57: 1219 | BN57: 1219 | BO57: 1219 | BP57: 1219 | BQ57: 1219 | BR57: 1219 | BS57: 1219 | BT57: 1219 | BU57: 1219 | BV57: 1219 | BW57: 1219 | BX57: 1219 | BY57: 1219 | BZ57: 1219 | CA57: 1219 | CB57: 1219 | CC57: 1219 | CD57: 1219 | CE57: 1219 | CF57: 1219 | CG57: 1219 | CH57: 1219 | CI57: 1219 | CJ57: 1219 | CK57: 1219 | CL57: 1219 | CM57: 1219 | CN57: 1219 | CO57: 1219 | CP57: 1219 | CQ57: 1219 | CR57: 1219 | CS57: 1219 | CT57: 1219 | CU57: 1219 | CV57: 1219 | CW57: 1219 | CX57: 1219 | CY57: 1219 | CZ57: 1219 | DA57: 1219 | DB57: 1219 | DC57: 1219 | DD57: 1219 | DE57: 1219 | DF57: 1219 | DG57: 1219 | DH57: 1219 | DI57: 1219 | DJ57: 1219 | DK57: 1219 | DL57: 1219 | DM57: 1219 | DN57: 1219 | DO57: 1219 | DP57: 1219 | DQ57: 1219 | DR57: 1219 | DS57: 1219
B59: Total | C59: =SUM(C4:C57) -> 24665 | D59: 24299 | E59: 24299 | F59: 24317 | G59: 25529 | H59: 25537 | I59: 25581 | J59: 25581 | K59: 25586 | L59: 25586 | M59: 25586 | N59: 25586 | O59: 25092 | P59: 25092 | Q59: 25089 | R59: 25089 | S59: 25089 | T59: 25097 | U59: 25105 | V59: 25113 | W59: 25121 | X59: 25129 | Y59: 25129 | Z59: 25129 | AA59: 25129 | AB59: 24741 | AC59: 24741 | AD59: 24741 | AE59: 24741 | AF59: 24741 | AG59: 25978 | AH59: 25978 | AI59: =SUM(AI4:AI57) -> 25978 | AJ59: 25978 | AK59: 25978 | AL59: 25978 | AM59: 25978 | AN59: 26022 | AO59: 26022 | AP59: 26022 | AQ59: 26022 | AR59: 26022 | AS59: 26022 | AT59: 26022 | AU59: 26022 | AV59: 26022 | AW59: 26022 | AX59: 26022 | AY59: 26022 | AZ59: 26022 | BA59: 26022 | BB59: 26022 | BC59: 26022 | BD59: 26022 | BE59: 26022 | BF59: 26022 | BG59: 26022 | BH59: 26022 | BI59: 26022 | BJ59: 26022 | BK59: 25978 | BL59: 25978 | BM59: 25978 | BN59: 25978 | BO59: =SUM(BO4:BO57) -> 25978 | BP59: 25978 | BQ59: 25978 | BR59: 25978 | BS59: 25978 | BT59: 25978 | BU59: 25978 | BV59: 25978 | BW59: 25978 | BX59: 25978 | BY59: 25978 | BZ59: 25978 | CA59: 25978 | CB59: 25978 | CC59: 25978 | CD59: 25978 | CE59: 25978 | CF59: 25978 | CG59: 25978 | CH59: 25978 | CI59: 25978 | CJ59: 25978 | CK59: 25978 | CL59: 25978 | CM59: 25978 | CN59: 25978 | CO59: 25978 | CP59: 25978 | CQ59: 25978 | CR59: 25978 | CS59: 25978 | CT59: 25978 | CU59: =SUM(CU4:CU57) -> 25978 | CV59: 25978 | CW59: 25978 | CX59: 26007 | CY59: 26007 | CZ59: 26036 | DA59: 27136 | DB59: 27165 | DC59: 27165 | DD59: 27165 | DE59: 27165 | DF59: 27165 | DG59: 27165 | DH59: 27165 | DI59: 27165 | DJ59: 27165 | DK59: 27165 | DL59: 27193 | DM59: 28293 | DN59: 28321 | DO59: 28321 | DP59: 28321 | DQ59: 28321 | DR59: 28348 | DS59: 28348
B61: New Gen | G61: =(G38-D38) -> 1212 | AG61: =(AG32-AF32) -> 1237 | AN61: =AN54-AM54 -> 44 | DA61: =(DA51-CZ51) -> 1100 | DM61: =(DM52-DL52) -> 1100
B62: Repower
B63: EPU
B64: CT Upgrade | D64: =(D24-C24)+(D44-C44)+(D45-C45) -> 24 | F64: =(F50-E50) -> 18 | H64: =(H50-G50) -> 11 | I64: =(I27-H27)+(I50-H50) -> 44 | J64: =(J27-I27) -> 0 | K64: =(K27-J27) -> 5 | T64: =T15-S15 -> 8 | U64: =U15-T15 -> 8 | V64: =V15-U15 -> 8 | W64: =W15-V15 -> 8 | X64: =X15-W15 -> 8 | AB64: =AB15-AA15 -> 8 | AD64: =AD24-AC24 -> 0 | AF64: =AF44-AE44 -> 0 | AH64: =AH44-AG44 -> 0 | AJ64: =AJ44-AI44 -> 0 | AL64: =AL45-AK45 -> 0 | AM64: =AM24-AL24 -> 0 | AO64: =AO27-AN27 -> 0 | AP64: =AP27-AO27 -> 0 | AR64: =AR27-AQ27+AR45-AQ45 -> 0 | AS64: =AS45-AR45 -> 0 | AT64: =AT50-AS50 -> 0 | AU64: =AU24-AT24+AU50-AT50 -> 0 | AV64: =AV50-AU50 -> 0 | AW64: =AW50-AV50 -> 0 | CX64: =(CX6-CW6) -> 29 | CZ64: =(CZ6-CY6) -> 29 | DB64: =(DB6-DA6) -> 29 | DL64: =(DL38-DK38) -> 28 | DN64: =(DN38-DM38) -> 28 | DR64: =(DR38-DQ38) -> 27
B65: Capability | D65: =(D15-C15)+(D16-C16)+(D27-C27)+(D34-C34)+(D35-C35)+(D50-C50) -> 2 | H65: =(H20-G20) -> -3 | Q65: =(Q21-P21) -> -3
B66: Temp
B67: Retired | D67: =(D47-C47) -> -392 | O67: =(O34-N34)+(O35-N35) -> -494 | AB67: =AB46-AA46 -> -396 | AZ67: =(AZ34-AY34)+(AZ35-AY35) -> 0 | BK67: =BK54-BJ54 -> -44
B68: Cap Letter
C69: =C59-SUM(C9,C39) -> 24630 | D69: 24264 | E69: 24264 | F69: 24282 | G69: 25494 | H69: 25502 | I69: 25546 | J69: 25546 | K69: 25551 | L69: 25551 | M69: 25551 | N69: 25551 | O69: 25057 | P69: 25057 | Q69: 25054 | R69: 25054 | S69: 25054 | T69: 25062 | U69: 25070 | V69: 25078 | W69: 25086 | X69: 25094 | Y69: 25094 | Z69: 25094 | AA69: 25094 | AB69: 24706 | AC69: 24706 | AD69: 24706 | AE69: 24706 | AF69: 24706 | AG69: 25943 | AH69: 25943 | AI69: =AI59-SUM(AI9,AI39) -> 25943 | AJ69: 25943 | AK69: 25943 | AL69: 25943 | AM69: 25943 | AN69: 25987 | AO69: 25987 | AP69: 25987 | AQ69: 25987 | AR69: 25987 | AS69: 25987 | AT69: 25987 | AU69: 25987 | AV69: 25987 | AW69: 25987 | AX69: 25987 | AY69: 25987 | AZ69: 25987 | BA69: 25987 | BB69: 25987 | BC69: 25987 | BD69: 25987 | BE69: 25987 | BF69: 25987 | BG69: 25987 | BH69: 25987 | BI69: 25987 | BJ69: 25987 | BK69: 25943 | BL69: 25943 | BM69: 25943 | BN69: 25943 | BO69: =BO59-SUM(BO9,BO39) -> 25943 | BP69: 25943 | BQ69: 25943 | BR69: 25943 | BS69: 25943 | BT69: 25943 | BU69: 25943 | BV69: 25943 | BW69: 25943 | BX69: 25943 | BY69: 25943 | BZ69: 25943 | CA69: 25943 | CB69: 25943 | CC69: 25943 | CD69: 25943 | CE69: 25943 | CF69: 25943 | CG69: 25943 | CH69: 25943 | CI69: 25943 | CJ69: 25943 | CK69: 25943 | CL69: 25943 | CM69: 25943 | CN69: 25943 | CO69: 25943 | CP69: 25943 | CQ69: 25943 | CR69: 25943 | CS69: 25943 | CT69: 25943 | CU69: =CU59-SUM(CU9,CU39) -> 25943 | CV69: 25943 | CW69: 25943 | CX69: 25972 | CY69: 25972 | CZ69: 26001 | DA69: 27101 | DB69: 27130 | DC69: 27130 | DD69: 27130 | DE69: 27130 | DF69: 27130 | DG69: 27130 | DH69: 27130 | DI69: 27130 | DJ69: 27130 | DK69: 27130 | DL69: 27158 | DM69: 28258 | DN69: 28286 | DO69: 28286 | DP69: 28286 | DQ69: 28286 | DR69: 28313 | DS69: 28313
AW73: =AM59+SUM(AN61:AW67) -> 26022

Sheet Summer Peak 2015-01-15
A1: OPC 006102 | B1: Long-Term Summer Peak Capabilities
A2: FPL RC-16 | C2: 2002 | O2: 2003 | AA2: 2004 | AM2: 2005 | AY2: 2006 | BK2: 2007 | BW2: 2008 | CI2: 2009 | CU2: 2010 | DG2: 2011 | DS2: 2012 | EE2: 2013 | EQ2: 2014 | FC2: 2015 | FO2: 2016 | GA2: 2017 | GM2: 2018 | GY2: 2019 | HK2: 2020 | HW2: 2021 | II2: 2022 | IU2: 2023
B3: Unit | C3: Jan | D3: Feb | E3: Mar | F3: Apr | G3: May | H3: Jun | I3: Jul | J3: Aug | K3: Sep | L3: Oct | M3: Nov | N3: Dec | O3: Jan | P3: Feb | Q3: Mar | R3: Apr | S3: May | T3: Jun | U3: Jul | V3: Aug | W3: Sep | X3: Oct | Y3: Nov | Z3: Dec | AA3: Jan | AB3: Feb | AC3: Mar | AD3: Apr | AE3: May | AF3: Jun | AG3: Jul | AH3: Aug | AI3: Sep | AJ3: Oct | AK3: Nov | AL3: Dec | AM3: Jan | AN3: Feb | AO3: Mar | AP3: Apr | AQ3: May | AR3: Jun | AS3: Jul | AT3: Aug | AU3: Sep | AV3: Oct | AW3: Nov | AX3: Dec | AY3: Jan | AZ3: Feb | BA3: Mar | BB3: Apr | BC3: May | BD3: Jun | BE3: Jul | BF3: Aug | BG3: Sep | BH3: Oct | BI3: Nov | BJ3: Dec | BK3: Jan | BL3: Feb | BM3: Mar | BN3: Apr | BO3: May | BP3: Jun | BQ3: Jul | BR3: Aug | BS3: Sep | BT3: Oct | BU3: Nov | BV3: Dec | BW3: Jan | BX3: Feb | BY3: Mar | BZ3: Apr | CA3: May | CB3: Jun | CC3: Jul | CD3: Aug | CE3: Sep | CF3: Oct | CG3: Nov | CH3: Dec | CI3: Jan | CJ3: Feb | CK3: Mar | CL3: Apr | CM3: May | CN3: Jun | CO3: Jul | CP3: Aug | CQ3: Sep | CR3: Oct | CS3: Nov | CT3: Dec | CU3: Jan | CV3: Feb | CW3: Mar | CX3: Apr | CY3: May | CZ3: Jun | DA3: Jul | DB3: Aug | DC3: Sep | DD3: Oct | DE3: Nov | DF3: Dec | DG3: Jan | DH3: Feb | DI3: Mar | DJ3: Apr | DK3: May | DL3: Jun | DM3: Jul | DN3: Aug | DO3: Sep | DP3: Oct | DQ3: Nov | DR3: Dec | DS3: Jan | DT3: Feb | DU3: Mar | DV3: Apr | DW3: May | DX3: Jun | DY3: Jul | DZ3: Aug | EA3: Sep | EB3: Oct | EC3: Nov | ED3: Dec | EE3: Jan | EF3: Feb | EG3: Mar | EH3: Apr | EI3: May | EJ3: Jun | EK3: Jul | EL3: Aug | EM3: Sep | EN3: Oct | EO3: Nov | EP3: Dec | EQ3: Jan | ER3: Feb | ES3: Mar | ET3: Apr | EU3: May | EV3: Jun | EW3: Jul | EX3: Aug | EY3: Sep | EZ3: Oct | FA3: Nov | FB3: Dec | FC3: Jan | FD3: Feb | FE3: Mar | FF3: Apr | FG3: May | FH3: Jun | FI3: Jul | FJ3: Aug | FK3: Sep | FL3: Oct | FM3: Nov | FN3: Dec | FO3: Jan | FP3: Feb | FQ3: Mar | FR3: Apr | FS3: May | FT3: Jun | FU3: Jul | FV3: Aug | FW3: Sep | FX3: Oct | FY3: Nov | FZ3: Dec | GA3: Jan | GB3: Feb | GC3: Mar | GD3: Apr | GE3: May | GF3: Jun | GG3: Jul | GH3: Aug | GI3: Sep | GJ3: Oct | GK3: Nov | GL3: Dec | GM3: Jan | GN3: Feb | GO3: Mar | GP3: Apr | GQ3: May | GR3: Jun | GS3: Jul | GT3: Aug | GU3: Sep | GV3: Oct | GW3: Nov | GX3: Dec | GY3: Jan | GZ3: Feb | HA3: Mar | HB3: Apr | HC3: May | HD3: Jun | HE3: Jul | HF3: Aug | HG3: Sep | HH3: Oct | HI3: Nov | HJ3: Dec | HK3: Jan | HL3: Feb | HM3: Mar | HN3: Apr | HO3: May | HP3: Jun | HQ3: Jul | HR3: Aug | HS3: Sep | HT3: Oct | HU3: Nov | HV3: Dec | HW3: Jan | HX3: Feb | HY3: Mar | HZ3: Apr | IA3: May | IB3: Jun | IC3: Jul | ID3: Aug | IE3: Sep | IF3: Oct | IG3: Nov | IH3: Dec | II3: Jan | IJ3: Feb | IK3: Mar | IL3: Apr | IM3: May | IN3: Jun | IO3: Jul | IP3: Aug | IQ3: Sep | IR3: Oct | IS3: Nov | IT3: Dec | IU3: Jan | IV3: Feb | IW3: Mar | IX3: Apr | IY3: May | IZ3: Jun | JA3: Jul | JB3: Aug | JC3: Sep | JD3: Oct | JE3: Nov | JF3: Dec
B4: PCC1 | C4: 403 | D4: =C4 -> 403 | E4: =D4 -> 403 | F4: 403 | G4: 403 | H4: 403 | I4: 403 | J4: 403 | K4: 403 | L4: 403 | M4: 403 | N4: 403 | O4: =N4 -> 403 | P4: =O4 -> 403 | Q4: =P4 -> 403 | R4: 403 | S4: 403 | T4: 403 | U4: 403 | V4: 403 | W4: 403 | X4: 403 | Y4: 403 | Z4: 403 | AA4: =Z4+4 -> 407 | AB4: =AA4 -> 407 | AC4: 407 | AD4: 407 | AE4: 407 | AF4: 407 | AG4: 407 | AH4: 407 | AI4: 407 | AJ4: 407 | AK4: 407 | AL4: 407 | AM4: =AL4-13 -> 394 | AN4: =AM4 -> 394 | AO4: 394 | AP4: 394 | AQ4: 394 | AR4: 394 | AS4: 394 | AT4: 394 | AU4: 394 | AV4: =AU4 -> 394 | AW4: 394 | AX4: 394 | AY4: =AX4+5 -> 399 | AZ4: =AY4 -> 399 | BA4: 399 | BB4: 399 | BC4: 399 | BD4: 399 | BE4: 399 | BF4: 399 | BG4: 399 | BH4: 399 | BI4: 399 | BJ4: =BI4-3 -> 396 | BK4: =BJ4 -> 396 | BL4: =BK4 -> 396 | BM4: 396 | BN4: 396 | BO4: 396 | BP4: 396 | BQ4: 396 | BR4: 396 | BS4: 396 | BT4: 396 | BU4: 396 | BV4: 396 | BW4: 396 | BX4: 396 | BY4: 396 | BZ4: 396 | CA4: 396 | CB4: =CA4 -> 396 | CC4: 396 | CD4: 396 | CE4: 396 | CF4: 396 | CG4: 396 | CH4: 396 | CI4: 396 | CJ4: 396 | CK4: 396 | CL4: 396 | CM4: 396 | CN4: 396 | CO4: 396 | CP4: 396 | CQ4: 396 | CR4: 396 | CS4: 396 | CT4: 396 | CU4: 396 | CV4: 396 | CW4: 396 | CX4: 396 | CY4: 396 | CZ4: =CY4-396 -> 0 | DA4: 0 | DB4: 0 | DC4: 0 | DD4: 0 | DE4: 0 | DF4: 0 | DG4: 0 | DH4: 0 | DI4: 0 | DJ4: 0 | DK4: 0 | DL4: 0 | DM4: 0 | DN4: 0 | DO4: 0 | DP4: 0 | DQ4: 0 | DR4: 0 | DS4: 0 | DT4: 0 | DU4: 0 | DV4: 0 | DW4: 0 | DX4: 0 | DY4: 0 | DZ4: 0 | EA4: 0 | EB4: 0 | EC4: 0 | ED4: 0 | EE4: =ED4 -> 0 | EF4: =EE4 -> 0 | EG4: 0 | EH4: 0 | EI4: 0 | EJ4: 0 | EK4: 0 | EL4: 0 | EM4: 0 | EN4: 0 | EO4: 0 | EP4: 0 | EQ4: 0 | ER4: 0 | ES4: 0 | ET4: 0 | EU4: 0 | EV4: 0 | EW4: 0 | EX4: 0 | EY4: 0 | EZ4: 0 | FA4: 0 | FB4: 0 | FC4: 0 | FD4: 0 | FE4: 0 | FF4: 0 | FG4: 0 | FH4: 0 | FI4: 0 | FJ4: 0 | FK4: 0 | FL4: 0 | FM4: 0 | FN4: 0 | FO4: =FN4 -> 0 | FP4: =FO4 -> 0 | FQ4: =FP4 -> 0 | FR4: 0 | FS4: 0 | FT4: 0 | FU4: 0 | FV4: 0 | FW4: 0 | FX4: 0 | FY4: 0 | FZ4: 0 | GA4: =FZ4 -> 0 | GB4: =GA4 -> 0 | GC4: =GB4 -> 0 | GD4: 0 | GE4: 0 | GF4: 0 | GG4: 0 | GH4: 0 | GI4: 0 | GJ4: 0 | GK4: 0 | GL4: 0 | GM4: =GL4 -> 0 | GN4: =GM4 -> 0 | GO4: =GN4 -> 0 | GP4: 0 | GQ4: 0 | GR4: 0 | GS4: 0 | GT4: 0 | GU4: 0 | GV4: 0 | GW4: 0 | GX4: 0 | GY4: =GX4 -> 0 | GZ4: =GY4 -> 0 | HA4: =GZ4 -> 0 | HB4: 0 | HC4: 0 | HD4: 0 | HE4: 0 | HF4: 0 | HG4: 0 | HH4: 0 | HI4: 0 | HJ4: 0 | HK4: =HJ4 -> 0 | HL4: =HK4 -> 0 | HM4: =HL4 -> 0 | HN4: 0 | HO4: 0 | HP4: 0 | HQ4: 0 | HR4: 0 | HS4: 0 | HT4: 0 | HU4: 0 | HV4: 0 | HW4: =HV4 -> 0 | HX4: =HW4 -> 0 | HY4: =HX4 -> 0 | HZ4: 0 | IA4: 0 | IB4: 0 | IC4: 0 | ID4: 0 | IE4: 0 | IF4: 0 | IG4: 0 | IH4: 0 | II4: =IH4 -> 0 | IJ4: =II4 -> 0 | IK4: =IJ4 -> 0 | IL4: 0 | IM4: 0 | IN4: 0 | IO4: 0 | IP4: 0 | IQ4: 0 | IR4: 0 | IS4: 0 | IT4: 0 | IU4: =IT4 -> 0 | IV4: =IU4 -> 0 | IW4: =IV4 -> 0 | IX4: 0 | IY4: 0 | IZ4: 0 | JA4: 0 | JB4: 0 | JC4: 0 | JD4: 0 | JE4: 0 | JF4: 0
B5: PCC2 | C5: 403 | D5: =C5 -> 403 | E5: 403 | F5: 403 | G5: 403 | H5: 403 | I5: 403 | J5: 403 | K5: 403 | L5: 403 | M5: 403 | N5: 403 | O5: 403 | P5: 403 | Q5: 403 | R5: 403 | S5: 403 | T5: 403 | U5: 403 | V5: 403 | W5: 403 | X5: 403 | Y5: 403 | Z5: 403 | AA5: =Z5+4 -> 407 | AB5: 407 | AC5: 407 | AD5: 407 | AE5: 407 | AF5: 407 | AG5: 407 | AH5: 407 | AI5: 407 | AJ5: 407 | AK5: 407 | AL5: 407 | AM5: 407 | AN5: 407 | AO5: 407 | AP5: 407 | AQ5: 407 | AR5: 407 | AS5: 407 | AT5: 407 | AU5: 407 | AV5: =AU5 -> 407 | AW5: 407 | AX5: 407 | AY5: =AX5-8 -> 399 | AZ5: 399 | BA5: 399 | BB5: 399 | BC5: 399 | BD5: 399 | BE5: 399 | BF5: 399 | BG5: 399 | BH5: 399 | BI5: 399 | BJ5: =BI5-3 -> 396 | BK5: =BJ5 -> 396 | BL5: 396 | BM5: 396 | BN5: 396 | BO5: 396 | BP5: 396 | BQ5: 396 | BR5: 396 | BS5: 396 | BT5: 396 | BU5: 396 | BV5: 396 | BW5: 396 | BX5: 396 | BY5: 396 | BZ5: 396 | CA5: 396 | CB5: 396 | CC5: 396 | CD5: 396 | CE5: 396 | CF5: 396 | CG5: 396 | CH5: 396 | CI5: 396 | CJ5: 396 | CK5: 396 | CL5: 396 | CM5: 396 | CN5: 396 | CO5: 396 | CP5: 396 | CQ5: 396 | CR5: 396 | CS5: 396 | CT5: 396 | CU5: 396 | CV5: 396 | CW5: 396 | CX5: 396 | CY5: 396 | CZ5: =CY5-396 -> 0 | DA5: 0 | DB5: 0 | DC5: 0 | DD5: 0 | DE5: 0 | DF5: 0 | DG5: 0 | DH5: 0 | DI5: 0 | DJ5: 0 | DK5: 0 | DL5: 0 | DM5: 0 | DN5: 0 | DO5: 0 | DP5: 0 | DQ5: 0 | DR5: 0 | DS5: 0 | DT5: 0 | DU5: 0 | DV5: 0 | DW5: 0 | DX5: 0 | DY5: 0 | DZ5: 0 | EA5: 0 | EB5: 0 | EC5: 0 | ED5: 0 | EE5: =ED5 -> 0 | EF5: 0 | EG5: 0 | EH5: 0 | EI5: 0 | EJ5: 0 | EK5: 0 | EL5: 0 | EM5: 0 | EN5: 0 | EO5: 0 | EP5: 0 | EQ5: 0 | ER5: 0 | ES5: 0 | ET5: 0 | EU5: 0 | EV5: 0 | EW5: 0 | EX5: 0 | EY5: 0 | EZ5: 0 | FA5: 0 | FB5: 0 | FC5: 0 | FD5: 0 | FE5: 0 | FF5: 0 | FG5: 0 | FH5: 0 | FI5: 0 | FJ5: 0 | FK5: 0 | FL5: 0 | FM5: 0 | FN5: 0 | FO5: =FN5 -> 0 | FP5: 0 | FQ5: 0 | FR5: 0 | FS5: 0 | FT5: 0 | FU5: 0 | FV5: 0 | FW5: 0 | FX5: 0 | FY5: 0 | FZ5: 0 | GA5: 0 | GB5: 0 | GC5: 0 | GD5: 0 | GE5: 0 | GF5: 0 | GG5: 0 | GH5: 0 | GI5: 0 | GJ5: 0 | GK5: 0 | GL5: 0 | GM5: 0 | GN5: 0 | GO5: 0 | GP5: 0 | GQ5: 0 | GR5: 0 | GS5: 0 | GT5: 0 | GU5: 0 | GV5: 0 | GW5: 0 | GX5: 0 | GY5: 0 | GZ5: 0 | HA5: 0 | HB5: 0 | HC5: 0 | HD5: 0 | HE5: 0 | HF5: 0 | HG5: 0 | HH5: 0 | HI5: 0 | HJ5: 0 | HK5: 0 | HL5: 0 | HM5: 0 | HN5: 0 | HO5: 0 | HP5: 0 | HQ5: 0 | HR5: 0 | HS5: 0 | HT5: 0 | HU5: 0 | HV5: 0 | HW5: 0 | HX5: 0 | HY5: 0 | HZ5: 0 | IA5: 0 | IB5: 0 | IC5: 0 | ID5: 0 | IE5: 0 | IF5: 0 | IG5: 0 | IH5: 0 | II5: 0 | IJ5: 0 | IK5: 0 | IL5: 0 | IM5: 0 | IN5: 0 | IO5: 0 | IP5: 0 | IQ5: 0 | IR5: 0 | IS5: 0 | IT5: 0 | IU5: 0 | IV5: 0 | IW5: 0 | IX5: 0 | IY5: 0 | IZ5: 0 | JA5: 0 | JB5: 0 | JC5: 0 | JD5: 0 | JE5: 0 | JF5: 0
B6: PCC3 | C6: 0 | D6: 0 | E6: 0 | F6: 0 | G6: 0 | H6: 0 | I6: 0 | J6: 0 | K6: 0 | L6: 0 | M6: 0 | N6: 0 | O6: 0 | P6: 0 | Q6: 0 | R6: 0 | S6: 0 | T6: 0 | U6: 0 | V6: 0 | W6: 0 | X6: 0 | Y6: 0 | Z6: 0 | AA6: =Z6 -> 0 | AB6: 0 | AC6: 0 | AD6: 0 | AE6: 0 | AF6: 0 | AG6: 0 | AH6: 0 | AI6: 0 | AJ6: 0 | AK6: 0 | AL6: 0 | AM6: 0 | AN6: 0 | AO6: 0 | AP6: 0 | AQ6: 0 | AR6: 0 | AS6: 0 | AT6: 0 | AU6: 0 | AV6: =AU6 -> 0 | AW6: 0 | AX6: 0 | AY6: =AX6 -> 0 | AZ6: 0 | BA6: 0 | BB6: 0 | BC6: 0 | BD6: 0 | BE6: 0 | BF6: 0 | BG6: 0 | BH6: 0 | BI6: 0 | BJ6: =BI6 -> 0 | BK6: 0 | BL6: 0 | BM6: 0 | BN6: 0 | BO6: 0 | BP6: 0 | BQ6: 0 | BR6: 0 | BS6: 0 | BT6: 0 | BU6: 0 | BV6: 0 | BW6: 0 | BX6: 0 | BY6: 0 | BZ6: 0 | CA6: 0 | CB6: 0 | CC6: 0 | CD6: 0 | CE6: 0 | CF6: 0 | CG6: 0 | CH6: 0 | CI6: 0 | CJ6: 0 | CK6: 0 | CL6: 0 | CM6: 0 | CN6: 0 | CO6: 0 | CP6: 0 | CQ6: 0 | CR6: 0 | CS6: 0 | CT6: 0 | CU6: 0 | CV6: 0 | CW6: 0 | CX6: 0 | CY6: 0 | CZ6: 0 | DA6: 0 | DB6: 0 | DC6: 0 | DD6: 0 | DE6: 0 | DF6: 0 | DG6: 0 | DH6: 0 | DI6: 0 | DJ6: 0 | DK6: 0 | DL6: 0 | DM6: 0 | DN6: 0 | DO6: 0 | DP6: 0 | DQ6: 0 | DR6: 0 | DS6: 0 | DT6: 0 | DU6: 0 | DV6: 0 | DW6: 0 | DX6: 0 | DY6: 0 | DZ6: 0 | EA6: 0 | EB6: 0 | EC6: 0 | ED6: 0 | EE6: =ED6 -> 0 | EF6: 0 | EG6: 0 | EH6: =EG6+1210 -> 1210 | EI6: =EH6 -> 1210 | EJ6: 1210 | EK6: 1210 | EL6: 1210 | EM6: 1210 | EN6: 1210 | EO6: 1210 | EP6: 1210 | EQ6: 1210 | ER6: 1210 | ES6: 1210 | ET6: 1210 | EU6: 1210 | EV6: 1210 | EW6: 1210 | EX6: 1210 | EY6: 1210 | EZ6: 1210 | FA6: 1210 | FB6: 1210 | FC6: 1210 | FD6: 1210 | FE6: 1210 | FF6: 1210 | FG6: 1210 | FH6: 1210 | FI6: 1210 | FJ6: 1210 | FK6: 1210 | FL6: 1210 | FM6: 1210 | FN6: 1210 | FO6: 1210 | FP6: 1210 | FQ6: 1210 | FR6: 1210 | FS6: 1210 | FT6: =FS6 -> 1210 | FU6: 1210 | FV6: 1210 | FW6: 1210 | FX6: 1210 | FY6: 1210 | FZ6: 1210 | GA6: 1210 | GB6: 1210 | GC6: 1210 | GD6: 1210 | GE6: 1210 | GF6: 1210 | GG6: 1210 | GH6: 1210 | GI6: 1210 | GJ6: 1210 | GK6: 1210 | GL6: 1210 | GM6: 1210 | GN6: 1210 | GO6: 1210 | GP6: 1210 | GQ6: 1210 | GR6: 1210 | GS6: 1210 | GT6: 1210 | GU6: 1210 | GV6: 1210 | GW6: 1210 | GX6: 1210 | GY6: 1210 | GZ6: 1210 | HA6: 1210 | HB6: 1210 | HC6: 1210 | HD6: 1210 | HE6: 1210 | HF6: 1210 | HG6: 1210 | HH6: 1210 | HI6: 1210 | HJ6: 1210 | HK6: 1210 | HL6: 1210 | HM6: 1210 | HN6: 1210 | HO6: 1210 | HP6: 1210 | HQ6: 1210 | HR6: 1210 | HS6: 1210 | HT6: 1210 | HU6: 1210 | HV6: 1210 | HW6: 1210 | HX6: 1210 | HY6: 1210 | HZ6: 1210 | IA6: 1210 | IB6: 1210 | IC6: 1210 | ID6: 1210 | IE6: 1210 | IF6: 1210 | IG6: 1210 | IH6: 1210 | II6: 1210 | IJ6: 1210 | IK6: =IJ6+29 -> 1239 | IL6: =IK6 -> 1239 | IM6: =IL6+29 -> 1268 | IN6: =IM6 -> 1268 | IO6: =IN6+29 -> 1297 | IP6: 1297 | IQ6: 1297 | IR6: 1297 | IS6: 1297 | IT6: 1297 | IU6: 1297 | IV6: 1297 | IW6: 1297 | IX6: 1297 | IY6: 1297 | IZ6: 1297 | JA6: 1297 | JB6: 1297 | JC6: 1297 | JD6: 1297 | JE6: 1297 | JF6: 1297
B7: PCU5 | C7: 71 | D7: 71 | E7: 71 | F7: 71 | G7: 71 | H7: 71 | I7: 71 | J7: 71 | K7: 71 | L7: 71 | M7: 71 | N7: 71 | O7: =N7-3 -> 68 | P7: 68 | Q7: 68 | R7: 68 | S7: 68 | T7: 68 | U7: 68 | V7: 68 | W7: 68 | X7: 68 | Y7: 68 | Z7: 68 | AA7: =Z7 -> 68 | AB7: 68 | AC7: 68 | AD7: 68 | AE7: 68 | AF7: 68 | AG7: 68 | AH7: 68 | AI7: 68 | AJ7: 68 | AK7: 68 | AL7: 68 | AM7: 68 | AN7: 68 | AO7: 68 | AP7: 68 | AQ7: 68 | AR7: 68 | AS7: 68 | AT7: 68 | AU7: 68 | AV7: 68 | AW7: 68 | AX7: 68 | AY7: =AX7-3 -> 65 | AZ7: 65 | BA7: 65 | BB7: 65 | BC7: 65 | BD7: 65 | BE7: 65 | BF7: 65 | BG7: 65 | BH7: 65 | BI7: 65 | BJ7: =BI7+3 -> 68 | BK7: 68 | BL7: 68 | BM7: 68 | BN7: 68 | BO7: 68 | BP7: 68 | BQ7: 68 | BR7: 68 | BS7: 68 | BT7: 68 | BU7: 68 | BV7: 68 | BW7: 68 | BX7: 68 | BY7: 68 | BZ7: 68 | CA7: 68 | CB7: 68 | CC7: 68 | CD7: 68 | CE7: 68 | CF7: 68 | CG7: 68 | CH7: 68 | CI7: 68 | CJ7: 68 | CK7: 68 | CL7: 68 | CM7: 68 | CN7: 68 | CO7: 68 | CP7: 68 | CQ7: 68 | CR7: 68 | CS7: 68 | CT7: 68 | CU7: 68 | CV7: 68 | CW7: 68 | CX7: 68 | CY7: 68 | CZ7: 68 | DA7: 68 | DB7: 68 | DC7: 68 | DD7: 68 | DE7: 68 | DF7: 68 | DG7: 68 | DH7: 68 | DI7: 68 | DJ7: 68 | DK7: 68 | DL7: 68 | DM7: 68 | DN7: 68 | DO7: 68 | DP7: 68 | DQ7: 68 | DR7: 68 | DS7: 68 | DT7: 68 | DU7: 68 | DV7: 68 | DW7: 68 | DX7: 68 | DY7: 68 | DZ7: 68 | EA7: 68 | EB7: 68 | EC7: 68 | ED7: =EC7-68 -> 0 | EE7: 0 | EF7: 0 | EG7: 0 | EH7: 0 | EI7: 0 | EJ7: 0 | EK7: 0 | EL7: 0 | EM7: 0 | EN7: 0 | EO7: 0 | EP7: 0 | EQ7: 0 | ER7: 0 | ES7: 0 | ET7: 0 | EU7: 0 | EV7: 0 | EW7: 0 | EX7: 0 | EY7: 0 | EZ7: 0 | FA7: 0 | FB7: 0 | FC7: 0 | FD7: 0 | FE7: 0 | FF7: 0 | FG7: 0 | FH7: 0 | FI7: 0 | FJ7: 0 | FK7: 0 | FL7: 0 | FM7: 0 | FN7: 0 | FO7: 0 | FP7: 0 | FQ7: 0 | FR7: 0 | FS7: 0 | FT7: 0 | FU7: 0 | FV7: 0 | FW7: 0 | FX7: 0 | FY7: 0 | FZ7: 0 | GA7: 0 | GB7: 0 | GC7: 0 | GD7: 0 | GE7: 0 | GF7: 0 | GG7: 0 | GH7: 0 | GI7: 0 | GJ7: 0 | GK7: 0 | GL7: 0 | GM7: 0 | GN7: 0 | GO7: 0 | GP7: 0 | GQ7: 0 | GR7: 0 | GS7: 0 | GT7: 0 | GU7: 0 | GV7: 0 | GW7: 0 | GX7: 0 | GY7: 0 | GZ7: 0 | HA7: 0 | HB7: 0 | HC7: 0 | HD7: 0 | HE7: 0 | HF7: 0 | HG7: 0 | HH7: 0 | HI7: 0 | HJ7: 0 | HK7: 0 | HL7: 0 | HM7: 0 | HN7: 0 | HO7: 0 | HP7: 0 | HQ7: 0 | HR7: 0 | HS7: 0 | HT7: 0 | HU7: 0 | HV7: 0 | HW7: 0 | HX7: 0 | HY7: 0 | HZ7: 0 | IA7: 0 | IB7: 0 | IC7: 0 | ID7: 0 | IE7: 0 | IF7: 0 | IG7: 0 | IH7: 0 | II7: 0 | IJ7: 0 | IK7: 0 | IL7: 0 | IM7: 0 | IN7: 0 | IO7: 0 | IP7: 0 | IQ7: 0 | IR7: 0 | IS7: 0 | IT7: 0 | IU7: 0 | IV7: 0 | IW7: 0 | IX7: 0 | IY7: 0 | IZ7: 0 | JA7: 0 | JB7: 0 | JC7: 0 | JD7: 0 | JE7: 0 | JF7: 0
B8: PCU6 | C8: 142 | D8: 142 | E8: 142 | F8: 142 | G8: 142 | H8: 142 | I8: 142 | J8: 142 | K8: 142 | L8: 142 | M8: 142 | N8: 142 | O8: =N8-4 -> 138 | P8: 138 | Q8: 138 | R8: 138 | S8: 138 | T8: 138 | U8: 138 | V8: 138 | W8: 138 | X8: 138 | Y8: 138 | Z8: 138 | AA8: =Z8 -> 138 | AB8: 138 | AC8: 138 | AD8: 138 | AE8: 138 | AF8: 138 | AG8: 138 | AH8: 138 | AI8: 138 | AJ8: 138 | AK8: 138 | AL8: 138 | AM8: 138 | AN8: 138 | AO8: 138 | AP8: 138 | AQ8: 138 | AR8: 138 | AS8: 138 | AT8: 138 | AU8: 138 | AV8: 138 | AW8: 138 | AX8: 138 | AY8: =AX8-33 -> 105 | AZ8: 105 | BA8: 105 | BB8: 105 | BC8: 105 | BD8: 105 | BE8: 105 | BF8: 105 | BG8: 105 | BH8: 105 | BI8: 105 | BJ8: =BI8+32 -> 137 | BK8: 137 | BL8: 137 | BM8: 137 | BN8: 137 | BO8: 137 | BP8: 137 | BQ8: 137 | BR8: 137 | BS8: 137 | BT8: 137 | BU8: 137 | BV8: 137 | BW8: 137 | BX8: 137 | BY8: 137 | BZ8: 137 | CA8: 137 | CB8: 137 | CC8: 137 | CD8: 137 | CE8: 137 | CF8: 137 | CG8: 137 | CH8: 137 | CI8: 137 | CJ8: 137 | CK8: 137 | CL8: 137 | CM8: 137 | CN8: 137 | CO8: 137 | CP8: 137 | CQ8: 137 | CR8: 137 | CS8: 137 | CT8: 137 | CU8: 137 | CV8: 137 | CW8: 137 | CX8: 137 | CY8: 137 | CZ8: 137 | DA8: 137 | DB8: 137 | DC8: 137 | DD8: 137 | DE8: 137 | DF8: 137 | DG8: 137 | DH8: 137 | DI8: 137 | DJ8: 137 | DK8: 137 | DL8: 137 | DM8: 137 | DN8: =DM8 -> 137 | DO8: 137 | DP8: 137 | DQ8: 137 | DR8: 137 | DS8: 137 | DT8: 137 | DU8: 137 | DV8: 137 | DW8: 137 | DX8: 137 | DY8: 137 | DZ8: 137 | EA8: 137 | EB8: 137 | EC8: 137 | ED8: =EC8-137 -> 0 | EE8: 0 | EF8: 0 | EG8: 0 | EH8: 0 | EI8: 0 | EJ8: 0 | EK8: 0 | EL8: 0 | EM8: 0 | EN8: 0 | EO8: 0 | EP8: 0 | EQ8: 0 | ER8: 0 | ES8: 0 | ET8: 0 | EU8: 0 | EV8: 0 | EW8: 0 | EX8: 0 | EY8: 0 | EZ8: 0 | FA8: 0 | FB8: 0 | FC8: 0 | FD8: 0 | FE8: 0 | FF8: 0 | FG8: 0 | FH8: 0 | FI8: 0 | FJ8: 0 | FK8: 0 | FL8: 0 | FM8: 0 | FN8: 0 | FO8: 0 | FP8: 0 | FQ8: 0 | FR8: 0 | FS8: 0 | FT8: 0 | FU8: 0 | FV8: 0 | FW8: 0 | FX8: 0 | FY8: 0 | FZ8: 0 | GA8: 0 | GB8: 0 | GC8: 0 | GD8: 0 | GE8: 0 | GF8: 0 | GG8: 0 | GH8: 0 | GI8: 0 | GJ8: 0 | GK8: 0 | GL8: 0 | GM8: 0 | GN8: 0 | GO8: 0 | GP8: 0 | GQ8: 0 | GR8: 0 | GS8: 0 | GT8: 0 | GU8: 0 | GV8: 0 | GW8: 0 | GX8: 0 | GY8: 0 | GZ8: 0 | HA8: 0 | HB8: 0 | HC8: 0 | HD8: 0 | HE8: 0 | HF8: 0 | HG8: 0 | HH8: 0 | HI8: 0 | HJ8: 0 | HK8: 0 | HL8: 0 | HM8: 0 | HN8: 0 | HO8: 0 | HP8: 0 | HQ8: 0 | HR8: 0 | HS8: 0 | HT8: 0 | HU8: 0 | HV8: 0 | HW8: 0 | HX8: 0 | HY8: 0 | HZ8: 0 | IA8: 0 | IB8: 0 | IC8: 0 | ID8: 0 | IE8: 0 | IF8: 0 | IG8: 0 | IH8: 0 | II8: 0 | IJ8: 0 | IK8: 0 | IL8: 0 | IM8: 0 | IN8: 0 | IO8: 0 | IP8: 0 | IQ8: 0 | IR8: 0 | IS8: 0 | IT8: 0 | IU8: 0 | IV8: 0 | IW8: 0 | IX8: 0 | IY8: 0 | IZ8: 0 | JA8: 0 | JB8: 0 | JC8: 0 | JD8: 0 | JE8: 0 | JF8: 0
B9: PDO | C9: 0 | D9: 0 | E9: 0 | F9: 0 | G9: 0 | H9: 0 | I9: 0 | J9: 0 | K9: 0 | L9: 0 | M9: 0 | N9: 0 | O9: 0 | P9: 0 | Q9: 0 | R9: 0 | S9: 0 | T9: 0 | U9: 0 | V9: 0 | W9: 0 | X9: 0 | Y9: 0 | Z9: 0 | AA9: =Z9 -> 0 | AB9: 0 | AC9: 0 | AD9: 0 | AE9: 0 | AF9: 0 | AG9: 0 | AH9: 0 | AI9: 0 | AJ9: 0 | AK9: 0 | AL9: 0 | AM9: 0 | AN9: 0 | AO9: 0 | AP9: 0 | AQ9: 0 | AR9: 0 | AS9: 0 | AT9: 0 | AU9: 0 | AV9: 0 | AW9: 0 | AX9: 0 | AY9: 0 | AZ9: 0 | BA9: 0 | BB9: 0 | BC9: 0 | BD9: 0 | BE9: 0 | BF9: 0 | BG9: 0 | BH9: 0 | BI9: 0 | BJ9: =BI9 -> 0 | BK9: 0 | BL9: 0 | BM9: 0 | BN9: 0 | BO9: 0 | BP9: 0 | BQ9: 0 | BR9: 0 | BS9: 0 | BT9: 0 | BU9: 0 | BV9: 0 | BW9: 0 | BX9: 0 | BY9: 0 | BZ9: 0 | CA9: 0 | CB9: =CA9 -> 0 | CC9: 0 | CD9: 0 | CE9: 0 | CF9: 0 | CG9: 0 | CH9: 0 | CI9: 0 | CJ9: 0 | CK9: 0 | CL9: 0 | CM9: 0 | CN9: 0 | CO9: 0 | CP9: 0 | CQ9: 0 | CR9: 19 | CS9: =CR9 -> 19 | CT9: 19 | CU9: =CT9+6 -> 25 | CV9: =CU9 -> 25 | CW9: =CV9 -> 25 | CX9: =CW9 -> 25 | CY9: 25 | CZ9: 25 | DA9: 25 | DB9: 25 | DC9: 25 | DD9: 25 | DE9: 25 | DF9: 25 | DG9: 25 | DH9: 25 | DI9: 25 | DJ9: 25 | DK9: 25 | DL9: 25 | DM9: 25 | DN9: 25 | DO9: 25 | DP9: 25 | DQ9: 25 | DR9: 25 | DS9: 25 | DT9: 25 | DU9: 25 | DV9: 25 | DW9: 25 | DX9: 25 | DY9: 25 | DZ9: 25 | EA9: 25 | EB9: 25 | EC9: 25 | ED9: =EC9 -> 25 | EE9: 25 | EF9: 25 | EG9: 25 | EH9: 25 | EI9: 25 | EJ9: 25 | EK9: 25 | EL9: 25 | EM9: 25 | EN9: 25 | EO9: 25 | EP9: 25 | EQ9: 25 | ER9: 25 | ES9: 25 | ET9: 25 | EU9: 25 | EV9: 25 | EW9: 25 | EX9: 25 | EY9: 25 | EZ9: 25 | FA9: 25 | FB9: 25 | FC9: 25 | FD9: 25 | FE9: 25 | FF9: 25 | FG9: 25 | FH9: 25 | FI9: 25 | FJ9: 25 | FK9: 25 | FL9: 25 | FM9: 25 | FN9: 25 | FO9: 25 | FP9: 25 | FQ9: 25 | FR9: 25 | FS9: 25 | FT9: 25 | FU9: 25 | FV9: 25 | FW9: 25 | FX9: 25 | FY9: 25 | FZ9: 25 | GA9: 25 | GB9: 25 | GC9: 25 | GD9: 25 | GE9: 25 | GF9: 25 | GG9: 25 | GH9: 25 | GI9: 25 | GJ9: 25 | GK9: 25 | GL9: 25 | GM9: 25 | GN9: 25 | GO9: 25 | GP9: 25 | GQ9: 25 | GR9: 25 | GS9: 25 | GT9: 25 | GU9: 25 | GV9: 25 | GW9: 25 | GX9: 25 | GY9: 25 | GZ9: 25 | HA9: 25 | HB9: 25 | HC9: 25 | HD9: 25 | HE9: 25 | HF9: 25 | HG9: 25 | HH9: 25 | HI9: 25 | HJ9: 25 | HK9: 25 | HL9: 25 | HM9: 25 | HN9: 25 | HO9: 25 | HP9: 25 | HQ9: 25 | HR9: 25 | HS9: 25 | HT9: 25 | HU9: 25 | HV9: 25 | HW9: 25 | HX9: 25 | HY9: 25 | HZ9: 25 | IA9: 25 | IB9: 25 | IC9: 25 | ID9: 25 | IE9: 25 | IF9: 25 | IG9: 25 | IH9: 25 | II9: 25 | IJ9: 25 | IK9: 25 | IL9: 25 | IM9: 25 | IN9: 25 | IO9: 25 | IP9: 25 | IQ9: 25 | IR9: 25 | IS9: 25 | IT9: 25 | IU9: 25 | IV9: 25 | IW9: 25 | IX9: 25 | IY9: 25 | IZ9: 25 | JA9: 25 | JB9: 25 | JC9: 25 | JD9: 25 | JE9: 25 | JF9: 25
B10: PFL4 | C10: 425 | D10: 425 | E10: 425 | F10: 425 | G10: 425 | H10: 425 | I10: 425 | J10: 425 | K10: 425 | L10: 425 | M10: 425 | N10: =M10 -> 425 | O10: 425 | P10: 425 | Q10: 425 | R10: 425 | S10: 425 | T10: 425 | U10: 425 | V10: 425 | W10: 425 | X10: 425 | Y10: 425 | Z10: =Y10 -> 425 | AA10: =Z10+5 -> 430 | AB10: 430 | AC10: 430 | AD10: 430 | AE10: 430 | AF10: 430 | AG10: 430 | AH10: 430 | AI10: 430 | AJ10: 430 | AK10: 430 | AL10: 430 | AM10: 430 | AN10: 430 | AO10: 430 | AP10: 430 | AQ10: 430 | AR10: 430 | AS10: 430 | AT10: 430 | AU10: 430 | AV10: 430 | AW10: 430 | AX10: 430 | AY10: 430 | AZ10: 430 | BA10: 430 | BB10: 430 | BC10: 430 | BD10: 430 | BE10: 430 | BF10: 430 | BG10: 430 | BH10: 430 | BI10: 430 | BJ10: =BI10+6 -> 436 | BK10: 436 | BL10: 436 | BM10: 436 | BN10: 436 | BO10: 436 | BP10: 436 | BQ10: 436 | BR10: 436 | BS10: 436 | BT10: 436 | BU10: 436 | BV10: 436 | BW10: 436 | BX10: 436 | BY10: 436 | BZ10: 436 | CA10: 436 | CB10: 436 | CC10: 436 | CD10: 436 | CE10: 436 | CF10: 436 | CG10: 436 | CH10: =CG10+6 -> 442 | CI10: 442 | CJ10: 442 | CK10: 442 | CL10: 442 | CM10: 442 | CN10: 442 | CO10: 442 | CP10: 442 | CQ10: 442 | CR10: =CQ10 -> 442 | CS10: 442 | CT10: 442 | CU10: 442 | CV10: 442 | CW10: 442 | CX10: 442 | CY10: 442 | CZ10: 442 | DA10: 442 | DB10: 442 | DC10: 442 | DD10: 442 | DE10: 442 | DF10: 442 | DG10: 442 | DH10: 442 | DI10: 442 | DJ10: 442 | DK10: 442 | DL10: 442 | DM10: 442 | DN10: 442 | DO10: 442 | DP10: 442 | DQ10: 442 | DR10: 442 | DS10: 442 | DT10: 442 | DU10: 442 | DV10: 442 | DW10: 442 | DX10: 442 | DY10: 442 | DZ10: 442 | EA10: 442 | EB10: 442 | EC10: 442 | ED10: 442 | EE10: 442 | EF10: 442 | EG10: 442 | EH10: 442 | EI10: 442 | EJ10: 442 | EK10: 442 | EL10: 442 | EM10: 442 | EN10: 442 | EO10: 442 | EP10: 442 | EQ10: 442 | ER10: 442 | ES10: 442 | ET10: 442 | EU10: 442 | EV10: 442 | EW10: 442 | EX10: 442 | EY10: 442 | EZ10: 442 | FA10: 442 | FB10: 442 | FC10: 442 | FD10: 442 | FE10: 442 | FF10: 442 | FG10: 442 | FH10: 442 | FI10: 442 | FJ10: 442 | FK10: 442 | FL10: 442 | FM10: 442 | FN10: 442 | FO10: 442 | FP10: 442 | FQ10: 442 | FR10: 442 | FS10: 442 | FT10: 442 | FU10: 442 | FV10: 442 | FW10: 442 | FX10: 442 | FY10: 442 | FZ10: 442 | GA10: 442 | GB10: 442 | GC10: 442 | GD10: 442 | GE10: 442 | GF10: 442 | GG10: 442 | GH10: 442 | GI10: 442 | GJ10: 442 | GK10: 442 | GL10: 442 | GM10: 442 | GN10: 442 | GO10: 442 | GP10: 442 | GQ10: 442 | GR10: 442 | GS10: 442 | GT10: 442 | GU10: 442 | GV10: 442 | GW10: 442 | GX10: 442 | GY10: 442 | GZ10: 442 | HA10: 442 | HB10: 442 | HC10: 442 | HD10: 442 | HE10: 442 | HF10: 442 | HG10: 442 | HH10: 442 | HI10: 442 | HJ10: 442 | HK10: 442 | HL10: 442 | HM10: 442 | HN10: 442 | HO10: 442 | HP10: 442 | HQ10: 442 | HR10: 442 | HS10: 442 | HT10: 442 | HU10: 442 | HV10: 442 | HW10: 442 | HX10: 442 | HY10: 442 | HZ10: 442 | IA10: 442 | IB10: 442 | IC10: 442 | ID10: 442 | IE10: 442 | IF10: 442 | IG10: 442 | IH10: 442 | II10: 442 | IJ10: 442 | IK10: 442 | IL10: 442 | IM10: 442 | IN10: 442 | IO10: 442 | IP10: 442 | IQ10: 442 | IR10: 442 | IS10: 442 | IT10: 442 | IU10: 442 | IV10: 442 | IW10: 442 | IX10: 442 | IY10: 442 | IZ10: 442 | JA10: 442 | JB10: 442 | JC10: 442 | JD10: 442 | JE10: 442 | JF10: 442
B11: PFL5 | C11: 429 | D11: 429 | E11: 429 | F11: 429 | G11: 429 | H11: 429 | I11: 429 | J11: 429 | K11: 429 | L11: 429 | M11: 429 | N11: 429 | O11: 429 | P11: 429 | Q11: 429 | R11: 429 | S11: 429 | T11: 429 | U11: 429 | V11: 429 | W11: 429 | X11: 429 | Y11: 429 | Z11: 429 | AA11: =Z11 -> 429 | AB11: 429 | AC11: 429 | AD11: 429 | AE11: 429 | AF11: 429 | AG11: 429 | AH11: 429 | AI11: 429 | AJ11: 429 | AK11: 429 | AL11: 429 | AM11: 429 | AN11: 429 | AO11: 429 | AP11: 429 | AQ11: 429 | AR11: 429 | AS11: 429 | AT11: 429 | AU11: 429 | AV11: 429 | AW11: 429 | AX11: 429 | AY11: 429 | AZ11: 429 | BA11: 429 | BB11: 429 | BC11: 429 | BD11: 429 | BE11: 429 | BF11: 429 | BG11: 429 | BH11: 429 | BI11: 429 | BJ11: =BI11+6 -> 435 | BK11: 435 | BL11: 435 | BM11: 435 | BN11: 435 | BO11: 435 | BP11: 435 | BQ11: 435 | BR11: 435 | BS11: 435 | BT11: 435 | BU11: 435 | BV11: 435 | BW11: =BV11+1 -> 436 | BX11: 436 | BY11: 436 | BZ11: 436 | CA11: 436 | CB11: 436 | CC11: 436 | CD11: 436 | CE11: 436 | CF11: 436 | CG11: 436 | CH11: =CG11+6 -> 442 | CI11: 442 | CJ11: 442 | CK11: 442 | CL11: 442 | CM11: 442 | CN11: 442 | CO11: 442 | CP11: 442 | CQ11: 442 | CR11: 442 | CS11: 442 | CT11: 442 | CU11: 442 | CV11: 442 | CW11: 442 | CX11: 442 | CY11: 442 | CZ11: 442 | DA11: 442 | DB11: 442 | DC11: 442 | DD11: 442 | DE11: 442 | DF11: 442 | DG11: 442 | DH11: 442 | DI11: 442 | DJ11: 442 | DK11: 442 | DL11: 442 | DM11: 442 | DN11: 442 | DO11: 442 | DP11: 442 | DQ11: 442 | DR11: 442 | DS11: 442 | DT11: 442 | DU11: 442 | DV11: 442 | DW11: 442 | DX11: 442 | DY11: 442 | DZ11: 442 | EA11: 442 | EB11: 442 | EC11: 442 | ED11: 442 | EE11: 442 | EF11: 442 | EG11: 442 | EH11: 442 | EI11: 442 | EJ11: 442 | EK11: 442 | EL11: 442 | EM11: 442 | EN11: 442 | EO11: 442 | EP11: 442 | EQ11: 442 | ER11: 442 | ES11: 442 | ET11: 442 | EU11: 442 | EV11: 442 | EW11: 442 | EX11: 442 | EY11: 442 | EZ11: 442 | FA11: 442 | FB11: 442 | FC11: 442 | FD11: 442 | FE11: 442 | FF11: 442 | FG11: 442 | FH11: 442 | FI11: 442 | FJ11: 442 | FK11: 442 | FL11: 442 | FM11: 442 | FN11: 442 | FO11: 442 | FP11: 442 | FQ11: 442 | FR11: 442 | FS11: 442 | FT11: 442 | FU11: 442 | FV11: 442 | FW11: 442 | FX11: 442 | FY11: 442 | FZ11: 442 | GA11: 442 | GB11: 442 | GC11: 442 | GD11: 442 | GE11: 442 | GF11: 442 | GG11: 442 | GH11: 442 | GI11: 442 | GJ11: 442 | GK11: 442 | GL11: 442 | GM11: 442 | GN11: 442 | GO11: 442 | GP11: 442 | GQ11: 442 | GR11: 442 | GS11: 442 | GT11: 442 | GU11: 442 | GV11: 442 | GW11: 442 | GX11: 442 | GY11: 442 | GZ11: 442 | HA11: 442 | HB11: 442 | HC11: 442 | HD11: 442 | HE11: 442 | HF11: 442 | HG11: 442 | HH11: 442 | HI11: 442 | HJ11: 442 | HK11: 442 | HL11: 442 | HM11: 442 | HN11: 442 | HO11: 442 | HP11: 442 | HQ11: 442 | HR11: 442 | HS11: 442 | HT11: 442 | HU11: 442 | HV11: 442 | HW11: 442 | HX11: 442 | HY11: 442 | HZ11: 442 | IA11: 442 | IB11: 442 | IC11: 442 | ID11: 442 | IE11: 442 | IF11: 442 | IG11: 442 | IH11: 442 | II11: 442 | IJ11: 442 | IK11: 442 | IL11: 442 | IM11: 442 | IN11: 442 | IO11: 442 | IP11: 442 | IQ11: 442 | IR11: 442 | IS11: 442 | IT11: 442 | IU11: 442 | IV11: 442 | IW11: 442 | IX11: 442 | IY11: 442 | IZ11: 442 | JA11: 442 | JB11: 442 | JC11: 442 | JD11: 442 | JE11: 442 | JF11: 442
B12: PFL GT1 | C12: 420 | D12: 420 | E12: 420 | F12: 420 | G12: 420 | H12: 420 | I12: 420 | J12: 420 | K12: 420 | L12: 420 | M12: 420 | N12: 420 | O12: =N12 -> 420 | P12: 420 | Q12: 420 | R12: 420 | S12: 420 | T12: 420 | U12: 420 | V12: 420 | W12: 420 | X12: 420 | Y12: 420 | Z12: 420 | AA12: =Z12 -> 420 | AB12: 420 | AC12: 420 | AD12: 420 | AE12: 420 | AF12: 420 | AG12: 420 | AH12: 420 | AI12: 420 | AJ12: 420 | AK12: 420 | AL12: 420 | AM12: 420 | AN12: 420 | AO12: 420 | AP12: 420 | AQ12: 420 | AR12: 420 | AS12: 420 | AT12: 420 | AU12: 420 | AV12: 420 | AW12: 420 | AX12: 420 | AY12: 420 | AZ12: 420 | BA12: 420 | BB12: 420 | BC12: 420 | BD12: 420 | BE12: 420 | BF12: 420 | BG12: 420 | BH12: 420 | BI12: 420 | BJ12: =BI12 -> 420 | BK12: 420 | BL12: 420 | BM12: 420 | BN12: 420 | BO12: 420 | BP12: 420 | BQ12: 420 | BR12: 420 | BS12: 420 | BT12: 420 | BU12: 420 | BV12: 420 | BW12: 420 | BX12: 420 | BY12: 420 | BZ12: 420 | CA12: 420 | CB12: 420 | CC12: 420 | CD12: 420 | CE12: 420 | CF12: 420 | CG12: 420 | CH12: =CG12 -> 420 | CI12: 420 | CJ12: 420 | CK12: 420 | CL12: 420 | CM12: 420 | CN12: 420 | CO12: 420 | CP12: 420 | CQ12: 420 | CR12: 420 | CS12: 420 | CT12: 420 | CU12: 420 | CV12: 420 | CW12: 420 | CX12: 420 | CY12: 420 | CZ12: 420 | DA12: 420 | DB12: 420 | DC12: 420 | DD12: 420 | DE12: 420 | DF12: 420 | DG12: 420 | DH12: 420 | DI12: 420 | DJ12: 420 | DK12: 420 | DL12: 420 | DM12: 420 | DN12: 420 | DO12: 420 | DP12: 420 | DQ12: 420 | DR12: 420 | DS12: 420 | DT12: 420 | DU12: 420 | DV12: 420 | DW12: 420 | DX12: 420 | DY12: 420 | DZ12: 420 | EA12: 420 | EB12: 420 | EC12: 420 | ED12: 420 | EE12: 420 | EF12: 420 | EG12: 420 | EH12: 420 | EI12: 420 | EJ12: 420 | EK12: 420 | EL12: 420 | EM12: 420 | EN12: 420 | EO12: 420 | EP12: 420 | EQ12: 420 | ER12: 420 | ES12: 420 | ET12: 420 | EU12: 420 | EV12: 420 | EW12: 420 | EX12: 420 | EY12: 420 | EZ12: 420 | FA12: 420 | FB12: 420 | FC12: 420 | FD12: 420 | FE12: 420 | FF12: 420 | FG12: 420 | FH12: 420 | FI12: 420 | FJ12: 420 | FK12: 420 | FL12: 420 | FM12: 420 | FN12: 420 | FO12: 420 | FP12: 420 | FQ12: 420 | FR12: 420 | FS12: 420 | FT12: 420 | FU12: 420 | FV12: 420 | FW12: 420 | FX12: 420 | FY12: 420 | FZ12: 420 | GA12: 420 | GB12: 420 | GC12: 420 | GD12: 420 | GE12: 420 | GF12: 420 | GG12: 420 | GH12: 420 | GI12: 420 | GJ12: 420 | GK12: 420 | GL12: 420 | GM12: 420 | GN12: 420 | GO12: 420 | GP12: 420 | GQ12: 420 | GR12: 420 | GS12: 420 | GT12: 420 | GU12: 420 | GV12: 420 | GW12: 420 | GX12: 420 | GY12: =GX12 -> 420 | GZ12: 420 | HA12: 420 | HB12: 420 | HC12: 420 | HD12: 420 | HE12: 420 | HF12: 420 | HG12: 420 | HH12: 420 | HI12: 420 | HJ12: 420 | HK12: 420 | HL12: 420 | HM12: 420 | HN12: 420 | HO12: 420 | HP12: 420 | HQ12: 420 | HR12: 420 | HS12: 420 | HT12: 420 | HU12: 420 | HV12: 420 | HW12: 420 | HX12: 420 | HY12: 420 | HZ12: 420 | IA12: 420 | IB12: 420 | IC12: 420 | ID12: 420 | IE12: 420 | IF12: 420 | IG12: 420 | IH12: 420 | II12: 420 | IJ12: 420 | IK12: 420 | IL12: 420 | IM12: 420 | IN12: 420 | IO12: 420 | IP12: 420 | IQ12: 420 | IR12: 420 | IS12: 420 | IT12: 420 | IU12: 420 | IV12: 420 | IW12: 420 | IX12: 420 | IY12: 420 | IZ12: 420 | JA12: 420 | JB12: 420 | JC12: 420 | JD12: 420 | JE12: 420 | JF12: 420
B13: PFL GT2 | C13: 420 | D13: 420 | E13: 420 | F13: 420 | G13: 420 | H13: 420 | I13: 420 | J13: 420 | K13: 420 | L13: 420 | M13: 420 | N13: 420 | O13: =N13 -> 420 | P13: 420 | Q13: 420 | R13: 420 | S13: 420 | T13: 420 | U13: 420 | V13: 420 | W13: 420 | X13: 420 | Y13: 420 | Z13: 420 | AA13: =Z13 -> 420 | AB13: 420 | AC13: 420 | AD13: 420 | AE13: 420 | AF13: 420 | AG13: 420 | AH13: 420 | AI13: 420 | AJ13: 420 | AK13: 420 | AL13: 420 | AM13: 420 | AN13: 420 | AO13: 420 | AP13: 420 | AQ13: 420 | AR13: 420 | AS13: 420 | AT13: 420 | AU13: 420 | AV13: 420 | AW13: 420 | AX13: 420 | AY13: 420 | AZ13: 420 | BA13: 420 | BB13: 420 | BC13: 420 | BD13: 420 | BE13: 420 | BF13: 420 | BG13: 420 | BH13: 420 | BI13: 420 | BJ13: =BI13 -> 420 | BK13: 420 | BL13: 420 | BM13: 420 | BN13: 420 | BO13: 420 | BP13: 420 | BQ13: 420 | BR13: 420 | BS13: 420 | BT13: 420 | BU13: 420 | BV13: 420 | BW13: 420 | BX13: 420 | BY13: 420 | BZ13: 420 | CA13: 420 | CB13: 420 | CC13: 420 | CD13: 420 | CE13: 420 | CF13: 420 | CG13: 420 | CH13: =CG13 -> 420 | CI13: 420 | CJ13: 420 | CK13: 420 | CL13: 420 | CM13: 420 | CN13: 420 | CO13: 420 | CP13: 420 | CQ13: 420 | CR13: 420 | CS13: 420 | CT13: 420 | CU13: 420 | CV13: 420 | CW13: 420 | CX13: 420 | CY13: 420 | CZ13: 420 | DA13: 420 | DB13: 420 | DC13: 420 | DD13: 420 | DE13: 420 | DF13: 420 | DG13: 420 | DH13: 420 | DI13: 420 | DJ13: 420 | DK13: 420 | DL13: 420 | DM13: 420 | DN13: 420 | DO13: 420 | DP13: 420 | DQ13: 420 | DR13: 420 | DS13: 420 | DT13: 420 | DU13: 420 | DV13: 420 | DW13: 420 | DX13: 420 | DY13: 420 | DZ13: 420 | EA13: 420 | EB13: 420 | EC13: 420 | ED13: 420 | EE13: 420 | EF13: 420 | EG13: 420 | EH13: 420 | EI13: 420 | EJ13: 420 | EK13: 420 | EL13: 420 | EM13: 420 | EN13: 420 | EO13: 420 | EP13: 420 | EQ13: 420 | ER13: 420 | ES13: 420 | ET13: 420 | EU13: 420 | EV13: 420 | EW13: 420 | EX13: 420 | EY13: 420 | EZ13: 420 | FA13: 420 | FB13: 420 | FC13: 420 | FD13: 420 | FE13: 420 | FF13: 420 | FG13: 420 | FH13: 420 | FI13: 420 | FJ13: 420 | FK13: 420 | FL13: 420 | FM13: 420 | FN13: 420 | FO13: 420 | FP13: 420 | FQ13: 420 | FR13: 420 | FS13: 420 | FT13: 420 | FU13: 420 | FV13: 420 | FW13: 420 | FX13: 420 | FY13: 420 | FZ13: 420 | GA13: 420 | GB13: 420 | GC13: 420 | GD13: 420 | GE13: 420 | GF13: 420 | GG13: 420 | GH13: 420 | GI13: 420 | GJ13: 420 | GK13: 420 | GL13: 420 | GM13: 420 | GN13: 420 | GO13: 420 | GP13: 420 | GQ13: 420 | GR13: 420 | GS13: 420 | GT13: 420 | GU13: 420 | GV13: 420 | GW13: 420 | GX13: 420 | GY13: =GX13 -> 420 | GZ13: 420 | HA13: 420 | HB13: 420 | HC13: 420 | HD13: 420 | HE13: 420 | HF13: 420 | HG13: 420 | HH13: 420 | HI13: 420 | HJ13: 420 | HK13: 420 | HL13: 420 | HM13: 420 | HN13: 420 | HO13: 420 | HP13: 420 | HQ13: 420 | HR13: 420 | HS13: 420 | HT13: 420 | HU13: 420 | HV13: 420 | HW13: 420 | HX13: 420 | HY13: 420 | HZ13: 420 | IA13: 420 | IB13: 420 | IC13: 420 | ID13: 420 | IE13: 420 | IF13: 420 | IG13: 420 | IH13: 420 | II13: 420 | IJ13: 420 | IK13: 420 | IL13: 420 | IM13: 420 | IN13: 420 | IO13: 420 | IP13: 420 | IQ13: 420 | IR13: 420 | IS13: 420 | IT13: 420 | IU13: 420 | IV13: 420 | IW13: 420 | IX13: 420 | IY13: 420 | IZ13: 420 | JA13: 420 | JB13: 420 | JC13: 420 | JD13: 420 | JE13: 420 | JF13: 420
B14: PFL CT | C14: 0 | D14: 0 | E14: 0 | F14: 0 | G14: 0 | H14: 0 | I14: 0 | J14: 0 | K14: 0 | L14: 0 | M14: 0 | N14: 0 | O14: =N14 -> 0 | P14: 0 | Q14: 0 | R14: 0 | S14: 0 | T14: 0 | U14: 0 | V14: 0 | W14: 0 | X14: 0 | Y14: 0 | Z14: 0 | AA14: =Z14 -> 0 | AB14: 0 | AC14: 0 | AD14: 0 | AE14: 0 | AF14: 0 | AG14: 0 | AH14: 0 | AI14: 0 | AJ14: 0 | AK14: 0 | AL14: 0 | AM14: 0 | AN14: 0 | AO14: 0 | AP14: 0 | AQ14: 0 | AR14: 0 | AS14: 0 | AT14: 0 | AU14: 0 | AV14: 0 | AW14: 0 | AX14: 0 | AY14: 0 | AZ14: 0 | BA14: 0 | BB14: 0 | BC14: 0 | BD14: 0 | BE14: 0 | BF14: 0 | BG14: 0 | BH14: 0 | BI14: 0 | BJ14: =BI14 -> 0 | BK14: 0 | BL14: 0 | BM14: 0 | BN14: 0 | BO14: 0 | BP14: 0 | BQ14: 0 | BR14: 0 | BS14: 0 | BT14: 0 | BU14: 0 | BV14: 0 | BW14: 0 | BX14: 0 | BY14: 0 | BZ14: 0 | CA14: 0 | CB14: 0 | CC14: 0 | CD14: 0 | CE14: 0 | CF14: 0 | CG14: 0 | CH14: =CG14 -> 0 | CI14: 0 | CJ14: 0 | CK14: 0 | CL14: 0 | CM14: 0 | CN14: 0 | CO14: 0 | CP14: 0 | CQ14: 0 | CR14: 0 | CS14: 0 | CT14: 0 | CU14: 0 | CV14: 0 | CW14: 0 | CX14: 0 | CY14: 0 | CZ14: 0 | DA14: 0 | DB14: 0 | DC14: 0 | DD14: 0 | DE14: 0 | DF14: 0 | DG14: 0 | DH14: 0 | DI14: 0 | DJ14: 0 | DK14: 0 | DL14: 0 | DM14: 0 | DN14: 0 | DO14: 0 | DP14: 0 | DQ14: 0 | DR14: 0 | DS14: 0 | DT14: 0 | DU14: 0 | DV14: 0 | DW14: 0 | DX14: 0 | DY14: 0 | DZ14: 0 | EA14: 0 | EB14: 0 | EC14: 0 | ED14: 0 | EE14: 0 | EF14: 0 | EG14: 0 | EH14: 0 | EI14: 0 | EJ14: 0 | EK14: 0 | EL14: 0 | EM14: 0 | EN14: 0 | EO14: 0 | EP14: 0 | EQ14: 0 | ER14: 0 | ES14: 0 | ET14: 0 | EU14: 0 | EV14: 0 | EW14: 0 | EX14: 0 | EY14: 0 | EZ14: 0 | FA14: 0 | FB14: 0 | FC14: 0 | FD14: 0 | FE14: 0 | FF14: 0 | FG14: 0 | FH14: 0 | FI14: 0 | FJ14: 0 | FK14: 0 | FL14: 0 | FM14: 0 | FN14: 0 | FO14: 0 | FP14: 0 | FQ14: 0 | FR14: 0 | FS14: 0 | FT14: 0 | FU14: 0 | FV14: 0 | FW14: 0 | FX14: 0 | FY14: 0 | FZ14: 0 | GA14: 0 | GB14: 0 | GC14: 0 | GD14: 0 | GE14: 0 | GF14: 0 | GG14: 0 | GH14: 0 | GI14: 0 | GJ14: 0 | GK14: 0 | GL14: 0 | GM14: 0 | GN14: 0 | GO14: 0 | GP14: 0 | GQ14: 0 | GR14: 0 | GS14: 0 | GT14: 0 | GU14: 0 | GV14: 0 | GW14: 0 | GX14: 0 | GY14: =GX14 -> 0 | GZ14: 0 | HA14: 0 | HB14: 0 | HC14: 0 | HD14: 0 | HE14: 0 | HF14: 0 | HG14: 0 | HH14: 0 | HI14: 0 | HJ14: 0 | HK14: 0 | HL14: 0 | HM14: 0 | HN14: 0 | HO14: 0 | HP14: 0 | HQ14: 0 | HR14: 0 | HS14: 0 | HT14: 0 | HU14: 0 | HV14: 0 | HW14: 0 | HX14: 0 | HY14: 0 | HZ14: 0 | IA14: 0 | IB14: 0 | IC14: 0 | ID14: 0 | IE14: 0 | IF14: 0 | IG14: 0 | IH14: 0 | II14: 0 | IJ14: 0 | IK14: 0 | IL14: 0 | IM14: 0 | IN14: 0 | IO14: 0 | IP14: 0 | IQ14: 0 | IR14: 0 | IS14: 0 | IT14: 0 | IU14: 0 | IV14: 0 | IW14: 0 | IX14: 0 | IY14: 0 | IZ14: 0 | JA14: 0 | JB14: 0 | JC14: 0 | JD14: 0 | JE14: 0 | JF14: 0
B15: PFM2 | C15: 894 | D15: 894 | E15: =D15-894 -> 0 | F15: 0 | G15: 0 | H15: =G15+1450 -> 1450 | I15: 1450 | J15: 1450 | K15: 1450 | L15: 1450 | M15: 1450 | N15: 1450 | O15: =N15-27 -> 1423 | P15: 1423 | Q15: 1423 | R15: 1423 | S15: 1423 | T15: 1423 | U15: 1423 | V15: 1423 | W15: 1423 | X15: 1423 | Y15: 1423 | Z15: 1423 | AA15: =Z15+18 -> 1441 | AB15: 1441 | AC15: 1441 | AD15: 1441 | AE15: 1441 | AF15: 1441 | AG15: 1441 | AH15: 1441 | AI15: 1441 | AJ15: 1441 | AK15: 1441 | AL15: 1441 | AM15: 1441 | AN15: 1441 | AO15: 1441 | AP15: 1441 | AQ15: 1441 | AR15: 1441 | AS15: 1441 | AT15: 1441 | AU15: 1441 | AV15: 1441 | AW15: 1441 | AX15: 1441 | AY15: 1441 | AZ15: 1441 | BA15: 1441 | BB15: 1441 | BC15: 1441 | BD15: 1441 | BE15: 1441 | BF15: 1441 | BG15: 1441 | BH15: 1441 | BI15: 1441 | BJ15: =BI15-1 -> 1440 | BK15: 1440 | BL15: 1440 | BM15: 1440 | BN15: 1440 | BO15: 1440 | BP15: 1440 | BQ15: 1440 | BR15: 1440 | BS15: 1440 | BT15: 1440 | BU15: 1440 | BV15: 1440 | BW15: 1440 | BX15: 1440 | BY15: 1440 | BZ15: 1440 | CA15: 1440 | CB15: 1440 | CC15: 1440 | CD15: 1440 | CE15: 1440 | CF15: 1440 | CG15: 1440 | CH15: =CG15 -> 1440 | CI15: 1440 | CJ15: 1440 | CK15: 1440 | CL15: 1440 | CM15: 1440 | CN15: 1440 | CO15: 1440 | CP15: 1440 | CQ15: 1440 | CR15: 1440 | CS15: 1440 | CT15: 1440 | CU15: 1440 | CV15: 1440 | CW15: 1440 | CX15: 1440 | CY15: 1440 | CZ15: 1440 | DA15: 1440 | DB15: 1440 | DC15: 1440 | DD15: 1440 | DE15: 1440 | DF15: =DE15-8 -> 1432 | DG15: 1432 | DH15: 1432 | DI15: 1432 | DJ15: 1432 | DK15: 1432 | DL15: 1432 | DM15: 1432 | DN15: 1432 | DO15: 1432 | DP15: 1432 | DQ15: 1432 | DR15: 1432 | DS15: 1432 | DT15: 1432 | DU15: 1432 | DV15: 1432 | DW15: 1432 | DX15: 1432 | DY15: 1432 | DZ15: 1432 | EA15: 1432 | EB15: 1432 | EC15: 1432 | ED15: 1432 | EE15: 1432 | EF15: 1432 | EG15: 1432 | EH15: 1432 | EI15: 1432 | EJ15: 1432 | EK15: 1432 | EL15: 1432 | EM15: 1432 | EN15: 1432 | EO15: 1432 | EP15: 1432 | EQ15: =EP15+4 -> 1436 | ER15: 1436 | ES15: 1436 | ET15: 1436 | EU15: 1436 | EV15: 1436 | EW15: 1436 | EX15: 1436 | EY15: 1436 | EZ15: 1436 | FA15: 1436 | FB15: =FA15 -> 1436 | FC15: =FB15 -> 1436 | FD15: 1436 | FE15: =FD15 -> 1436 | FF15: 1436 | FG15: =FF15+12-8 -> 1440 | FH15: =FG15+12-8 -> 1444 | FI15: =FH15+12-8 -> 1448 | FJ15: =FI15+12-8 -> 1452 | FK15: =FJ15+25-16 -> 1461 | FL15: 1461 | FM15: 1461 | FN15: 1461 | FO15: 1461 | FP15: 1461 | FQ15: 1461 | FR15: 1461 | FS15: 1461 | FT15: 1461 | FU15: 1461 | FV15: 1461 | FW15: 1461 | FX15: 1461 | FY15: 1461 | FZ15: 1461 | GA15: 1461 | GB15: 1461 | GC15: 1461 | GD15: 1461 | GE15: 1461 | GF15: 1461 | GG15: 1461 | GH15: 1461 | GI15: 1461 | GJ15: 1461 | GK15: 1461 | GL15: 1461 | GM15: 1461 | GN15: 1461 | GO15: 1461 | GP15: 1461 | GQ15: 1461 | GR15: 1461 | GS15: 1461 | GT15: 1461 | GU15: 1461 | GV15: 1461 | GW15: 1461 | GX15: 1461 | GY15: 1461 | GZ15: 1461 | HA15: 1461 | HB15: 1461 | HC15: 1461 | HD15: 1461 | HE15: 1461 | HF15: 1461 | HG15: 1461 | HH15: 1461 | HI15: 1461 | HJ15: 1461 | HK15: 1461 | HL15: 1461 | HM15: 1461 | HN15: 1461 | HO15: 1461 | HP15: 1461 | HQ15: 1461 | HR15: 1461 | HS15: 1461 | HT15: 1461 | HU15: 1461 | HV15: 1461 | HW15: 1461 | HX15: 1461 | HY15: 1461 | HZ15: 1461 | IA15: 1461 | IB15: 1461 | IC15: 1461 | ID15: 1461 | IE15: 1461 | IF15: 1461 | IG15: 1461 | IH15: 1461 | II15: 1461 | IJ15: 1461 | IK15: 1461 | IL15: 1461 | IM15: 1461 | IN15: 1461 | IO15: 1461 | IP15: 1461 | IQ15: 1461 | IR15: 1461 | IS15: 1461 | IT15: 1461 | IU15: 1461 | IV15: 1461 | IW15: 1461 | IX15: 1461 | IY15: 1461 | IZ15: 1461 | JA15: 1461 | JB15: 1461 | JC15: 1461 | JD15: 1461 | JE15: 1461 | JF15: 1461
B16: PFM3 | C16: 0 | D16: 0 | E16: 0 | F16: 0 | G16: 0 | H16: 0 | I16: 0 | J16: 0 | K16: 0 | L16: 0 | M16: 0 | N16: 0 | O16: =N16 -> 0 | P16: 0 | Q16: 0 | R16: 0 | S16: 0 | T16: =S16+314 -> 314 | U16: 314 | V16: 314 | W16: 314 | X16: 314 | Y16: 314 | Z16: 314 | AA16: =Z16+20 -> 334 | AB16: 334 | AC16: 334 | AD16: 334 | AE16: 334 | AF16: 334 | AG16: 334 | AH16: 334 | AI16: 334 | AJ16: 334 | AK16: 334 | AL16: 334 | AM16: =AL16-8 -> 326 | AN16: 326 | AO16: 326 | AP16: 326 | AQ16: 326 | AR16: 326 | AS16: 326 | AT16: 326 | AU16: 326 | AV16: 326 | AW16: 326 | AX16: 326 | AY16: 326 | AZ16: 326 | BA16: 326 | BB16: 326 | BC16: 326 | BD16: 326 | BE16: 326 | BF16: 326 | BG16: 326 | BH16: 326 | BI16: 326 | BJ16: =BI16-2 -> 324 | BK16: 324 | BL16: 324 | BM16: 324 | BN16: 324 | BO16: 324 | BP16: 324 | BQ16: 324 | BR16: 324 | BS16: 324 | BT16: 324 | BU16: 324 | BV16: 324 | BW16: 324 | BX16: 324 | BY16: 324 | BZ16: 324 | CA16: 324 | CB16: 324 | CC16: =CB16-4 -> 320 | CD16: 320 | CE16: 320 | CF16: 320 | CG16: 320 | CH16: =CG16-2 -> 318 | CI16: 318 | CJ16: 318 | CK16: 318 | CL16: 318 | CM16: 318 | CN16: 318 | CO16: 318 | CP16: 318 | CQ16: 318 | CR16: 318 | CS16: 318 | CT16: =CS16-3 -> 315 | CU16: 315 | CV16: 315 | CW16: 315 | CX16: 315 | CY16: 315 | CZ16: 315 | DA16: 315 | DB16: 315 | DC16: 315 | DD16: 315 | DE16: 315 | DF16: 315 | DG16: 315 | DH16: 315 | DI16: 315 | DJ16: 315 | DK16: 315 | DL16: 315 | DM16: 315 | DN16: 315 | DO16: 315 | DP16: 315 | DQ16: 315 | DR16: 315 | DS16: 315 | DT16: 315 | DU16: 315 | DV16: 315 | DW16: 315 | DX16: 315 | DY16: 315 | DZ16: 315 | EA16: 315 | EB16: 315 | EC16: 315 | ED16: 315 | EE16: 315 | EF16: 315 | EG16: 315 | EH16: 315 | EI16: 315 | EJ16: 315 | EK16: 315 | EL16: 315 | EM16: 315 | EN16: 315 | EO16: 315 | EP16: 315 | EQ16: =EP16+4 -> 319 | ER16: 319 | ES16: 319 | ET16: 319 | EU16: =ET16 -> 319 | EV16: 319 | EW16: 319 | EX16: 319 | EY16: 319 | EZ16: 319 | FA16: 319 | FB16: 319 | FC16: 319 | FD16: 319 | FE16: 319 | FF16: 319 | FG16: 319 | FH16: 319 | FI16: 319 | FJ16: 319 | FK16: =FJ16 -> 319 | FL16: 319 | FM16: 319 | FN16: 319 | FO16: 319 | FP16: 319 | FQ16: 319 | FR16: 319 | FS16: 319 | FT16: 319 | FU16: 319 | FV16: 319 | FW16: 319 | FX16: 319 | FY16: 319 | FZ16: 319 | GA16: 319 | GB16: 319 | GC16: 319 | GD16: 319 | GE16: 319 | GF16: 319 | GG16: 319 | GH16: 319 | GI16: 319 | GJ16: 319 | GK16: 319 | GL16: 319 | GM16: 319 | GN16: 319 | GO16: 319 | GP16: 319 | GQ16: 319 | GR16: 319 | GS16: 319 | GT16: 319 | GU16: 319 | GV16: 319 | GW16: 319 | GX16: 319 | GY16: 319 | GZ16: 319 | HA16: 319 | HB16: 319 | HC16: 319 | HD16: 319 | HE16: 319 | HF16: 319 | HG16: 319 | HH16: 319 | HI16: 319 | HJ16: 319 | HK16: 319 | HL16: 319 | HM16: 319 | HN16: 319 | HO16: 319 | HP16: 319 | HQ16: 319 | HR16: 319 | HS16: 319 | HT16: 319 | HU16: 319 | HV16: 319 | HW16: 319 | HX16: 319 | HY16: 319 | HZ16: 319 | IA16: 319 | IB16: 319 | IC16: 319 | ID16: 319 | IE16: 319 | IF16: 319 | IG16: 319 | IH16: 319 | II16: 319 | IJ16: 319 | IK16: 319 | IL16: 319 | IM16: 319 | IN16: 319 | IO16: 319 | IP16: 319 | IQ16: 319 | IR16: 319 | IS16: 319 | IT16: 319 | IU16: 319 | IV16: 319 | IW16: 319 | IX16: 319 | IY16: 319 | IZ16: 319 | JA16: 319 | JB16: 319 | JC16: 319 | JD16: 319 | JE16: 319 | JF16: 319
B17: PFM GT | C17: 636 | D17: 636 | E17: 636 | F17: 636 | G17: 636 | H17: 636 | I17: 636 | J17: 636 | K17: 636 | L17: 636 | M17: 636 | N17: 636 | O17: =N17 -> 636 | P17: 636 | Q17: 636 | R17: 636 | S17: 636 | T17: 636 | U17: 636 | V17: 636 | W17: 636 | X17: 636 | Y17: 636 | Z17: 636 | AA17: =Z17+12 -> 648 | AB17: 648 | AC17: 648 | AD17: 648 | AE17: 648 | AF17: 648 | AG17: 648 | AH17: 648 | AI17: 648 | AJ17: 648 | AK17: 648 | AL17: 648 | AM17: =AL17 -> 648 | AN17: 648 | AO17: 648 | AP17: 648 | AQ17: 648 | AR17: 648 | AS17: 648 | AT17: 648 | AU17: 648 | AV17: 648 | AW17: 648 | AX17: 648 | AY17: 648 | AZ17: 648 | BA17: 648 | BB17: 648 | BC17: 648 | BD17: 648 | BE17: 648 | BF17: 648 | BG17: 648 | BH17: 648 | BI17: 648 | BJ17: 648 | BK17: 648 | BL17: 648 | BM17: 648 | BN17: 648 | BO17: 648 | BP17: 648 | BQ17: 648 | BR17: 648 | BS17: 648 | BT17: 648 | BU17: 648 | BV17: 648 | BW17: 648 | BX17: 648 | BY17: 648 | BZ17: 648 | CA17: 648 | CB17: 648 | CC17: 648 | CD17: 648 | CE17: 648 | CF17: 648 | CG17: 648 | CH17: =CG17 -> 648 | CI17: 648 | CJ17: 648 | CK17: 648 | CL17: 648 | CM17: 648 | CN17: 648 | CO17: 648 | CP17: 648 | CQ17: 648 | CR17: 648 | CS17: 648 | CT17: =CS17 -> 648 | CU17: 648 | CV17: 648 | CW17: 648 | CX17: 648 | CY17: 648 | CZ17: 648 | DA17: 648 | DB17: 648 | DC17: 648 | DD17: 648 | DE17: 648 | DF17: 648 | DG17: 648 | DH17: 648 | DI17: 648 | DJ17: 648 | DK17: 648 | DL17: 648 | DM17: 648 | DN17: 648 | DO17: 648 | DP17: 648 | DQ17: 648 | DR17: 648 | DS17: 648 | DT17: 648 | DU17: 648 | DV17: 648 | DW17: 648 | DX17: 648 | DY17: 648 | DZ17: 648 | EA17: 648 | EB17: 648 | EC17: 648 | ED17: 648 | EE17: 648 | EF17: 648 | EG17: 648 | EH17: 648 | EI17: 648 | EJ17: 648 | EK17: 648 | EL17: 648 | EM17: 648 | EN17: 648 | EO17: 648 | EP17: 648 | EQ17: 648 | ER17: 648 | ES17: 648 | ET17: =ES17 -> 648 | EU17: 648 | EV17: 648 | EW17: 648 | EX17: 648 | EY17: 648 | EZ17: 648 | FA17: 648 | FB17: 648 | FC17: 648 | FD17: 648 | FE17: 648 | FF17: 648 | FG17: 648 | FH17: 648 | FI17: 648 | FJ17: 648 | FK17: 648 | FL17: 648 | FM17: 648 | FN17: 648 | FO17: 648 | FP17: 648 | FQ17: 648 | FR17: 648 | FS17: 648 | FT17: 648 | FU17: 648 | FV17: 648 | FW17: 648 | FX17: 648 | FY17: 648 | FZ17: 648 | GA17: 648 | GB17: 648 | GC17: 648 | GD17: 648 | GE17: 648 | GF17: 648 | GG17: 648 | GH17: 648 | GI17: 648 | GJ17: 648 | GK17: 648 | GL17: 648 | GM17: 648 | GN17: 648 | GO17: 648 | GP17: 648 | GQ17: 648 | GR17: 648 | GS17: 648 | GT17: 648 | GU17: 648 | GV17: 648 | GW17: 648 | GX17: 648 | GY17: 648 | GZ17: 648 | HA17: 648 | HB17: 648 | HC17: 648 | HD17: 648 | HE17: 648 | HF17: 648 | HG17: 648 | HH17: 648 | HI17: 648 | HJ17: 648 | HK17: 648 | HL17: 648 | HM17: 648 | HN17: 648 | HO17: 648 | HP17: 648 | HQ17: 648 | HR17: 648 | HS17: 648 | HT17: 648 | HU17: 648 | HV17: 648 | HW17: 648 | HX17: 648 | HY17: 648 | HZ17: 648 | IA17: 648 | IB17: 648 | IC17: 648 | ID17: 648 | IE17: 648 | IF17: 648 | IG17: 648 | IH17: 648 | II17: 648 | IJ17: 648 | IK17: 648 | IL17: 648 | IM17: 648 | IN17: 648 | IO17: 648 | IP17: 648 | IQ17: 648 | IR17: 648 | IS17: 648 | IT17: 648 | IU17: 648 | IV17: 648 | IW17: 648 | IX17: 648 | IY17: 648 | IZ17: 648 | JA17: 648 | JB17: 648 | JC17: 648 | JD17: 648 | JE17: 648 | JF17: 648
B18: PJK1 | C18: 127 | D18: 127 | E18: 127 | F18: 127 | G18: 127 | H18: 127 | I18: 127 | J18: 127 | K18: 127 | L18: 127 | M18: 127 | N18: 127 | O18: 127 | P18: 127 | Q18: 127 | R18: 127 | S18: 127 | T18: 127 | U18: 127 | V18: 127 | W18: 127 | X18: 127 | Y18: 127 | Z18: 127 | AA18: =Z18 -> 127 | AB18: 127 | AC18: 127 | AD18: 127 | AE18: 127 | AF18: 127 | AG18: 127 | AH18: 127 | AI18: 127 | AJ18: 127 | AK18: 127 | AL18: 127 | AM18: =AL18 -> 127 | AN18: 127 | AO18: 127 | AP18: 127 | AQ18: 127 | AR18: 127 | AS18: 127 | AT18: 127 | AU18: 127 | AV18: 127 | AW18: 127 | AX18: 127 | AY18: 127 | AZ18: 127 | BA18: 127 | BB18: 127 | BC18: 127 | BD18: 127 | BE18: 127 | BF18: 127 | BG18: 127 | BH18: 127 | BI18: 127 | BJ18: =BI18-2 -> 125 | BK18: 125 | BL18: 125 | BM18: 125 | BN18: 125 | BO18: 125 | BP18: 125 | BQ18: 125 | BR18: 125 | BS18: 125 | BT18: 125 | BU18: 125 | BV18: 125 | BW18: 125 | BX18: 125 | BY18: 125 | BZ18: 125 | CA18: 125 | CB18: 125 | CC18: 125 | CD18: 125 | CE18: 125 | CF18: 125 | CG18: 125 | CH18: =CG18+2 -> 127 | CI18: 127 | CJ18: 127 | CK18: 127 | CL18: 127 | CM18: 127 | CN18: 127 | CO18: 127 | CP18: 127 | CQ18: 127 | CR18: 127 | CS18: 127 | CT18: =CS18 -> 127 | CU18: 127 | CV18: 127 | CW18: 127 | CX18: 127 | CY18: 127 | CZ18: 127 | DA18: 127 | DB18: 127 | DC18: 127 | DD18: 127 | DE18: 127 | DF18: 127 | DG18: 127 | DH18: 127 | DI18: 127 | DJ18: 127 | DK18: 127 | DL18: 127 | DM18: 127 | DN18: 127 | DO18: 127 | DP18: 127 | DQ18: 127 | DR18: 127 | DS18: 127 | DT18: 127 | DU18: 127 | DV18: 127 | DW18: 127 | DX18: 127 | DY18: 127 | DZ18: 127 | EA18: 127 | EB18: 127 | EC18: 127 | ED18: 127 | EE18: 127 | EF18: 127 | EG18: 127 | EH18: 127 | EI18: 127 | EJ18: 127 | EK18: 127 | EL18: 127 | EM18: 127 | EN18: 127 | EO18: 127 | EP18: 127 | EQ18: 127 | ER18: 127 | ES18: 127 | ET18: 127 | EU18: 127 | EV18: 127 | EW18: 127 | EX18: 127 | EY18: 127 | EZ18: 127 | FA18: 127 | FB18: 127 | FC18: 127 | FD18: 127 | FE18: 127 | FF18: 127 | FG18: 127 | FH18: 127 | FI18: 127 | FJ18: 127 | FK18: 127 | FL18: 127 | FM18: 127 | FN18: 127 | FO18: 127 | FP18: 127 | FQ18: 127 | FR18: 127 | FS18: 127 | FT18: 127 | FU18: 127 | FV18: 127 | FW18: 127 | FX18: 127 | FY18: 127 | FZ18: 127 | GA18: 127 | GB18: 127 | GC18: 127 | GD18: 127 | GE18: 127 | GF18: 127 | GG18: 127 | GH18: 127 | GI18: 127 | GJ18: 127 | GK18: 127 | GL18: 127 | GM18: 127 | GN18: 127 | GO18: 127 | GP18: 127 | GQ18: 127 | GR18: 127 | GS18: 127 | GT18: 127 | GU18: 127 | GV18: 127 | GW18: 127 | GX18: 127 | GY18: 127 | GZ18: 127 | HA18: 127 | HB18: 127 | HC18: 127 | HD18: 127 | HE18: 127 | HF18: 127 | HG18: 127 | HH18: 127 | HI18: 127 | HJ18: 127 | HK18: 127 | HL18: 127 | HM18: 127 | HN18: 127 | HO18: 127 | HP18: 127 | HQ18: 127 | HR18: 127 | HS18: 127 | HT18: 127 | HU18: 127 | HV18: 127 | HW18: 127 | HX18: 127 | HY18: 127 | HZ18: 127 | IA18: 127 | IB18: 127 | IC18: 127 | ID18: 127 | IE18: 127 | IF18: 127 | IG18: 127 | IH18: 127 | II18: 127 | IJ18: 127 | IK18: 127 | IL18: 127 | IM18: 127 | IN18: 127 | IO18: 127 | IP18: 127 | IQ18: 127 | IR18: 127 | IS18: 127 | IT18: 127 | IU18: 127 | IV18: 127 | IW18: 127 | IX18: 127 | IY18: 127 | IZ18: 127 | JA18: 127 | JB18: 127 | JC18: 127 | JD18: 127 | JE18: 127 | JF18: 127
B19: PJK2 | C19: 127 | D19: 127 | E19: 127 | F19: 127 | G19: 127 | H19: 127 | I19: 127 | J19: 127 | K19: 127 | L19: 127 | M19: 127 | N19: 127 | O19: 127 | P19: 127 | Q19: 127 | R19: 127 | S19: 127 | T19: 127 | U19: 127 | V19: 127 | W19: 127 | X19: 127 | Y19: 127 | Z19: 127 | AA19: =Z19 -> 127 | AB19: 127 | AC19: 127 | AD19: 127 | AE19: 127 | AF19: 127 | AG19: 127 | AH19: 127 | AI19: 127 | AJ19: 127 | AK19: 127 | AL19: 127 | AM19: =AL19-22 -> 105 | AN19: 105 | AO19: 105 | AP19: 105 | AQ19: 105 | AR19: 105 | AS19: 105 | AT19: 105 | AU19: 105 | AV19: 105 | AW19: 105 | AX19: 105 | AY19: 105 | AZ19: 105 | BA19: 105 | BB19: =BA19+22 -> 127 | BC19: 127 | BD19: 127 | BE19: 127 | BF19: 127 | BG19: 127 | BH19: 127 | BI19: 127 | BJ19: =BI19-2 -> 125 | BK19: 125 | BL19: 125 | BM19: 125 | BN19: 125 | BO19: 125 | BP19: 125 | BQ19: 125 | BR19: 125 | BS19: 125 | BT19: 125 | BU19: 125 | BV19: 125 | BW19: 125 | BX19: 125 | BY19: 125 | BZ19: 125 | CA19: 125 | CB19: 125 | CC19: 125 | CD19: 125 | CE19: 125 | CF19: 125 | CG19: 125 | CH19: =CG19+2 -> 127 | CI19: 127 | CJ19: 127 | CK19: 127 | CL19: 127 | CM19: 127 | CN19: 127 | CO19: 127 | CP19: 127 | CQ19: 127 | CR19: 127 | CS19: 127 | CT19: =CS19 -> 127 | CU19: 127 | CV19: 127 | CW19: 127 | CX19: 127 | CY19: 127 | CZ19: 127 | DA19: 127 | DB19: 127 | DC19: 127 | DD19: 127 | DE19: 127 | DF19: 127 | DG19: 127 | DH19: 127 | DI19: 127 | DJ19: 127 | DK19: 127 | DL19: 127 | DM19: 127 | DN19: 127 | DO19: 127 | DP19: 127 | DQ19: 127 | DR19: 127 | DS19: 127 | DT19: 127 | DU19: 127 | DV19: 127 | DW19: 127 | DX19: 127 | DY19: 127 | DZ19: 127 | EA19: 127 | EB19: 127 | EC19: 127 | ED19: 127 | EE19: 127 | EF19: 127 | EG19: 127 | EH19: 127 | EI19: 127 | EJ19: 127 | EK19: 127 | EL19: 127 | EM19: 127 | EN19: 127 | EO19: 127 | EP19: 127 | EQ19: 127 | ER19: 127 | ES19: 127 | ET19: 127 | EU19: 127 | EV19: 127 | EW19: 127 | EX19: 127 | EY19: 127 | EZ19: 127 | FA19: 127 | FB19: 127 | FC19: 127 | FD19: 127 | FE19: 127 | FF19: 127 | FG19: 127 | FH19: 127 | FI19: 127 | FJ19: 127 | FK19: 127 | FL19: 127 | FM19: 127 | FN19: 127 | FO19: 127 | FP19: 127 | FQ19: 127 | FR19: 127 | FS19: 127 | FT19: 127 | FU19: 127 | FV19: 127 | FW19: 127 | FX19: 127 | FY19: 127 | FZ19: 127 | GA19: 127 | GB19: 127 | GC19: 127 | GD19: 127 | GE19: 127 | GF19: 127 | GG19: 127 | GH19: 127 | GI19: 127 | GJ19: 127 | GK19: 127 | GL19: 127 | GM19: 127 | GN19: 127 | GO19: 127 | GP19: 127 | GQ19: 127 | GR19: 127 | GS19: 127 | GT19: 127 | GU19: 127 | GV19: 127 | GW19: 127 | GX19: 127 | GY19: 127 | GZ19: 127 | HA19: 127 | HB19: 127 | HC19: 127 | HD19: 127 | HE19: 127 | HF19: 127 | HG19: 127 | HH19: 127 | HI19: 127 | HJ19: 127 | HK19: 127 | HL19: 127 | HM19: 127 | HN19: 127 | HO19: 127 | HP19: 127 | HQ19: 127 | HR19: 127 | HS19: 127 | HT19: 127 | HU19: 127 | HV19: 127 | HW19: 127 | HX19: 127 | HY19: 127 | HZ19: 127 | IA19: 127 | IB19: 127 | IC19: 127 | ID19: 127 | IE19: 127 | IF19: 127 | IG19: 127 | IH19: 127 | II19: 127 | IJ19: 127 | IK19: 127 | IL19: 127 | IM19: 127 | IN19: 127 | IO19: 127 | IP19: 127 | IQ19: 127 | IR19: 127 | IS19: 127 | IT19: 127 | IU19: 127 | IV19: 127 | IW19: 127 | IX19: 127 | IY19: 127 | IZ19: 127 | JA19: 127 | JB19: 127 | JC19: 127 | JD19: 127 | JE19: 127 | JF19: 127
B20: PMR1 | C20: 814 | D20: 814 | E20: 814 | F20: 814 | G20: 814 | H20: 814 | I20: 814 | J20: 814 | K20: 814 | L20: 814 | M20: 814 | N20: 814 | O20: =N20+4 -> 818 | P20: 818 | Q20: 818 | R20: 818 | S20: 818 | T20: 818 | U20: =T20 -> 818 | V20: 818 | W20: 818 | X20: 818 | Y20: 818 | Z20: 818 | AA20: =Z20+10 -> 828 | AB20: =AA20 -> 828 | AC20: 828 | AD20: 828 | AE20: 828 | AF20: 828 | AG20: 828 | AH20: 828 | AI20: 828 | AJ20: 828 | AK20: 828 | AL20: 828 | AM20: =AL20 -> 828 | AN20: =AM20 -> 828 | AO20: 828 | AP20: 828 | AQ20: 828 | AR20: 828 | AS20: 828 | AT20: 828 | AU20: 828 | AV20: 828 | AW20: 828 | AX20: 828 | AY20: 828 | AZ20: 828 | BA20: 828 | BB20: =BA20 -> 828 | BC20: =BB20 -> 828 | BD20: 828 | BE20: 828 | BF20: 828 | BG20: 828 | BH20: 828 | BI20: 828 | BJ20: =BI20+11 -> 839 | BK20: 839 | BL20: 839 | BM20: 839 | BN20: 839 | BO20: 839 | BP20: 839 | BQ20: 839 | BR20: 839 | BS20: 839 | BT20: 839 | BU20: 839 | BV20: 839 | BW20: 839 | BX20: 839 | BY20: 839 | BZ20: =BY20-10 -> 829 | CA20: =BZ20 -> 829 | CB20: 829 | CC20: 829 | CD20: 829 | CE20: 829 | CF20: 829 | CG20: 829 | CH20: =CG20-3 -> 826 | CI20: 826 | CJ20: 826 | CK20: 826 | CL20: 826 | CM20: 826 | CN20: 826 | CO20: 826 | CP20: 826 | CQ20: 826 | CR20: 826 | CS20: 826 | CT20: =CS20 -> 826 | CU20: 826 | CV20: 826 | CW20: 826 | CX20: 826 | CY20: 826 | CZ20: 826 | DA20: 826 | DB20: 826 | DC20: 826 | DD20: 826 | DE20: 826 | DF20: 826 | DG20: 826 | DH20: 826 | DI20: 826 | DJ20: 826 | DK20: 826 | DL20: 826 | DM20: 826 | DN20: 826 | DO20: 826 | DP20: 826 | DQ20: 826 | DR20: 826 | DS20: 826 | DT20: 826 | DU20: 826 | DV20: 826 | DW20: 826 | DX20: 826 | DY20: 826 | DZ20: 826 | EA20: 826 | EB20: 826 | EC20: 826 | ED20: 826 | EE20: 826 | EF20: 826 | EG20: 826 | EH20: 826 | EI20: 826 | EJ20: 826 | EK20: 826 | EL20: 826 | EM20: 826 | EN20: 826 | EO20: 826 | EP20: 826 | EQ20: 826 | ER20: 826 | ES20: =ER20 -> 826 | ET20: 826 | EU20: =ET20-3 -> 823 | EV20: 823 | EW20: 823 | EX20: 823 | EY20: 823 | EZ20: 823 | FA20: 823 | FB20: 823 | FC20: 823 | FD20: 823 | FE20: 823 | FF20: 823 | FG20: 823 | FH20: 823 | FI20: 823 | FJ20: 823 | FK20: 823 | FL20: 823 | FM20: 823 | FN20: 823 | FO20: 823 | FP20: 823 | FQ20: =FP20 -> 823 | FR20: 823 | FS20: 823 | FT20: 823 | FU20: 823 | FV20: 823 | FW20: 823 | FX20: 823 | FY20: 823 | FZ20: 823 | GA20: 823 | GB20: =GA20 -> 823 | GC20: =GB20 -> 823 | GD20: =GC20 -> 823 | GE20: 823 | GF20: 823 | GG20: 823 | GH20: 823 | GI20: 823 | GJ20: 823 | GK20: 823 | GL20: 823 | GM20: 823 | GN20: 823 | GO20: =GN20 -> 823 | GP20: =GO20 -> 823 | GQ20: 823 | GR20: 823 | GS20: 823 | GT20: 823 | GU20: 823 | GV20: 823 | GW20: 823 | GX20: 823 | GY20: 823 | GZ20: 823 | HA20: =GZ20 -> 823 | HB20: =HA20 -> 823 | HC20: 823 | HD20: 823 | HE20: 823 | HF20: 823 | HG20: 823 | HH20: 823 | HI20: 823 | HJ20: 823 | HK20: 823 | HL20: 823 | HM20: =HL20 -> 823 | HN20: =HM20 -> 823 | HO20: 823 | HP20: 823 | HQ20: 823 | HR20: 823 | HS20: 823 | HT20: 823 | HU20: 823 | HV20: 823 | HW20: 823 | HX20: 823 | HY20: =HX20 -> 823 | HZ20: =HY20 -> 823 | IA20: 823 | IB20: 823 | IC20: 823 | ID20: 823 | IE20: 823 | IF20: 823 | IG20: 823 | IH20: 823 | II20: 823 | IJ20: 823 | IK20: =IJ20 -> 823 | IL20: =IK20 -> 823 | IM20: 823 | IN20: 823 | IO20: 823 | IP20: 823 | IQ20: 823 | IR20: 823 | IS20: 823 | IT20: 823 | IU20: 823 | IV20: 823 | IW20: =IV20 -> 823 | IX20: =IW20 -> 823 | IY20: 823 | IZ20: 823 | JA20: 823 | JB20: 823 | JC20: 823 | JD20: 823 | JE20: 823 | JF20: 823
B21: PMR2 | C21: 799 | D21: 799 | E21: 799 | F21: 799 | G21: 799 | H21: 799 | I21: 799 | J21: 799 | K21: 799 | L21: 799 | M21: 799 | N21: 799 | O21: =N21 -> 799 | P21: 799 | Q21: 799 | R21: 799 | S21: 799 | T21: 799 | U21: 799 | V21: 799 | W21: 799 | X21: 799 | Y21: 799 | Z21: 799 | AA21: =Z21+22 -> 821 | AB21: 821 | AC21: 821 | AD21: 821 | AE21: 821 | AF21: 821 | AG21: 821 | AH21: 821 | AI21: 821 | AJ21: 821 | AK21: 821 | AL21: 821 | AM21: =AL21-6 -> 815 | AN21: 815 | AO21: 815 | AP21: 815 | AQ21: 815 | AR21: 815 | AS21: 815 | AT21: 815 | AU21: 815 | AV21: 815 | AW21: 815 | AX21: 815 | AY21: 815 | AZ21: 815 | BA21: 815 | BB21: =BA21 -> 815 | BC21: 815 | BD21: 815 | BE21: 815 | BF21: 815 | BG21: 815 | BH21: 815 | BI21: 815 | BJ21: =BI21+24 -> 839 | BK21: 839 | BL21: 839 | BM21: 839 | BN21: 839 | BO21: 839 | BP21: 839 | BQ21: 839 | BR21: 839 | BS21: 839 | BT21: 839 | BU21: 839 | BV21: 839 | BW21: 839 | BX21: 839 | BY21: 839 | BZ21: =BY21-10 -> 829 | CA21: 829 | CB21: 829 | CC21: 829 | CD21: 829 | CE21: 829 | CF21: 829 | CG21: 829 | CH21: =CG21-3 -> 826 | CI21: 826 | CJ21: 826 | CK21: 826 | CL21: 826 | CM21: 826 | CN21: 826 | CO21: 826 | CP21: 826 | CQ21: 826 | CR21: 826 | CS21: 826 | CT21: =CS21 -> 826 | CU21: 826 | CV21: 826 | CW21: 826 | CX21: 826 | CY21: 826 | CZ21: 826 | DA21: 826 | DB21: 826 | DC21: 826 | DD21: 826 | DE21: 826 | DF21: 826 | DG21: 826 | DH21: 826 | DI21: 826 | DJ21: 826 | DK21: 826 | DL21: 826 | DM21: 826 | DN21: 826 | DO21: 826 | DP21: 826 | DQ21: 826 | DR21: 826 | DS21: 826 | DT21: 826 | DU21: 826 | DV21: 826 | DW21: 826 | DX21: 826 | DY21: 826 | DZ21: 826 | EA21: 826 | EB21: 826 | EC21: 826 | ED21: 826 | EE21: 826 | EF21: 826 | EG21: 826 | EH21: 826 | EI21: 826 | EJ21: 826 | EK21: 826 | EL21: 826 | EM21: 826 | EN21: 826 | EO21: 826 | EP21: 826 | EQ21: 826 | ER21: 826 | ES21: 826 | ET21: 826 | EU21: 826 | EV21: 826 | EW21: 826 | EX21: 826 | EY21: 826 | EZ21: 826 | FA21: 826 | FB21: 826 | FC21: 826 | FD21: =FC21-3 -> 823 | FE21: 823 | FF21: 823 | FG21: 823 | FH21: 823 | FI21: 823 | FJ21: 823 | FK21: 823 | FL21: 823 | FM21: 823 | FN21: 823 | FO21: 823 | FP21: 823 | FQ21: 823 | FR21: 823 | FS21: 823 | FT21: 823 | FU21: 823 | FV21: 823 | FW21: 823 | FX21: 823 | FY21: 823 | FZ21: 823 | GA21: 823 | GB21: 823 | GC21: 823 | GD21: 823 | GE21: 823 | GF21: 823 | GG21: 823 | GH21: 823 | GI21: 823 | GJ21: 823 | GK21: 823 | GL21: 823 | GM21: 823 | GN21: 823 | GO21: 823 | GP21: 823 | GQ21: 823 | GR21: 823 | GS21: 823 | GT21: 823 | GU21: 823 | GV21: 823 | GW21: 823 | GX21: 823 | GY21: 823 | GZ21: 823 | HA21: 823 | HB21: 823 | HC21: 823 | HD21: 823 | HE21: 823 | HF21: 823 | HG21: 823 | HH21: 823 | HI21: 823 | HJ21: 823 | HK21: 823 | HL21: 823 | HM21: 823 | HN21: 823 | HO21: 823 | HP21: 823 | HQ21: 823 | HR21: 823 | HS21: 823 | HT21: 823 | HU21: 823 | HV21: 823 | HW21: 823 | HX21: 823 | HY21: 823 | HZ21: 823 | IA21: 823 | IB21: 823 | IC21: 823 | ID21: 823 | IE21: 823 | IF21: 823 | IG21: 823 | IH21: 823 | II21: 823 | IJ21: 823 | IK21: 823 | IL21: 823 | IM21: 823 | IN21: 823 | IO21: 823 | IP21: 823 | IQ21: 823 | IR21: 823 | IS21: 823 | IT21: 823 | IU21: 823 | IV21: 823 | IW21: 823 | IX21: 823 | IY21: 823 | IZ21: 823 | JA21: 823 | JB21: 823 | JC21: 823 | JD21: 823 | JE21: 823 | JF21: 823
B22: PMG3 | C22: 467 | D22: 467 | E22: 467 | F22: 467 | G22: 467 | H22: 467 | I22: 467 | J22: 467 | K22: 467 | L22: 467 | M22: 467 | N22: 467 | O22: =N22 -> 467 | P22: 467 | Q22: 467 | R22: 467 | S22: 467 | T22: 467 | U22: 467 | V22: 467 | W22: 467 | X22: 467 | Y22: 467 | Z22: 467 | AA22: =Z22+10 -> 477 | AB22: 477 | AC22: 477 | AD22: 477 | AE22: 477 | AF22: 477 | AG22: 477 | AH22: 477 | AI22: 477 | AJ22: 477 | AK22: =AJ22 -> 477 | AL22: =AK22 -> 477 | AM22: =AL22-6 -> 471 | AN22: 471 | AO22: 471 | AP22: 471 | AQ22: 471 | AR22: 471 | AS22: 471 | AT22: 471 | AU22: 471 | AV22: 471 | AW22: =AV22 -> 471 | AX22: =AW22 -> 471 | AY22: =AX22-22 -> 449 | AZ22: 449 | BA22: 449 | BB22: =BA22 -> 449 | BC22: 449 | BD22: 449 | BE22: 449 | BF22: 449 | BG22: 449 | BH22: 449 | BI22: 449 | BJ22: =BI22+29 -> 478 | BK22: 478 | BL22: 478 | BM22: 478 | BN22: 478 | BO22: 478 | BP22: 478 | BQ22: 478 | BR22: 478 | BS22: 478 | BT22: 478 | BU22: 478 | BV22: 478 | BW22: 478 | BX22: 478 | BY22: 478 | BZ22: 478 | CA22: 478 | CB22: 478 | CC22: 478 | CD22: 478 | CE22: 478 | CF22: 478 | CG22: 478 | CH22: =CG22-6 -> 472 | CI22: 472 | CJ22: 472 | CK22: 472 | CL22: 472 | CM22: 472 | CN22: 472 | CO22: 472 | CP22: 472 | CQ22: 472 | CR22: 472 | CS22: 472 | CT22: =CS22-3 -> 469 | CU22: 469 | CV22: 469 | CW22: 469 | CX22: 469 | CY22: 469 | CZ22: 469 | DA22: 469 | DB22: 469 | DC22: 469 | DD22: 469 | DE22: 469 | DF22: 469 | DG22: 469 | DH22: 469 | DI22: 469 | DJ22: 469 | DK22: 469 | DL22: 469 | DM22: 469 | DN22: 469 | DO22: 469 | DP22: 469 | DQ22: 469 | DR22: 469 | DS22: 469 | DT22: 469 | DU22: 469 | DV22: 469 | DW22: 469 | DX22: 469 | DY22: 469 | DZ22: 469 | EA22: 469 | EB22: 469 | EC22: 469 | ED22: 469 | EE22: 469 | EF22: 469 | EG22: 469 | EH22: 469 | EI22: 469 | EJ22: 469 | EK22: 469 | EL22: 469 | EM22: 469 | EN22: 469 | EO22: 469 | EP22: 469 | EQ22: 469 | ER22: 469 | ES22: 469 | ET22: 469 | EU22: 469 | EV22: 469 | EW22: 469 | EX22: 469 | EY22: 469 | EZ22: 469 | FA22: 469 | FB22: 469 | FC22: 469 | FD22: 469 | FE22: 469 | FF22: 469 | FG22: 469 | FH22: 469 | FI22: 469 | FJ22: 469 | FK22: 469 | FL22: 469 | FM22: 469 | FN22: 469 | FO22: 469 | FP22: 469 | FQ22: 469 | FR22: 469 | FS22: 469 | FT22: 469 | FU22: 469 | FV22: 469 | FW22: 469 | FX22: 469 | FY22: 469 | FZ22: 469 | GA22: 469 | GB22: 469 | GC22: 469 | GD22: 469 | GE22: 469 | GF22: 469 | GG22: 469 | GH22: 469 | GI22: 469 | GJ22: 469 | GK22: 469 | GL22: 469 | GM22: 469 | GN22: 469 | GO22: 469 | GP22: 469 | GQ22: 469 | GR22: 469 | GS22: 469 | GT22: 469 | GU22: 469 | GV22: 469 | GW22: 469 | GX22: 469 | GY22: 469 | GZ22: 469 | HA22: 469 | HB22: 469 | HC22: 469 | HD22: 469 | HE22: 469 | HF22: 469 | HG22: 469 | HH22: 469 | HI22: 469 | HJ22: 469 | HK22: 469 | HL22: 469 | HM22: 469 | HN22: 469 | HO22: 469 | HP22: 469 | HQ22: 469 | HR22: 469 | HS22: 469 | HT22: 469 | HU22: 469 | HV22: 469 | HW22: 469 | HX22: 469 | HY22: 469 | HZ22: 469 | IA22: 469 | IB22: 469 | IC22: 469 | ID22: 469 | IE22: 469 | IF22: 469 | IG22: 469 | IH22: 469 | II22: 469 | IJ22: 469 | IK22: 469 | IL22: 469 | IM22: 469 | IN22: 469 | IO22: 469 | IP22: 469 | IQ22: 469 | IR22: 469 | IS22: 469 | IT22: 469 | IU22: 469 | IV22: 469 | IW22: 469 | IX22: 469 | IY22: 469 | IZ22: 469 | JA22: 469 | JB22: 469 | JC22: 469 | JD22: 469 | JE22: 469 | JF22: 469
B23: PMG4 | C23: 468 | D23: 468 | E23: 468 | F23: 468 | G23: 468 | H23: 468 | I23: 468 | J23: 468 | K23: 468 | L23: 468 | M23: 468 | N23: 468 | O23: =N23 -> 468 | P23: 468 | Q23: 468 | R23: 468 | S23: 468 | T23: 468 | U23: 468 | V23: 468 | W23: 468 | X23: 468 | Y23: 468 | Z23: 468 | AA23: =Z23+10 -> 478 | AB23: 478 | AC23: 478 | AD23: 478 | AE23: 478 | AF23: 478 | AG23: 478 | AH23: 478 | AI23: 478 | AJ23: 478 | AK23: =AJ23 -> 478 | AL23: =AK23 -> 478 | AM23: =AL23-6 -> 472 | AN23: 472 | AO23: 472 | AP23: 472 | AQ23: 472 | AR23: 472 | AS23: 472 | AT23: 472 | AU23: 472 | AV23: 472 | AW23: =AV23 -> 472 | AX23: =AW23 -> 472 | AY23: =AX23-22 -> 450 | AZ23: 450 | BA23: 450 | BB23: =BA23 -> 450 | BC23: 450 | BD23: 450 | BE23: 450 | BF23: 450 | BG23: 450 | BH23: 450 | BI23: 450 | BJ23: =BI23+28 -> 478 | BK23: 478 | BL23: 478 | BM23: 478 | BN23: 478 | BO23: 478 | BP23: 478 | BQ23: 478 | BR23: 478 | BS23: 478 | BT23: 478 | BU23: 478 | BV23: 478 | BW23: 478 | BX23: 478 | BY23: 478 | BZ23: 478 | CA23: 478 | CB23: 478 | CC23: 478 | CD23: 478 | CE23: 478 | CF23: 478 | CG23: 478 | CH23: =CG23-6 -> 472 | CI23: 472 | CJ23: 472 | CK23: 472 | CL23: 472 | CM23: 472 | CN23: 472 | CO23: 472 | CP23: 472 | CQ23: 472 | CR23: 472 | CS23: 472 | CT23: =CS23-3 -> 469 | CU23: 469 | CV23: 469 | CW23: 469 | CX23: 469 | CY23: 469 | CZ23: 469 | DA23: 469 | DB23: 469 | DC23: 469 | DD23: 469 | DE23: 469 | DF23: 469 | DG23: 469 | DH23: 469 | DI23: 469 | DJ23: 469 | DK23: 469 | DL23: 469 | DM23: 469 | DN23: 469 | DO23: 469 | DP23: 469 | DQ23: 469 | DR23: 469 | DS23: 469 | DT23: 469 | DU23: 469 | DV23: 469 | DW23: 469 | DX23: 469 | DY23: 469 | DZ23: 469 | EA23: 469 | EB23: 469 | EC23: =EB23 -> 469 | ED23: 469 | EE23: 469 | EF23: 469 | EG23: 469 | EH23: 469 | EI23: 469 | EJ23: 469 | EK23: 469 | EL23: 469 | EM23: 469 | EN23: 469 | EO23: 469 | EP23: 469 | EQ23: 469 | ER23: 469 | ES23: 469 | ET23: 469 | EU23: 469 | EV23: 469 | EW23: 469 | EX23: 469 | EY23: 469 | EZ23: 469 | FA23: 469 | FB23: 469 | FC23: 469 | FD23: 469 | FE23: 469 | FF23: 469 | FG23: 469 | FH23: 469 | FI23: 469 | FJ23: 469 | FK23: 469 | FL23: 469 | FM23: 469 | FN23: =FM23 -> 469 | FO23: 469 | FP23: 469 | FQ23: 469 | FR23: 469 | FS23: 469 | FT23: 469 | FU23: 469 | FV23: 469 | FW23: 469 | FX23: 469 | FY23: 469 | FZ23: 469 | GA23: 469 | GB23: 469 | GC23: 469 | GD23: 469 | GE23: 469 | GF23: 469 | GG23: 469 | GH23: 469 | GI23: 469 | GJ23: 469 | GK23: 469 | GL23: 469 | GM23: 469 | GN23: 469 | GO23: 469 | GP23: 469 | GQ23: 469 | GR23: 469 | GS23: 469 | GT23: 469 | GU23: 469 | GV23: 469 | GW23: 469 | GX23: 469 | GY23: 469 | GZ23: 469 | HA23: 469 | HB23: 469 | HC23: 469 | HD23: 469 | HE23: 469 | HF23: 469 | HG23: 469 | HH23: 469 | HI23: 469 | HJ23: 469 | HK23: 469 | HL23: 469 | HM23: 469 | HN23: 469 | HO23: 469 | HP23: 469 | HQ23: 469 | HR23: 469 | HS23: 469 | HT23: 469 | HU23: 469 | HV23: 469 | HW23: 469 | HX23: 469 | HY23: 469 | HZ23: 469 | IA23: 469 | IB23: 469 | IC23: 469 | ID23: 469 | IE23: 469 | IF23: 469 | IG23: 469 | IH23: 469 | II23: 469 | IJ23: 469 | IK23: 469 | IL23: 469 | IM23: 469 | IN23: 469 | IO23: 469 | IP23: 469 | IQ23: 469 | IR23: 469 | IS23: 469 | IT23: 469 | IU23: 469 | IV23: 469 | IW23: 469 | IX23: 469 | IY23: 469 | IZ23: 469 | JA23: 469 | JB23: 469 | JC23: 469 | JD23: 469 | JE23: 469 | JF23: 469
B24: PMG8 | C24: 298 | D24: 298 | E24: 298 | F24: 298 | G24: 298 | H24: 298 | I24: 298 | J24: 298 | K24: 298 | L24: 298 | M24: 298 | N24: 298 | O24: =N24 -> 298 | P24: 298 | Q24: 298 | R24: 298 | S24: 298 | T24: 298 | U24: 298 | V24: 298 | W24: 298 | X24: 298 | Y24: 298 | Z24: 298 | AA24: =Z24+22 -> 320 | AB24: 320 | AC24: 320 | AD24: 320 | AE24: 320 | AF24: =AE24 -> 320 | AG24: =AF24 -> 320 | AH24: =AG24 -> 320 | AI24: =AH24 -> 320 | AJ24: 320 | AK24: 320 | AL24: 320 | AM24: =AL24 -> 320 | AN24: 320 | AO24: 320 | AP24: 320 | AQ24: 320 | AR24: =AQ24+787 -> 1107 | AS24: 1107 | AT24: 1107 | AU24: 1107 | AV24: 1107 | AW24: 1107 | AX24: 1107 | AY24: =AX24 -> 1107 | AZ24: 1107 | BA24: 1107 | BB24: =BA24+12 -> 1119 | BC24: 1119 | BD24: 1119 | BE24: 1119 | BF24: 1119 | BG24: 1119 | BH24: 1119 | BI24: 1119 | BJ24: =BI24-15 -> 1104 | BK24: 1104 | BL24: 1104 | BM24: 1104 | BN24: 1104 | BO24: 1104 | BP24: 1104 | BQ24: 1104 | BR24: 1104 | BS24: 1104 | BT24: 1104 | BU24: 1104 | BV24: 1104 | BW24: 1104 | BX24: 1104 | BY24: 1104 | BZ24: 1104 | CA24: 1104 | CB24: 1104 | CC24: 1104 | CD24: 1104 | CE24: 1104 | CF24: 1104 | CG24: 1104 | CH24: =CG24+1 -> 1105 | CI24: 1105 | CJ24: 1105 | CK24: 1105 | CL24: 1105 | CM24: 1105 | CN24: 1105 | CO24: 1105 | CP24: 1105 | CQ24: 1105 | CR24: 1105 | CS24: 1105 | CT24: 1105 | CU24: 1105 | CV24: 1105 | CW24: 1105 | CX24: 1105 | CY24: 1105 | CZ24: 1105 | DA24: 1105 | DB24: 1105 | DC24: 1105 | DD24: 1105 | DE24: 1105 | DF24: 1105 | DG24: 1105 | DH24: 1105 | DI24: 1105 | DJ24: 1105 | DK24: 1105 | DL24: 1105 | DM24: 1105 | DN24: =DM24 -> 1105 | DO24: 1105 | DP24: 1105 | DQ24: 1105 | DR24: =DQ24+27 -> 1132 | DS24: =DR24 -> 1132 | DT24: 1132 | DU24: 1132 | DV24: 1132 | DW24: 1132 | DX24: 1132 | DY24: 1132 | DZ24: 1132 | EA24: 1132 | EB24: 1132 | EC24: =EB24+9 -> 1141 | ED24: =EC24 -> 1141 | EE24: 1141 | EF24: 1141 | EG24: 1141 | EH24: 1141 | EI24: 1141 | EJ24: 1141 | EK24: 1141 | EL24: 1141 | EM24: 1141 | EN24: 1141 | EO24: 1141 | EP24: 1141 | EQ24: =EP24-6 -> 1135 | ER24: 1135 | ES24: 1135 | ET24: 1135 | EU24: 1135 | EV24: 1135 | EW24: 1135 | EX24: 1135 | EY24: 1135 | EZ24: 1135 | FA24: 1135 | FB24: 1135 | FC24: 1135 | FD24: 1135 | FE24: 1135 | FF24: 1135 | FG24: 1135 | FH24: 1135 | FI24: 1135 | FJ24: 1135 | FK24: 1135 | FL24: 1135 | FM24: 1135 | FN24: 1135 | FO24: 1135 | FP24: 1135 | FQ24: 1135 | FR24: 1135 | FS24: 1135 | FT24: =FS24+2 -> 1137 | FU24: =FT24+1 -> 1138 | FV24: 1138 | FW24: 1138 | FX24: 1138 | FY24: 1138 | FZ24: 1138 | GA24: 1138 | GB24: 1138 | GC24: 1138 | GD24: 1138 | GE24: 1138 | GF24: 1138 | GG24: =GF24+1 -> 1139 | GH24: 1139 | GI24: 1139 | GJ24: 1139 | GK24: 1139 | GL24: 1139 | GM24: 1139 | GN24: 1139 | GO24: 1139 | GP24: 1139 | GQ24: 1139 | GR24: 1139 | GS24: 1139 | GT24: 1139 | GU24: 1139 | GV24: 1139 | GW24: 1139 | GX24: 1139 | GY24: 1139 | GZ24: 1139 | HA24: 1139 | HB24: 1139 | HC24: 1139 | HD24: 1139 | HE24: 1139 | HF24: 1139 | HG24: 1139 | HH24: 1139 | HI24: 1139 | HJ24: 1139 | HK24: 1139 | HL24: 1139 | HM24: 1139 | HN24: 1139 | HO24: 1139 | HP24: 1139 | HQ24: 1139 | HR24: 1139 | HS24: 1139 | HT24: 1139 | HU24: 1139 | HV24: 1139 | HW24: 1139 | HX24: 1139 | HY24: 1139 | HZ24: 1139 | IA24: 1139 | IB24: 1139 | IC24: 1139 | ID24: 1139 | IE24: 1139 | IF24: 1139 | IG24: 1139 | IH24: 1139 | II24: 1139 | IJ24: 1139 | IK24: 1139 | IL24: 1139 | IM24: 1139 | IN24: 1139 | IO24: 1139 | IP24: 1139 | IQ24: 1139 | IR24: 1139 | IS24: 1139 | IT24: 1139 | IU24: 1139 | IV24: 1139 | IW24: 1139 | IX24: 1139 | IY24: 1139 | IZ24: 1139 | JA24: 1139 | JB24: 1139 | JC24: 1139 | JD24: 1139 | JE24: 1139 | JF24: 1139
B25: PMT1 | C25: 809 | D25: 809 | E25: 809 | F25: =E25 -> 809 | G25: 809 | H25: 809 | I25: 809 | J25: 809 | K25: 809 | L25: 809 | M25: 809 | N25: 809 | O25: =N25+1 -> 810 | P25: =O25 -> 810 | Q25: 810 | R25: 810 | S25: 810 | T25: 810 | U25: 810 | V25: 810 | W25: 810 | X25: 810 | Y25: 810 | Z25: 810 | AA25: =Z25+4 -> 814 | AB25: 814 | AC25: 814 | AD25: 814 | AE25: 814 | AF25: =AE25 -> 814 | AG25: 814 | AH25: 814 | AI25: 814 | AJ25: 814 | AK25: 814 | AL25: 814 | AM25: =AL25-26 -> 788 | AN25: 788 | AO25: 788 | AP25: 788 | AQ25: 788 | AR25: 788 | AS25: 788 | AT25: 788 | AU25: 788 | AV25: 788 | AW25: 788 | AX25: 788 | AY25: =AX25+22 -> 810 | AZ25: 810 | BA25: 810 | BB25: =BA25 -> 810 | BC25: 810 | BD25: 810 | BE25: 810 | BF25: 810 | BG25: 810 | BH25: 810 | BI25: 810 | BJ25: =BI25+9 -> 819 | BK25: 819 | BL25: 819 | BM25: 819 | BN25: 819 | BO25: 819 | BP25: 819 | BQ25: 819 | BR25: 819 | BS25: 819 | BT25: 819 | BU25: 819 | BV25: 819 | BW25: 819 | BX25: 819 | BY25: 819 | BZ25: 819 | CA25: 819 | CB25: 819 | CC25: 819 | CD25: 819 | CE25: 819 | CF25: 819 | CG25: 819 | CH25: =CG25-7 -> 812 | CI25: =CH25 -> 812 | CJ25: 812 | CK25: 812 | CL25: 812 | CM25: 812 | CN25: 812 | CO25: 812 | CP25: 812 | CQ25: 812 | CR25: 812 | CS25: 812 | CT25: 812 | CU25: 812 | CV25: 812 | CW25: 812 | CX25: 812 | CY25: 812 | CZ25: 812 | DA25: 812 | DB25: 812 | DC25: 812 | DD25: 812 | DE25: 812 | DF25: 812 | DG25: 812 | DH25: =DG25 -> 812 | DI25: 812 | DJ25: 812 | DK25: 812 | DL25: 812 | DM25: 812 | DN25: 812 | DO25: 812 | DP25: 812 | DQ25: 812 | DR25: 812 | DS25: 812 | DT25: 812 | DU25: 812 | DV25: 812 | DW25: 812 | DX25: 812 | DY25: 812 | DZ25: 812 | EA25: 812 | EB25: 812 | EC25: 812 | ED25: 812 | EE25: 812 | EF25: 812 | EG25: 812 | EH25: 812 | EI25: 812 | EJ25: =EI25 -> 812 | EK25: =EJ25 -> 812 | EL25: =EK25-3 -> 809 | EM25: 809 | EN25: 809 | EO25: 809 | EP25: 809 | EQ25: 809 | ER25: 809 | ES25: =ER25 -> 809 | ET25: 809 | EU25: 809 | EV25: 809 | EW25: 809 | EX25: 809 | EY25: 809 | EZ25: 809 | FA25: 809 | FB25: 809 | FC25: 809 | FD25: 809 | FE25: 809 | FF25: 809 | FG25: 809 | FH25: 809 | FI25: 809 | FJ25: 809 | FK25: 809 | FL25: 809 | FM25: 809 | FN25: 809 | FO25: 809 | FP25: 809 | FQ25: 809 | FR25: 809 | FS25: 809 | FT25: 809 | FU25: 809 | FV25: 809 | FW25: 809 | FX25: 809 | FY25: 809 | FZ25: 809 | GA25: 809 | GB25: 809 | GC25: 809 | GD25: 809 | GE25: 809 | GF25: 809 | GG25: 809 | GH25: 809 | GI25: 809 | GJ25: 809 | GK25: 809 | GL25: 809 | GM25: 809 | GN25: 809 | GO25: 809 | GP25: 809 | GQ25: 809 | GR25: 809 | GS25: 809 | GT25: 809 | GU25: 809 | GV25: 809 | GW25: 809 | GX25: 809 | GY25: 809 | GZ25: 809 | HA25: 809 | HB25: 809 | HC25: 809 | HD25: 809 | HE25: 809 | HF25: 809 | HG25: 809 | HH25: 809 | HI25: 809 | HJ25: 809 | HK25: 809 | HL25: 809 | HM25: 809 | HN25: 809 | HO25: 809 | HP25: 809 | HQ25: 809 | HR25: 809 | HS25: 809 | HT25: 809 | HU25: 809 | HV25: 809 | HW25: 809 | HX25: 809 | HY25: 809 | HZ25: 809 | IA25: 809 | IB25: 809 | IC25: 809 | ID25: 809 | IE25: 809 | IF25: 809 | IG25: 809 | IH25: 809 | II25: 809 | IJ25: 809 | IK25: 809 | IL25: 809 | IM25: 809 | IN25: 809 | IO25: 809 | IP25: 809 | IQ25: 809 | IR25: 809 | IS25: 809 | IT25: 809 | IU25: 809 | IV25: 809 | IW25: 809 | IX25: 809 | IY25: 809 | IZ25: 809 | JA25: 809 | JB25: 809 | JC25: 809 | JD25: 809 | JE25: 809 | JF25: 809
B26: PMT2 | C26: 810 | D26: 810 | E26: 810 | F26: 810 | G26: 810 | H26: 810 | I26: 810 | J26: 810 | K26: 810 | L26: 810 | M26: 810 | N26: 810 | O26: =N26 -> 810 | P26: 810 | Q26: 810 | R26: 810 | S26: 810 | T26: 810 | U26: 810 | V26: 810 | W26: 810 | X26: 810 | Y26: 810 | Z26: 810 | AA26: =Z26+4 -> 814 | AB26: 814 | AC26: 814 | AD26: 814 | AE26: 814 | AF26: =AE26 -> 814 | AG26: 814 | AH26: 814 | AI26: 814 | AJ26: 814 | AK26: 814 | AL26: 814 | AM26: =AL26-11 -> 803 | AN26: 803 | AO26: 803 | AP26: 803 | AQ26: 803 | AR26: 803 | AS26: 803 | AT26: 803 | AU26: 803 | AV26: 803 | AW26: 803 | AX26: 803 | AY26: =AX26+7 -> 810 | AZ26: 810 | BA26: 810 | BB26: =BA26 -> 810 | BC26: 810 | BD26: 810 | BE26: 810 | BF26: 810 | BG26: 810 | BH26: 810 | BI26: 810 | BJ26: =BI26+9 -> 819 | BK26: 819 | BL26: 819 | BM26: 819 | BN26: 819 | BO26: 819 | BP26: 819 | BQ26: 819 | BR26: 819 | BS26: 819 | BT26: 819 | BU26: 819 | BV26: 819 | BW26: 819 | BX26: 819 | BY26: 819 | BZ26: 819 | CA26: 819 | CB26: 819 | CC26: 819 | CD26: 819 | CE26: 819 | CF26: 819 | CG26: 819 | CH26: =CG26-7 -> 812 | CI26: 812 | CJ26: 812 | CK26: 812 | CL26: 812 | CM26: 812 | CN26: 812 | CO26: 812 | CP26: 812 | CQ26: 812 | CR26: 812 | CS26: 812 | CT26: 812 | CU26: 812 | CV26: 812 | CW26: 812 | CX26: 812 | CY26: 812 | CZ26: 812 | DA26: 812 | DB26: 812 | DC26: 812 | DD26: 812 | DE26: 812 | DF26: 812 | DG26: 812 | DH26: 812 | DI26: 812 | DJ26: 812 | DK26: 812 | DL26: 812 | DM26: 812 | DN26: 812 | DO26: 812 | DP26: 812 | DQ26: 812 | DR26: 812 | DS26: 812 | DT26: 812 | DU26: =DT26 -> 812 | DV26: =DU26 -> 812 | DW26: =DV26 -> 812 | DX26: =DW26 -> 812 | DY26: =DX26-3 -> 809 | DZ26: 809 | EA26: 809 | EB26: 809 | EC26: 809 | ED26: 809 | EE26: 809 | EF26: 809 | EG26: 809 | EH26: 809 | EI26: 809 | EJ26: 809 | EK26: 809 | EL26: 809 | EM26: 809 | EN26: 809 | EO26: 809 | EP26: 809 | EQ26: 809 | ER26: 809 | ES26: 809 | ET26: 809 | EU26: 809 | EV26: 809 | EW26: 809 | EX26: 809 | EY26: 809 | EZ26: 809 | FA26: 809 | FB26: 809 | FC26: 809 | FD26: 809 | FE26: 809 | FF26: 809 | FG26: 809 | FH26: 809 | FI26: 809 | FJ26: 809 | FK26: 809 | FL26: 809 | FM26: 809 | FN26: 809 | FO26: 809 | FP26: 809 | FQ26: 809 | FR26: 809 | FS26: 809 | FT26: 809 | FU26: 809 | FV26: 809 | FW26: 809 | FX26: 809 | FY26: 809 | FZ26: 809 | GA26: 809 | GB26: 809 | GC26: 809 | GD26: 809 | GE26: 809 | GF26: 809 | GG26: 809 | GH26: 809 | GI26: 809 | GJ26: 809 | GK26: 809 | GL26: 809 | GM26: 809 | GN26: 809 | GO26: 809 | GP26: 809 | GQ26: 809 | GR26: 809 | GS26: 809 | GT26: 809 | GU26: 809 | GV26: 809 | GW26: 809 | GX26: 809 | GY26: 809 | GZ26: 809 | HA26: 809 | HB26: 809 | HC26: 809 | HD26: 809 | HE26: 809 | HF26: 809 | HG26: 809 | HH26: 809 | HI26: 809 | HJ26: 809 | HK26: 809 | HL26: 809 | HM26: 809 | HN26: 809 | HO26: 809 | HP26: 809 | HQ26: 809 | HR26: 809 | HS26: 809 | HT26: 809 | HU26: 809 | HV26: 809 | HW26: 809 | HX26: 809 | HY26: 809 | HZ26: 809 | IA26: 809 | IB26: 809 | IC26: 809 | ID26: 809 | IE26: 809 | IF26: 809 | IG26: 809 | IH26: 809 | II26: 809 | IJ26: 809 | IK26: 809 | IL26: 809 | IM26: 809 | IN26: 809 | IO26: 809 | IP26: 809 | IQ26: 809 | IR26: 809 | IS26: 809 | IT26: 809 | IU26: 809 | IV26: 809 | IW26: 809 | IX26: 809 | IY26: 809 | IZ26: 809 | JA26: 809 | JB26: 809 | JC26: 809 | JD26: 809 | JE26: 809 | JF26: 809
B27: PMT3 | C27: 0 | D27: 0 | E27: 0 | F27: 0 | G27: 0 | H27: 0 | I27: 0 | J27: 0 | K27: 0 | L27: 0 | M27: 0 | N27: 0 | O27: =N27 -> 0 | P27: 0 | Q27: 0 | R27: 0 | S27: 0 | T27: 0 | U27: 0 | V27: 0 | W27: 0 | X27: 0 | Y27: 0 | Z27: 0 | AA27: =Z27 -> 0 | AB27: 0 | AC27: 0 | AD27: 0 | AE27: 0 | AF27: =AE27 -> 0 | AG27: =AF27 -> 0 | AH27: =AG27 -> 0 | AI27: =AH27 -> 0 | AJ27: 0 | AK27: 0 | AL27: 0 | AM27: =AL27 -> 0 | AN27: 0 | AO27: 0 | AP27: 0 | AQ27: 0 | AR27: =AQ27+1107 -> 1107 | AS27: 1107 | AT27: 1107 | AU27: 1107 | AV27: 1107 | AW27: 1107 | AX27: 1107 | AY27: =AX27 -> 1107 | AZ27: 1107 | BA27: 1107 | BB27: =BA27+11 -> 1118 | BC27: 1118 | BD27: 1118 | BE27: 1118 | BF27: 1118 | BG27: 1118 | BH27: 1118 | BI27: 1118 | BJ27: =BI27-14 -> 1104 | BK27: 1104 | BL27: 1104 | BM27: 1104 | BN27: 1104 | BO27: 1104 | BP27: 1104 | BQ27: 1104 | BR27: 1104 | BS27: 1104 | BT27: 1104 | BU27: 1104 | BV27: 1104 | BW27: 1104 | BX27: 1104 | BY27: 1104 | BZ27: 1104 | CA27: 1104 | CB27: 1104 | CC27: 1104 | CD27: 1104 | CE27: 1104 | CF27: 1104 | CG27: 1104 | CH27: =CG27+7 -> 1111 | CI27: 1111 | CJ27: 1111 | CK27: 1111 | CL27: 1111 | CM27: 1111 | CN27: 1111 | CO27: 1111 | CP27: 1111 | CQ27: 1111 | CR27: 1111 | CS27: 1111 | CT27: 1111 | CU27: 1111 | CV27: 1111 | CW27: 1111 | CX27: 1111 | CY27: 1111 | CZ27: 1111 | DA27: 1111 | DB27: 1111 | DC27: 1111 | DD27: 1111 | DE27: 1111 | DF27: 1111 | DG27: 1111 | DH27: 1111 | DI27: 1111 | DJ27: 1111 | DK27: 1111 | DL27: 1111 | DM27: 1111 | DN27: 1111 | DO27: 1111 | DP27: 1111 | DQ27: 1111 | DR27: 1111 | DS27: 1111 | DT27: 1111 | DU27: 1111 | DV27: 1111 | DW27: 1111 | DX27: 1111 | DY27: 1111 | DZ27: 1111 | EA27: 1111 | EB27: 1111 | EC27: 1111 | ED27: 1111 | EE27: 1111 | EF27: 1111 | EG27: =EF27 -> 1111 | EH27: =EG27 -> 1111 | EI27: =EH27 -> 1111 | EJ27: 1111 | EK27: 1111 | EL27: 1111 | EM27: 1111 | EN27: 1111 | EO27: 1111 | EP27: 1111 | EQ27: =EP27-5+2 -> 1108 | ER27: 1108 | ES27: 1108 | ET27: 1108 | EU27: 1108 | EV27: =EU27+10+11+9 -> 1138 | EW27: =EV27 -> 1138 | EX27: =EW27+5 -> 1143 | EY27: 1143 | EZ27: 1143 | FA27: 1143 | FB27: 1143 | FC27: 1143 | FD27: 1143 | FE27: 1143 | FF27: 1143 | FG27: 1143 | FH27: 1143 | FI27: 1143 | FJ27: 1143 | FK27: 1143 | FL27: 1143 | FM27: 1143 | FN27: 1143 | FO27: 1143 | FP27: 1143 | FQ27: 1143 | FR27: 1143 | FS27: 1143 | FT27: 1143 | FU27: 1143 | FV27: 1143 | FW27: =FV27+2 -> 1145 | FX27: =FW27+1 -> 1146 | FY27: 1146 | FZ27: 1146 | GA27: 1146 | GB27: 1146 | GC27: 1146 | GD27: 1146 | GE27: =GD27+2 -> 1148 | GF27: 1148 | GG27: 1148 | GH27: 1148 | GI27: 1148 | GJ27: 1148 | GK27: 1148 | GL27: 1148 | GM27: 1148 | GN27: 1148 | GO27: 1148 | GP27: 1148 | GQ27: 1148 | GR27: 1148 | GS27: 1148 | GT27: 1148 | GU27: 1148 | GV27: 1148 | GW27: 1148 | GX27: 1148 | GY27: 1148 | GZ27: 1148 | HA27: 1148 | HB27: 1148 | HC27: 1148 | HD27: 1148 | HE27: 1148 | HF27: 1148 | HG27: 1148 | HH27: 1148 | HI27: 1148 | HJ27: 1148 | HK27: 1148 | HL27: 1148 | HM27: 1148 | HN27: 1148 | HO27: 1148 | HP27: 1148 | HQ27: 1148 | HR27: 1148 | HS27: 1148 | HT27: 1148 | HU27: 1148 | HV27: 1148 | HW27: 1148 | HX27: 1148 | HY27: 1148 | HZ27: 1148 | IA27: 1148 | IB27: 1148 | IC27: 1148 | ID27: 1148 | IE27: 1148 | IF27: 1148 | IG27: 1148 | IH27: 1148 | II27: 1148 | IJ27: 1148 | IK27: 1148 | IL27: 1148 | IM27: 1148 | IN27: 1148 | IO27: 1148 | IP27: 1148 | IQ27: 1148 | IR27: 1148 | IS27: 1148 | IT27: 1148 | IU27: 1148 | IV27: 1148 | IW27: 1148 | IX27: 1148 | IY27: 1148 | IZ27: 1148 | JA27: 1148 | JB27: 1148 | JC27: 1148 | JD27: 1148 | JE27: 1148 | JF27: 1148
B28: PPE1 | C28: 221 | D28: 221 | E28: 221 | F28: 221 | G28: 221 | H28: 221 | I28: 221 | J28: 221 | K28: 221 | L28: 221 | M28: 221 | N28: 221 | O28: =N28 -> 221 | P28: 221 | Q28: 221 | R28: 221 | S28: 221 | T28: 221 | U28: 221 | V28: 221 | W28: 221 | X28: 221 | Y28: 221 | Z28: 221 | AA28: =Z28 -> 221 | AB28: =AA28 -> 221 | AC28: 221 | AD28: 221 | AE28: 221 | AF28: 221 | AG28: 221 | AH28: 221 | AI28: 221 | AJ28: 221 | AK28: 221 | AL28: 221 | AM28: =AL28-9 -> 212 | AN28: =AM28 -> 212 | AO28: 212 | AP28: 212 | AQ28: 212 | AR28: 212 | AS28: 212 | AT28: 212 | AU28: 212 | AV28: 212 | AW28: 212 | AX28: 212 | AY28: =AX28+7 -> 219 | AZ28: 219 | BA28: 219 | BB28: 219 | BC28: 219 | BD28: 219 | BE28: 219 | BF28: 219 | BG28: 219 | BH28: 219 | BI28: 219 | BJ28: =BI28+1 -> 220 | BK28: 220 | BL28: 220 | BM28: 220 | BN28: 220 | BO28: 220 | BP28: 220 | BQ28: 220 | BR28: 220 | BS28: 220 | BT28: 220 | BU28: 220 | BV28: 220 | BW28: 220 | BX28: 220 | BY28: 220 | BZ28: 220 | CA28: 220 | CB28: 220 | CC28: 220 | CD28: 220 | CE28: 220 | CF28: 220 | CG28: 220 | CH28: =CG28-7 -> 213 | CI28: 213 | CJ28: 213 | CK28: 213 | CL28: 213 | CM28: 213 | CN28: 213 | CO28: 213 | CP28: 213 | CQ28: 213 | CR28: 213 | CS28: 213 | CT28: 213 | CU28: 213 | CV28: 213 | CW28: 213 | CX28: 213 | CY28: 213 | CZ28: 213 | DA28: 213 | DB28: 213 | DC28: 213 | DD28: 213 | DE28: 213 | DF28: 213 | DG28: 213 | DH28: 213 | DI28: 213 | DJ28: 213 | DK28: 213 | DL28: 213 | DM28: 213 | DN28: 213 | DO28: 213 | DP28: 213 | DQ28: 213 | DR28: 213 | DS28: 213 | DT28: 213 | DU28: 213 | DV28: 213 | DW28: 213 | DX28: 213 | DY28: 213 | DZ28: 213 | EA28: 213 | EB28: 213 | EC28: 213 | ED28: =EC28-213 -> 0 | EE28: 0 | EF28: =EE28 -> 0 | EG28: =EF28 -> 0 | EH28: 0 | EI28: 0 | EJ28: 0 | EK28: 0 | EL28: 0 | EM28: 0 | EN28: 0 | EO28: 0 | EP28: 0 | EQ28: 0 | ER28: 0 | ES28: 0 | ET28: 0 | EU28: 0 | EV28: 0 | EW28: 0 | EX28: 0 | EY28: 0 | EZ28: 0 | FA28: 0 | FB28: 0 | FC28: 0 | FD28: 0 | FE28: 0 | FF28: 0 | FG28: 0 | FH28: 0 | FI28: 0 | FJ28: 0 | FK28: 0 | FL28: 0 | FM28: 0 | FN28: 0 | FO28: 0 | FP28: 0 | FQ28: 0 | FR28: 0 | FS28: 0 | FT28: 0 | FU28: 0 | FV28: 0 | FW28: 0 | FX28: 0 | FY28: 0 | FZ28: 0 | GA28: 0 | GB28: 0 | GC28: 0 | GD28: 0 | GE28: 0 | GF28: 0 | GG28: 0 | GH28: 0 | GI28: 0 | GJ28: 0 | GK28: 0 | GL28: 0 | GM28: 0 | GN28: 0 | GO28: 0 | GP28: 0 | GQ28: 0 | GR28: 0 | GS28: 0 | GT28: 0 | GU28: 0 | GV28: 0 | GW28: 0 | GX28: 0 | GY28: 0 | GZ28: 0 | HA28: 0 | HB28: 0 | HC28: 0 | HD28: 0 | HE28: 0 | HF28: 0 | HG28: 0 | HH28: 0 | HI28: 0 | HJ28: 0 | HK28: 0 | HL28: 0 | HM28: 0 | HN28: 0 | HO28: 0 | HP28: 0 | HQ28: 0 | HR28: 0 | HS28: 0 | HT28: 0 | HU28: 0 | HV28: 0 | HW28: 0 | HX28: 0 | HY28: 0 | HZ28: 0 | IA28: 0 | IB28: 0 | IC28: 0 | ID28: 0 | IE28: 0 | IF28: 0 | IG28: 0 | IH28: 0 | II28: 0 | IJ28: 0 | IK28: 0 | IL28: 0 | IM28: 0 | IN28: 0 | IO28: 0 | IP28: 0 | IQ28: 0 | IR28: 0 | IS28: 0 | IT28: 0 | IU28: 0 | IV28: 0 | IW28: 0 | IX28: 0 | IY28: 0 | IZ28: 0 | JA28: 0 | JB28: 0 | JC28: 0 | JD28: 0 | JE28: 0 | JF28: 0
B29: PPE2 | C29: 221 | D29: 221 | E29: 221 | F29: 221 | G29: 221 | H29: 221 | I29: 221 | J29: 221 | K29: 221 | L29: 221 | M29: 221 | N29: 221 | O29: =N29 -> 221 | P29: 221 | Q29: 221 | R29: 221 | S29: 221 | T29: 221 | U29: 221 | V29: 221 | W29: 221 | X29: 221 | Y29: 221 | Z29: 221 | AA29: =Z29 -> 221 | AB29: =AA29 -> 221 | AC29: 221 | AD29: 221 | AE29: 221 | AF29: 221 | AG29: 221 | AH29: 221 | AI29: 221 | AJ29: 221 | AK29: 221 | AL29: 221 | AM29: =AL29-2 -> 219 | AN29: =AM29 -> 219 | AO29: 219 | AP29: 219 | AQ29: 219 | AR29: 219 | AS29: 219 | AT29: 219 | AU29: 219 | AV29: 219 | AW29: 219 | AX29: 219 | AY29: =AX29 -> 219 | AZ29: 219 | BA29: 219 | BB29: 219 | BC29: 219 | BD29: 219 | BE29: 219 | BF29: 219 | BG29: 219 | BH29: 219 | BI29: 219 | BJ29: =BI29+1 -> 220 | BK29: 220 | BL29: 220 | BM29: 220 | BN29: 220 | BO29: 220 | BP29: 220 | BQ29: 220 | BR29: 220 | BS29: 220 | BT29: 220 | BU29: 220 | BV29: 220 | BW29: 220 | BX29: 220 | BY29: 220 | BZ29: 220 | CA29: 220 | CB29: 220 | CC29: 220 | CD29: 220 | CE29: 220 | CF29: 220 | CG29: 220 | CH29: =CG29-7 -> 213 | CI29: 213 | CJ29: 213 | CK29: 213 | CL29: 213 | CM29: 213 | CN29: 213 | CO29: 213 | CP29: 213 | CQ29: 213 | CR29: 213 | CS29: 213 | CT29: 213 | CU29: 213 | CV29: 213 | CW29: 213 | CX29: 213 | CY29: 213 | CZ29: 213 | DA29: 213 | DB29: 213 | DC29: 213 | DD29: 213 | DE29: 213 | DF29: 213 | DG29: 213 | DH29: 213 | DI29: 213 | DJ29: 213 | DK29: 213 | DL29: 213 | DM29: 213 | DN29: 213 | DO29: 213 | DP29: 213 | DQ29: 213 | DR29: 213 | DS29: 213 | DT29: 213 | DU29: 213 | DV29: 213 | DW29: 213 | DX29: 213 | DY29: 213 | DZ29: 213 | EA29: 213 | EB29: 213 | EC29: 213 | ED29: =EC29-213 -> 0 | EE29: 0 | EF29: =EE29 -> 0 | EG29: 0 | EH29: 0 | EI29: 0 | EJ29: 0 | EK29: 0 | EL29: 0 | EM29: 0 | EN29: 0 | EO29: 0 | EP29: 0 | EQ29: 0 | ER29: 0 | ES29: 0 | ET29: 0 | EU29: 0 | EV29: 0 | EW29: 0 | EX29: 0 | EY29: 0 | EZ29: 0 | FA29: 0 | FB29: 0 | FC29: 0 | FD29: 0 | FE29: 0 | FF29: 0 | FG29: 0 | FH29: 0 | FI29: 0 | FJ29: 0 | FK29: 0 | FL29: 0 | FM29: 0 | FN29: 0 | FO29: 0 | FP29: 0 | FQ29: 0 | FR29: 0 | FS29: 0 | FT29: 0 | FU29: 0 | FV29: 0 | FW29: 0 | FX29: 0 | FY29: 0 | FZ29: 0 | GA29: 0 | GB29: 0 | GC29: 0 | GD29: 0 | GE29: 0 | GF29: 0 | GG29: 0 | GH29: 0 | GI29: 0 | GJ29: 0 | GK29: 0 | GL29: 0 | GM29: 0 | GN29: 0 | GO29: 0 | GP29: 0 | GQ29: 0 | GR29: 0 | GS29: 0 | GT29: 0 | GU29: 0 | GV29: 0 | GW29: 0 | GX29: 0 | GY29: 0 | GZ29: 0 | HA29: 0 | HB29: 0 | HC29: 0 | HD29: 0 | HE29: 0 | HF29: 0 | HG29: 0 | HH29: 0 | HI29: 0 | HJ29: 0 | HK29: 0 | HL29: 0 | HM29: 0 | HN29: 0 | HO29: 0 | HP29: 0 | HQ29: 0 | HR29: 0 | HS29: 0 | HT29: 0 | HU29: 0 | HV29: 0 | HW29: 0 | HX29: 0 | HY29: 0 | HZ29: 0 | IA29: 0 | IB29: 0 | IC29: 0 | ID29: 0 | IE29: 0 | IF29: 0 | IG29: 0 | IH29: 0 | II29: 0 | IJ29: 0 | IK29: 0 | IL29: 0 | IM29: 0 | IN29: 0 | IO29: 0 | IP29: 0 | IQ29: 0 | IR29: 0 | IS29: 0 | IT29: 0 | IU29: 0 | IV29: 0 | IW29: 0 | IX29: 0 | IY29: 0 | IZ29: 0 | JA29: 0 | JB29: 0 | JC29: 0 | JD29: 0 | JE29: 0 | JF29: 0
B30: PPE3 | C30: 390 | D30: 390 | E30: 390 | F30: 390 | G30: 390 | H30: 390 | I30: 390 | J30: 390 | K30: 390 | L30: 390 | M30: 390 | N30: 390 | O30: =N30 -> 390 | P30: 390 | Q30: 390 | R30: 390 | S30: 390 | T30: 390 | U30: 390 | V30: 390 | W30: 390 | X30: 390 | Y30: 390 | Z30: 390 | AA30: =Z30 -> 390 | AB30: =AA30 -> 390 | AC30: 390 | AD30: 390 | AE30: 390 | AF30: 390 | AG30: 390 | AH30: 390 | AI30: 390 | AJ30: 390 | AK30: 390 | AL30: 390 | AM30: =AL30-5 -> 385 | AN30: =AM30 -> 385 | AO30: 385 | AP30: 385 | AQ30: 385 | AR30: 385 | AS30: 385 | AT30: 385 | AU30: 385 | AV30: 385 | AW30: 385 | AX30: 385 | AY30: =AX30-8 -> 377 | AZ30: 377 | BA30: 377 | BB30: 377 | BC30: 377 | BD30: 377 | BE30: 377 | BF30: 377 | BG30: 377 | BH30: 377 | BI30: 377 | BJ30: =BI30+10 -> 387 | BK30: 387 | BL30: 387 | BM30: 387 | BN30: 387 | BO30: 387 | BP30: 387 | BQ30: 387 | BR30: 387 | BS30: 387 | BT30: 387 | BU30: 387 | BV30: 387 | BW30: 387 | BX30: 387 | BY30: 387 | BZ30: 387 | CA30: 387 | CB30: 387 | CC30: 387 | CD30: 387 | CE30: 387 | CF30: 387 | CG30: 387 | CH30: 387 | CI30: 387 | CJ30: 387 | CK30: 387 | CL30: 387 | CM30: 387 | CN30: 387 | CO30: 387 | CP30: 387 | CQ30: 387 | CR30: 387 | CS30: 387 | CT30: 387 | CU30: 387 | CV30: 387 | CW30: 387 | CX30: 387 | CY30: 387 | CZ30: 387 | DA30: 387 | DB30: 387 | DC30: 387 | DD30: 387 | DE30: 387 | DF30: 387 | DG30: 387 | DH30: 387 | DI30: 387 | DJ30: 387 | DK30: 387 | DL30: 387 | DM30: 387 | DN30: 387 | DO30: 387 | DP30: 387 | DQ30: 387 | DR30: 387 | DS30: 387 | DT30: 387 | DU30: 387 | DV30: 387 | DW30: 387 | DX30: 387 | DY30: 387 | DZ30: 387 | EA30: 387 | EB30: 387 | EC30: 387 | ED30: 387 | EE30: 387 | EF30: =EE30-387 -> 0 | EG30: 0 | EH30: 0 | EI30: 0 | EJ30: 0 | EK30: 0 | EL30: 0 | EM30: 0 | EN30: 0 | EO30: 0 | EP30: 0 | EQ30: 0 | ER30: 0 | ES30: 0 | ET30: 0 | EU30: 0 | EV30: 0 | EW30: 0 | EX30: 0 | EY30: 0 | EZ30: 0 | FA30: 0 | FB30: 0 | FC30: 0 | FD30: 0 | FE30: 0 | FF30: 0 | FG30: 0 | FH30: 0 | FI30: 0 | FJ30: 0 | FK30: 0 | FL30: 0 | FM30: 0 | FN30: 0 | FO30: 0 | FP30: 0 | FQ30: 0 | FR30: 0 | FS30: 0 | FT30: 0 | FU30: 0 | FV30: 0 | FW30: 0 | FX30: 0 | FY30: 0 | FZ30: 0 | GA30: 0 | GB30: 0 | GC30: 0 | GD30: 0 | GE30: 0 | GF30: 0 | GG30: 0 | GH30: 0 | GI30: 0 | GJ30: 0 | GK30: 0 | GL30: 0 | GM30: 0 | GN30: 0 | GO30: 0 | GP30: 0 | GQ30: 0 | GR30: 0 | GS30: 0 | GT30: 0 | GU30: 0 | GV30: 0 | GW30: 0 | GX30: 0 | GY30: 0 | GZ30: 0 | HA30: 0 | HB30: 0 | HC30: 0 | HD30: 0 | HE30: 0 | HF30: 0 | HG30: 0 | HH30: 0 | HI30: 0 | HJ30: 0 | HK30: 0 | HL30: 0 | HM30: 0 | HN30: 0 | HO30: 0 | HP30: 0 | HQ30: 0 | HR30: 0 | HS30: 0 | HT30: 0 | HU30: 0 | HV30: 0 | HW30: 0 | HX30: 0 | HY30: 0 | HZ30: 0 | IA30: 0 | IB30: 0 | IC30: 0 | ID30: 0 | IE30: 0 | IF30: 0 | IG30: 0 | IH30: 0 | II30: 0 | IJ30: 0 | IK30: 0 | IL30: 0 | IM30: 0 | IN30: 0 | IO30: 0 | IP30: 0 | IQ30: 0 | IR30: 0 | IS30: 0 | IT30: 0 | IU30: 0 | IV30: 0 | IW30: 0 | IX30: 0 | IY30: 0 | IZ30: 0 | JA30: 0 | JB30: 0 | JC30: 0 | JD30: 0 | JE30: 0 | JF30: 0
B31: PPE4 | C31: 408 | D31: 408 | E31: 408 | F31: 408 | G31: 408 | H31: 408 | I31: 408 | J31: 408 | K31: 408 | L31: 408 | M31: 408 | N31: 408 | O31: =N31-28 -> 380 | P31: 380 | Q31: 380 | R31: 380 | S31: 380 | T31: 380 | U31: 380 | V31: 380 | W31: 380 | X31: 380 | Y31: 380 | Z31: 380 | AA31: =Z31+21 -> 401 | AB31: =AA31 -> 401 | AC31: 401 | AD31: 401 | AE31: 401 | AF31: 401 | AG31: 401 | AH31: 401 | AI31: 401 | AJ31: 401 | AK31: 401 | AL31: 401 | AM31: =AL31-16 -> 385 | AN31: =AM31 -> 385 | AO31: 385 | AP31: 385 | AQ31: 385 | AR31: 385 | AS31: 385 | AT31: 385 | AU31: 385 | AV31: 385 | AW31: 385 | AX31: 385 | AY31: =AX31 -> 385 | AZ31: 385 | BA31: 385 | BB31: 385 | BC31: 385 | BD31: 385 | BE31: 385 | BF31: 385 | BG31: 385 | BH31: 385 | BI31: 385 | BJ31: =BI31+7 -> 392 | BK31: 392 | BL31: 392 | BM31: 392 | BN31: 392 | BO31: 392 | BP31: 392 | BQ31: 392 | BR31: 392 | BS31: 392 | BT31: 392 | BU31: 392 | BV31: 392 | BW31: 392 | BX31: 392 | BY31: 392 | BZ31: 392 | CA31: 392 | CB31: 392 | CC31: 392 | CD31: 392 | CE31: 392 | CF31: 392 | CG31: 392 | CH31: 392 | CI31: 392 | CJ31: 392 | CK31: 392 | CL31: 392 | CM31: 392 | CN31: 392 | CO31: 392 | CP31: 392 | CQ31: 392 | CR31: 392 | CS31: 392 | CT31: 392 | CU31: 392 | CV31: 392 | CW31: 392 | CX31: 392 | CY31: 392 | CZ31: 392 | DA31: 392 | DB31: 392 | DC31: 392 | DD31: 392 | DE31: 392 | DF31: =DE31-18 -> 374 | DG31: 374 | DH31: 374 | DI31: 374 | DJ31: 374 | DK31: 374 | DL31: 374 | DM31: 374 | DN31: 374 | DO31: 374 | DP31: 374 | DQ31: 374 | DR31: 374 | DS31: 374 | DT31: 374 | DU31: 374 | DV31: 374 | DW31: 374 | DX31: 374 | DY31: 374 | DZ31: 374 | EA31: 374 | EB31: 374 | EC31: 374 | ED31: 374 | EE31: 374 | EF31: =EE31-374 -> 0 | EG31: 0 | EH31: 0 | EI31: 0 | EJ31: 0 | EK31: 0 | EL31: 0 | EM31: 0 | EN31: 0 | EO31: 0 | EP31: 0 | EQ31: 0 | ER31: 0 | ES31: 0 | ET31: 0 | EU31: 0 | EV31: 0 | EW31: 0 | EX31: 0 | EY31: 0 | EZ31: 0 | FA31: 0 | FB31: 0 | FC31: 0 | FD31: 0 | FE31: 0 | FF31: 0 | FG31: 0 | FH31: 0 | FI31: 0 | FJ31: 0 | FK31: 0 | FL31: 0 | FM31: 0 | FN31: 0 | FO31: 0 | FP31: 0 | FQ31: 0 | FR31: 0 | FS31: 0 | FT31: 0 | FU31: 0 | FV31: 0 | FW31: 0 | FX31: 0 | FY31: 0 | FZ31: 0 | GA31: 0 | GB31: 0 | GC31: 0 | GD31: 0 | GE31: 0 | GF31: 0 | GG31: 0 | GH31: 0 | GI31: 0 | GJ31: 0 | GK31: 0 | GL31: 0 | GM31: 0 | GN31: 0 | GO31: 0 | GP31: 0 | GQ31: 0 | GR31: 0 | GS31: 0 | GT31: 0 | GU31: 0 | GV31: 0 | GW31: 0 | GX31: 0 | GY31: 0 | GZ31: 0 | HA31: 0 | HB31: 0 | HC31: 0 | HD31: 0 | HE31: 0 | HF31: 0 | HG31: 0 | HH31: 0 | HI31: 0 | HJ31: 0 | HK31: 0 | HL31: 0 | HM31: 0 | HN31: 0 | HO31: 0 | HP31: 0 | HQ31: 0 | HR31: 0 | HS31: 0 | HT31: 0 | HU31: 0 | HV31: 0 | HW31: 0 | HX31: 0 | HY31: 0 | HZ31: 0 | IA31: 0 | IB31: 0 | IC31: 0 | ID31: 0 | IE31: 0 | IF31: 0 | IG31: 0 | IH31: 0 | II31: 0 | IJ31: 0 | IK31: 0 | IL31: 0 | IM31: 0 | IN31: 0 | IO31: 0 | IP31: 0 | IQ31: 0 | IR31: 0 | IS31: 0 | IT31: 0 | IU31: 0 | IV31: 0 | IW31: 0 | IX31: 0 | IY31: 0 | IZ31: 0 | JA31: 0 | JB31: 0 | JC31: 0 | JD31: 0 | JE31: 0 | JF31: 0
B32: PPE5 | C32: 0 | D32: 0 | E32: 0 | F32: 0 | G32: 0 | H32: 0 | I32: 0 | J32: 0 | K32: 0 | L32: 0 | M32: 0 | N32: 0 | O32: =N32 -> 0 | P32: 0 | Q32: 0 | R32: 0 | S32: 0 | T32: 0 | U32: 0 | V32: 0 | W32: 0 | X32: 0 | Y32: 0 | Z32: 0 | AA32: 0 | AB32: 0 | AC32: 0 | AD32: 0 | AE32: 0 | AF32: 0 | AG32: 0 | AH32: 0 | AI32: 0 | AJ32: 0 | AK32: 0 | AL32: 0 | AM32: 0 | AN32: 0 | AO32: 0 | AP32: 0 | AQ32: 0 | AR32: 0 | AS32: 0 | AT32: 0 | AU32: 0 | AV32: =AU32 -> 0 | AW32: 0 | AX32: 0 | AY32: =AX32 -> 0 | AZ32: 0 | BA32: 0 | BB32: 0 | BC32: 0 | BD32: 0 | BE32: 0 | BF32: 0 | BG32: 0 | BH32: 0 | BI32: 0 | BJ32: =BI32 -> 0 | BK32: 0 | BL32: 0 | BM32: 0 | BN32: 0 | BO32: 0 | BP32: 0 | BQ32: 0 | BR32: 0 | BS32: 0 | BT32: 0 | BU32: 0 | BV32: 0 | BW32: 0 | BX32: 0 | BY32: 0 | BZ32: 0 | CA32: 0 | CB32: 0 | CC32: 0 | CD32: 0 | CE32: 0 | CF32: 0 | CG32: 0 | CH32: 0 | CI32: 0 | CJ32: 0 | CK32: 0 | CL32: 0 | CM32: 0 | CN32: 0 | CO32: 0 | CP32: 0 | CQ32: 0 | CR32: 0 | CS32: 0 | CT32: 0 | CU32: 0 | CV32: 0 | CW32: 0 | CX32: 0 | CY32: 0 | CZ32: 0 | DA32: 0 | DB32: 0 | DC32: 0 | DD32: 0 | DE32: 0 | DF32: 0 | DG32: 0 | DH32: 0 | DI32: 0 | DJ32: 0 | DK32: 0 | DL32: 0 | DM32: 0 | DN32: 0 | DO32: 0 | DP32: 0 | DQ32: 0 | DR32: 0 | DS32: 0 | DT32: 0 | DU32: 0 | DV32: 0 | DW32: 0 | DX32: 0 | DY32: 0 | DZ32: 0 | EA32: 0 | EB32: 0 | EC32: 0 | ED32: 0 | EE32: 0 | EF32: 0 | EG32: 0 | EH32: 0 | EI32: 0 | EJ32: 0 | EK32: 0 | EL32: 0 | EM32: 0 | EN32: 0 | EO32: 0 | EP32: 0 | EQ32: 0 | ER32: 0 | ES32: 0 | ET32: 0 | EU32: 0 | EV32: 0 | EW32: 0 | EX32: 0 | EY32: 0 | EZ32: 0 | FA32: 0 | FB32: 0 | FC32: 0 | FD32: 0 | FE32: 0 | FF32: 0 | FG32: 0 | FH32: 0 | FI32: =FH32 -> 0 | FJ32: 0 | FK32: 0 | FL32: 0 | FM32: 0 | FN32: 0 | FO32: 0 | FP32: 0 | FQ32: 0 | FR32: 0 | FS32: 0 | FT32: =FS32+1237 -> 1237 | FU32: 1237 | FV32: 1237 | FW32: 1237 | FX32: 1237 | FY32: 1237 | FZ32: 1237 | GA32: 1237 | GB32: 1237 | GC32: 1237 | GD32: 1237 | GE32: 1237 | GF32: 1237 | GG32: 1237 | GH32: 1237 | GI32: 1237 | GJ32: 1237 | GK32: 1237 | GL32: 1237 | GM32: 1237 | GN32: 1237 | GO32: 1237 | GP32: 1237 | GQ32: 1237 | GR32: 1237 | GS32: 1237 | GT32: 1237 | GU32: 1237 | GV32: 1237 | GW32: 1237 | GX32: 1237 | GY32: 1237 | GZ32: 1237 | HA32: 1237 | HB32: 1237 | HC32: 1237 | HD32: 1237 | HE32: 1237 | HF32: 1237 | HG32: 1237 | HH32: 1237 | HI32: 1237 | HJ32: 1237 | HK32: 1237 | HL32: 1237 | HM32: 1237 | HN32: 1237 | HO32: 1237 | HP32: 1237 | HQ32: 1237 | HR32: 1237 | HS32: 1237 | HT32: 1237 | HU32: 1237 | HV32: 1237 | HW32: 1237 | HX32: 1237 | HY32: 1237 | HZ32: 1237 | IA32: 1237 | IB32: 1237 | IC32: 1237 | ID32: 1237 | IE32: 1237 | IF32: 1237 | IG32: 1237 | IH32: 1237 | II32: 1237 | IJ32: 1237 | IK32: 1237 | IL32: 1237 | IM32: 1237 | IN32: 1237 | IO32: 1237 | IP32: 1237 | IQ32: 1237 | IR32: 1237 | IS32: 1237 | IT32: 1237 | IU32: 1237 | IV32: 1237 | IW32: 1237 | IX32: 1237 | IY32: 1237 | IZ32: 1237 | JA32: 1237 | JB32: 1237 | JC32: 1237 | JD32: 1237 | JE32: 1237 | JF32: 1237
B33: PPE GT | C33: 420 | D33: 420 | E33: 420 | F33: 420 | G33: 420 | H33: 420 | I33: 420 | J33: 420 | K33: 420 | L33: 420 | M33: 420 | N33: 420 | O33: =N33 -> 420 | P33: 420 | Q33: 420 | R33: 420 | S33: 420 | T33: 420 | U33: 420 | V33: 420 | W33: 420 | X33: 420 | Y33: 420 | Z33: 420 | AA33: 420 | AB33: 420 | AC33: 420 | AD33: 420 | AE33: 420 | AF33: 420 | AG33: 420 | AH33: 420 | AI33: 420 | AJ33: 420 | AK33: 420 | AL33: 420 | AM33: 420 | AN33: 420 | AO33: 420 | AP33: 420 | AQ33: 420 | AR33: 420 | AS33: 420 | AT33: 420 | AU33: 420 | AV33: =AU33 -> 420 | AW33: 420 | AX33: 420 | AY33: =AX33 -> 420 | AZ33: 420 | BA33: 420 | BB33: 420 | BC33: 420 | BD33: 420 | BE33: 420 | BF33: 420 | BG33: 420 | BH33: 420 | BI33: 420 | BJ33: =BI33 -> 420 | BK33: 420 | BL33: 420 | BM33: 420 | BN33: 420 | BO33: 420 | BP33: 420 | BQ33: 420 | BR33: 420 | BS33: 420 | BT33: 420 | BU33: 420 | BV33: 420 | BW33: 420 | BX33: 420 | BY33: 420 | BZ33: 420 | CA33: 420 | CB33: 420 | CC33: 420 | CD33: 420 | CE33: 420 | CF33: 420 | CG33: 420 | CH33: 420 | CI33: 420 | CJ33: 420 | CK33: 420 | CL33: 420 | CM33: 420 | CN33: 420 | CO33: 420 | CP33: 420 | CQ33: 420 | CR33: 420 | CS33: 420 | CT33: 420 | CU33: 420 | CV33: 420 | CW33: 420 | CX33: 420 | CY33: 420 | CZ33: 420 | DA33: 420 | DB33: 420 | DC33: 420 | DD33: 420 | DE33: 420 | DF33: 420 | DG33: 420 | DH33: 420 | DI33: 420 | DJ33: 420 | DK33: 420 | DL33: 420 | DM33: 420 | DN33: 420 | DO33: 420 | DP33: 420 | DQ33: 420 | DR33: 420 | DS33: 420 | DT33: 420 | DU33: 420 | DV33: 420 | DW33: 420 | DX33: 420 | DY33: 420 | DZ33: 420 | EA33: 420 | EB33: 420 | EC33: 420 | ED33: 420 | EE33: 420 | EF33: 420 | EG33: 420 | EH33: 420 | EI33: 420 | EJ33: 420 | EK33: 420 | EL33: 420 | EM33: 420 | EN33: 420 | EO33: 420 | EP33: 420 | EQ33: 420 | ER33: 420 | ES33: 420 | ET33: 420 | EU33: 420 | EV33: 420 | EW33: 420 | EX33: 420 | EY33: 420 | EZ33: 420 | FA33: 420 | FB33: 420 | FC33: 420 | FD33: 420 | FE33: 420 | FF33: 420 | FG33: 420 | FH33: 420 | FI33: 420 | FJ33: 420 | FK33: 420 | FL33: 420 | FM33: 420 | FN33: 420 | FO33: 420 | FP33: 420 | FQ33: 420 | FR33: 420 | FS33: 420 | FT33: 420 | FU33: 420 | FV33: 420 | FW33: 420 | FX33: 420 | FY33: 420 | FZ33: 420 | GA33: 420 | GB33: 420 | GC33: 420 | GD33: 420 | GE33: 420 | GF33: =GE33 -> 420 | GG33: 420 | GH33: 420 | GI33: 420 | GJ33: 420 | GK33: 420 | GL33: 420 | GM33: 420 | GN33: 420 | GO33: 420 | GP33: 420 | GQ33: 420 | GR33: =GQ33 -> 420 | GS33: 420 | GT33: 420 | GU33: 420 | GV33: 420 | GW33: 420 | GX33: 420 | GY33: =GX33 -> 420 | GZ33: 420 | HA33: 420 | HB33: 420 | HC33: 420 | HD33: =HC33 -> 420 | HE33: 420 | HF33: 420 | HG33: 420 | HH33: 420 | HI33: 420 | HJ33: 420 | HK33: 420 | HL33: 420 | HM33: 420 | HN33: 420 | HO33: 420 | HP33: =HO33 -> 420 | HQ33: 420 | HR33: 420 | HS33: 420 | HT33: 420 | HU33: 420 | HV33: 420 | HW33: 420 | HX33: 420 | HY33: 420 | HZ33: 420 | IA33: 420 | IB33: =IA33 -> 420 | IC33: 420 | ID33: 420 | IE33: 420 | IF33: 420 | IG33: 420 | IH33: 420 | II33: 420 | IJ33: 420 | IK33: 420 | IL33: 420 | IM33: 420 | IN33: =IM33 -> 420 | IO33: 420 | IP33: 420 | IQ33: 420 | IR33: 420 | IS33: 420 | IT33: 420 | IU33: 420 | IV33: 420 | IW33: 420 | IX33: 420 | IY33: 420 | IZ33: =IY33 -> 420 | JA33: 420 | JB33: 420 | JC33: 420 | JD33: 420 | JE33: 420 | JF33: 420
B34: PPN1 | C34: 249 | D34: 249 | E34: 249 | F34: 249 | G34: 249 | H34: 249 | I34: 249 | J34: 249 | K34: 249 | L34: 249 | M34: 249 | N34: 249 | O34: =N34 -> 249 | P34: 249 | Q34: 249 | R34: 249 | S34: 249 | T34: 249 | U34: 249 | V34: 249 | W34: 249 | X34: 249 | Y34: 249 | Z34: 249 | AA34: 249 | AB34: 249 | AC34: 249 | AD34: 249 | AE34: 249 | AF34: 249 | AG34: 249 | AH34: 249 | AI34: 249 | AJ34: 249 | AK34: 249 | AL34: 249 | AM34: =AL34 -> 249 | AN34: 249 | AO34: 249 | AP34: 249 | AQ34: 249 | AR34: 249 | AS34: 249 | AT34: 249 | AU34: 249 | AV34: 249 | AW34: 249 | AX34: 249 | AY34: =AX34-4 -> 245 | AZ34: 245 | BA34: 245 | BB34: 245 | BC34: 245 | BD34: 245 | BE34: 245 | BF34: 245 | BG34: 245 | BH34: 245 | BI34: 245 | BJ34: =BI34+4 -> 249 | BK34: 249 | BL34: 249 | BM34: 249 | BN34: 249 | BO34: 249 | BP34: 249 | BQ34: 249 | BR34: 249 | BS34: 249 | BT34: 249 | BU34: 249 | BV34: 249 | BW34: 249 | BX34: 249 | BY34: 249 | BZ34: 249 | CA34: 249 | CB34: 249 | CC34: 249 | CD34: 249 | CE34: 249 | CF34: 249 | CG34: 249 | CH34: 249 | CI34: 249 | CJ34: 249 | CK34: 249 | CL34: 249 | CM34: 249 | CN34: 249 | CO34: 249 | CP34: 249 | CQ34: 249 | CR34: 249 | CS34: 249 | CT34: 249 | CU34: 249 | CV34: 249 | CW34: 249 | CX34: 249 | CY34: 249 | CZ34: 249 | DA34: 249 | DB34: 249 | DC34: 249 | DD34: 249 | DE34: 249 | DF34: 249 | DG34: 249 | DH34: 249 | DI34: 249 | DJ34: 249 | DK34: 249 | DL34: 249 | DM34: 249 | DN34: 249 | DO34: 249 | DP34: 249 | DQ34: 249 | DR34: 249 | DS34: 249 | DT34: 249 | DU34: 249 | DV34: 249 | DW34: 249 | DX34: 249 | DY34: 249 | DZ34: 249 | EA34: 249 | EB34: 249 | EC34: 249 | ED34: 249 | EE34: 249 | EF34: 249 | EG34: 249 | EH34: 249 | EI34: 249 | EJ34: 249 | EK34: 249 | EL34: 249 | EM34: 249 | EN34: 249 | EO34: 249 | EP34: 249 | EQ34: =EP34-2 -> 247 | ER34: 247 | ES34: 247 | ET34: 247 | EU34: 247 | EV34: 247 | EW34: 247 | EX34: 247 | EY34: 247 | EZ34: 247 | FA34: 247 | FB34: =FA34-247 -> 0 | FC34: =FB34 -> 0 | FD34: 0 | FE34: 0 | FF34: 0 | FG34: 0 | FH34: 0 | FI34: 0 | FJ34: 0 | FK34: 0 | FL34: 0 | FM34: 0 | FN34: 0 | FO34: 0 | FP34: 0 | FQ34: 0 | FR34: 0 | FS34: 0 | FT34: 0 | FU34: 0 | FV34: 0 | FW34: 0 | FX34: 0 | FY34: 0 | FZ34: 0 | GA34: 0 | GB34: 0 | GC34: 0 | GD34: 0 | GE34: 0 | GF34: =GE34 -> 0 | GG34: 0 | GH34: 0 | GI34: 0 | GJ34: 0 | GK34: 0 | GL34: 0 | GM34: =GL34 -> 0 | GN34: 0 | GO34: 0 | GP34: 0 | GQ34: 0 | GR34: =GQ34 -> 0 | GS34: 0 | GT34: 0 | GU34: 0 | GV34: 0 | GW34: 0 | GX34: 0 | GY34: 0 | GZ34: 0 | HA34: 0 | HB34: 0 | HC34: 0 | HD34: =HC34 -> 0 | HE34: 0 | HF34: 0 | HG34: 0 | HH34: 0 | HI34: 0 | HJ34: 0 | HK34: 0 | HL34: 0 | HM34: 0 | HN34: 0 | HO34: 0 | HP34: =HO34 -> 0 | HQ34: 0 | HR34: 0 | HS34: 0 | HT34: 0 | HU34: 0 | HV34: 0 | HW34: 0 | HX34: 0 | HY34: 0 | HZ34: 0 | IA34: 0 | IB34: =IA34 -> 0 | IC34: 0 | ID34: 0 | IE34: 0 | IF34: 0 | IG34: 0 | IH34: 0 | II34: 0 | IJ34: 0 | IK34: 0 | IL34: 0 | IM34: 0 | IN34: =IM34 -> 0 | IO34: 0 | IP34: 0 | IQ34: 0 | IR34: 0 | IS34: 0 | IT34: 0 | IU34: 0 | IV34: 0 | IW34: 0 | IX34: 0 | IY34: 0 | IZ34: =IY34 -> 0 | JA34: 0 | JB34: 0 | JC34: 0 | JD34: 0 | JE34: 0 | JF34: 0
B35: PPN2 | C35: 249 | D35: 249 | E35: 249 | F35: 249 | G35: 249 | H35: 249 | I35: 249 | J35: 249 | K35: 249 | L35: 249 | M35: 249 | N35: 249 | O35: =N35 -> 249 | P35: 249 | Q35: 249 | R35: 249 | S35: 249 | T35: 249 | U35: 249 | V35: 249 | W35: 249 | X35: 249 | Y35: 249 | Z35: 249 | AA35: 249 | AB35: =AA35 -> 249 | AC35: 249 | AD35: 249 | AE35: 249 | AF35: 249 | AG35: 249 | AH35: 249 | AI35: 249 | AJ35: =AI35 -> 249 | AK35: =AJ35 -> 249 | AL35: =AK35 -> 249 | AM35: =AL35 -> 249 | AN35: =AM35 -> 249 | AO35: 249 | AP35: 249 | AQ35: 249 | AR35: 249 | AS35: 249 | AT35: 249 | AU35: 249 | AV35: =AU35 -> 249 | AW35: =AV35 -> 249 | AX35: =AW35 -> 249 | AY35: =AX35 -> 249 | AZ35: 249 | BA35: 249 | BB35: 249 | BC35: 249 | BD35: 249 | BE35: 249 | BF35: 249 | BG35: 249 | BH35: 249 | BI35: 249 | BJ35: =BI35 -> 249 | BK35: 249 | BL35: 249 | BM35: =BL35 -> 249 | BN35: 249 | BO35: 249 | BP35: 249 | BQ35: 249 | BR35: 249 | BS35: 249 | BT35: 249 | BU35: 249 | BV35: 249 | BW35: 249 | BX35: 249 | BY35: 249 | BZ35: 249 | CA35: 249 | CB35: 249 | CC35: 249 | CD35: 249 | CE35: 249 | CF35: 249 | CG35: 249 | CH35: 249 | CI35: 249 | CJ35: 249 | CK35: 249 | CL35: 249 | CM35: 249 | CN35: 249 | CO35: 249 | CP35: 249 | CQ35: 249 | CR35: 249 | CS35: 249 | CT35: 249 | CU35: 249 | CV35: 249 | CW35: 249 | CX35: 249 | CY35: 249 | CZ35: 249 | DA35: 249 | DB35: 249 | DC35: 249 | DD35: 249 | DE35: 249 | DF35: 249 | DG35: 249 | DH35: 249 | DI35: 249 | DJ35: 249 | DK35: 249 | DL35: 249 | DM35: 249 | DN35: 249 | DO35: 249 | DP35: 249 | DQ35: 249 | DR35: 249 | DS35: 249 | DT35: 249 | DU35: 249 | DV35: 249 | DW35: 249 | DX35: 249 | DY35: 249 | DZ35: 249 | EA35: 249 | EB35: 249 | EC35: 249 | ED35: 249 | EE35: 249 | EF35: 249 | EG35: 249 | EH35: 249 | EI35: 249 | EJ35: 249 | EK35: 249 | EL35: 249 | EM35: 249 | EN35: 249 | EO35: 249 | EP35: 249 | EQ35: =EP35-2 -> 247 | ER35: 247 | ES35: 247 | ET35: 247 | EU35: 247 | EV35: 247 | EW35: 247 | EX35: 247 | EY35: 247 | EZ35: 247 | FA35: 247 | FB35: =FA35-247 -> 0 | FC35: =FB35 -> 0 | FD35: 0 | FE35: 0 | FF35: 0 | FG35: 0 | FH35: 0 | FI35: 0 | FJ35: 0 | FK35: 0 | FL35: 0 | FM35: 0 | FN35: 0 | FO35: 0 | FP35: 0 | FQ35: 0 | FR35: 0 | FS35: 0 | FT35: =FS35 -> 0 | FU35: =FT35 -> 0 | FV35: =FU35 -> 0 | FW35: =FV35 -> 0 | FX35: =FW35 -> 0 | FY35: 0 | FZ35: 0 | GA35: 0 | GB35: 0 | GC35: 0 | GD35: 0 | GE35: 0 | GF35: =GE35 -> 0 | GG35: =GF35 -> 0 | GH35: =GG35 -> 0 | GI35: =GH35 -> 0 | GJ35: =GI35 -> 0 | GK35: 0 | GL35: 0 | GM35: =GL35 -> 0 | GN35: 0 | GO35: 0 | GP35: 0 | GQ35: 0 | GR35: =GQ35 -> 0 | GS35: =GR35 -> 0 | GT35: =GS35 -> 0 | GU35: =GT35 -> 0 | GV35: =GU35 -> 0 | GW35: 0 | GX35: 0 | GY35: 0 | GZ35: 0 | HA35: 0 | HB35: 0 | HC35: 0 | HD35: =HC35 -> 0 | HE35: =HD35 -> 0 | HF35: =HE35 -> 0 | HG35: =HF35 -> 0 | HH35: =HG35 -> 0 | HI35: 0 | HJ35: 0 | HK35: 0 | HL35: 0 | HM35: 0 | HN35: 0 | HO35: 0 | HP35: =HO35 -> 0 | HQ35: =HP35 -> 0 | HR35: =HQ35 -> 0 | HS35: =HR35 -> 0 | HT35: =HS35 -> 0 | HU35: 0 | HV35: 0 | HW35: 0 | HX35: 0 | HY35: 0 | HZ35: 0 | IA35: 0 | IB35: =IA35 -> 0 | IC35: =IB35 -> 0 | ID35: =IC35 -> 0 | IE35: =ID35 -> 0 | IF35: =IE35 -> 0 | IG35: 0 | IH35: 0 | II35: 0 | IJ35: 0 | IK35: 0 | IL35: 0 | IM35: 0 | IN35: =IM35 -> 0 | IO35: =IN35 -> 0 | IP35: =IO35 -> 0 | IQ35: =IP35 -> 0 | IR35: =IQ35 -> 0 | IS35: 0 | IT35: 0 | IU35: 0 | IV35: 0 | IW35: 0 | IX35: 0 | IY35: 0 | IZ35: =IY35 -> 0 | JA35: =IZ35 -> 0 | JB35: =JA35 -> 0 | JC35: =JB35 -> 0 | JD35: =JC35 -> 0 | JE35: 0 | JF35: 0
B36: PRV3 | C36: 283 | D36: 283 | E36: 283 | F36: 283 | G36: 283 | H36: 283 | I36: 283 | J36: 283 | K36: 283 | L36: 283 | M36: 283 | N36: 283 | O36: =N36-2 -> 281 | P36: 281 | Q36: 281 | R36: 281 | S36: 281 | T36: 281 | U36: 281 | V36: 281 | W36: 281 | X36: 281 | Y36: 281 | Z36: 281 | AA36: 281 | AB36: 281 | AC36: 281 | AD36: 281 | AE36: 281 | AF36: =AE36 -> 281 | AG36: 281 | AH36: 281 | AI36: 281 | AJ36: 281 | AK36: 281 | AL36: 281 | AM36: =AL36-9 -> 272 | AN36: =AM36 -> 272 | AO36: 272 | AP36: 272 | AQ36: 272 | AR36: 272 | AS36: 272 | AT36: 272 | AU36: 272 | AV36: 272 | AW36: 272 | AX36: 272 | AY36: 272 | AZ36: 272 | BA36: 272 | BB36: 272 | BC36: 272 | BD36: 272 | BE36: 272 | BF36: 272 | BG36: 272 | BH36: 272 | BI36: 272 | BJ36: =BI36+5 -> 277 | BK36: =BJ36 -> 277 | BL36: 277 | BM36: 277 | BN36: 277 | BO36: 277 | BP36: 277 | BQ36: 277 | BR36: 277 | BS36: 277 | BT36: 277 | BU36: 277 | BV36: 277 | BW36: 277 | BX36: 277 | BY36: 277 | BZ36: 277 | CA36: 277 | CB36: 277 | CC36: 277 | CD36: 277 | CE36: 277 | CF36: 277 | CG36: 277 | CH36: 277 | CI36: 277 | CJ36: 277 | CK36: 277 | CL36: 277 | CM36: 277 | CN36: 277 | CO36: 277 | CP36: 277 | CQ36: 277 | CR36: 277 | CS36: 277 | CT36: 277 | CU36: 277 | CV36: 277 | CW36: 277 | CX36: 277 | CY36: 277 | CZ36: 277 | DA36: 277 | DB36: 277 | DC36: 277 | DD36: 277 | DE36: 277 | DF36: 277 | DG36: 277 | DH36: =DG36-277 -> 0 | DI36: 0 | DJ36: 0 | DK36: 0 | DL36: 0 | DM36: 0 | DN36: 0 | DO36: 0 | DP36: 0 | DQ36: 0 | DR36: 0 | DS36: 0 | DT36: 0 | DU36: 0 | DV36: 0 | DW36: 0 | DX36: 0 | DY36: 0 | DZ36: 0 | EA36: 0 | EB36: 0 | EC36: 0 | ED36: 0 | EE36: 0 | EF36: 0 | EG36: 0 | EH36: 0 | EI36: 0 | EJ36: 0 | EK36: 0 | EL36: 0 | EM36: 0 | EN36: 0 | EO36: 0 | EP36: 0 | EQ36: 0 | ER36: 0 | ES36: 0 | ET36: 0 | EU36: 0 | EV36: 0 | EW36: 0 | EX36: 0 | EY36: 0 | EZ36: 0 | FA36: 0 | FB36: 0 | FC36: 0 | FD36: 0 | FE36: 0 | FF36: 0 | FG36: 0 | FH36: 0 | FI36: 0 | FJ36: 0 | FK36: 0 | FL36: 0 | FM36: 0 | FN36: 0 | FO36: 0 | FP36: 0 | FQ36: 0 | FR36: 0 | FS36: 0 | FT36: 0 | FU36: 0 | FV36: 0 | FW36: 0 | FX36: 0 | FY36: 0 | FZ36: 0 | GA36: 0 | GB36: 0 | GC36: 0 | GD36: 0 | GE36: 0 | GF36: 0 | GG36: 0 | GH36: 0 | GI36: 0 | GJ36: 0 | GK36: 0 | GL36: 0 | GM36: 0 | GN36: 0 | GO36: 0 | GP36: 0 | GQ36: 0 | GR36: 0 | GS36: 0 | GT36: 0 | GU36: 0 | GV36: 0 | GW36: 0 | GX36: 0 | GY36: 0 | GZ36: 0 | HA36: 0 | HB36: 0 | HC36: 0 | HD36: 0 | HE36: 0 | HF36: 0 | HG36: 0 | HH36: 0 | HI36: 0 | HJ36: 0 | HK36: 0 | HL36: 0 | HM36: 0 | HN36: 0 | HO36: 0 | HP36: 0 | HQ36: 0 | HR36: 0 | HS36: 0 | HT36: 0 | HU36: 0 | HV36: 0 | HW36: 0 | HX36: 0 | HY36: 0 | HZ36: 0 | IA36: 0 | IB36: 0 | IC36: 0 | ID36: 0 | IE36: 0 | IF36: 0 | IG36: 0 | IH36: 0 | II36: 0 | IJ36: 0 | IK36: 0 | IL36: 0 | IM36: 0 | IN36: 0 | IO36: 0 | IP36: 0 | IQ36: 0 | IR36: 0 | IS36: 0 | IT36: 0 | IU36: 0 | IV36: 0 | IW36: 0 | IX36: 0 | IY36: 0 | IZ36: 0 | JA36: 0 | JB36: 0 | JC36: 0 | JD36: 0 | JE36: 0 | JF36: 0
B37: PRV4 | C37: 284 | D37: 284 | E37: 284 | F37: 284 | G37: 284 | H37: 284 | I37: 284 | J37: 284 | K37: 284 | L37: 284 | M37: 284 | N37: 284 | O37: 284 | P37: 284 | Q37: 284 | R37: 284 | S37: 284 | T37: 284 | U37: 284 | V37: 284 | W37: 284 | X37: 284 | Y37: 284 | Z37: 284 | AA37: 284 | AB37: 284 | AC37: 284 | AD37: 284 | AE37: 284 | AF37: 284 | AG37: 284 | AH37: 284 | AI37: 284 | AJ37: 284 | AK37: 284 | AL37: 284 | AM37: =AL37 -> 284 | AN37: 284 | AO37: 284 | AP37: 284 | AQ37: 284 | AR37: 284 | AS37: 284 | AT37: 284 | AU37: 284 | AV37: 284 | AW37: 284 | AX37: 284 | AY37: 284 | AZ37: 284 | BA37: 284 | BB37: 284 | BC37: 284 | BD37: 284 | BE37: 284 | BF37: 284 | BG37: 284 | BH37: 284 | BI37: 284 | BJ37: =BI37+4 -> 288 | BK37: 288 | BL37: 288 | BM37: 288 | BN37: 288 | BO37: 288 | BP37: 288 | BQ37: 288 | BR37: 288 | BS37: 288 | BT37: 288 | BU37: 288 | BV37: 288 | BW37: 288 | BX37: 288 | BY37: 288 | BZ37: 288 | CA37: 288 | CB37: 288 | CC37: 288 | CD37: 288 | CE37: 288 | CF37: 288 | CG37: 288 | CH37: 288 | CI37: 288 | CJ37: 288 | CK37: 288 | CL37: 288 | CM37: 288 | CN37: 288 | CO37: 288 | CP37: 288 | CQ37: 288 | CR37: 288 | CS37: 288 | CT37: 288 | CU37: 288 | CV37: 288 | CW37: 288 | CX37: 288 | CY37: 288 | CZ37: 288 | DA37: 288 | DB37: 288 | DC37: 288 | DD37: 288 | DE37: 288 | DF37: 288 | DG37: 288 | DH37: =DG37-288 -> 0 | DI37: 0 | DJ37: 0 | DK37: 0 | DL37: 0 | DM37: 0 | DN37: 0 | DO37: 0 | DP37: 0 | DQ37: 0 | DR37: 0 | DS37: 0 | DT37: 0 | DU37: 0 | DV37: 0 | DW37: 0 | DX37: 0 | DY37: 0 | DZ37: 0 | EA37: 0 | EB37: 0 | EC37: 0 | ED37: 0 | EE37: 0 | EF37: 0 | EG37: 0 | EH37: 0 | EI37: 0 | EJ37: 0 | EK37: 0 | EL37: 0 | EM37: 0 | EN37: 0 | EO37: 0 | EP37: 0 | EQ37: 0 | ER37: 0 | ES37: 0 | ET37: 0 | EU37: 0 | EV37: 0 | EW37: 0 | EX37: 0 | EY37: 0 | EZ37: 0 | FA37: 0 | FB37: 0 | FC37: 0 | FD37: 0 | FE37: 0 | FF37: 0 | FG37: 0 | FH37: 0 | FI37: 0 | FJ37: 0 | FK37: 0 | FL37: 0 | FM37: 0 | FN37: 0 | FO37: 0 | FP37: 0 | FQ37: 0 | FR37: 0 | FS37: 0 | FT37: 0 | FU37: 0 | FV37: 0 | FW37: 0 | FX37: 0 | FY37: 0 | FZ37: 0 | GA37: 0 | GB37: 0 | GC37: 0 | GD37: 0 | GE37: 0 | GF37: 0 | GG37: 0 | GH37: 0 | GI37: 0 | GJ37: 0 | GK37: 0 | GL37: 0 | GM37: 0 | GN37: 0 | GO37: 0 | GP37: 0 | GQ37: 0 | GR37: 0 | GS37: 0 | GT37: 0 | GU37: 0 | GV37: 0 | GW37: 0 | GX37: 0 | GY37: 0 | GZ37: 0 | HA37: 0 | HB37: 0 | HC37: 0 | HD37: 0 | HE37: 0 | HF37: 0 | HG37: 0 | HH37: 0 | HI37: 0 | HJ37: 0 | HK37: 0 | HL37: 0 | HM37: 0 | HN37: 0 | HO37: 0 | HP37: 0 | HQ37: 0 | HR37: 0 | HS37: 0 | HT37: 0 | HU37: 0 | HV37: 0 | HW37: 0 | HX37: 0 | HY37: 0 | HZ37: 0 | IA37: 0 | IB37: 0 | IC37: 0 | ID37: 0 | IE37: 0 | IF37: 0 | IG37: 0 | IH37: 0 | II37: 0 | IJ37: 0 | IK37: 0 | IL37: 0 | IM37: 0 | IN37: 0 | IO37: 0 | IP37: 0 | IQ37: 0 | IR37: 0 | IS37: 0 | IT37: 0 | IU37: 0 | IV37: 0 | IW37: 0 | IX37: 0 | IY37: 0 | IZ37: 0 | JA37: 0 | JB37: 0 | JC37: 0 | JD37: 0 | JE37: 0 | JF37: 0
B38: PRV5 | C38: 0 | D38: 0 | E38: 0 | F38: 0 | G38: 0 | H38: 0 | I38: 0 | J38: 0 | K38: 0 | L38: 0 | M38: 0 | N38: 0 | O38: 0 | P38: 0 | Q38: 0 | R38: 0 | S38: 0 | T38: 0 | U38: 0 | V38: 0 | W38: 0 | X38: 0 | Y38: 0 | Z38: 0 | AA38: 0 | AB38: 0 | AC38: 0 | AD38: 0 | AE38: 0 | AF38: 0 | AG38: 0 | AH38: 0 | AI38: 0 | AJ38: 0 | AK38: 0 | AL38: 0 | AM38: =AL38 -> 0 | AN38: 0 | AO38: 0 | AP38: 0 | AQ38: 0 | AR38: 0 | AS38: 0 | AT38: 0 | AU38: 0 | AV38: 0 | AW38: 0 | AX38: 0 | AY38: 0 | AZ38: 0 | BA38: 0 | BB38: 0 | BC38: 0 | BD38: 0 | BE38: 0 | BF38: 0 | BG38: 0 | BH38: =BE38 -> 0 | BI38: 0 | BJ38: 0 | BK38: 0 | BL38: 0 | BM38: 0 | BN38: 0 | BO38: 0 | BP38: 0 | BQ38: 0 | BR38: 0 | BS38: 0 | BT38: 0 | BU38: 0 | BV38: 0 | BW38: 0 | BX38: 0 | BY38: 0 | BZ38: 0 | CA38: 0 | CB38: 0 | CC38: 0 | CD38: 0 | CE38: 0 | CF38: 0 | CG38: 0 | CH38: 0 | CI38: 0 | CJ38: 0 | CK38: 0 | CL38: 0 | CM38: 0 | CN38: 0 | CO38: 0 | CP38: 0 | CQ38: 0 | CR38: 0 | CS38: 0 | CT38: 0 | CU38: 0 | CV38: 0 | CW38: 0 | CX38: 0 | CY38: 0 | CZ38: 0 | DA38: 0 | DB38: 0 | DC38: 0 | DD38: 0 | DE38: 0 | DF38: 0 | DG38: 0 | DH38: 0 | DI38: 0 | DJ38: 0 | DK38: 0 | DL38: 0 | DM38: 0 | DN38: 0 | DO38: 0 | DP38: 0 | DQ38: 0 | DR38: 0 | DS38: 0 | DT38: 0 | DU38: 0 | DV38: 0 | DW38: 0 | DX38: 0 | DY38: 0 | DZ38: 0 | EA38: 0 | EB38: 0 | EC38: 0 | ED38: 0 | EE38: 0 | EF38: 0 | EG38: 0 | EH38: 0 | EI38: 0 | EJ38: 0 | EK38: 0 | EL38: 0 | EM38: 0 | EN38: 0 | EO38: 0 | EP38: 0 | EQ38: 0 | ER38: 0 | ES38: 0 | ET38: =ES38+1212 -> 1212 | EU38: 1212 | EV38: 1212 | EW38: 1212 | EX38: 1212 | EY38: 1212 | EZ38: 1212 | FA38: 1212 | FB38: 1212 | FC38: 1212 | FD38: 1212 | FE38: 1212 | FF38: 1212 | FG38: 1212 | FH38: 1212 | FI38: 1212 | FJ38: 1212 | FK38: 1212 | FL38: 1212 | FM38: 1212 | FN38: 1212 | FO38: 1212 | FP38: 1212 | FQ38: 1212 | FR38: 1212 | FS38: 1212 | FT38: 1212 | FU38: 1212 | FV38: 1212 | FW38: 1212 | FX38: 1212 | FY38: 1212 | FZ38: 1212 | GA38: 1212 | GB38: 1212 | GC38: 1212 | GD38: 1212 | GE38: 1212 | GF38: 1212 | GG38: 1212 | GH38: 1212 | GI38: 1212 | GJ38: 1212 | GK38: 1212 | GL38: 1212 | GM38: 1212 | GN38: 1212 | GO38: 1212 | GP38: 1212 | GQ38: 1212 | GR38: 1212 | GS38: 1212 | GT38: 1212 | GU38: 1212 | GV38: 1212 | GW38: 1212 | GX38: 1212 | GY38: 1212 | GZ38: 1212 | HA38: 1212 | HB38: 1212 | HC38: 1212 | HD38: 1212 | HE38: 1212 | HF38: 1212 | HG38: 1212 | HH38: 1212 | HI38: 1212 | HJ38: 1212 | HK38: 1212 | HL38: 1212 | HM38: 1212 | HN38: 1212 | HO38: 1212 | HP38: 1212 | HQ38: 1212 | HR38: 1212 | HS38: 1212 | HT38: 1212 | HU38: 1212 | HV38: 1212 | HW38: 1212 | HX38: 1212 | HY38: 1212 | HZ38: 1212 | IA38: 1212 | IB38: 1212 | IC38: 1212 | ID38: 1212 | IE38: 1212 | IF38: 1212 | IG38: 1212 | IH38: 1212 | II38: 1212 | IJ38: 1212 | IK38: 1212 | IL38: 1212 | IM38: 1212 | IN38: 1212 | IO38: 1212 | IP38: 1212 | IQ38: 1212 | IR38: 1212 | IS38: 1212 | IT38: 1212 | IU38: 1212 | IV38: 1212 | IW38: 1212 | IX38: 1212 | IY38: =IX38+28 -> 1240 | IZ38: =IY38 -> 1240 | JA38: =IZ38+28 -> 1268 | JB38: =JA38 -> 1268 | JC38: =JB38 -> 1268 | JD38: =JC38 -> 1268 | JE38: =JD38+27 -> 1295 | JF38: 1295
B39: PSC | C39: 0 | D39: 0 | E39: 0 | F39: 0 | G39: 0 | H39: 0 | I39: 0 | J39: 0 | K39: 0 | L39: 0 | M39: 0 | N39: 0 | O39: 0 | P39: 0 | Q39: 0 | R39: 0 | S39: 0 | T39: 0 | U39: 0 | V39: 0 | W39: 0 | X39: 0 | Y39: 0 | Z39: 0 | AA39: 0 | AB39: 0 | AC39: 0 | AD39: 0 | AE39: 0 | AF39: 0 | AG39: 0 | AH39: 0 | AI39: 0 | AJ39: 0 | AK39: 0 | AL39: 0 | AM39: =AL39 -> 0 | AN39: 0 | AO39: 0 | AP39: 0 | AQ39: 0 | AR39: 0 | AS39: 0 | AT39: 0 | AU39: 0 | AV39: 0 | AW39: 0 | AX39: 0 | AY39: 0 | AZ39: 0 | BA39: 0 | BB39: 0 | BC39: 0 | BD39: 0 | BE39: 0 | BF39: 0 | BG39: 0 | BH39: =BE39 -> 0 | BI39: 0 | BJ39: 0 | BK39: 0 | BL39: 0 | BM39: 0 | BN39: 0 | BO39: 0 | BP39: 0 | BQ39: 0 | BR39: 0 | BS39: 0 | BT39: 0 | BU39: 0 | BV39: 0 | BW39: 0 | BX39: 0 | BY39: 0 | BZ39: 0 | CA39: 0 | CB39: 0 | CC39: 0 | CD39: 0 | CE39: 0 | CF39: 0 | CG39: 0 | CH39: 0 | CI39: 0 | CJ39: 0 | CK39: 0 | CL39: 0 | CM39: 0 | CN39: 0 | CO39: 0 | CP39: 0 | CQ39: 0 | CR39: 0 | CS39: 0 | CT39: 0 | CU39: 0 | CV39: 0 | CW39: 0 | CX39: =CW39+10 -> 10 | CY39: 10 | CZ39: 10 | DA39: 10 | DB39: 10 | DC39: 10 | DD39: 10 | DE39: 10 | DF39: 10 | DG39: 10 | DH39: 10 | DI39: 10 | DJ39: 10 | DK39: 10 | DL39: 10 | DM39: 10 | DN39: 10 | DO39: 10 | DP39: 10 | DQ39: 10 | DR39: 10 | DS39: 10 | DT39: 10 | DU39: 10 | DV39: 10 | DW39: 10 | DX39: 10 | DY39: 10 | DZ39: 10 | EA39: 10 | EB39: 10 | EC39: 10 | ED39: 10 | EE39: 10 | EF39: 10 | EG39: 10 | EH39: 10 | EI39: 10 | EJ39: 10 | EK39: 10 | EL39: 10 | EM39: 10 | EN39: 10 | EO39: 10 | EP39: 10 | EQ39: 10 | ER39: 10 | ES39: 10 | ET39: 10 | EU39: 10 | EV39: 10 | EW39: 10 | EX39: 10 | EY39: 10 | EZ39: 10 | FA39: 10 | FB39: 10 | FC39: 10 | FD39: 10 | FE39: 10 | FF39: 10 | FG39: 10 | FH39: 10 | FI39: 10 | FJ39: 10 | FK39: 10 | FL39: 10 | FM39: 10 | FN39: 10 | FO39: 10 | FP39: 10 | FQ39: 10 | FR39: 10 | FS39: 10 | FT39: 10 | FU39: 10 | FV39: 10 | FW39: =FV39 -> 10 | FX39: 10 | FY39: 10 | FZ39: 10 | GA39: 10 | GB39: 10 | GC39: 10 | GD39: 10 | GE39: 10 | GF39: 10 | GG39: 10 | GH39: 10 | GI39: 10 | GJ39: 10 | GK39: 10 | GL39: 10 | GM39: 10 | GN39: 10 | GO39: 10 | GP39: 10 | GQ39: 10 | GR39: 10 | GS39: 10 | GT39: 10 | GU39: 10 | GV39: 10 | GW39: 10 | GX39: 10 | GY39: 10 | GZ39: 10 | HA39: 10 | HB39: 10 | HC39: 10 | HD39: 10 | HE39: 10 | HF39: 10 | HG39: 10 | HH39: 10 | HI39: 10 | HJ39: 10 | HK39: 10 | HL39: 10 | HM39: 10 | HN39: 10 | HO39: 10 | HP39: 10 | HQ39: 10 | HR39: 10 | HS39: 10 | HT39: 10 | HU39: 10 | HV39: 10 | HW39: 10 | HX39: 10 | HY39: 10 | HZ39: 10 | IA39: 10 | IB39: 10 | IC39: 10 | ID39: 10 | IE39: 10 | IF39: 10 | IG39: 10 | IH39: 10 | II39: 10 | IJ39: 10 | IK39: 10 | IL39: 10 | IM39: 10 | IN39: 10 | IO39: 10 | IP39: 10 | IQ39: 10 | IR39: 10 | IS39: 10 | IT39: 10 | IU39: 10 | IV39: 10 | IW39: 10 | IX39: 10 | IY39: 10 | IZ39: 10 | JA39: 10 | JB39: 10 | JC39: 10 | JD39: 10 | JE39: 10 | JF39: 10
B40: PSH4 | C40: 658 | D40: 658 | E40: 658 | F40: 658 | G40: 658 | H40: 658 | I40: 658 | J40: 658 | K40: 658 | L40: 658 | M40: 658 | N40: 658 | O40: 658 | P40: 658 | Q40: 658 | R40: 658 | S40: 658 | T40: 658 | U40: 658 | V40: 658 | W40: 658 | X40: 658 | Y40: 658 | Z40: 658 | AA40: 658 | AB40: 658 | AC40: 658 | AD40: 658 | AE40: 658 | AF40: 658 | AG40: 658 | AH40: 658 | AI40: 658 | AJ40: 658 | AK40: 658 | AL40: 658 | AM40: =AL40-19 -> 639 | AN40: 639 | AO40: 639 | AP40: 639 | AQ40: 639 | AR40: 639 | AS40: 639 | AT40: 639 | AU40: 639 | AV40: 639 | AW40: 639 | AX40: 639 | AY40: 639 | AZ40: 639 | BA40: 639 | BB40: 639 | BC40: =BB40-4 -> 635 | BD40: =BC40 -> 635 | BE40: 635 | BF40: 635 | BG40: 635 | BH40: =BE40+11 -> 646 | BI40: 646 | BJ40: 646 | BK40: 646 | BL40: 646 | BM40: 646 | BN40: 646 | BO40: 646 | BP40: 646 | BQ40: 646 | BR40: 646 | BS40: 646 | BT40: 646 | BU40: 646 | BV40: 646 | BW40: 646 | BX40: 646 | BY40: 646 | BZ40: 646 | CA40: 646 | CB40: =CA40 -> 646 | CC40: 646 | CD40: 646 | CE40: 646 | CF40: 646 | CG40: 646 | CH40: 646 | CI40: 646 | CJ40: 646 | CK40: 646 | CL40: 646 | CM40: 646 | CN40: 646 | CO40: 646 | CP40: 646 | CQ40: 646 | CR40: 646 | CS40: 646 | CT40: 646 | CU40: 646 | CV40: 646 | CW40: 646 | CX40: 646 | CY40: 646 | CZ40: 646 | DA40: 646 | DB40: 646 | DC40: 646 | DD40: 646 | DE40: 646 | DF40: 646 | DG40: 646 | DH40: 646 | DI40: 646 | DJ40: 646 | DK40: 646 | DL40: 646 | DM40: =DL40+26 -> 672 | DN40: 672 | DO40: 672 | DP40: 672 | DQ40: 672 | DR40: 672 | DS40: 672 | DT40: 672 | DU40: =DT40 -> 672 | DV40: =DU40 -> 672 | DW40: =DV40-30 -> 642 | DX40: 642 | DY40: 642 | DZ40: 642 | EA40: 642 | EB40: 642 | EC40: 642 | ED40: 642 | EE40: =ED40+1 -> 643 | EF40: 643 | EG40: 643 | EH40: 643 | EI40: 643 | EJ40: 643 | EK40: 643 | EL40: 643 | EM40: 643 | EN40: 643 | EO40: 643 | EP40: 643 | EQ40: 643 | ER40: 643 | ES40: 643 | ET40: 643 | EU40: 643 | EV40: 643 | EW40: 643 | EX40: 643 | EY40: 643 | EZ40: 643 | FA40: 643 | FB40: 643 | FC40: 643 | FD40: 643 | FE40: 643 | FF40: 643 | FG40: 643 | FH40: 643 | FI40: 643 | FJ40: 643 | FK40: 643 | FL40: 643 | FM40: 643 | FN40: 643 | FO40: 643 | FP40: 643 | FQ40: 643 | FR40: 643 | FS40: 643 | FT40: 643 | FU40: 643 | FV40: 643 | FW40: 643 | FX40: 643 | FY40: 643 | FZ40: 643 | GA40: 643 | GB40: 643 | GC40: 643 | GD40: 643 | GE40: 643 | GF40: 643 | GG40: 643 | GH40: 643 | GI40: 643 | GJ40: 643 | GK40: 643 | GL40: 643 | GM40: 643 | GN40: 643 | GO40: 643 | GP40: 643 | GQ40: 643 | GR40: 643 | GS40: 643 | GT40: 643 | GU40: 643 | GV40: 643 | GW40: 643 | GX40: 643 | GY40: 643 | GZ40: 643 | HA40: 643 | HB40: 643 | HC40: 643 | HD40: 643 | HE40: 643 | HF40: 643 | HG40: 643 | HH40: 643 | HI40: 643 | HJ40: 643 | HK40: 643 | HL40: 643 | HM40: 643 | HN40: 643 | HO40: 643 | HP40: 643 | HQ40: 643 | HR40: 643 | HS40: 643 | HT40: 643 | HU40: 643 | HV40: 643 | HW40: 643 | HX40: 643 | HY40: 643 | HZ40: 643 | IA40: 643 | IB40: 643 | IC40: 643 | ID40: 643 | IE40: 643 | IF40: 643 | IG40: 643 | IH40: 643 | II40: 643 | IJ40: 643 | IK40: 643 | IL40: 643 | IM40: 643 | IN40: 643 | IO40: 643 | IP40: 643 | IQ40: 643 | IR40: 643 | IS40: 643 | IT40: 643 | IU40: 643 | IV40: 643 | IW40: 643 | IX40: 643 | IY40: 643 | IZ40: 643 | JA40: 643 | JB40: 643 | JC40: 643 | JD40: 643 | JE40: 643 | JF40: 643
B41: PSL1 | C41: 839 | D41: 839 | E41: 839 | F41: 839 | G41: 839 | H41: 839 | I41: 839 | J41: 839 | K41: 839 | L41: 839 | M41: 839 | N41: 839 | O41: 839 | P41: 839 | Q41: 839 | R41: 839 | S41: 839 | T41: 839 | U41: 839 | V41: 839 | W41: 839 | X41: 839 | Y41: 839 | Z41: 839 | AA41: 839 | AB41: 839 | AC41: 839 | AD41: 839 | AE41: 839 | AF41: 839 | AG41: 839 | AH41: 839 | AI41: 839 | AJ41: 839 | AK41: 839 | AL41: 839 | AM41: =AL41 -> 839 | AN41: 839 | AO41: 839 | AP41: 839 | AQ41: 839 | AR41: 839 | AS41: 839 | AT41: 839 | AU41: 839 | AV41: 839 | AW41: 839 | AX41: 839 | AY41: 839 | AZ41: 839 | BA41: 839 | BB41: 839 | BC41: =BB41 -> 839 | BD41: =BC41 -> 839 | BE41: =BD41 -> 839 | BF41: 839 | BG41: 839 | BH41: =BE41 -> 839 | BI41: =BH41 -> 839 | BJ41: 839 | BK41: 839 | BL41: 839 | BM41: 839 | BN41: 839 | BO41: 839 | BP41: 839 | BQ41: 839 | BR41: 839 | BS41: 839 | BT41: 839 | BU41: 839 | BV41: 839 | BW41: 839 | BX41: 839 | BY41: 839 | BZ41: 839 | CA41: 839 | CB41: 839 | CC41: 839 | CD41: 839 | CE41: 839 | CF41: 839 | CG41: 839 | CH41: 839 | CI41: 839 | CJ41: 839 | CK41: 839 | CL41: 839 | CM41: 839 | CN41: 839 | CO41: 839 | CP41: 839 | CQ41: 839 | CR41: 839 | CS41: 839 | CT41: 839 | CU41: 839 | CV41: 839 | CW41: 839 | CX41: =CW41 -> 839 | CY41: 839 | CZ41: 839 | DA41: 839 | DB41: 839 | DC41: 839 | DD41: 839 | DE41: 839 | DF41: 839 | DG41: 839 | DH41: 839 | DI41: 839 | DJ41: 839 | DK41: 839 | DL41: 839 | DM41: 839 | DN41: =DM41 -> 839 | DO41: 839 | DP41: 839 | DQ41: 839 | DR41: 839 | DS41: 839 | DT41: 839 | DU41: 839 | DV41: =DU41 -> 839 | DW41: 839 | DX41: 839 | DY41: =DX41 -> 839 | DZ41: =DY41+148 -> 987 | EA41: 987 | EB41: 987 | EC41: 987 | ED41: =EC41-6 -> 981 | EE41: =ED41 -> 981 | EF41: 981 | EG41: 981 | EH41: =EG41 -> 981 | EI41: 981 | EJ41: 981 | EK41: 981 | EL41: 981 | EM41: 981 | EN41: 981 | EO41: 981 | EP41: 981 | EQ41: 981 | ER41: 981 | ES41: 981 | ET41: 981 | EU41: 981 | EV41: 981 | EW41: 981 | EX41: 981 | EY41: 981 | EZ41: 981 | FA41: 981 | FB41: 981 | FC41: 981 | FD41: 981 | FE41: 981 | FF41: 981 | FG41: 981 | FH41: 981 | FI41: 981 | FJ41: 981 | FK41: 981 | FL41: 981 | FM41: 981 | FN41: 981 | FO41: 981 | FP41: 981 | FQ41: 981 | FR41: 981 | FS41: 981 | FT41: 981 | FU41: 981 | FV41: 981 | FW41: 981 | FX41: 981 | FY41: 981 | FZ41: 981 | GA41: 981 | GB41: 981 | GC41: 981 | GD41: 981 | GE41: 981 | GF41: 981 | GG41: 981 | GH41: 981 | GI41: 981 | GJ41: 981 | GK41: 981 | GL41: 981 | GM41: 981 | GN41: 981 | GO41: 981 | GP41: 981 | GQ41: 981 | GR41: 981 | GS41: 981 | GT41: 981 | GU41: 981 | GV41: 981 | GW41: 981 | GX41: 981 | GY41: 981 | GZ41: 981 | HA41: 981 | HB41: 981 | HC41: 981 | HD41: 981 | HE41: 981 | HF41: 981 | HG41: 981 | HH41: 981 | HI41: 981 | HJ41: 981 | HK41: 981 | HL41: 981 | HM41: =HL41 -> 981 | HN41: 981 | HO41: 981 | HP41: 981 | HQ41: 981 | HR41: 981 | HS41: 981 | HT41: 981 | HU41: 981 | HV41: 981 | HW41: 981 | HX41: 981 | HY41: =HX41 -> 981 | HZ41: 981 | IA41: 981 | IB41: 981 | IC41: 981 | ID41: 981 | IE41: 981 | IF41: 981 | IG41: 981 | IH41: 981 | II41: 981 | IJ41: 981 | IK41: =IJ41 -> 981 | IL41: 981 | IM41: 981 | IN41: 981 | IO41: 981 | IP41: 981 | IQ41: 981 | IR41: 981 | IS41: 981 | IT41: 981 | IU41: 981 | IV41: 981 | IW41: =IV41 -> 981 | IX41: 981 | IY41: 981 | IZ41: 981 | JA41: 981 | JB41: 981 | JC41: 981 | JD41: 981 | JE41: 981 | JF41: 981
B42: PSL2 | C42: 714 | D42: 714 | E42: 714 | F42: 714 | G42: 714 | H42: 714 | I42: 714 | J42: 714 | K42: 714 | L42: 714 | M42: 714 | N42: 714 | O42: 714 | P42: 714 | Q42: 714 | R42: 714 | S42: 714 | T42: 714 | U42: 714 | V42: 714 | W42: 714 | X42: 714 | Y42: 714 | Z42: 714 | AA42: 714 | AB42: 714 | AC42: 714 | AD42: 714 | AE42: 714 | AF42: 714 | AG42: 714 | AH42: 714 | AI42: 714 | AJ42: 714 | AK42: 714 | AL42: 714 | AM42: =AL42 -> 714 | AN42: 714 | AO42: 714 | AP42: 714 | AQ42: 714 | AR42: 714 | AS42: 714 | AT42: 714 | AU42: 714 | AV42: 714 | AW42: 714 | AX42: 714 | AY42: 714 | AZ42: 714 | BA42: 714 | BB42: 714 | BC42: =BB42 -> 714 | BD42: =BC42 -> 714 | BE42: 714 | BF42: 714 | BG42: 714 | BH42: =BE42 -> 714 | BI42: 714 | BJ42: 714 | BK42: 714 | BL42: 714 | BM42: 714 | BN42: 714 | BO42: 714 | BP42: 714 | BQ42: 714 | BR42: 714 | BS42: 714 | BT42: 714 | BU42: 714 | BV42: 714 | BW42: 714 | BX42: 714 | BY42: 714 | BZ42: 714 | CA42: 714 | CB42: 714 | CC42: 714 | CD42: 714 | CE42: 714 | CF42: 714 | CG42: 714 | CH42: 714 | CI42: 714 | CJ42: 714 | CK42: 714 | CL42: 714 | CM42: 714 | CN42: 714 | CO42: 714 | CP42: 714 | CQ42: 714 | CR42: 714 | CS42: 714 | CT42: 714 | CU42: 714 | CV42: 714 | CW42: 714 | CX42: 714 | CY42: 714 | CZ42: 714 | DA42: 714 | DB42: 714 | DC42: 714 | DD42: 714 | DE42: 714 | DF42: 714 | DG42: 714 | DH42: 714 | DI42: 714 | DJ42: =DI42+29 -> 743 | DK42: 743 | DL42: 743 | DM42: 743 | DN42: 743 | DO42: 743 | DP42: 743 | DQ42: 743 | DR42: =DQ42+2 -> 745 | DS42: 745 | DT42: 745 | DU42: 745 | DV42: 745 | DW42: 745 | DX42: 745 | DY42: =DX42 -> 745 | DZ42: 745 | EA42: 745 | EB42: 745 | EC42: =EB42 -> 745 | ED42: =EC42+107-9 -> 843 | EE42: 843 | EF42: 843 | EG42: 843 | EH42: =EG42-3 -> 840 | EI42: 840 | EJ42: 840 | EK42: 840 | EL42: 840 | EM42: 840 | EN42: 840 | EO42: 840 | EP42: 840 | EQ42: 840 | ER42: 840 | ES42: 840 | ET42: 840 | EU42: 840 | EV42: 840 | EW42: 840 | EX42: 840 | EY42: 840 | EZ42: 840 | FA42: 840 | FB42: 840 | FC42: 840 | FD42: 840 | FE42: 840 | FF42: 840 | FG42: 840 | FH42: 840 | FI42: 840 | FJ42: 840 | FK42: 840 | FL42: 840 | FM42: 840 | FN42: 840 | FO42: 840 | FP42: 840 | FQ42: 840 | FR42: 840 | FS42: 840 | FT42: 840 | FU42: 840 | FV42: 840 | FW42: 840 | FX42: 840 | FY42: 840 | FZ42: 840 | GA42: 840 | GB42: 840 | GC42: 840 | GD42: 840 | GE42: 840 | GF42: 840 | GG42: =GF42 -> 840 | GH42: 840 | GI42: 840 | GJ42: 840 | GK42: 840 | GL42: 840 | GM42: 840 | GN42: 840 | GO42: 840 | GP42: 840 | GQ42: 840 | GR42: 840 | GS42: 840 | GT42: 840 | GU42: 840 | GV42: 840 | GW42: =GV42 -> 840 | GX42: 840 | GY42: 840 | GZ42: 840 | HA42: 840 | HB42: 840 | HC42: 840 | HD42: 840 | HE42: 840 | HF42: 840 | HG42: 840 | HH42: 840 | HI42: 840 | HJ42: 840 | HK42: 840 | HL42: 840 | HM42: 840 | HN42: 840 | HO42: 840 | HP42: 840 | HQ42: 840 | HR42: 840 | HS42: 840 | HT42: 840 | HU42: 840 | HV42: 840 | HW42: 840 | HX42: 840 | HY42: 840 | HZ42: 840 | IA42: 840 | IB42: 840 | IC42: 840 | ID42: 840 | IE42: 840 | IF42: 840 | IG42: 840 | IH42: 840 | II42: 840 | IJ42: 840 | IK42: 840 | IL42: 840 | IM42: 840 | IN42: 840 | IO42: 840 | IP42: 840 | IQ42: 840 | IR42: 840 | IS42: 840 | IT42: 840 | IU42: 840 | IV42: 840 | IW42: 840 | IX42: 840 | IY42: 840 | IZ42: 840 | JA42: 840 | JB42: 840 | JC42: 840 | JD42: 840 | JE42: 840 | JF42: 840
B43: PSN3 | C43: 142 | D43: 142 | E43: 142 | F43: 142 | G43: 142 | H43: 142 | I43: 142 | J43: 142 | K43: 142 | L43: 142 | M43: 142 | N43: 142 | O43: =N43-4 -> 138 | P43: 138 | Q43: 138 | R43: 138 | S43: 138 | T43: 138 | U43: 138 | V43: 138 | W43: 138 | X43: 138 | Y43: 138 | Z43: 138 | AA43: 138 | AB43: 138 | AC43: 138 | AD43: 138 | AE43: 138 | AF43: 138 | AG43: 138 | AH43: 138 | AI43: 138 | AJ43: 138 | AK43: 138 | AL43: 138 | AM43: =AL43 -> 138 | AN43: 138 | AO43: 138 | AP43: 138 | AQ43: 138 | AR43: 138 | AS43: 138 | AT43: 138 | AU43: 138 | AV43: 138 | AW43: 138 | AX43: 138 | AY43: 138 | AZ43: 138 | BA43: 138 | BB43: 138 | BC43: =BB43 -> 138 | BD43: =BC43 -> 138 | BE43: 138 | BF43: 138 | BG43: 138 | BH43: =BE43 -> 138 | BI43: 138 | BJ43: 138 | BK43: 138 | BL43: 138 | BM43: 138 | BN43: 138 | BO43: 138 | BP43: 138 | BQ43: 138 | BR43: 138 | BS43: 138 | BT43: 138 | BU43: 138 | BV43: 138 | BW43: 138 | BX43: 138 | BY43: 138 | BZ43: 138 | CA43: 138 | CB43: 138 | CC43: 138 | CD43: 138 | CE43: 138 | CF43: 138 | CG43: 138 | CH43: 138 | CI43: 138 | CJ43: 138 | CK43: 138 | CL43: 138 | CM43: 138 | CN43: 138 | CO43: 138 | CP43: 138 | CQ43: 138 | CR43: 138 | CS43: 138 | CT43: 138 | CU43: 138 | CV43: 138 | CW43: 138 | CX43: 138 | CY43: 138 | CZ43: 138 | DA43: 138 | DB43: 138 | DC43: 138 | DD43: 138 | DE43: 138 | DF43: 138 | DG43: 138 | DH43: 138 | DI43: 138 | DJ43: 138 | DK43: 138 | DL43: 138 | DM43: 138 | DN43: 138 | DO43: 138 | DP43: 138 | DQ43: 138 | DR43: 138 | DS43: 138 | DT43: 138 | DU43: 138 | DV43: 138 | DW43: 138 | DX43: 138 | DY43: 138 | DZ43: 138 | EA43: 138 | EB43: 138 | EC43: 138 | ED43: =EC43-138 -> 0 | EE43: 0 | EF43: 0 | EG43: 0 | EH43: 0 | EI43: 0 | EJ43: 0 | EK43: 0 | EL43: 0 | EM43: 0 | EN43: 0 | EO43: 0 | EP43: 0 | EQ43: 0 | ER43: 0 | ES43: 0 | ET43: 0 | EU43: 0 | EV43: 0 | EW43: 0 | EX43: 0 | EY43: 0 | EZ43: 0 | FA43: 0 | FB43: 0 | FC43: 0 | FD43: 0 | FE43: 0 | FF43: 0 | FG43: 0 | FH43: 0 | FI43: 0 | FJ43: 0 | FK43: 0 | FL43: 0 | FM43: 0 | FN43: 0 | FO43: 0 | FP43: 0 | FQ43: 0 | FR43: 0 | FS43: 0 | FT43: 0 | FU43: 0 | FV43: 0 | FW43: 0 | FX43: 0 | FY43: 0 | FZ43: 0 | GA43: 0 | GB43: 0 | GC43: 0 | GD43: 0 | GE43: 0 | GF43: 0 | GG43: 0 | GH43: 0 | GI43: 0 | GJ43: 0 | GK43: 0 | GL43: 0 | GM43: 0 | GN43: 0 | GO43: 0 | GP43: 0 | GQ43: 0 | GR43: 0 | GS43: 0 | GT43: 0 | GU43: 0 | GV43: 0 | GW43: 0 | GX43: 0 | GY43: 0 | GZ43: 0 | HA43: 0 | HB43: 0 | HC43: 0 | HD43: 0 | HE43: 0 | HF43: 0 | HG43: 0 | HH43: 0 | HI43: 0 | HJ43: 0 | HK43: 0 | HL43: 0 | HM43: 0 | HN43: 0 | HO43: 0 | HP43: 0 | HQ43: 0 | HR43: 0 | HS43: 0 | HT43: 0 | HU43: 0 | HV43: 0 | HW43: 0 | HX43: 0 | HY43: 0 | HZ43: 0 | IA43: 0 | IB43: 0 | IC43: 0 | ID43: 0 | IE43: 0 | IF43: 0 | IG43: 0 | IH43: 0 | II43: 0 | IJ43: 0 | IK43: 0 | IL43: 0 | IM43: 0 | IN43: 0 | IO43: 0 | IP43: 0 | IQ43: 0 | IR43: 0 | IS43: 0 | IT43: 0 | IU43: 0 | IV43: 0 | IW43: 0 | IX43: 0 | IY43: 0 | IZ43: 0 | JA43: 0 | JB43: 0 | JC43: 0 | JD43: 0 | JE43: 0 | JF43: 0
B44: PSR4 | C44: 381 | D44: 381 | E44: 381 | F44: =E44-381 -> 0 | G44: 0 | H44: 0 | I44: 0 | J44: 0 | K44: 0 | L44: 0 | M44: 0 | N44: 0 | O44: =N44 -> 0 | P44: 0 | Q44: 0 | R44: 0 | S44: =R44+957 -> 957 | T44: 957 | U44: 957 | V44: 957 | W44: 957 | X44: 957 | Y44: 957 | Z44: 957 | AA44: =Z44-5 -> 952 | AB44: 952 | AC44: 952 | AD44: 952 | AE44: 952 | AF44: 952 | AG44: 952 | AH44: 952 | AI44: 952 | AJ44: 952 | AK44: 952 | AL44: 952 | AM44: =AL44 -> 952 | AN44: 952 | AO44: 952 | AP44: 952 | AQ44: 952 | AR44: 952 | AS44: 952 | AT44: 952 | AU44: 952 | AV44: 952 | AW44: 952 | AX44: 952 | AY44: 952 | AZ44: 952 | BA44: 952 | BB44: 952 | BC44: =BB44 -> 952 | BD44: =BC44 -> 952 | BE44: =BD44+14 -> 966 | BF44: 966 | BG44: 966 | BH44: 966 | BI44: 966 | BJ44: =BI44-8 -> 958 | BK44: =BJ44 -> 958 | BL44: 958 | BM44: 958 | BN44: 958 | BO44: 958 | BP44: 958 | BQ44: 958 | BR44: 958 | BS44: 958 | BT44: 958 | BU44: 958 | BV44: 958 | BW44: 958 | BX44: 958 | BY44: 958 | BZ44: 958 | CA44: 958 | CB44: 958 | CC44: 958 | CD44: 958 | CE44: 958 | CF44: 958 | CG44: 958 | CH44: 958 | CI44: 958 | CJ44: 958 | CK44: 958 | CL44: 958 | CM44: 958 | CN44: 958 | CO44: 958 | CP44: 958 | CQ44: 958 | CR44: 958 | CS44: 958 | CT44: 958 | CU44: 958 | CV44: 958 | CW44: 958 | CX44: 958 | CY44: 958 | CZ44: 958 | DA44: 958 | DB44: 958 | DC44: 958 | DD44: 958 | DE44: 958 | DF44: 958 | DG44: 958 | DH44: 958 | DI44: 958 | DJ44: 958 | DK44: 958 | DL44: 958 | DM44: 958 | DN44: 958 | DO44: 958 | DP44: 958 | DQ44: 958 | DR44: 958 | DS44: 958 | DT44: 958 | DU44: 958 | DV44: 958 | DW44: 958 | DX44: 958 | DY44: 958 | DZ44: 958 | EA44: 958 | EB44: =EA44+7 -> 965 | EC44: =EB44 -> 965 | ED44: =EC44+8 -> 973 | EE44: 973 | EF44: =EE44 -> 973 | EG44: =EF44 -> 973 | EH44: =EG44+16 -> 989 | EI44: 989 | EJ44: 989 | EK44: 989 | EL44: 989 | EM44: 989 | EN44: 989 | EO44: 989 | EP44: 989 | EQ44: =EP44+16 -> 1005 | ER44: 1005 | ES44: 1005 | ET44: 1005 | EU44: 1005 | EV44: 1005 | EW44: 1005 | EX44: 1005 | EY44: 1005 | EZ44: 1005 | FA44: 1005 | FB44: 1005 | FC44: 1005 | FD44: 1005 | FE44: 1005 | FF44: 1005 | FG44: 1005 | FH44: 1005 | FI44: 1005 | FJ44: 1005 | FK44: 1005 | FL44: 1005 | FM44: 1005 | FN44: 1005 | FO44: 1005 | FP44: 1005 | FQ44: =FP44+1 -> 1006 | FR44: 1006 | FS44: 1006 | FT44: 1006 | FU44: 1006 | FV44: 1006 | FW44: 1006 | FX44: 1006 | FY44: 1006 | FZ44: 1006 | GA44: 1006 | GB44: 1006 | GC44: 1006 | GD44: 1006 | GE44: 1006 | GF44: 1006 | GG44: 1006 | GH44: 1006 | GI44: 1006 | GJ44: 1006 | GK44: 1006 | GL44: 1006 | GM44: 1006 | GN44: 1006 | GO44: 1006 | GP44: 1006 | GQ44: 1006 | GR44: 1006 | GS44: 1006 | GT44: 1006 | GU44: 1006 | GV44: 1006 | GW44: 1006 | GX44: 1006 | GY44: 1006 | GZ44: 1006 | HA44: 1006 | HB44: 1006 | HC44: 1006 | HD44: 1006 | HE44: 1006 | HF44: 1006 | HG44: 1006 | HH44: 1006 | HI44: 1006 | HJ44: 1006 | HK44: 1006 | HL44: 1006 | HM44: 1006 | HN44: 1006 | HO44: 1006 | HP44: 1006 | HQ44: 1006 | HR44: 1006 | HS44: 1006 | HT44: 1006 | HU44: 1006 | HV44: 1006 | HW44: 1006 | HX44: 1006 | HY44: 1006 | HZ44: 1006 | IA44: 1006 | IB44: 1006 | IC44: 1006 | ID44: 1006 | IE44: 1006 | IF44: 1006 | IG44: 1006 | IH44: 1006 | II44: 1006 | IJ44: 1006 | IK44: 1006 | IL44: 1006 | IM44: 1006 | IN44: 1006 | IO44: 1006 | IP44: 1006 | IQ44: 1006 | IR44: 1006 | IS44: 1006 | IT44: 1006 | IU44: 1006 | IV44: 1006 | IW44: 1006 | IX44: 1006 | IY44: 1006 | IZ44: 1006 | JA44: 1006 | JB44: 1006 | JC44: 1006 | JD44: 1006 | JE44: 1006 | JF44: 1006
B45: PSR5 | C45: 0 | D45: 0 | E45: 0 | F45: 0 | G45: 0 | H45: =G45+926 -> 926 | I45: 926 | J45: 926 | K45: 926 | L45: 926 | M45: 926 | N45: 926 | O45: =N45-16 -> 910 | P45: 910 | Q45: 910 | R45: 910 | S45: 910 | T45: 910 | U45: 910 | V45: 910 | W45: 910 | X45: 910 | Y45: 910 | Z45: 910 | AA45: =Z45+42 -> 952 | AB45: 952 | AC45: 952 | AD45: 952 | AE45: 952 | AF45: 952 | AG45: 952 | AH45: 952 | AI45: 952 | AJ45: 952 | AK45: 952 | AL45: 952 | AM45: =AL45-12 -> 940 | AN45: 940 | AO45: 940 | AP45: =AO45+6 -> 946 | AQ45: 946 | AR45: 946 | AS45: =AR45+3 -> 949 | AT45: 949 | AU45: 949 | AV45: 949 | AW45: 949 | AX45: 949 | AY45: =AX45+3 -> 952 | AZ45: 952 | BA45: 952 | BB45: 952 | BC45: 952 | BD45: =BC45 -> 952 | BE45: 952 | BF45: 952 | BG45: 952 | BH45: 952 | BI45: 952 | BJ45: =BI45-4 -> 948 | BK45: =BJ45+3 -> 951 | BL45: 951 | BM45: 951 | BN45: =BM45+3 -> 954 | BO45: =BN45 -> 954 | BP45: =BO45+4 -> 958 | BQ45: 958 | BR45: 958 | BS45: 958 | BT45: 958 | BU45: 958 | BV45: 958 | BW45: 958 | BX45: 958 | BY45: 958 | BZ45: 958 | CA45: 958 | CB45: 958 | CC45: 958 | CD45: 958 | CE45: 958 | CF45: 958 | CG45: 958 | CH45: =CG45-4 -> 954 | CI45: 954 | CJ45: 954 | CK45: 954 | CL45: 954 | CM45: 954 | CN45: 954 | CO45: 954 | CP45: 954 | CQ45: 954 | CR45: 954 | CS45: 954 | CT45: 954 | CU45: 954 | CV45: 954 | CW45: 954 | CX45: 954 | CY45: 954 | CZ45: 954 | DA45: 954 | DB45: 954 | DC45: 954 | DD45: 954 | DE45: 954 | DF45: 954 | DG45: 954 | DH45: 954 | DI45: 954 | DJ45: 954 | DK45: 954 | DL45: 954 | DM45: 954 | DN45: 954 | DO45: 954 | DP45: 954 | DQ45: 954 | DR45: 954 | DS45: 954 | DT45: 954 | DU45: =DT45 -> 954 | DV45: =DU45+19 -> 973 | DW45: =DV45 -> 973 | DX45: 973 | DY45: 973 | DZ45: 973 | EA45: 973 | EB45: 973 | EC45: 973 | ED45: =EC45 -> 973 | EE45: 973 | EF45: =EE45 -> 973 | EG45: =EF45 -> 973 | EH45: 973 | EI45: 973 | EJ45: =EI45+8 -> 981 | EK45: 981 | EL45: 981 | EM45: =EL45+10 -> 991 | EN45: =EM45 -> 991 | EO45: =EN45 -> 991 | EP45: =EO45 -> 991 | EQ45: =EP45+14 -> 1005 | ER45: =EQ45 -> 1005 | ES45: 1005 | ET45: 1005 | EU45: 1005 | EV45: 1005 | EW45: 1005 | EX45: 1005 | EY45: 1005 | EZ45: 1005 | FA45: 1005 | FB45: 1005 | FC45: 1005 | FD45: 1005 | FE45: 1005 | FF45: 1005 | FG45: 1005 | FH45: 1005 | FI45: 1005 | FJ45: 1005 | FK45: 1005 | FL45: 1005 | FM45: 1005 | FN45: 1005 | FO45: 1005 | FP45: 1005 | FQ45: 1005 | FR45: 1005 | FS45: 1005 | FT45: 1005 | FU45: 1005 | FV45: 1005 | FW45: 1005 | FX45: 1005 | FY45: 1005 | FZ45: 1005 | GA45: 1005 | GB45: 1005 | GC45: 1005 | GD45: 1005 | GE45: 1005 | GF45: =GE45+1 -> 1006 | GG45: 1006 | GH45: 1006 | GI45: 1006 | GJ45: 1006 | GK45: 1006 | GL45: 1006 | GM45: 1006 | GN45: 1006 | GO45: 1006 | GP45: 1006 | GQ45: 1006 | GR45: 1006 | GS45: 1006 | GT45: 1006 | GU45: 1006 | GV45: 1006 | GW45: 1006 | GX45: 1006 | GY45: 1006 | GZ45: 1006 | HA45: 1006 | HB45: 1006 | HC45: 1006 | HD45: 1006 | HE45: 1006 | HF45: 1006 | HG45: 1006 | HH45: 1006 | HI45: 1006 | HJ45: 1006 | HK45: 1006 | HL45: 1006 | HM45: 1006 | HN45: 1006 | HO45: 1006 | HP45: 1006 | HQ45: 1006 | HR45: 1006 | HS45: 1006 | HT45: 1006 | HU45: 1006 | HV45: 1006 | HW45: 1006 | HX45: 1006 | HY45: 1006 | HZ45: 1006 | IA45: 1006 | IB45: 1006 | IC45: 1006 | ID45: 1006 | IE45: 1006 | IF45: 1006 | IG45: 1006 | IH45: 1006 | II45: 1006 | IJ45: 1006 | IK45: 1006 | IL45: 1006 | IM45: 1006 | IN45: 1006 | IO45: 1006 | IP45: 1006 | IQ45: 1006 | IR45: 1006 | IS45: 1006 | IT45: 1006 | IU45: 1006 | IV45: 1006 | IW45: 1006 | IX45: 1006 | IY45: 1006 | IZ45: 1006 | JA45: 1006 | JB45: 1006 | JC45: 1006 | JD45: 1006 | JE45: 1006 | JF45: 1006
B46: PTF1 | C46: 400 | D46: 400 | E46: 400 | F46: 400 | G46: 400 | H46: 400 | I46: 400 | J46: 400 | K46: 400 | L46: 400 | M46: 400 | N46: 400 | O46: =N46 -> 400 | P46: 400 | Q46: 400 | R46: 400 | S46: 400 | T46: 400 | U46: 400 | V46: 400 | W46: 400 | X46: 400 | Y46: =X46 -> 400 | Z46: 400 | AA46: =Z46+7 -> 407 | AB46: 407 | AC46: 407 | AD46: 407 | AE46: 407 | AF46: 407 | AG46: 407 | AH46: 407 | AI46: 407 | AJ46: 407 | AK46: 407 | AL46: 407 | AM46: =AL46-9 -> 398 | AN46: 398 | AO46: 398 | AP46: 398 | AQ46: 398 | AR46: 398 | AS46: 398 | AT46: 398 | AU46: 398 | AV46: 398 | AW46: 398 | AX46: 398 | AY46: =AX46-13 -> 385 | AZ46: 385 | BA46: 385 | BB46: =BA46+13 -> 398 | BC46: 398 | BD46: 398 | BE46: 398 | BF46: 398 | BG46: 398 | BH46: 398 | BI46: 398 | BJ46: =BI46-2 -> 396 | BK46: 396 | BL46: 396 | BM46: 396 | BN46: 396 | BO46: 396 | BP46: 396 | BQ46: 396 | BR46: 396 | BS46: 396 | BT46: 396 | BU46: 396 | BV46: 396 | BW46: 396 | BX46: 396 | BY46: 396 | BZ46: 396 | CA46: 396 | CB46: 396 | CC46: 396 | CD46: 396 | CE46: 396 | CF46: 396 | CG46: 396 | CH46: 396 | CI46: 396 | CJ46: 396 | CK46: 396 | CL46: 396 | CM46: 396 | CN46: 396 | CO46: 396 | CP46: 396 | CQ46: 396 | CR46: 396 | CS46: 396 | CT46: 396 | CU46: 396 | CV46: 396 | CW46: 396 | CX46: 396 | CY46: 396 | CZ46: 396 | DA46: 396 | DB46: 396 | DC46: 396 | DD46: 396 | DE46: 396 | DF46: 396 | DG46: 396 | DH46: 396 | DI46: 396 | DJ46: 396 | DK46: 396 | DL46: 396 | DM46: 396 | DN46: 396 | DO46: 396 | DP46: 396 | DQ46: 396 | DR46: 396 | DS46: 396 | DT46: 396 | DU46: 396 | DV46: 396 | DW46: 396 | DX46: 396 | DY46: 396 | DZ46: 396 | EA46: 396 | EB46: 396 | EC46: 396 | ED46: 396 | EE46: 396 | EF46: 396 | EG46: 396 | EH46: 396 | EI46: 396 | EJ46: 396 | EK46: 396 | EL46: 396 | EM46: 396 | EN46: 396 | EO46: 396 | EP46: 396 | EQ46: 396 | ER46: 396 | ES46: 396 | ET46: 396 | EU46: 396 | EV46: 396 | EW46: 396 | EX46: 396 | EY46: 396 | EZ46: 396 | FA46: 396 | FB46: 396 | FC46: 396 | FD46: 396 | FE46: 396 | FF46: 396 | FG46: 396 | FH46: 396 | FI46: 396 | FJ46: 396 | FK46: 396 | FL46: 396 | FM46: 396 | FN46: 396 | FO46: =FN46 -> 396 | FP46: 396 | FQ46: 396 | FR46: 396 | FS46: 396 | FT46: =FS46 -> 396 | FU46: 396 | FV46: 396 | FW46: 396 | FX46: 396 | FY46: 396 | FZ46: 396 | GA46: 0 | GB46: 0 | GC46: 0 | GD46: 0 | GE46: 0 | GF46: =GE46 -> 0 | GG46: 0 | GH46: 0 | GI46: 0 | GJ46: 0 | GK46: 0 | GL46: 0 | GM46: =GL46 -> 0 | GN46: 0 | GO46: 0 | GP46: 0 | GQ46: 0 | GR46: =GQ46 -> 0 | GS46: 0 | GT46: 0 | GU46: 0 | GV46: 0 | GW46: 0 | GX46: 0 | GY46: =GX46 -> 0 | GZ46: 0 | HA46: 0 | HB46: 0 | HC46: 0 | HD46: =HC46 -> 0 | HE46: 0 | HF46: 0 | HG46: 0 | HH46: 0 | HI46: 0 | HJ46: 0 | HK46: =HJ46 -> 0 | HL46: 0 | HM46: 0 | HN46: 0 | HO46: 0 | HP46: =HO46 -> 0 | HQ46: 0 | HR46: 0 | HS46: 0 | HT46: 0 | HU46: 0 | HV46: 0 | HW46: =HV46 -> 0 | HX46: 0 | HY46: 0 | HZ46: 0 | IA46: 0 | IB46: =IA46 -> 0 | IC46: 0 | ID46: 0 | IE46: 0 | IF46: 0 | IG46: 0 | IH46: 0 | II46: =IH46 -> 0 | IJ46: 0 | IK46: 0 | IL46: 0 | IM46: 0 | IN46: =IM46 -> 0 | IO46: 0 | IP46: 0 | IQ46: 0 | IR46: 0 | IS46: 0 | IT46: 0 | IU46: =IT46 -> 0 | IV46: 0 | IW46: 0 | IX46: 0 | IY46: 0 | IZ46: =IY46 -> 0 | JA46: 0 | JB46: 0 | JC46: 0 | JD46: 0 | JE46: 0 | JF46: 0
B47: PTF2 | C47: 400 | D47: 400 | E47: 400 | F47: 400 | G47: 400 | H47: 400 | I47: 400 | J47: 400 | K47: 400 | L47: 400 | M47: 400 | N47: 400 | O47: 400 | P47: 400 | Q47: 400 | R47: 400 | S47: 400 | T47: 400 | U47: 400 | V47: =U47 -> 400 | W47: 400 | X47: 400 | Y47: 400 | Z47: 400 | AA47: 400 | AB47: 400 | AC47: 400 | AD47: 400 | AE47: 400 | AF47: 400 | AG47: 400 | AH47: 400 | AI47: 400 | AJ47: 400 | AK47: 400 | AL47: 400 | AM47: 400 | AN47: 400 | AO47: 400 | AP47: 400 | AQ47: 400 | AR47: 400 | AS47: 400 | AT47: 400 | AU47: 400 | AV47: 400 | AW47: 400 | AX47: 400 | AY47: 400 | AZ47: 400 | BA47: 400 | BB47: 400 | BC47: 400 | BD47: 400 | BE47: 400 | BF47: 400 | BG47: 400 | BH47: 400 | BI47: 400 | BJ47: =BI47-8 -> 392 | BK47: 392 | BL47: 392 | BM47: 392 | BN47: 392 | BO47: 392 | BP47: 392 | BQ47: 392 | BR47: 392 | BS47: 392 | BT47: 392 | BU47: 392 | BV47: 392 | BW47: 392 | BX47: 392 | BY47: 392 | BZ47: 392 | CA47: 392 | CB47: 392 | CC47: 392 | CD47: 392 | CE47: 392 | CF47: 392 | CG47: 392 | CH47: 392 | CI47: 392 | CJ47: 392 | CK47: 392 | CL47: 392 | CM47: 392 | CN47: 392 | CO47: 392 | CP47: 392 | CQ47: 392 | CR47: 392 | CS47: 392 | CT47: 392 | CU47: 392 | CV47: 392 | CW47: 392 | CX47: 392 | CY47: 392 | CZ47: 392 | DA47: 392 | DB47: 392 | DC47: 392 | DD47: 392 | DE47: 392 | DF47: 392 | DG47: 392 | DH47: 392 | DI47: 392 | DJ47: 392 | DK47: 392 | DL47: 392 | DM47: 392 | DN47: 392 | DO47: 392 | DP47: 392 | DQ47: 392 | DR47: 392 | DS47: 392 | DT47: 392 | DU47: 392 | DV47: 392 | DW47: 392 | DX47: 392 | DY47: 392 | DZ47: 392 | EA47: 392 | EB47: 392 | EC47: 392 | ED47: 392 | EE47: 392 | EF47: 392 | EG47: 392 | EH47: 392 | EI47: 392 | EJ47: 392 | EK47: 392 | EL47: 392 | EM47: 392 | EN47: 392 | EO47: 392 | EP47: 392 | EQ47: =EP47-392 -> 0 | ER47: =EQ47 -> 0 | ES47: 0 | ET47: 0 | EU47: 0 | EV47: 0 | EW47: 0 | EX47: 0 | EY47: 0 | EZ47: 0 | FA47: 0 | FB47: 0 | FC47: 0 | FD47: 0 | FE47: 0 | FF47: 0 | FG47: 0 | FH47: 0 | FI47: 0 | FJ47: 0 | FK47: 0 | FL47: 0 | FM47: 0 | FN47: 0 | FO47: 0 | FP47: 0 | FQ47: 0 | FR47: 0 | FS47: 0 | FT47: 0 | FU47: 0 | FV47: 0 | FW47: 0 | FX47: 0 | FY47: 0 | FZ47: 0 | GA47: 0 | GB47: 0 | GC47: 0 | GD47: 0 | GE47: 0 | GF47: 0 | GG47: 0 | GH47: 0 | GI47: 0 | GJ47: 0 | GK47: 0 | GL47: 0 | GM47: 0 | GN47: 0 | GO47: 0 | GP47: 0 | GQ47: 0 | GR47: 0 | GS47: 0 | GT47: 0 | GU47: 0 | GV47: 0 | GW47: 0 | GX47: 0 | GY47: 0 | GZ47: 0 | HA47: 0 | HB47: 0 | HC47: 0 | HD47: 0 | HE47: 0 | HF47: 0 | HG47: 0 | HH47: 0 | HI47: 0 | HJ47: 0 | HK47: 0 | HL47: 0 | HM47: 0 | HN47: 0 | HO47: 0 | HP47: 0 | HQ47: 0 | HR47: 0 | HS47: 0 | HT47: 0 | HU47: 0 | HV47: 0 | HW47: 0 | HX47: 0 | HY47: 0 | HZ47: 0 | IA47: 0 | IB47: 0 | IC47: 0 | ID47: 0 | IE47: 0 | IF47: 0 | IG47: 0 | IH47: 0 | II47: 0 | IJ47: 0 | IK47: 0 | IL47: 0 | IM47: 0 | IN47: 0 | IO47: 0 | IP47: 0 | IQ47: 0 | IR47: 0 | IS47: 0 | IT47: 0 | IU47: 0 | IV47: 0 | IW47: 0 | IX47: 0 | IY47: 0 | IZ47: 0 | JA47: 0 | JB47: 0 | JC47: 0 | JD47: 0 | JE47: 0 | JF47: 0
B48: PTN3 | C48: 693 | D48: 693 | E48: 693 | F48: 693 | G48: 693 | H48: 693 | I48: 693 | J48: 693 | K48: 693 | L48: 693 | M48: 693 | N48: 693 | O48: 693 | P48: 693 | Q48: 693 | R48: 693 | S48: 693 | T48: 693 | U48: 693 | V48: 693 | W48: 693 | X48: 693 | Y48: 693 | Z48: 693 | AA48: 693 | AB48: 693 | AC48: 693 | AD48: 693 | AE48: 693 | AF48: 693 | AG48: 693 | AH48: 693 | AI48: 693 | AJ48: 693 | AK48: 693 | AL48: 693 | AM48: 693 | AN48: 693 | AO48: 693 | AP48: 693 | AQ48: 693 | AR48: 693 | AS48: 693 | AT48: 693 | AU48: 693 | AV48: 693 | AW48: 693 | AX48: 693 | AY48: 693 | AZ48: 693 | BA48: 693 | BB48: 693 | BC48: 693 | BD48: 693 | BE48: 693 | BF48: 693 | BG48: 693 | BH48: 693 | BI48: 693 | BJ48: 693 | BK48: 693 | BL48: 693 | BM48: 693 | BN48: 693 | BO48: 693 | BP48: 693 | BQ48: 693 | BR48: 693 | BS48: 693 | BT48: 693 | BU48: 693 | BV48: 693 | BW48: 693 | BX48: 693 | BY48: 693 | BZ48: 693 | CA48: 693 | CB48: 693 | CC48: 693 | CD48: 693 | CE48: 693 | CF48: 693 | CG48: 693 | CH48: 693 | CI48: 693 | CJ48: 693 | CK48: 693 | CL48: 693 | CM48: 693 | CN48: 693 | CO48: 693 | CP48: 693 | CQ48: 693 | CR48: 693 | CS48: 693 | CT48: 693 | CU48: =CT48 -> 693 | CV48: 693 | CW48: 693 | CX48: 693 | CY48: 693 | CZ48: 693 | DA48: 693 | DB48: 693 | DC48: 693 | DD48: 693 | DE48: 693 | DF48: 693 | DG48: 693 | DH48: 693 | DI48: 693 | DJ48: 693 | DK48: 693 | DL48: 693 | DM48: 693 | DN48: 693 | DO48: 693 | DP48: 693 | DQ48: 693 | DR48: 693 | DS48: 693 | DT48: 693 | DU48: 693 | DV48: 693 | DW48: 693 | DX48: 693 | DY48: =DX48 -> 693 | DZ48: 693 | EA48: 693 | EB48: =EA48+115 -> 808 | EC48: 808 | ED48: =EC48+1 -> 809 | EE48: 809 | EF48: 809 | EG48: 809 | EH48: 809 | EI48: 809 | EJ48: =EI48-1 -> 808 | EK48: 808 | EL48: 808 | EM48: =EL48+3 -> 811 | EN48: 811 | EO48: 811 | EP48: 811 | EQ48: 811 | ER48: 811 | ES48: 811 | ET48: 811 | EU48: 811 | EV48: 811 | EW48: 811 | EX48: 811 | EY48: 811 | EZ48: 811 | FA48: 811 | FB48: 811 | FC48: 811 | FD48: 811 | FE48: 811 | FF48: 811 | FG48: 811 | FH48: 811 | FI48: 811 | FJ48: 811 | FK48: 811 | FL48: 811 | FM48: 811 | FN48: 811 | FO48: 811 | FP48: 811 | FQ48: 811 | FR48: 811 | FS48: 811 | FT48: 811 | FU48: 811 | FV48: 811 | FW48: 811 | FX48: 811 | FY48: 811 | FZ48: 811 | GA48: 811 | GB48: 811 | GC48: 811 | GD48: 811 | GE48: 811 | GF48: 811 | GG48: 811 | GH48: 811 | GI48: 811 | GJ48: 811 | GK48: 811 | GL48: 811 | GM48: 811 | GN48: 811 | GO48: 811 | GP48: 811 | GQ48: 811 | GR48: 811 | GS48: 811 | GT48: 811 | GU48: 811 | GV48: 811 | GW48: 811 | GX48: 811 | GY48: 811 | GZ48: 811 | HA48: 811 | HB48: 811 | HC48: 811 | HD48: 811 | HE48: 811 | HF48: 811 | HG48: 811 | HH48: 811 | HI48: 811 | HJ48: 811 | HK48: 811 | HL48: 811 | HM48: 811 | HN48: 811 | HO48: 811 | HP48: 811 | HQ48: 811 | HR48: 811 | HS48: 811 | HT48: 811 | HU48: 811 | HV48: 811 | HW48: 811 | HX48: 811 | HY48: 811 | HZ48: 811 | IA48: 811 | IB48: 811 | IC48: 811 | ID48: 811 | IE48: 811 | IF48: 811 | IG48: 811 | IH48: 811 | II48: 811 | IJ48: 811 | IK48: 811 | IL48: 811 | IM48: 811 | IN48: 811 | IO48: 811 | IP48: 811 | IQ48: 811 | IR48: 811 | IS48: 811 | IT48: 811 | IU48: 811 | IV48: 811 | IW48: 811 | IX48: 811 | IY48: 811 | IZ48: 811 | JA48: 811 | JB48: 811 | JC48: 811 | JD48: 811 | JE48: 811 | JF48: 811
B49: PTN4 | C49: 693 | D49: 693 | E49: 693 | F49: 693 | G49: 693 | H49: 693 | I49: 693 | J49: 693 | K49: 693 | L49: 693 | M49: 693 | N49: 693 | O49: 693 | P49: 693 | Q49: 693 | R49: 693 | S49: 693 | T49: 693 | U49: 693 | V49: 693 | W49: 693 | X49: 693 | Y49: 693 | Z49: 693 | AA49: 693 | AB49: 693 | AC49: 693 | AD49: 693 | AE49: 693 | AF49: 693 | AG49: 693 | AH49: 693 | AI49: 693 | AJ49: 693 | AK49: 693 | AL49: 693 | AM49: 693 | AN49: 693 | AO49: 693 | AP49: 693 | AQ49: 693 | AR49: 693 | AS49: 693 | AT49: 693 | AU49: 693 | AV49: 693 | AW49: 693 | AX49: 693 | AY49: 693 | AZ49: 693 | BA49: 693 | BB49: 693 | BC49: 693 | BD49: 693 | BE49: 693 | BF49: 693 | BG49: 693 | BH49: 693 | BI49: 693 | BJ49: 693 | BK49: 693 | BL49: 693 | BM49: 693 | BN49: 693 | BO49: 693 | BP49: 693 | BQ49: 693 | BR49: 693 | BS49: 693 | BT49: 693 | BU49: 693 | BV49: 693 | BW49: 693 | BX49: 693 | BY49: 693 | BZ49: 693 | CA49: 693 | CB49: 693 | CC49: 693 | CD49: 693 | CE49: 693 | CF49: 693 | CG49: 693 | CH49: 693 | CI49: 693 | CJ49: 693 | CK49: 693 | CL49: 693 | CM49: 693 | CN49: 693 | CO49: 693 | CP49: 693 | CQ49: =CP49 -> 693 | CR49: 693 | CS49: 693 | CT49: 693 | CU49: 693 | CV49: 693 | CW49: 693 | CX49: 693 | CY49: 693 | CZ49: 693 | DA49: 693 | DB49: 693 | DC49: 693 | DD49: 693 | DE49: 693 | DF49: 693 | DG49: 693 | DH49: 693 | DI49: 693 | DJ49: 693 | DK49: 693 | DL49: 693 | DM49: 693 | DN49: 693 | DO49: 693 | DP49: 693 | DQ49: 693 | DR49: 693 | DS49: 693 | DT49: 693 | DU49: 693 | DV49: 693 | DW49: 693 | DX49: 693 | DY49: 693 | DZ49: 693 | EA49: 693 | EB49: 693 | EC49: 693 | ED49: =EC49 -> 693 | EE49: 693 | EF49: 693 | EG49: =EF49 -> 693 | EH49: =EG49+115+1 -> 809 | EI49: 809 | EJ49: =EI49+10 -> 819 | EK49: 819 | EL49: 819 | EM49: =EL49+2 -> 821 | EN49: 821 | EO49: 821 | EP49: 821 | EQ49: 821 | ER49: 821 | ES49: 821 | ET49: 821 | EU49: 821 | EV49: 821 | EW49: 821 | EX49: 821 | EY49: 821 | EZ49: 821 | FA49: 821 | FB49: 821 | FC49: 821 | FD49: 821 | FE49: 821 | FF49: 821 | FG49: 821 | FH49: 821 | FI49: 821 | FJ49: 821 | FK49: 821 | FL49: 821 | FM49: 821 | FN49: 821 | FO49: 821 | FP49: 821 | FQ49: 821 | FR49: 821 | FS49: 821 | FT49: 821 | FU49: 821 | FV49: 821 | FW49: 821 | FX49: 821 | FY49: 821 | FZ49: 821 | GA49: 821 | GB49: 821 | GC49: 821 | GD49: 821 | GE49: 821 | GF49: 821 | GG49: 821 | GH49: 821 | GI49: 821 | GJ49: 821 | GK49: 821 | GL49: 821 | GM49: 821 | GN49: 821 | GO49: 821 | GP49: 821 | GQ49: 821 | GR49: 821 | GS49: 821 | GT49: 821 | GU49: 821 | GV49: 821 | GW49: 821 | GX49: 821 | GY49: 821 | GZ49: 821 | HA49: 821 | HB49: 821 | HC49: 821 | HD49: 821 | HE49: 821 | HF49: 821 | HG49: 821 | HH49: 821 | HI49: 821 | HJ49: 821 | HK49: 821 | HL49: 821 | HM49: 821 | HN49: 821 | HO49: 821 | HP49: 821 | HQ49: 821 | HR49: 821 | HS49: 821 | HT49: 821 | HU49: 821 | HV49: 821 | HW49: 821 | HX49: 821 | HY49: 821 | HZ49: 821 | IA49: 821 | IB49: 821 | IC49: 821 | ID49: 821 | IE49: 821 | IF49: 821 | IG49: 821 | IH49: 821 | II49: 821 | IJ49: 821 | IK49: 821 | IL49: 821 | IM49: 821 | IN49: 821 | IO49: 821 | IP49: 821 | IQ49: 821 | IR49: 821 | IS49: 821 | IT49: 821 | IU49: 821 | IV49: 821 | IW49: 821 | IX49: 821 | IY49: 821 | IZ49: 821 | JA49: 821 | JB49: 821 | JC49: 821 | JD49: 821 | JE49: 821 | JF49: 821
B50: PTF5 | C50: 0 | D50: 0 | E50: 0 | F50: 0 | G50: 0 | H50: 0 | I50: 0 | J50: 0 | K50: =J50 -> 0 | L50: 0 | M50: 0 | N50: 0 | O50: 0 | P50: 0 | Q50: 0 | R50: 0 | S50: 0 | T50: 0 | U50: 0 | V50: 0 | W50: 0 | X50: 0 | Y50: 0 | Z50: 0 | AA50: 0 | AB50: 0 | AC50: 0 | AD50: 0 | AE50: 0 | AF50: 0 | AG50: 0 | AH50: 0 | AI50: 0 | AJ50: 0 | AK50: 0 | AL50: 0 | AM50: 0 | AN50: 0 | AO50: 0 | AP50: 0 | AQ50: 0 | AR50: 0 | AS50: 0 | AT50: 0 | AU50: 0 | AV50: 0 | AW50: 0 | AX50: 0 | AY50: 0 | AZ50: 0 | BA50: 0 | BB50: 0 | BC50: 0 | BD50: 0 | BE50: 0 | BF50: 0 | BG50: 0 | BH50: =BE50 -> 0 | BI50: 0 | BJ50: 0 | BK50: 0 | BL50: 0 | BM50: 0 | BN50: 0 | BO50: =BN50+1144 -> 1144 | BP50: 1144 | BQ50: 1144 | BR50: 1144 | BS50: 1144 | BT50: 1144 | BU50: 1144 | BV50: 1144 | BW50: =BV50+4 -> 1148 | BX50: 1148 | BY50: 1148 | BZ50: 1148 | CA50: 1148 | CB50: 1148 | CC50: 1148 | CD50: 1148 | CE50: 1148 | CF50: 1148 | CG50: 1148 | CH50: 1148 | CI50: 1148 | CJ50: 1148 | CK50: 1148 | CL50: 1148 | CM50: 1148 | CN50: 1148 | CO50: 1148 | CP50: 1148 | CQ50: 1148 | CR50: 1148 | CS50: 1148 | CT50: 1148 | CU50: 1148 | CV50: 1148 | CW50: 1148 | CX50: 1148 | CY50: 1148 | CZ50: 1148 | DA50: 1148 | DB50: 1148 | DC50: 1148 | DD50: 1148 | DE50: 1148 | DF50: 1148 | DG50: 1148 | DH50: 1148 | DI50: 1148 | DJ50: 1148 | DK50: 1148 | DL50: 1148 | DM50: 1148 | DN50: 1148 | DO50: 1148 | DP50: 1148 | DQ50: 1148 | DR50: 1148 | DS50: 1148 | DT50: 1148 | DU50: 1148 | DV50: 1148 | DW50: 1148 | DX50: 1148 | DY50: 1148 | DZ50: 1148 | EA50: 1148 | EB50: 1148 | EC50: 1148 | ED50: 1148 | EE50: 1148 | EF50: 1148 | EG50: 1148 | EH50: 1148 | EI50: 1148 | EJ50: 1148 | EK50: 1148 | EL50: 1148 | EM50: 1148 | EN50: 1148 | EO50: 1148 | EP50: 1148 | EQ50: =EP50+1 -> 1149 | ER50: 1149 | ES50: =ER50+9+9 -> 1167 | ET50: 1167 | EU50: =ET50+11 -> 1178 | EV50: =EU50+14 -> 1192 | EW50: 1192 | EX50: 1192 | EY50: 1192 | EZ50: 1192 | FA50: 1192 | FB50: 1192 | FC50: 1192 | FD50: 1192 | FE50: 1192 | FF50: 1192 | FG50: 1192 | FH50: 1192 | FI50: 1192 | FJ50: 1192 | FK50: 1192 | FL50: 1192 | FM50: 1192 | FN50: 1192 | FO50: 1192 | FP50: 1192 | FQ50: 1192 | FR50: 1192 | FS50: 1192 | FT50: 1192 | FU50: 1192 | FV50: 1192 | FW50: 1192 | FX50: 1192 | FY50: 1192 | FZ50: 1192 | GA50: 1192 | GB50: =GA50+13 -> 1205 | GC50: =GB50+7 -> 1212 | GD50: =GC50+7 -> 1219 | GE50: 1219 | GF50: 1219 | GG50: 1219 | GH50: 1219 | GI50: 1219 | GJ50: 1219 | GK50: 1219 | GL50: 1219 | GM50: 1219 | GN50: 1219 | GO50: 1219 | GP50: 1219 | GQ50: 1219 | GR50: 1219 | GS50: 1219 | GT50: 1219 | GU50: 1219 | GV50: 1219 | GW50: 1219 | GX50: 1219 | GY50: 1219 | GZ50: 1219 | HA50: 1219 | HB50: 1219 | HC50: 1219 | HD50: 1219 | HE50: 1219 | HF50: 1219 | HG50: 1219 | HH50: 1219 | HI50: 1219 | HJ50: 1219 | HK50: 1219 | HL50: 1219 | HM50: 1219 | HN50: 1219 | HO50: 1219 | HP50: 1219 | HQ50: 1219 | HR50: 1219 | HS50: 1219 | HT50: 1219 | HU50: 1219 | HV50: 1219 | HW50: 1219 | HX50: 1219 | HY50: 1219 | HZ50: 1219 | IA50: 1219 | IB50: 1219 | IC50: 1219 | ID50: 1219 | IE50: 1219 | IF50: 1219 | IG50: 1219 | IH50: 1219 | II50: 1219 | IJ50: 1219 | IK50: 1219 | IL50: 1219 | IM50: 1219 | IN50: 1219 | IO50: 1219 | IP50: 1219 | IQ50: 1219 | IR50: 1219 | IS50: 1219 | IT50: 1219 | IU50: 1219 | IV50: 1219 | IW50: 1219 | IX50: 1219 | IY50: 1219 | IZ50: 1219 | JA50: 1219 | JB50: 1219 | JC50: 1219 | JD50: 1219 | JE50: 1219 | JF50: 1219
B51: PTN6 | C51: 0 | D51: 0 | E51: 0 | F51: 0 | G51: 0 | H51: 0 | I51: 0 | J51: 0 | K51: 0 | L51: 0 | M51: 0 | N51: 0 | O51: 0 | P51: 0 | Q51: 0 | R51: 0 | S51: 0 | T51: 0 | U51: 0 | V51: 0 | W51: 0 | X51: 0 | Y51: 0 | Z51: 0 | AA51: 0 | AB51: 0 | AC51: 0 | AD51: 0 | AE51: 0 | AF51: 0 | AG51: 0 | AH51: 0 | AI51: 0 | AJ51: 0 | AK51: 0 | AL51: 0 | AM51: 0 | AN51: 0 | AO51: 0 | AP51: 0 | AQ51: 0 | AR51: 0 | AS51: 0 | AT51: 0 | AU51: 0 | AV51: 0 | AW51: 0 | AX51: 0 | AY51: 0 | AZ51: 0 | BA51: 0 | BB51: 0 | BC51: 0 | BD51: 0 | BE51: 0 | BF51: 0 | BG51: 0 | BH51: 0 | BI51: 0 | BJ51: 0 | BK51: 0 | BL51: 0 | BM51: 0 | BN51: 0 | BO51: 0 | BP51: 0 | BQ51: 0 | BR51: 0 | BS51: 0 | BT51: 0 | BU51: 0 | BV51: 0 | BW51: 0 | BX51: 0 | BY51: 0 | BZ51: 0 | CA51: 0 | CB51: 0 | CC51: 0 | CD51: 0 | CE51: 0 | CF51: 0 | CG51: 0 | CH51: 0 | CI51: 0 | CJ51: 0 | CK51: 0 | CL51: 0 | CM51: 0 | CN51: 0 | CO51: 0 | CP51: 0 | CQ51: 0 | CR51: 0 | CS51: 0 | CT51: 0 | CU51: 0 | CV51: 0 | CW51: 0 | CX51: 0 | CY51: 0 | CZ51: 0 | DA51: 0 | DB51: 0 | DC51: 0 | DD51: 0 | DE51: 0 | DF51: 0 | DG51: 0 | DH51: 0 | DI51: 0 | DJ51: 0 | DK51: 0 | DL51: 0 | DM51: 0 | DN51: 0 | DO51: 0 | DP51: 0 | DQ51: 0 | DR51: 0 | DS51: 0 | DT51: 0 | DU51: 0 | DV51: 0 | DW51: 0 | DX51: 0 | DY51: 0 | DZ51: 0 | EA51: 0 | EB51: 0 | EC51: 0 | ED51: 0 | EE51: 0 | EF51: 0 | EG51: 0 | EH51: 0 | EI51: 0 | EJ51: 0 | EK51: 0 | EL51: 0 | EM51: 0 | EN51: 0 | EO51: 0 | EP51: 0 | EQ51: 0 | ER51: 0 | ES51: 0 | ET51: 0 | EU51: 0 | EV51: 0 | EW51: 0 | EX51: 0 | EY51: 0 | EZ51: 0 | FA51: 0 | FB51: 0 | FC51: 0 | FD51: 0 | FE51: 0 | FF51: 0 | FG51: 0 | FH51: 0 | FI51: 0 | FJ51: 0 | FK51: 0 | FL51: 0 | FM51: 0 | FN51: 0 | FO51: 0 | FP51: 0 | FQ51: 0 | FR51: 0 | FS51: 0 | FT51: 0 | FU51: 0 | FV51: 0 | FW51: 0 | FX51: 0 | FY51: 0 | FZ51: 0 | GA51: 0 | GB51: 0 | GC51: 0 | GD51: 0 | GE51: 0 | GF51: 0 | GG51: 0 | GH51: 0 | GI51: 0 | GJ51: 0 | GK51: 0 | GL51: 0 | GM51: 0 | GN51: 0 | GO51: 0 | GP51: 0 | GQ51: 0 | GR51: 0 | GS51: 0 | GT51: 0 | GU51: 0 | GV51: 0 | GW51: 0 | GX51: 0 | GY51: 0 | GZ51: 0 | HA51: 0 | HB51: 0 | HC51: 0 | HD51: 0 | HE51: 0 | HF51: 0 | HG51: 0 | HH51: 0 | HI51: 0 | HJ51: 0 | HK51: 0 | HL51: 0 | HM51: 0 | HN51: 0 | HO51: 0 | HP51: 0 | HQ51: 0 | HR51: 0 | HS51: 0 | HT51: 0 | HU51: 0 | HV51: 0 | HW51: 0 | HX51: 0 | HY51: 0 | HZ51: 0 | IA51: 0 | IB51: 0 | IC51: 0 | ID51: 0 | IE51: 0 | IF51: 0 | IG51: 0 | IH51: 0 | II51: 0 | IJ51: 0 | IK51: 0 | IL51: 0 | IM51: 0 | IN51: =IM51+1100 -> 1100 | IO51: 1100 | IP51: 1100 | IQ51: 1100 | IR51: 1100 | IS51: 1100 | IT51: 1100 | IU51: 1100 | IV51: 1100 | IW51: 1100 | IX51: 1100 | IY51: 1100 | IZ51: 1100 | JA51: 1100 | JB51: 1100 | JC51: 1100 | JD51: 1100 | JE51: 1100 | JF51: 1100
B52: PTN7 | C52: 0 | D52: 0 | E52: 0 | F52: 0 | G52: 0 | H52: 0 | I52: 0 | J52: 0 | K52: 0 | L52: 0 | M52: 0 | N52: 0 | O52: 0 | P52: 0 | Q52: 0 | R52: 0 | S52: 0 | T52: 0 | U52: 0 | V52: 0 | W52: 0 | X52: 0 | Y52: 0 | Z52: 0 | AA52: 0 | AB52: 0 | AC52: 0 | AD52: 0 | AE52: 0 | AF52: 0 | AG52: 0 | AH52: 0 | AI52: 0 | AJ52: 0 | AK52: 0 | AL52: =AK52 -> 0 | AM52: 0 | AN52: 0 | AO52: 0 | AP52: 0 | AQ52: 0 | AR52: 0 | AS52: 0 | AT52: 0 | AU52: 0 | AV52: 0 | AW52: 0 | AX52: 0 | AY52: 0 | AZ52: 0 | BA52: 0 | BB52: 0 | BC52: 0 | BD52: 0 | BE52: 0 | BF52: 0 | BG52: 0 | BH52: 0 | BI52: 0 | BJ52: 0 | BK52: 0 | BL52: 0 | BM52: 0 | BN52: 0 | BO52: 0 | BP52: 0 | BQ52: 0 | BR52: 0 | BS52: 0 | BT52: =BS52 -> 0 | BU52: 0 | BV52: 0 | BW52: 0 | BX52: 0 | BY52: 0 | BZ52: 0 | CA52: 0 | CB52: 0 | CC52: 0 | CD52: 0 | CE52: 0 | CF52: 0 | CG52: 0 | CH52: 0 | CI52: 0 | CJ52: 0 | CK52: 0 | CL52: 0 | CM52: 0 | CN52: 0 | CO52: 0 | CP52: 0 | CQ52: 0 | CR52: 0 | CS52: 0 | CT52: 0 | CU52: 0 | CV52: 0 | CW52: 0 | CX52: 0 | CY52: 0 | CZ52: 0 | DA52: 0 | DB52: 0 | DC52: 0 | DD52: 0 | DE52: 0 | DF52: 0 | DG52: 0 | DH52: 0 | DI52: 0 | DJ52: 0 | DK52: 0 | DL52: 0 | DM52: 0 | DN52: 0 | DO52: 0 | DP52: 0 | DQ52: 0 | DR52: 0 | DS52: 0 | DT52: 0 | DU52: 0 | DV52: 0 | DW52: 0 | DX52: 0 | DY52: 0 | DZ52: 0 | EA52: 0 | EB52: 0 | EC52: 0 | ED52: 0 | EE52: 0 | EF52: 0 | EG52: 0 | EH52: 0 | EI52: 0 | EJ52: 0 | EK52: 0 | EL52: 0 | EM52: 0 | EN52: 0 | EO52: 0 | EP52: 0 | EQ52: 0 | ER52: 0 | ES52: 0 | ET52: 0 | EU52: 0 | EV52: 0 | EW52: 0 | EX52: 0 | EY52: 0 | EZ52: 0 | FA52: 0 | FB52: 0 | FC52: 0 | FD52: 0 | FE52: 0 | FF52: 0 | FG52: 0 | FH52: 0 | FI52: 0 | FJ52: 0 | FK52: 0 | FL52: 0 | FM52: 0 | FN52: 0 | FO52: 0 | FP52: 0 | FQ52: 0 | FR52: 0 | FS52: 0 | FT52: 0 | FU52: 0 | FV52: 0 | FW52: 0 | FX52: 0 | FY52: 0 | FZ52: 0 | GA52: 0 | GB52: 0 | GC52: 0 | GD52: 0 | GE52: 0 | GF52: 0 | GG52: 0 | GH52: 0 | GI52: 0 | GJ52: 0 | GK52: 0 | GL52: 0 | GM52: 0 | GN52: 0 | GO52: 0 | GP52: 0 | GQ52: 0 | GR52: 0 | GS52: 0 | GT52: 0 | GU52: 0 | GV52: 0 | GW52: 0 | GX52: 0 | GY52: 0 | GZ52: 0 | HA52: 0 | HB52: 0 | HC52: 0 | HD52: 0 | HE52: 0 | HF52: 0 | HG52: 0 | HH52: 0 | HI52: 0 | HJ52: 0 | HK52: 0 | HL52: 0 | HM52: 0 | HN52: 0 | HO52: 0 | HP52: 0 | HQ52: 0 | HR52: 0 | HS52: 0 | HT52: 0 | HU52: 0 | HV52: 0 | HW52: 0 | HX52: 0 | HY52: 0 | HZ52: 0 | IA52: 0 | IB52: 0 | IC52: 0 | ID52: 0 | IE52: 0 | IF52: 0 | IG52: 0 | IH52: 0 | II52: 0 | IJ52: 0 | IK52: 0 | IL52: 0 | IM52: 0 | IN52: =IM52 -> 0 | IO52: 0 | IP52: 0 | IQ52: 0 | IR52: 0 | IS52: 0 | IT52: 0 | IU52: 0 | IV52: 0 | IW52: 0 | IX52: 0 | IY52: 0 | IZ52: =IY52+1100 -> 1100 | JA52: 1100 | JB52: 1100 | JC52: 1100 | JD52: 1100 | JE52: 1100 | JF52: 1100
B53: PTFD | C53: 12 | D53: 12 | E53: 12 | F53: 12 | G53: 12 | H53: 12 | I53: 12 | J53: 12 | K53: 12 | L53: 12 | M53: 12 | N53: 12 | O53: 12 | P53: 12 | Q53: 12 | R53: 12 | S53: 12 | T53: 12 | U53: 12 | V53: 12 | W53: 12 | X53: 12 | Y53: 12 | Z53: 12 | AA53: 12 | AB53: 12 | AC53: 12 | AD53: 12 | AE53: 12 | AF53: 12 | AG53: 12 | AH53: 12 | AI53: 12 | AJ53: 12 | AK53: 12 | AL53: 12 | AM53: 12 | AN53: 12 | AO53: 12 | AP53: 12 | AQ53: 12 | AR53: 12 | AS53: 12 | AT53: 12 | AU53: 12 | AV53: 12 | AW53: 12 | AX53: 12 | AY53: 12 | AZ53: 12 | BA53: 12 | BB53: 12 | BC53: 12 | BD53: 12 | BE53: 12 | BF53: 12 | BG53: 12 | BH53: 12 | BI53: 12 | BJ53: 12 | BK53: 12 | BL53: 12 | BM53: 12 | BN53: 12 | BO53: =BN53 -> 12 | BP53: =BO53 -> 12 | BQ53: 12 | BR53: 12 | BS53: 12 | BT53: 12 | BU53: 12 | BV53: 12 | BW53: =BV53 -> 12 | BX53: 12 | BY53: 12 | BZ53: 12 | CA53: 12 | CB53: 12 | CC53: 12 | CD53: 12 | CE53: 12 | CF53: 12 | CG53: 12 | CH53: 12 | CI53: 12 | CJ53: 12 | CK53: 12 | CL53: 12 | CM53: 12 | CN53: 12 | CO53: 12 | CP53: 12 | CQ53: 12 | CR53: 12 | CS53: 12 | CT53: =CS53-12 -> 0 | CU53: 0 | CV53: 0 | CW53: 0 | CX53: 0 | CY53: 0 | CZ53: 0 | DA53: 0 | DB53: 0 | DC53: 0 | DD53: 0 | DE53: 0 | DF53: 0 | DG53: 0 | DH53: 0 | DI53: 0 | DJ53: 0 | DK53: 0 | DL53: 0 | DM53: 0 | DN53: 0 | DO53: 0 | DP53: 0 | DQ53: 0 | DR53: 0 | DS53: 0 | DT53: 0 | DU53: 0 | DV53: 0 | DW53: 0 | DX53: 0 | DY53: 0 | DZ53: 0 | EA53: 0 | EB53: 0 | EC53: 0 | ED53: 0 | EE53: 0 | EF53: 0 | EG53: 0 | EH53: 0 | EI53: 0 | EJ53: 0 | EK53: 0 | EL53: 0 | EM53: 0 | EN53: 0 | EO53: 0 | EP53: 0 | EQ53: 0 | ER53: 0 | ES53: 0 | ET53: 0 | EU53: 0 | EV53: 0 | EW53: 0 | EX53: 0 | EY53: 0 | EZ53: 0 | FA53: 0 | FB53: 0 | FC53: 0 | FD53: 0 | FE53: 0 | FF53: 0 | FG53: 0 | FH53: 0 | FI53: 0 | FJ53: 0 | FK53: 0 | FL53: 0 | FM53: 0 | FN53: 0 | FO53: 0 | FP53: 0 | FQ53: 0 | FR53: 0 | FS53: 0 | FT53: 0 | FU53: 0 | FV53: 0 | FW53: 0 | FX53: 0 | FY53: 0 | FZ53: 0 | GA53: 0 | GB53: 0 | GC53: 0 | GD53: 0 | GE53: 0 | GF53: 0 | GG53: 0 | GH53: 0 | GI53: 0 | GJ53: 0 | GK53: 0 | GL53: 0 | GM53: 0 | GN53: 0 | GO53: 0 | GP53: 0 | GQ53: 0 | GR53: 0 | GS53: 0 | GT53: 0 | GU53: 0 | GV53: 0 | GW53: 0 | GX53: 0 | GY53: 0 | GZ53: 0 | HA53: 0 | HB53: 0 | HC53: 0 | HD53: 0 | HE53: 0 | HF53: 0 | HG53: 0 | HH53: 0 | HI53: 0 | HJ53: 0 | HK53: 0 | HL53: 0 | HM53: 0 | HN53: 0 | HO53: 0 | HP53: 0 | HQ53: 0 | HR53: 0 | HS53: 0 | HT53: 0 | HU53: 0 | HV53: 0 | HW53: 0 | HX53: 0 | HY53: 0 | HZ53: 0 | IA53: 0 | IB53: 0 | IC53: 0 | ID53: 0 | IE53: 0 | IF53: 0 | IG53: 0 | IH53: 0 | II53: 0 | IJ53: 0 | IK53: 0 | IL53: 0 | IM53: 0 | IN53: 0 | IO53: 0 | IP53: 0 | IQ53: 0 | IR53: 0 | IS53: 0 | IT53: 0 | IU53: 0 | IV53: 0 | IW53: 0 | IX53: 0 | IY53: 0 | IZ53: 0 | JA53: 0 | JB53: 0 | JC53: 0 | JD53: 0 | JE53: 0 | JF53: 0
B54: PVB | C54: 0 | D54: 0 | E54: 0 | F54: 0 | G54: 0 | H54: 0 | I54: 0 | J54: 0 | K54: 0 | L54: 0 | M54: 0 | N54: 0 | O54: 0 | P54: 0 | Q54: 0 | R54: 0 | S54: 0 | T54: 0 | U54: 0 | V54: 0 | W54: 0 | X54: 0 | Y54: 0 | Z54: 0 | AA54: 0 | AB54: 0 | AC54: 0 | AD54: 0 | AE54: 0 | AF54: 0 | AG54: 0 | AH54: 0 | AI54: 0 | AJ54: 0 | AK54: 0 | AL54: 0 | AM54: 0 | AN54: 0 | AO54: 0 | AP54: 0 | AQ54: 0 | AR54: 0 | AS54: 0 | AT54: 0 | AU54: 0 | AV54: 0 | AW54: 0 | AX54: 0 | AY54: 0 | AZ54: 0 | BA54: 0 | BB54: 0 | BC54: 0 | BD54: 0 | BE54: 0 | BF54: 0 | BG54: 0 | BH54: 0 | BI54: 0 | BJ54: 0 | BK54: 0 | BL54: 0 | BM54: 0 | BN54: 0 | BO54: =BN54 -> 0 | BP54: 0 | BQ54: 0 | BR54: 0 | BS54: 0 | BT54: 0 | BU54: 0 | BV54: 0 | BW54: =BV54 -> 0 | BX54: 0 | BY54: 0 | BZ54: 0 | CA54: 0 | CB54: 0 | CC54: 0 | CD54: 0 | CE54: 0 | CF54: 0 | CG54: 0 | CH54: 0 | CI54: 0 | CJ54: 0 | CK54: 0 | CL54: 0 | CM54: 0 | CN54: 0 | CO54: 0 | CP54: 0 | CQ54: 0 | CR54: 0 | CS54: 0 | CT54: =CS54 -> 0 | CU54: 0 | CV54: 0 | CW54: 0 | CX54: 0 | CY54: 0 | CZ54: 0 | DA54: 0 | DB54: 0 | DC54: 0 | DD54: 0 | DE54: 0 | DF54: 0 | DG54: 0 | DH54: 0 | DI54: 0 | DJ54: 0 | DK54: 0 | DL54: 0 | DM54: 0 | DN54: 0 | DO54: 0 | DP54: 0 | DQ54: 0 | DR54: 0 | DS54: 0 | DT54: 0 | DU54: 0 | DV54: 0 | DW54: 0 | DX54: 0 | DY54: 0 | DZ54: 0 | EA54: 0 | EB54: 0 | EC54: 0 | ED54: 0 | EE54: 0 | EF54: 0 | EG54: 0 | EH54: 0 | EI54: 0 | EJ54: 0 | EK54: 0 | EL54: 0 | EM54: 0 | EN54: 0 | EO54: 0 | EP54: 0 | EQ54: 0 | ER54: 0 | ES54: 0 | ET54: 0 | EU54: 0 | EV54: 0 | EW54: 0 | EX54: 0 | EY54: 0 | EZ54: 0 | FA54: 0 | FB54: 0 | FC54: =FB54 -> 0 | FD54: 0 | FE54: 0 | FF54: 0 | FG54: 0 | FH54: 0 | FI54: 0 | FJ54: 0 | FK54: 0 | FL54: 0 | FM54: 0 | FN54: 0 | FO54: 0 | FP54: 0 | FQ54: 0 | FR54: 0 | FS54: 0 | FT54: 0 | FU54: 0 | FV54: 0 | FW54: 0 | FX54: 0 | FY54: 0 | FZ54: 0 | GA54: =FZ54+44 -> 44 | GB54: 44 | GC54: 44 | GD54: 44 | GE54: 44 | GF54: 44 | GG54: 44 | GH54: 44 | GI54: 44 | GJ54: 44 | GK54: 44 | GL54: 44 | GM54: =GL54 -> 44 | GN54: 44 | GO54: 44 | GP54: 44 | GQ54: 44 | GR54: 44 | GS54: 44 | GT54: 44 | GU54: 44 | GV54: 44 | GW54: 44 | GX54: =GW54-44 -> 0 | GY54: 0 | GZ54: 0 | HA54: 0 | HB54: 0 | HC54: 0 | HD54: 0 | HE54: 0 | HF54: 0 | HG54: 0 | HH54: 0 | HI54: 0 | HJ54: 0 | HK54: 0 | HL54: 0 | HM54: 0 | HN54: 0 | HO54: 0 | HP54: 0 | HQ54: 0 | HR54: 0 | HS54: 0 | HT54: 0 | HU54: 0 | HV54: 0 | HW54: 0 | HX54: 0 | HY54: 0 | HZ54: 0 | IA54: 0 | IB54: 0 | IC54: 0 | ID54: 0 | IE54: 0 | IF54: 0 | IG54: 0 | IH54: 0 | II54: 0 | IJ54: 0 | IK54: 0 | IL54: 0 | IM54: 0 | IN54: 0 | IO54: 0 | IP54: 0 | IQ54: 0 | IR54: 0 | IS54: 0 | IT54: 0 | IU54: 0 | IV54: 0 | IW54: 0 | IX54: 0 | IY54: 0 | IZ54: 0 | JA54: 0 | JB54: 0 | JC54: 0 | JD54: 0 | JE54: 0 | JF54: 0
B55: PWC1 | C55: 0 | D55: 0 | E55: 0 | F55: 0 | G55: 0 | H55: 0 | I55: 0 | J55: 0 | K55: 0 | L55: 0 | M55: 0 | N55: 0 | O55: 0 | P55: 0 | Q55: 0 | R55: 0 | S55: 0 | T55: 0 | U55: 0 | V55: 0 | W55: 0 | X55: 0 | Y55: 0 | Z55: 0 | AA55: 0 | AB55: 0 | AC55: 0 | AD55: 0 | AE55: 0 | AF55: 0 | AG55: 0 | AH55: 0 | AI55: 0 | AJ55: 0 | AK55: 0 | AL55: 0 | AM55: 0 | AN55: 0 | AO55: 0 | AP55: 0 | AQ55: 0 | AR55: 0 | AS55: 0 | AT55: 0 | AU55: 0 | AV55: 0 | AW55: 0 | AX55: 0 | AY55: 0 | AZ55: 0 | BA55: 0 | BB55: 0 | BC55: 0 | BD55: 0 | BE55: 0 | BF55: 0 | BG55: 0 | BH55: 0 | BI55: 0 | BJ55: 0 | BK55: 0 | BL55: 0 | BM55: 0 | BN55: 0 | BO55: =BN55 -> 0 | BP55: 0 | BQ55: 0 | BR55: 0 | BS55: 0 | BT55: 0 | BU55: 0 | BV55: 0 | BW55: =BV55 -> 0 | BX55: 0 | BY55: 0 | BZ55: 0 | CA55: 0 | CB55: 0 | CC55: 0 | CD55: 0 | CE55: 0 | CF55: 0 | CG55: 0 | CH55: 0 | CI55: 0 | CJ55: 0 | CK55: 0 | CL55: 0 | CM55: =CL55 -> 0 | CN55: =CM55 -> 0 | CO55: =CN55 -> 0 | CP55: =CO55+1219 -> 1219 | CQ55: =CP55 -> 1219 | CR55: 1219 | CS55: 1219 | CT55: =CS55 -> 1219 | CU55: 1219 | CV55: 1219 | CW55: 1219 | CX55: 1219 | CY55: 1219 | CZ55: 1219 | DA55: 1219 | DB55: 1219 | DC55: 1219 | DD55: 1219 | DE55: 1219 | DF55: 1219 | DG55: 1219 | DH55: 1219 | DI55: 1219 | DJ55: 1219 | DK55: 1219 | DL55: 1219 | DM55: 1219 | DN55: 1219 | DO55: 1219 | DP55: 1219 | DQ55: 1219 | DR55: 1219 | DS55: 1219 | DT55: 1219 | DU55: 1219 | DV55: 1219 | DW55: 1219 | DX55: 1219 | DY55: 1219 | DZ55: 1219 | EA55: 1219 | EB55: 1219 | EC55: 1219 | ED55: 1219 | EE55: 1219 | EF55: 1219 | EG55: 1219 | EH55: 1219 | EI55: 1219 | EJ55: 1219 | EK55: 1219 | EL55: 1219 | EM55: 1219 | EN55: 1219 | EO55: 1219 | EP55: 1219 | EQ55: 1219 | ER55: 1219 | ES55: 1219 | ET55: 1219 | EU55: 1219 | EV55: 1219 | EW55: =EV55 -> 1219 | EX55: =EW55 -> 1219 | EY55: =EX55 -> 1219 | EZ55: =EY55 -> 1219 | FA55: 1219 | FB55: 1219 | FC55: 1219 | FD55: 1219 | FE55: 1219 | FF55: 1219 | FG55: 1219 | FH55: 1219 | FI55: 1219 | FJ55: 1219 | FK55: 1219 | FL55: 1219 | FM55: 1219 | FN55: 1219 | FO55: 1219 | FP55: 1219 | FQ55: 1219 | FR55: 1219 | FS55: 1219 | FT55: 1219 | FU55: 1219 | FV55: 1219 | FW55: 1219 | FX55: 1219 | FY55: 1219 | FZ55: 1219 | GA55: 1219 | GB55: 1219 | GC55: 1219 | GD55: 1219 | GE55: 1219 | GF55: 1219 | GG55: 1219 | GH55: 1219 | GI55: 1219 | GJ55: 1219 | GK55: 1219 | GL55: 1219 | GM55: 1219 | GN55: 1219 | GO55: 1219 | GP55: 1219 | GQ55: 1219 | GR55: 1219 | GS55: 1219 | GT55: 1219 | GU55: 1219 | GV55: 1219 | GW55: 1219 | GX55: 1219 | GY55: 1219 | GZ55: 1219 | HA55: 1219 | HB55: 1219 | HC55: 1219 | HD55: 1219 | HE55: 1219 | HF55: 1219 | HG55: 1219 | HH55: 1219 | HI55: 1219 | HJ55: 1219 | HK55: 1219 | HL55: 1219 | HM55: 1219 | HN55: 1219 | HO55: 1219 | HP55: 1219 | HQ55: 1219 | HR55: 1219 | HS55: 1219 | HT55: 1219 | HU55: 1219 | HV55: 1219 | HW55: 1219 | HX55: 1219 | HY55: 1219 | HZ55: 1219 | IA55: 1219 | IB55: 1219 | IC55: 1219 | ID55: 1219 | IE55: 1219 | IF55: 1219 | IG55: 1219 | IH55: 1219 | II55: 1219 | IJ55: 1219 | IK55: 1219 | IL55: 1219 | IM55: 1219 | IN55: 1219 | IO55: 1219 | IP55: 1219 | IQ55: 1219 | IR55: 1219 | IS55: 1219 | IT55: 1219 | IU55: 1219 | IV55: 1219 | IW55: 1219 | IX55: 1219 | IY55: 1219 | IZ55: 1219 | JA55: 1219 | JB55: 1219 | JC55: 1219 | JD55: 1219 | JE55: 1219 | JF55: 1219
B56: PWC2 | C56: 0 | D56: 0 | E56: 0 | F56: 0 | G56: 0 | H56: 0 | I56: 0 | J56: 0 | K56: 0 | L56: 0 | M56: 0 | N56: 0 | O56: 0 | P56: 0 | Q56: 0 | R56: 0 | S56: 0 | T56: 0 | U56: 0 | V56: 0 | W56: 0 | X56: 0 | Y56: 0 | Z56: 0 | AA56: 0 | AB56: 0 | AC56: 0 | AD56: 0 | AE56: 0 | AF56: 0 | AG56: 0 | AH56: 0 | AI56: 0 | AJ56: 0 | AK56: 0 | AL56: 0 | AM56: 0 | AN56: 0 | AO56: 0 | AP56: 0 | AQ56: 0 | AR56: 0 | AS56: 0 | AT56: 0 | AU56: 0 | AV56: 0 | AW56: 0 | AX56: 0 | AY56: 0 | AZ56: 0 | BA56: 0 | BB56: 0 | BC56: 0 | BD56: 0 | BE56: 0 | BF56: 0 | BG56: 0 | BH56: 0 | BI56: 0 | BJ56: 0 | BK56: 0 | BL56: 0 | BM56: 0 | BN56: 0 | BO56: =BN56 -> 0 | BP56: 0 | BQ56: 0 | BR56: 0 | BS56: 0 | BT56: 0 | BU56: 0 | BV56: 0 | BW56: =BV56 -> 0 | BX56: 0 | BY56: 0 | BZ56: 0 | CA56: 0 | CB56: 0 | CC56: 0 | CD56: 0 | CE56: 0 | CF56: 0 | CG56: 0 | CH56: 0 | CI56: 0 | CJ56: 0 | CK56: 0 | CL56: 0 | CM56: 0 | CN56: 0 | CO56: 0 | CP56: 0 | CQ56: =CP56 -> 0 | CR56: 0 | CS56: 0 | CT56: =CS56+1219 -> 1219 | CU56: 1219 | CV56: 1219 | CW56: 1219 | CX56: 1219 | CY56: 1219 | CZ56: 1219 | DA56: 1219 | DB56: 1219 | DC56: 1219 | DD56: 1219 | DE56: 1219 | DF56: 1219 | DG56: 1219 | DH56: 1219 | DI56: 1219 | DJ56: 1219 | DK56: 1219 | DL56: 1219 | DM56: 1219 | DN56: 1219 | DO56: 1219 | DP56: 1219 | DQ56: 1219 | DR56: 1219 | DS56: 1219 | DT56: 1219 | DU56: 1219 | DV56: 1219 | DW56: 1219 | DX56: 1219 | DY56: 1219 | DZ56: 1219 | EA56: 1219 | EB56: 1219 | EC56: 1219 | ED56: 1219 | EE56: 1219 | EF56: 1219 | EG56: 1219 | EH56: 1219 | EI56: 1219 | EJ56: 1219 | EK56: 1219 | EL56: 1219 | EM56: 1219 | EN56: 1219 | EO56: 1219 | EP56: 1219 | EQ56: 1219 | ER56: 1219 | ES56: 1219 | ET56: 1219 | EU56: 1219 | EV56: 1219 | EW56: 1219 | EX56: 1219 | EY56: 1219 | EZ56: 1219 | FA56: 1219 | FB56: 1219 | FC56: 1219 | FD56: 1219 | FE56: 1219 | FF56: 1219 | FG56: 1219 | FH56: 1219 | FI56: 1219 | FJ56: 1219 | FK56: 1219 | FL56: 1219 | FM56: 1219 | FN56: 1219 | FO56: 1219 | FP56: 1219 | FQ56: 1219 | FR56: 1219 | FS56: 1219 | FT56: 1219 | FU56: 1219 | FV56: 1219 | FW56: 1219 | FX56: 1219 | FY56: 1219 | FZ56: 1219 | GA56: 1219 | GB56: 1219 | GC56: 1219 | GD56: 1219 | GE56: 1219 | GF56: 1219 | GG56: 1219 | GH56: 1219 | GI56: 1219 | GJ56: 1219 | GK56: 1219 | GL56: 1219 | GM56: 1219 | GN56: 1219 | GO56: 1219 | GP56: 1219 | GQ56: 1219 | GR56: 1219 | GS56: 1219 | GT56: 1219 | GU56: 1219 | GV56: 1219 | GW56: 1219 | GX56: 1219 | GY56: 1219 | GZ56: 1219 | HA56: 1219 | HB56: 1219 | HC56: 1219 | HD56: 1219 | HE56: 1219 | HF56: 1219 | HG56: 1219 | HH56: 1219 | HI56: 1219 | HJ56: 1219 | HK56: 1219 | HL56: 1219 | HM56: 1219 | HN56: 1219 | HO56: 1219 | HP56: 1219 | HQ56: 1219 | HR56: 1219 | HS56: 1219 | HT56: 1219 | HU56: 1219 | HV56: 1219 | HW56: 1219 | HX56: 1219 | HY56: 1219 | HZ56: 1219 | IA56: 1219 | IB56: 1219 | IC56: 1219 | ID56: 1219 | IE56: 1219 | IF56: 1219 | IG56: 1219 | IH56: 1219 | II56: 1219 | IJ56: 1219 | IK56: 1219 | IL56: 1219 | IM56: 1219 | IN56: 1219 | IO56: 1219 | IP56: 1219 | IQ56: 1219 | IR56: 1219 | IS56: 1219 | IT56: 1219 | IU56: 1219 | IV56: 1219 | IW56: 1219 | IX56: 1219 | IY56: 1219 | IZ56: 1219 | JA56: 1219 | JB56: 1219 | JC56: 1219 | JD56: 1219 | JE56: 1219 | JF56: 1219
B57: PWC3 | C57: 0 | D57: 0 | E57: 0 | F57: 0 | G57: 0 | H57: 0 | I57: 0 | J57: 0 | K57: 0 | L57: 0 | M57: 0 | N57: 0 | O57: 0 | P57: 0 | Q57: 0 | R57: 0 | S57: 0 | T57: 0 | U57: 0 | V57: 0 | W57: 0 | X57: 0 | Y57: 0 | Z57: 0 | AA57: 0 | AB57: 0 | AC57: 0 | AD57: 0 | AE57: 0 | AF57: 0 | AG57: 0 | AH57: 0 | AI57: 0 | AJ57: 0 | AK57: 0 | AL57: 0 | AM57: 0 | AN57: 0 | AO57: 0 | AP57: 0 | AQ57: 0 | AR57: 0 | AS57: 0 | AT57: 0 | AU57: 0 | AV57: 0 | AW57: 0 | AX57: 0 | AY57: 0 | AZ57: 0 | BA57: 0 | BB57: 0 | BC57: 0 | BD57: 0 | BE57: 0 | BF57: 0 | BG57: 0 | BH57: 0 | BI57: =BH57 -> 0 | BJ57: 0 | BK57: 0 | BL57: =BK57 -> 0 | BM57: =BL57 -> 0 | BN57: =BM57 -> 0 | BO57: =BN57 -> 0 | BP57: =BO57 -> 0 | BQ57: =BP57 -> 0 | BR57: 0 | BS57: 0 | BT57: 0 | BU57: 0 | BV57: 0 | BW57: =BV57 -> 0 | BX57: 0 | BY57: 0 | BZ57: 0 | CA57: 0 | CB57: 0 | CC57: 0 | CD57: 0 | CE57: 0 | CF57: 0 | CG57: 0 | CH57: 0 | CI57: 0 | CJ57: 0 | CK57: 0 | CL57: 0 | CM57: 0 | CN57: 0 | CO57: 0 | CP57: 0 | CQ57: =CP57 -> 0 | CR57: 0 | CS57: 0 | CT57: =CS57 -> 0 | CU57: 0 | CV57: 0 | CW57: 0 | CX57: 0 | CY57: 0 | CZ57: 0 | DA57: 0 | DB57: 0 | DC57: 0 | DD57: 0 | DE57: 0 | DF57: 0 | DG57: 0 | DH57: 0 | DI57: =DH57 -> 0 | DJ57: =DI57 -> 0 | DK57: =DH57+1219 -> 1219 | DL57: =DK57 -> 1219 | DM57: 1219 | DN57: 1219 | DO57: 1219 | DP57: 1219 | DQ57: 1219 | DR57: 1219 | DS57: 1219 | DT57: 1219 | DU57: 1219 | DV57: 1219 | DW57: 1219 | DX57: 1219 | DY57: 1219 | DZ57: 1219 | EA57: 1219 | EB57: =EA57 -> 1219 | EC57: 1219 | ED57: 1219 | EE57: 1219 | EF57: 1219 | EG57: 1219 | EH57: 1219 | EI57: 1219 | EJ57: 1219 | EK57: 1219 | EL57: 1219 | EM57: 1219 | EN57: 1219 | EO57: 1219 | EP57: 1219 | EQ57: 1219 | ER57: 1219 | ES57: 1219 | ET57: 1219 | EU57: 1219 | EV57: =EU57 -> 1219 | EW57: 1219 | EX57: 1219 | EY57: 1219 | EZ57: 1219 | FA57: 1219 | FB57: 1219 | FC57: 1219 | FD57: 1219 | FE57: 1219 | FF57: 1219 | FG57: 1219 | FH57: 1219 | FI57: 1219 | FJ57: 1219 | FK57: 1219 | FL57: 1219 | FM57: 1219 | FN57: 1219 | FO57: 1219 | FP57: 1219 | FQ57: 1219 | FR57: 1219 | FS57: 1219 | FT57: 1219 | FU57: 1219 | FV57: 1219 | FW57: 1219 | FX57: 1219 | FY57: 1219 | FZ57: 1219 | GA57: 1219 | GB57: 1219 | GC57: 1219 | GD57: 1219 | GE57: 1219 | GF57: 1219 | GG57: 1219 | GH57: 1219 | GI57: 1219 | GJ57: 1219 | GK57: 1219 | GL57: 1219 | GM57: 1219 | GN57: 1219 | GO57: 1219 | GP57: 1219 | GQ57: 1219 | GR57: 1219 | GS57: 1219 | GT57: 1219 | GU57: 1219 | GV57: 1219 | GW57: 1219 | GX57: 1219 | GY57: 1219 | GZ57: 1219 | HA57: 1219 | HB57: 1219 | HC57: 1219 | HD57: 1219 | HE57: 1219 | HF57: 1219 | HG57: 1219 | HH57: 1219 | HI57: 1219 | HJ57: 1219 | HK57: 1219 | HL57: 1219 | HM57: 1219 | HN57: 1219 | HO57: 1219 | HP57: 1219 | HQ57: 1219 | HR57: 1219 | HS57: 1219 | HT57: 1219 | HU57: 1219 | HV57: 1219 | HW57: 1219 | HX57: 1219 | HY57: 1219 | HZ57: 1219 | IA57: 1219 | IB57: 1219 | IC57: 1219 | ID57: 1219 | IE57: 1219 | IF57: 1219 | IG57: 1219 | IH57: 1219 | II57: 1219 | IJ57: 1219 | IK57: 1219 | IL57: 1219 | IM57: 1219 | IN57: 1219 | IO57: 1219 | IP57: 1219 | IQ57: 1219 | IR57: 1219 | IS57: 1219 | IT57: 1219 | IU57: 1219 | IV57: 1219 | IW57: 1219 | IX57: 1219 | IY57: 1219 | IZ57: 1219 | JA57: 1219 | JB57: 1219 | JC57: 1219 | JD57: 1219 | JE57: 1219 | JF57: 1219
B59: Total | C59: =SUM(C4:C57) -> 16619 | D59: =SUM(D4:D57) -> 16619 | E59: 15725 | F59: 15344 | G59: 15344 | H59: 17720 | I59: 17720 | J59: 17720 | K59: 17720 | L59: 17720 | M59: 17720 | N59: 17720 | O59: =SUM(O4:O57) -> 17641 | P59: =SUM(P4:P57) -> 17641 | Q59: 17641 | R59: 17641 | S59: 18598 | T59: 18912 | U59: 18912 | V59: 18912 | W59: 18912 | X59: 18912 | Y59: 18912 | Z59: 18912 | AA59: 19122 | AB59: 19122 | AC59: 19122 | AD59: 19122 | AE59: 19122 | AF59: 19122 | AG59: 19122 | AH59: 19122 | AI59: 19122 | AJ59: 19122 | AK59: 19122 | AL59: 19122 | AM59: 18943 | AN59: 18943 | AO59: 18943 | AP59: 18949 | AQ59: 18949 | AR59: 20843 | AS59: 20846 | AT59: 20846 | AU59: 20846 | AV59: 20846 | AW59: 20846 | AX59: 20846 | AY59: 20777 | AZ59: 20777 | BA59: 20777 | BB59: 20835 | BC59: 20831 | BD59: 20831 | BE59: 20845 | BF59: 20845 | BG59: 20845 | BH59: 20856 | BI59: 20856 | BJ59: 20981 | BK59: 20984 | BL59: 20984 | BM59: 20984 | BN59: 20987 | BO59: 22131 | BP59: 22135 | BQ59: 22135 | BR59: 22135 | BS59: 22135 | BT59: 22135 | BU59: 22135 | BV59: 22135 | BW59: 22140 | BX59: 22140 | BY59: 22140 | BZ59: 22120 | CA59: 22120 | CB59: =SUM(CB4:CB57) -> 22120 | CC59: 22116 | CD59: 22116 | CE59: 22116 | CF59: 22116 | CG59: 22116 | CH59: 22088 | CI59: 22088 | CJ59: 22088 | CK59: 22088 | CL59: 22088 | CM59: 22088 | CN59: 22088 | CO59: 22088 | CP59: 23307 | CQ59: 23307 | CR59: 23326 | CS59: 23326 | CT59: 24524 | CU59: 24530 | CV59: 24530 | CW59: 24530 | CX59: 24540 | CY59: 24540 | CZ59: 23748 | DA59: 23748 | DB59: 23748 | DC59: 23748 | DD59: 23748 | DE59: 23748 | DF59: 23722 | DG59: 23722 | DH59: 23157 | DI59: 23157 | DJ59: 23186 | DK59: 24405 | DL59: 24405 | DM59: 24431 | DN59: 24431 | DO59: 24431 | DP59: 24431 | DQ59: 24431 | DR59: 24460 | DS59: 24460 | DT59: 24460 | DU59: 24460 | DV59: 24479 | DW59: 24449 | DX59: 24449 | DY59: 24446 | DZ59: 24594 | EA59: 24594 | EB59: 24716 | EC59: 24725 | ED59: 24057 | EE59: 24058 | EF59: 23297 | EG59: 23297 | EH59: =SUM(EH4:EH57) -> 24636 | EI59: 24636 | EJ59: 24653 | EK59: 24653 | EL59: 24650 | EM59: 24665 | EN59: =SUM(EN4:EN57) -> 24665 | EO59: 24665 | EP59: 24665 | EQ59: =SUM(EQ4:EQ57) -> 24299 | ER59: 24299 | ES59: 24317 | ET59: 25529 | EU59: 25537 | EV59: 25581 | EW59: 25581 | EX59: 25586 | EY59: 25586 | EZ59: 25586 | FA59: 25586 | FB59: 25092 | FC59: 25092 | FD59: 25089 | FE59: 25089 | FF59: 25089 | FG59: 25093 | FH59: 25097 | FI59: 25101 | FJ59: 25105 | FK59: 25114 | FL59: 25114 | FM59: 25114 | FN59: 25114 | FO59: 25114 | FP59: 25114 | FQ59: 25115 | FR59: 25115 | FS59: 25115 | FT59: 26354 | FU59: 26355 | FV59: 26355 | FW59: 26357 | FX59: 26358 | FY59: 26358 | FZ59: 26358 | GA59: 26006 | GB59: 26019 | GC59: 26026 | GD59: 26033 | GE59: 26035 | GF59: 26036 | GG59: 26037 | GH59: 26037 | GI59: 26037 | GJ59: 26037 | GK59: 26037 | GL59: 26037 | GM59: 26037 | GN59: 26037 | GO59: 26037 | GP59: 26037 | GQ59: 26037 | GR59: 26037 | GS59: 26037 | GT59: 26037 | GU59: 26037 | GV59: 26037 | GW59: 26037 | GX59: 25993 | GY59: 25993 | GZ59: =SUM(GZ4:GZ57) -> 25993 | HA59: 25993 | HB59: 25993 | HC59: 25993 | HD59: 25993 | HE59: 25993 | HF59: 25993 | HG59: 25993 | HH59: 25993 | HI59: 25993 | HJ59: 25993 | HK59: 25993 | HL59: 25993 | HM59: 25993 | HN59: 25993 | HO59: 25993 | HP59: 25993 | HQ59: 25993 | HR59: 25993 | HS59: 25993 | HT59: 25993 | HU59: 25993 | HV59: 25993 | HW59: 25993 | HX59: 25993 | HY59: 25993 | HZ59: 25993 | IA59: 25993 | IB59: 25993 | IC59: 25993 | ID59: 25993 | IE59: 25993 | IF59: 25993 | IG59: 25993 | IH59: 25993 | II59: 25993 | IJ59: 25993 | IK59: 26022 | IL59: 26022 | IM59: 26051 | IN59: 27151 | IO59: 27180 | IP59: 27180 | IQ59: 27180 | IR59: 27180 | IS59: 27180 | IT59: 27180 | IU59: 27180 | IV59: 27180 | IW59: 27180 | IX59: 27180 | IY59: =SUM(IY4:IY57) -> 27208 | IZ59: =SUM(IZ4:IZ57) -> 28308 | JA59: 28336 | JB59: 28336 | JC59: 28336 | JD59: 28336 | JE59: 28363 | JF59: 28363
B61: New Gen | T61: =(T16-S16) -> 314 | AR61: =(AR24-AQ24)+(AR27-AQ27) -> 1894 | BO61: =(BO50-BN50) -> 1144 | CP61: =(CP55-CO55) -> 1219 | CR61: =(CR9-CQ9) -> 19 | CT61: =(CT56-CS56) -> 1219 | CZ61: =(CX39-CY39) -> 0 | DK61: =(DK57-DJ57) -> 1219 | EH61: =(EH6-EG6) -> 1210 | ET61: =(ET38-EQ38) -> 1212 | FT61: =(FT32-FS32) -> 1237 | GA61: =(GA54-FZ54) -> 44 | IN61: =(IN51-IM51) -> 1100 | IZ61: =(IZ52-IY52) -> 1100
B62: Repower | E62: =(E15-D15) -> -894 | F62: =(F44-E44) -> -381 | H62: =(H15-G15)+(H45-G45) -> 2376 | S62: =(S44-R44) -> 957
B63: EPU | DJ63: =(DJ42-DI42) -> 29 | DR63: =(DR42-DO42) -> 2 | DZ63: =(DZ48-DY48)+(DZ41-DY41) -> 148 | EB63: =(EB48-EA48) -> 115 | ED63: =(ED41-EC41)+(ED42-EC42)+(ED48-EC48) -> 93 | EH63: =(EH41-EG41)+(EH42-EG42)+(EH49-EG49) -> 113 | EJ63: =(EJ48-EI48)+(EJ49-EI49) -> 9 | EM63: =(EM48-EL48)+(EM49-EL49) -> 5
B64: CT Upgrade | DR64: =(DR24-DO24) -> 27 | DV64: =(DV45-DU45) -> 19 | EB64: =(EB44-EA44) -> 7 | EC64: =(EC24-EB24) -> 9 | ED64: =(ED44-EC44) -> 8 | EH64: =(EH44-EG44) -> 16 | EJ64: =(EJ45-EI45) -> 8 | EM64: =(EM45-EL45) -> 10 | EQ64: =(EQ24-EP24)+(EQ44-EP44)+(EQ45-EP45) -> 24 | ES64: =(ES50-ER50) -> 18 | EU64: =(EU50-ET50) -> 11 | EV64: =(EV27-EU27)+(EV50-EU50) -> 44 | EW64: =(EW27-EV27) -> 0 | EX64: =(EX27-EW27) -> 5 | FG64: =FG15-FF15 -> 4 | FH64: =FH15-FG15 -> 4 | FI64: 4 | FJ64: 4 | FK64: 9 | FQ64: =FQ44-FP44 -> 1 | FT64: =FT24-FS24 -> 2 | FU64: =FU24-FT24 -> 1 | FW64: =FW27-FV27 -> 2 | FX64: =FX27-FW27 -> 1 | GB64: =GB50-GA50 -> 13 | GC64: =GC50-GB50 -> 7 | GD64: =GD50-GC50 -> 7 | GE64: =GE27-GD27 -> 2 | GF64: =GF45-GE45 -> 1 | GG64: =GG24-GF24 -> 1 | IK64: =(IK6-IJ6) -> 29 | IM64: =(IM6-IL6) -> 29 | IO64: =(IO6-IN6) -> 29 | IY64: =(IY38-IX38) -> 28 | JA64: =(JA38-IZ38) -> 28 | JE64: =(JE38-JD38) -> 27
B65: Capability | AA65: =(AA4-Z4)+(AA5-Z5)+(AA10-Z10)+(AA15-Z15)+(AA16-Z16)+(AA17-Z17)+(AA20-Z20)+(AA21-Z21)+(AA22-Z22)+(AA23-Z23)+(AA24-Z24)+(AA25-Z25)+(AA26-Z26)+(AA31-Z31)+(AA44-Z44)+(AA45-Z45)+(AA46-Z46) -> 210 | AM65: =(AM4-AL4)+(AM16-AL16)+(AM19-AL19)+(AM21-AL21)+(AM22-AL22)+(AM23-AL23)+(AM25-AL25)+(AM26-AL26)+(AM28-AL28)+(AM29-AL29)+(AM30-AL30)+(AM31-AL31)+(AM36-AL36)+(AM40-AL40)+(AM45-AL45)+(AM46-AL46) -> -179 | AP65: =(AP45-AO45) -> 6 | AS65: =(AS45-AR45) -> 3 | AY65: =(AY4-AX4)+(AY5-AX5)+(AY7-AX7)+(AY8-AX8)+(AY22-AX22)+(AY23-AX23)+(AY25-AX25)+(AY26-AX26)+(AY28-AX28)+(AY30-AX30)+(AY34-AX34)+(AY45-AX45)+(AY46-AX46) -> -69 | BB65: =(BB19-BA19)+(BB24-BA24)+(BB27-BA27)+(BB46-BA46) -> 58 | BC65: =(BC40-BB40) -> -4 | BE65: =(BE44-BD44) -> 14 | BH65: =(BH4-BE4)+(BH5-BE5)+(BH7-BE7)+(BH8-BE8)+(BH10-BE10)+(BH11-BE11)+(BH15-BE15)+(BH16-BE16)+(BH18-BE18)+(BH19-BE19)+(BH20-BE20)+(BH21-BE21)+(BH22-BE22)+(BH23-BE23)+(BH24-BE24)+(BH25-BE25)+(BH26-BE26)+(BH27-BE27)+(BH28-BE28)+(BH29-BE29)+(BH30-BE30)+(BH31-BE31)+(BH34-BE34)+(BH36-BE36)+(BH37-BE37)+(BH40-BE40)+(BH44-BE44)+(BH45-BE45)+(BH46-BE46)+(BH47-BE47) -> 11 | BJ65: =(BJ4-BI4)+(BJ5-BI5)+(BJ7-BI7)+(BJ8-BI8)+(BJ10-BI10)+(BJ11-BI11)+(BJ15-BI15)+(BJ16-BI16)+(BJ18-BI18)+(BJ19-BI19)+(BJ20-BI20)+(BJ21-BI21)+(BJ22-BI22)+(BJ23-BI23)+(BJ24-BI24)+(BJ25-BI25)+(BJ26-BI26)+(BJ27-BI27)+(BJ28-BI28)+(BJ29-BI29)+(BJ30-BI30)+(BJ31-BI31)+(BJ34-BI34)+(BJ36-BI36)+(BJ37-BI37)+(BJ44-BI44)+(BJ45-BI45)+(BJ46-BI46)+(BJ47-BI47) -> 125 | BK65: =(BK45-BJ45) -> 3 | BN65: =(BN45-BM45) -> 3 | BP65: =(BP45-BO45) -> 4 | BW65: =(BW11-BV11)+(BW50-BV50) -> 5 | BZ65: =(BZ20-BY20)+(BZ21-BY21) -> -20 | CC65: =(CC16-CB16) -> -4 | CH65: =(CH10-CG10)+(CH11-CG11)+(CH16-CG16)+(CH18-CG18)+(CH19-CG19)+(CH20-CG20)+(CH21-CG21)+(CH22-CG22)+(CH23-CG23)+(CH24-CG24)+(CH25-CG25)+(CH26-CG26)+(CH27-CG27)+(CH28-CG28)+(CH29-CG29)+(CH45-CG45) -> -28 | CT65: =(CT16-CS16)+(CT22-CS22)+(CT23-CS23) -> -9 | CU65: =(CU9-CT9) -> 6 | CX65: =(CX39-CW39) -> 10 | DF65: =(DF15-DE15)+(DF31-DE31) -> -26 | DM65: =(DM40-DL40) -> 26 | DW65: =(DW40-DV40) -> -30 | DY65: =(DY26-DX26) -> -3 | EE65: =(EE40-ED40) -> 1 | EL65: =(EL25-EK25) -> -3 | EQ65: =(EQ15-EP15)+(EQ16-EP16)+(EQ27-EP27)+(EQ34-EP34)+(EQ35-EP35)+(EQ50-EP50) -> 2 | EU65: =(EU20-ET20) -> -3 | FD65: =(FD21-FC21) -> -3
B66: Temp
B67: Retired | CT67: =(CT53-CS53) -> -12 | CZ67: =(CZ4-CY4)+(CZ5-CY5) -> -792 | DH67: =(DH36-DG36)+(DH37-DG37) -> -565 | ED67: =(ED7-EC7)+(ED8-EC8)+(ED28-EC28)+(ED29-EC29)+(ED43-EC43) -> -769 | EF67: =(EF30-EE30)+(EF31-EE31) -> -761 | EQ67: =(EQ47-EP47) -> -392 | FB67: =(FB34-FA34)+(FB35-FA35) -> -494 | GA67: -396 | GM67: =(GM34-GL34)+(GM35-GL35) -> 0 | GX67: =(GX54-GW54) -> -44
K68: 0 | W68: 0 | AI68: 0 | AU68: 0 | BG68: 175 | BS68: 0 | CE68: 23 | CQ68: -1 | DC68: 757 | DO68: -12 | EA68: -289 | EM68: -11
B69: Cap Letter | K69: 17720 | W69: 18912 | AI69: 19122 | AU69: 20846 | BG69: 21020 | BS69: 22135 | CE69: 22139 | CQ69: 23306 | DC69: 24505 | DO69: 24419 | EA69: 24305 | EM69: 24654
BG70: 175 | CE70: 24 | CQ70: -1 | DC70: 757 | DO70: -12 | EA70: -289 | EM70: -8
EP71: 20002 | FB71: 19711 | FN71: 19239 | FZ71: 19246 | GL71: 18925 | GX71: 18881 | HJ71: 18626 | HV71: 18626 | IH71: 18626 | IT71: 19726
EJ72: 21206 | EM72: 21201
DS73: 21490 | DT73: 21490 | DU73: 21490 | DV73: 21509 | DW73: 21479 | DX73: 21479 | DY73: 21476 | DZ73: 21476 | EA73: 21476 | EB73: 21483 | EC73: 21492 | ED73: 20731 | EE73: 20732 | EF73: 19971 | EG73: 19971 | EH73: 21197 | EI73: 21197 | EJ73: 21205 | EK73: 21205 | EL73: 21202 | EM73: 21212 | EN73: 21212 | EO73: 21212 | EP73: 21212 | EQ73: 20846 | ER73: 20846 | ES73: 20864 | ET73: 22076 | EU73: 22084 | EV73: 22128 | EW73: 22128 | EX73: 22133 | EY73: 22133 | EZ73: 22133 | FA73: 22133 | FB73: 22133 | FC73: 21639 | FD73: 21636 | FE73: 21636 | FF73: 21636 | FG73: 21640 | FH73: 21644 | FI73: 21648 | FJ73: 21652 | FK73: 21661 | FL73: 21661 | FM73: 21661 | FN73: 21661 | FO73: 21661 | FP73: 21661 | FQ73: 21662 | FR73: 21662 | FS73: 21662 | FT73: 22901 | FU73: 22902 | FV73: 22902 | FW73: 22904 | FX73: 22905 | FY73: 22905 | FZ73: 22905
EP77: 24273

Sheet Summer Check Differences
A1: OPC 006103 | B1: Long-Term Summer Peak Capabilities
A2: FPL RC-16 | C2: 2013 | D2: 2014 | P2: 2015 | AB2: 2016 | AN2: 2017 | AZ2: 2018 | BL2: 2019 | BX2: 2020 | CJ2: 2021 | CV2: 2022 | DH2: 2023
B3: Unit | C3: Dec | D3: Jan | E3: Feb | F3: Mar | G3: Apr | H3: May | I3: Jun | J3: Jul | K3: Aug | L3: Sep | M3: Oct | N3: Nov | O3: Dec | P3: Jan | Q3: Feb | R3: Mar | S3: Apr | T3: May | U3: Jun | V3: Jul | W3: Aug | X3: Sep | Y3: Oct | Z3: Nov | AA3: Dec | AB3: Jan | AC3: Feb | AD3: Mar | AE3: Apr | AF3: May | AG3: Jun | AH3: Jul | AI3: Aug | AJ3: Sep | AK3: Oct | AL3: Nov | AM3: Dec | AN3: Jan | AO3: Feb | AP3: Mar | AQ3: Apr | AR3: May | AS3: Jun | AT3: Jul | AU3: Aug | AV3: Sep | AW3: Oct | AX3: Nov | AY3: Dec | AZ3: Jan | BA3: Feb | BB3: Mar | BC3: Apr | BD3: May | BE3: Jun | BF3: Jul | BG3: Aug | BH3: Sep | BI3: Oct | BJ3: Nov | BK3: Dec | BL3: Jan | BM3: Feb | BN3: Mar | BO3: Apr | BP3: May | BQ3: Jun | BR3: Jul | BS3: Aug | BT3: Sep | BU3: Oct | BV3: Nov | BW3: Dec | BX3: Jan | BY3: Feb | BZ3: Mar | CA3: Apr | CB3: May | CC3: Jun | CD3: Jul | CE3: Aug | CF3: Sep | CG3: Oct | CH3: Nov | CI3: Dec | CJ3: Jan | CK3: Feb | CL3: Mar | CM3: Apr | CN3: May | CO3: Jun | CP3: Jul | CQ3: Aug | CR3: Sep | CS3: Oct | CT3: Nov | CU3: Dec | CV3: Jan | CW3: Feb | CX3: Mar | CY3: Apr | CZ3: May | DA3: Jun | DB3: Jul | DC3: Aug | DD3: Sep | DE3: Oct | DF3: Nov | DG3: Dec | DH3: Jan | DI3: Feb | DJ3: Mar | DK3: Apr | DL3: May | DM3: Jun | DN3: Jul | DO3: Aug | DP3: Sep | DQ3: Oct | DR3: Nov | DS3: Dec
B4: PCC1 | C4: =Summer!C4-'Summer Peak 2015-01-15'!EP4 -> 0 | D4: =Summer!D4-'Summer Peak 2015-01-15'!EQ4 -> 0 | E4: =Summer!E4-'Summer Peak 2015-01-15'!ER4 -> 0 | F4: =Summer!F4-'Summer Peak 2015-01-15'!ES4 -> 0 | G4: =Summer!G4-'Summer Peak 2015-01-15'!ET4 -> 0 | H4: =Summer!H4-'Summer Peak 2015-01-15'!EU4 -> 0 | I4: =Summer!I4-'Summer Peak 2015-01-15'!EV4 -> 0 | J4: =Summer!J4-'Summer Peak 2015-01-15'!EW4 -> 0 | K4: =Summer!K4-'Summer Peak 2015-01-15'!EX4 -> 0 | L4: =Summer!L4-'Summer Peak 2015-01-15'!EY4 -> 0 | M4: =Summer!M4-'Summer Peak 2015-01-15'!EZ4 -> 0 | N4: =Summer!N4-'Summer Peak 2015-01-15'!FA4 -> 0 | O4: =Summer!O4-'Summer Peak 2015-01-15'!FB4 -> 0 | P4: =Summer!P4-'Summer Peak 2015-01-15'!FC4 -> 0 | Q4: =Summer!Q4-'Summer Peak 2015-01-15'!FD4 -> 0 | R4: =Summer!R4-'Summer Peak 2015-01-15'!FE4 -> 0 | S4: =Summer!S4-'Summer Peak 2015-01-15'!FF4 -> 0 | T4: =Summer!T4-'Summer Peak 2015-01-15'!FG4 -> 0 | U4: =Summer!U4-'Summer Peak 2015-01-15'!FH4 -> 0 | V4: =Summer!V4-'Summer Peak 2015-01-15'!FI4 -> 0 | W4: =Summer!W4-'Summer Peak 2015-01-15'!FJ4 -> 0 | X4: =Summer!X4-'Summer Peak 2015-01-15'!FK4 -> 0 | Y4: =Summer!Y4-'Summer Peak 2015-01-15'!FL4 -> 0 | Z4: =Summer!Z4-'Summer Peak 2015-01-15'!FM4 -> 0 | AA4: =Summer!AA4-'Summer Peak 2015-01-15'!FN4 -> 0 | AB4: =Summer!AB4-'Summer Peak 2015-01-15'!FO4 -> 0 | AC4: =Summer!AC4-'Summer Peak 2015-01-15'!FP4 -> 0 | AD4: =Summer!AD4-'Summer Peak 2015-01-15'!FQ4 -> 0 | AE4: =Summer!AE4-'Summer Peak 2015-01-15'!FR4 -> 0 | AF4: =Summer!AF4-'Summer Peak 2015-01-15'!FS4 -> 0 | AG4: =Summer!AG4-'Summer Peak 2015-01-15'!FT4 -> 0 | AH4: =Summer!AH4-'Summer Peak 2015-01-15'!FU4 -> 0 | AI4: =Summer!AI4-'Summer Peak 2015-01-15'!FV4 -> 0 | AJ4: =Summer!AJ4-'Summer Peak 2015-01-15'!FW4 -> 0 | AK4: =Summer!AK4-'Summer Peak 2015-01-15'!FX4 -> 0 | AL4: =Summer!AL4-'Summer Peak 2015-01-15'!FY4 -> 0 | AM4: =Summer!AM4-'Summer Peak 2015-01-15'!FZ4 -> 0 | AN4: =Summer!AN4-'Summer Peak 2015-01-15'!GA4 -> 0 | AO4: =Summer!AO4-'Summer Peak 2015-01-15'!GB4 -> 0 | AP4: =Summer!AP4-'Summer Peak 2015-01-15'!GC4 -> 0 | AQ4: =Summer!AQ4-'Summer Peak 2015-01-15'!GD4 -> 0 | AR4: =Summer!AR4-'Summer Peak 2015-01-15'!GE4 -> 0 | AS4: =Summer!AS4-'Summer Peak 2015-01-15'!GF4 -> 0 | AT4: =Summer!AT4-'Summer Peak 2015-01-15'!GG4 -> 0 | AU4: =Summer!AU4-'Summer Peak 2015-01-15'!GH4 -> 0 | AV4: =Summer!AV4-'Summer Peak 2015-01-15'!GI4 -> 0 | AW4: =Summer!AW4-'Summer Peak 2015-01-15'!GJ4 -> 0 | AX4: =Summer!AX4-'Summer Peak 2015-01-15'!GK4 -> 0 | AY4: =Summer!AY4-'Summer Peak 2015-01-15'!GL4 -> 0 | AZ4: =Summer!AZ4-'Summer Peak 2015-01-15'!GM4 -> 0 | BA4: =Summer!BA4-'Summer Peak 2015-01-15'!GN4 -> 0 | BB4: =Summer!BB4-'Summer Peak 2015-01-15'!GO4 -> 0 | BC4: =Summer!BC4-'Summer Peak 2015-01-15'!GP4 -> 0 | BD4: =Summer!BD4-'Summer Peak 2015-01-15'!GQ4 -> 0 | BE4: =Summer!BE4-'Summer Peak 2015-01-15'!GR4 -> 0 | BF4: =Summer!BF4-'Summer Peak 2015-01-15'!GS4 -> 0 | BG4: =Summer!BG4-'Summer Peak 2015-01-15'!GT4 -> 0 | BH4: =Summer!BH4-'Summer Peak 2015-01-15'!GU4 -> 0 | BI4: =Summer!BI4-'Summer Peak 2015-01-15'!GV4 -> 0 | BJ4: =Summer!BJ4-'Summer Peak 2015-01-15'!GW4 -> 0 | BK4: =Summer!BK4-'Summer Peak 2015-01-15'!GX4 -> 0 | BL4: =Summer!BL4-'Summer Peak 2015-01-15'!GY4 -> 0 | BM4: =Summer!BM4-'Summer Peak 2015-01-15'!GZ4 -> 0 | BN4: =Summer!BN4-'Summer Peak 2015-01-15'!HA4 -> 0 | BO4: =Summer!BO4-'Summer Peak 2015-01-15'!HB4 -> 0 | BP4: =Summer!BP4-'Summer Peak 2015-01-15'!HC4 -> 0 | BQ4: =Summer!BQ4-'Summer Peak 2015-01-15'!HD4 -> 0 | BR4: =Summer!BR4-'Summer Peak 2015-01-15'!HE4 -> 0 | BS4: =Summer!BS4-'Summer Peak 2015-01-15'!HF4 -> 0 | BT4: =Summer!BT4-'Summer Peak 2015-01-15'!HG4 -> 0 | BU4: =Summer!BU4-'Summer Peak 2015-01-15'!HH4 -> 0 | BV4: =Summer!BV4-'Summer Peak 2015-01-15'!HI4 -> 0 | BW4: =Summer!BW4-'Summer Peak 2015-01-15'!HJ4 -> 0 | BX4: =Summer!BX4-'Summer Peak 2015-01-15'!HK4 -> 0 | BY4: =Summer!BY4-'Summer Peak 2015-01-15'!HL4 -> 0 | BZ4: =Summer!BZ4-'Summer Peak 2015-01-15'!HM4 -> 0 | CA4: =Summer!CA4-'Summer Peak 2015-01-15'!HN4 -> 0 | CB4: =Summer!CB4-'Summer Peak 2015-01-15'!HO4 -> 0 | CC4: =Summer!CC4-'Summer Peak 2015-01-15'!HP4 -> 0 | CD4: =Summer!CD4-'Summer Peak 2015-01-15'!HQ4 -> 0 | CE4: =Summer!CE4-'Summer Peak 2015-01-15'!HR4 -> 0 | CF4: =Summer!CF4-'Summer Peak 2015-01-15'!HS4 -> 0 | CG4: =Summer!CG4-'Summer Peak 2015-01-15'!HT4 -> 0 | CH4: =Summer!CH4-'Summer Peak 2015-01-15'!HU4 -> 0 | CI4: =Summer!CI4-'Summer Peak 2015-01-15'!HV4 -> 0 | CJ4: =Summer!CJ4-'Summer Peak 2015-01-15'!HW4 -> 0 | CK4: =Summer!CK4-'Summer Peak 2015-01-15'!HX4 -> 0 | CL4: =Summer!CL4-'Summer Peak 2015-01-15'!HY4 -> 0 | CM4: =Summer!CM4-'Summer Peak 2015-01-15'!HZ4 -> 0 | CN4: =Summer!CN4-'Summer Peak 2015-01-15'!IA4 -> 0 | CO4: =Summer!CO4-'Summer Peak 2015-01-15'!IB4 -> 0 | CP4: =Summer!CP4-'Summer Peak 2015-01-15'!IC4 -> 0 | CQ4: =Summer!CQ4-'Summer Peak 2015-01-15'!ID4 -> 0 | CR4: =Summer!CR4-'Summer Peak 2015-01-15'!IE4 -> 0 | CS4: =Summer!CS4-'Summer Peak 2015-01-15'!IF4 -> 0 | CT4: =Summer!CT4-'Summer Peak 2015-01-15'!IG4 -> 0 | CU4: =Summer!CU4-'Summer Peak 2015-01-15'!IH4 -> 0 | CV4: =Summer!CV4-'Summer Peak 2015-01-15'!II4 -> 0 | CW4: =Summer!CW4-'Summer Peak 2015-01-15'!IJ4 -> 0 | CX4: =Summer!CX4-'Summer Peak 2015-01-15'!IK4 -> 0 | CY4: =Summer!CY4-'Summer Peak 2015-01-15'!IL4 -> 0 | CZ4: =Summer!CZ4-'Summer Peak 2015-01-15'!IM4 -> 0 | DA4: =Summer!DA4-'Summer Peak 2015-01-15'!IN4 -> 0 | DB4: =Summer!DB4-'Summer Peak 2015-01-15'!IO4 -> 0 | DC4: =Summer!DC4-'Summer Peak 2015-01-15'!IP4 -> 0 | DD4: =Summer!DD4-'Summer Peak 2015-01-15'!IQ4 -> 0 | DE4: =Summer!DE4-'Summer Peak 2015-01-15'!IR4 -> 0 | DF4: =Summer!DF4-'Summer Peak 2015-01-15'!IS4 -> 0 | DG4: =Summer!DG4-'Summer Peak 2015-01-15'!IT4 -> 0 | DH4: =Summer!DH4-'Summer Peak 2015-01-15'!IU4 -> 0 | DI4: =Summer!DI4-'Summer Peak 2015-01-15'!IV4 -> 0 | DJ4: =Summer!DJ4-'Summer Peak 2015-01-15'!IW4 -> 0 | DK4: =Summer!DK4-'Summer Peak 2015-01-15'!IX4 -> 0 | DL4: =Summer!DL4-'Summer Peak 2015-01-15'!IY4 -> 0 | DM4: =Summer!DM4-'Summer Peak 2015-01-15'!IZ4 -> 0 | DN4: =Summer!DN4-'Summer Peak 2015-01-15'!JA4 -> 0 | DO4: =Summer!DO4-'Summer Peak 2015-01-15'!JB4 -> 0 | DP4: =Summer!DP4-'Summer Peak 2015-01-15'!JC4 -> 0 | DQ4: =Summer!DQ4-'Summer Peak 2015-01-15'!JD4 -> 0 | DR4: =Summer!DR4-'Summer Peak 2015-01-15'!JE4 -> 0 | DS4: =Summer!DS4-'Summer Peak 2015-01-15'!JF4 -> 0
B5: PCC2 | C5: =Summer!C5-'Summer Peak 2015-01-15'!EP5 -> 0 | D5: =Summer!D5-'Summer Peak 2015-01-15'!EQ5 -> 0 | E5: =Summer!E5-'Summer Peak 2015-01-15'!ER5 -> 0 | F5: =Summer!F5-'Summer Peak 2015-01-15'!ES5 -> 0 | G5: =Summer!G5-'Summer Peak 2015-01-15'!ET5 -> 0 | H5: =Summer!H5-'Summer Peak 2015-01-15'!EU5 -> 0 | I5: =Summer!I5-'Summer Peak 2015-01-15'!EV5 -> 0 | J5: =Summer!J5-'Summer Peak 2015-01-15'!EW5 -> 0 | K5: =Summer!K5-'Summer Peak 2015-01-15'!EX5 -> 0 | L5: =Summer!L5-'Summer Peak 2015-01-15'!EY5 -> 0 | M5: =Summer!M5-'Summer Peak 2015-01-15'!EZ5 -> 0 | N5: =Summer!N5-'Summer Peak 2015-01-15'!FA5 -> 0 | O5: =Summer!O5-'Summer Peak 2015-01-15'!FB5 -> 0 | P5: =Summer!P5-'Summer Peak 2015-01-15'!FC5 -> 0 | Q5: =Summer!Q5-'Summer Peak 2015-01-15'!FD5 -> 0 | R5: =Summer!R5-'Summer Peak 2015-01-15'!FE5 -> 0 | S5: =Summer!S5-'Summer Peak 2015-01-15'!FF5 -> 0 | T5: =Summer!T5-'Summer Peak 2015-01-15'!FG5 -> 0 | U5: =Summer!U5-'Summer Peak 2015-01-15'!FH5 -> 0 | V5: =Summer!V5-'Summer Peak 2015-01-15'!FI5 -> 0 | W5: =Summer!W5-'Summer Peak 2015-01-15'!FJ5 -> 0 | X5: =Summer!X5-'Summer Peak 2015-01-15'!FK5 -> 0 | Y5: =Summer!Y5-'Summer Peak 2015-01-15'!FL5 -> 0 | Z5: =Summer!Z5-'Summer Peak 2015-01-15'!FM5 -> 0 | AA5: =Summer!AA5-'Summer Peak 2015-01-15'!FN5 -> 0 | AB5: =Summer!AB5-'Summer Peak 2015-01-15'!FO5 -> 0 | AC5: =Summer!AC5-'Summer Peak 2015-01-15'!FP5 -> 0 | AD5: =Summer!AD5-'Summer Peak 2015-01-15'!FQ5 -> 0 | AE5: =Summer!AE5-'Summer Peak 2015-01-15'!FR5 -> 0 | AF5: =Summer!AF5-'Summer Peak 2015-01-15'!FS5 -> 0 | AG5: =Summer!AG5-'Summer Peak 2015-01-15'!FT5 -> 0 | AH5: =Summer!AH5-'Summer Peak 2015-01-15'!FU5 -> 0 | AI5: =Summer!AI5-'Summer Peak 2015-01-15'!FV5 -> 0 | AJ5: =Summer!AJ5-'Summer Peak 2015-01-15'!FW5 -> 0 | AK5: =Summer!AK5-'Summer Peak 2015-01-15'!FX5 -> 0 | AL5: =Summer!AL5-'Summer Peak 2015-01-15'!FY5 -> 0 | AM5: =Summer!AM5-'Summer Peak 2015-01-15'!FZ5 -> 0 | AN5: =Summer!AN5-'Summer Peak 2015-01-15'!GA5 -> 0 | AO5: =Summer!AO5-'Summer Peak 2015-01-15'!GB5 -> 0 | AP5: =Summer!AP5-'Summer Peak 2015-01-15'!GC5 -> 0 | AQ5: =Summer!AQ5-'Summer Peak 2015-01-15'!GD5 -> 0 | AR5: =Summer!AR5-'Summer Peak 2015-01-15'!GE5 -> 0 | AS5: =Summer!AS5-'Summer Peak 2015-01-15'!GF5 -> 0 | AT5: =Summer!AT5-'Summer Peak 2015-01-15'!GG5 -> 0 | AU5: =Summer!AU5-'Summer Peak 2015-01-15'!GH5 -> 0 | AV5: =Summer!AV5-'Summer Peak 2015-01-15'!GI5 -> 0 | AW5: =Summer!AW5-'Summer Peak 2015-01-15'!GJ5 -> 0 | AX5: =Summer!AX5-'Summer Peak 2015-01-15'!GK5 -> 0 | AY5: =Summer!AY5-'Summer Peak 2015-01-15'!GL5 -> 0 | AZ5: =Summer!AZ5-'Summer Peak 2015-01-15'!GM5 -> 0 | BA5: =Summer!BA5-'Summer Peak 2015-01-15'!GN5 -> 0 | BB5: =Summer!BB5-'Summer Peak 2015-01-15'!GO5 -> 0 | BC5: =Summer!BC5-'Summer Peak 2015-01-15'!GP5 -> 0 | BD5: =Summer!BD5-'Summer Peak 2015-01-15'!GQ5 -> 0 | BE5: =Summer!BE5-'Summer Peak 2015-01-15'!GR5 -> 0 | BF5: =Summer!BF5-'Summer Peak 2015-01-15'!GS5 -> 0 | BG5: =Summer!BG5-'Summer Peak 2015-01-15'!GT5 -> 0 | BH5: =Summer!BH5-'Summer Peak 2015-01-15'!GU5 -> 0 | BI5: =Summer!BI5-'Summer Peak 2015-01-15'!GV5 -> 0 | BJ5: =Summer!BJ5-'Summer Peak 2015-01-15'!GW5 -> 0 | BK5: =Summer!BK5-'Summer Peak 2015-01-15'!GX5 -> 0 | BL5: =Summer!BL5-'Summer Peak 2015-01-15'!GY5 -> 0 | BM5: =Summer!BM5-'Summer Peak 2015-01-15'!GZ5 -> 0 | BN5: =Summer!BN5-'Summer Peak 2015-01-15'!HA5 -> 0 | BO5: =Summer!BO5-'Summer Peak 2015-01-15'!HB5 -> 0 | BP5: =Summer!BP5-'Summer Peak 2015-01-15'!HC5 -> 0 | BQ5: =Summer!BQ5-'Summer Peak 2015-01-15'!HD5 -> 0 | BR5: =Summer!BR5-'Summer Peak 2015-01-15'!HE5 -> 0 | BS5: =Summer!BS5-'Summer Peak 2015-01-15'!HF5 -> 0 | BT5: =Summer!BT5-'Summer Peak 2015-01-15'!HG5 -> 0 | BU5: =Summer!BU5-'Summer Peak 2015-01-15'!HH5 -> 0 | BV5: =Summer!BV5-'Summer Peak 2015-01-15'!HI5 -> 0 | BW5: =Summer!BW5-'Summer Peak 2015-01-15'!HJ5 -> 0 | BX5: =Summer!BX5-'Summer Peak 2015-01-15'!HK5 -> 0 | BY5: =Summer!BY5-'Summer Peak 2015-01-15'!HL5 -> 0 | BZ5: =Summer!BZ5-'Summer Peak 2015-01-15'!HM5 -> 0 | CA5: =Summer!CA5-'Summer Peak 2015-01-15'!HN5 -> 0 | CB5: =Summer!CB5-'Summer Peak 2015-01-15'!HO5 -> 0 | CC5: =Summer!CC5-'Summer Peak 2015-01-15'!HP5 -> 0 | CD5: =Summer!CD5-'Summer Peak 2015-01-15'!HQ5 -> 0 | CE5: =Summer!CE5-'Summer Peak 2015-01-15'!HR5 -> 0 | CF5: =Summer!CF5-'Summer Peak 2015-01-15'!HS5 -> 0 | CG5: =Summer!CG5-'Summer Peak 2015-01-15'!HT5 -> 0 | CH5: =Summer!CH5-'Summer Peak 2015-01-15'!HU5 -> 0 | CI5: =Summer!CI5-'Summer Peak 2015-01-15'!HV5 -> 0 | CJ5: =Summer!CJ5-'Summer Peak 2015-01-15'!HW5 -> 0 | CK5: =Summer!CK5-'Summer Peak 2015-01-15'!HX5 -> 0 | CL5: =Summer!CL5-'Summer Peak 2015-01-15'!HY5 -> 0 | CM5: =Summer!CM5-'Summer Peak 2015-01-15'!HZ5 -> 0 | CN5: =Summer!CN5-'Summer Peak 2015-01-15'!IA5 -> 0 | CO5: =Summer!CO5-'Summer Peak 2015-01-15'!IB5 -> 0 | CP5: =Summer!CP5-'Summer Peak 2015-01-15'!IC5 -> 0 | CQ5: =Summer!CQ5-'Summer Peak 2015-01-15'!ID5 -> 0 | CR5: =Summer!CR5-'Summer Peak 2015-01-15'!IE5 -> 0 | CS5: =Summer!CS5-'Summer Peak 2015-01-15'!IF5 -> 0 | CT5: =Summer!CT5-'Summer Peak 2015-01-15'!IG5 -> 0 | CU5: =Summer!CU5-'Summer Peak 2015-01-15'!IH5 -> 0 | CV5: =Summer!CV5-'Summer Peak 2015-01-15'!II5 -> 0 | CW5: =Summer!CW5-'Summer Peak 2015-01-15'!IJ5 -> 0 | CX5: =Summer!CX5-'Summer Peak 2015-01-15'!IK5 -> 0 | CY5: =Summer!CY5-'Summer Peak 2015-01-15'!IL5 -> 0 | CZ5: =Summer!CZ5-'Summer Peak 2015-01-15'!IM5 -> 0 | DA5: =Summer!DA5-'Summer Peak 2015-01-15'!IN5 -> 0 | DB5: =Summer!DB5-'Summer Peak 2015-01-15'!IO5 -> 0 | DC5: =Summer!DC5-'Summer Peak 2015-01-15'!IP5 -> 0 | DD5: =Summer!DD5-'Summer Peak 2015-01-15'!IQ5 -> 0 | DE5: =Summer!DE5-'Summer Peak 2015-01-15'!IR5 -> 0 | DF5: =Summer!DF5-'Summer Peak 2015-01-15'!IS5 -> 0 | DG5: =Summer!DG5-'Summer Peak 2015-01-15'!IT5 -> 0 | DH5: =Summer!DH5-'Summer Peak 2015-01-15'!IU5 -> 0 | DI5: =Summer!DI5-'Summer Peak 2015-01-15'!IV5 -> 0 | DJ5: =Summer!DJ5-'Summer Peak 2015-01-15'!IW5 -> 0 | DK5: =Summer!DK5-'Summer Peak 2015-01-15'!IX5 -> 0 | DL5: =Summer!DL5-'Summer Peak 2015-01-15'!IY5 -> 0 | DM5: =Summer!DM5-'Summer Peak 2015-01-15'!IZ5 -> 0 | DN5: =Summer!DN5-'Summer Peak 2015-01-15'!JA5 -> 0 | DO5: =Summer!DO5-'Summer Peak 2015-01-15'!JB5 -> 0 | DP5: =Summer!DP5-'Summer Peak 2015-01-15'!JC5 -> 0 | DQ5: =Summer!DQ5-'Summer Peak 2015-01-15'!JD5 -> 0 | DR5: =Summer!DR5-'Summer Peak 2015-01-15'!JE5 -> 0 | DS5: =Summer!DS5-'Summer Peak 2015-01-15'!JF5 -> 0
B6: PCC3 | C6: =Summer!C6-'Summer Peak 2015-01-15'!EP6 -> 0 | D6: =Summer!D6-'Summer Peak 2015-01-15'!EQ6 -> 0 | E6: =Summer!E6-'Summer Peak 2015-01-15'!ER6 -> 0 | F6: =Summer!F6-'Summer Peak 2015-01-15'!ES6 -> 0 | G6: =Summer!G6-'Summer Peak 2015-01-15'!ET6 -> 0 | H6: =Summer!H6-'Summer Peak 2015-01-15'!EU6 -> 0 | I6: =Summer!I6-'Summer Peak 2015-01-15'!EV6 -> 0 | J6: =Summer!J6-'Summer Peak 2015-01-15'!EW6 -> 0 | K6: =Summer!K6-'Summer Peak 2015-01-15'!EX6 -> 0 | L6: =Summer!L6-'Summer Peak 2015-01-15'!EY6 -> 0 | M6: =Summer!M6-'Summer Peak 2015-01-15'!EZ6 -> 0 | N6: =Summer!N6-'Summer Peak 2015-01-15'!FA6 -> 0 | O6: =Summer!O6-'Summer Peak 2015-01-15'!FB6 -> 0 | P6: =Summer!P6-'Summer Peak 2015-01-15'!FC6 -> 0 | Q6: =Summer!Q6-'Summer Peak 2015-01-15'!FD6 -> 0 | R6: =Summer!R6-'Summer Peak 2015-01-15'!FE6 -> 0 | S6: =Summer!S6-'Summer Peak 2015-01-15'!FF6 -> 0 | T6: =Summer!T6-'Summer Peak 2015-01-15'!FG6 -> 0 | U6: =Summer!U6-'Summer Peak 2015-01-15'!FH6 -> 0 | V6: =Summer!V6-'Summer Peak 2015-01-15'!FI6 -> 0 | W6: =Summer!W6-'Summer Peak 2015-01-15'!FJ6 -> 0 | X6: =Summer!X6-'Summer Peak 2015-01-15'!FK6 -> 0 | Y6: =Summer!Y6-'Summer Peak 2015-01-15'!FL6 -> 0 | Z6: =Summer!Z6-'Summer Peak 2015-01-15'!FM6 -> 0 | AA6: =Summer!AA6-'Summer Peak 2015-01-15'!FN6 -> 0 | AB6: =Summer!AB6-'Summer Peak 2015-01-15'!FO6 -> 0 | AC6: =Summer!AC6-'Summer Peak 2015-01-15'!FP6 -> 0 | AD6: =Summer!AD6-'Summer Peak 2015-01-15'!FQ6 -> 0 | AE6: =Summer!AE6-'Summer Peak 2015-01-15'!FR6 -> 0 | AF6: =Summer!AF6-'Summer Peak 2015-01-15'!FS6 -> 0 | AG6: =Summer!AG6-'Summer Peak 2015-01-15'!FT6 -> 0 | AH6: =Summer!AH6-'Summer Peak 2015-01-15'!FU6 -> 0 | AI6: =Summer!AI6-'Summer Peak 2015-01-15'!FV6 -> 0 | AJ6: =Summer!AJ6-'Summer Peak 2015-01-15'!FW6 -> 0 | AK6: =Summer!AK6-'Summer Peak 2015-01-15'!FX6 -> 0 | AL6: =Summer!AL6-'Summer Peak 2015-01-15'!FY6 -> 0 | AM6: =Summer!AM6-'Summer Peak 2015-01-15'!FZ6 -> 0 | AN6: =Summer!AN6-'Summer Peak 2015-01-15'!GA6 -> 0 | AO6: =Summer!AO6-'Summer Peak 2015-01-15'!GB6 -> 0 | AP6: =Summer!AP6-'Summer Peak 2015-01-15'!GC6 -> 0 | AQ6: =Summer!AQ6-'Summer Peak 2015-01-15'!GD6 -> 0 | AR6: =Summer!AR6-'Summer Peak 2015-01-15'!GE6 -> 0 | AS6: =Summer!AS6-'Summer Peak 2015-01-15'!GF6 -> 0 | AT6: =Summer!AT6-'Summer Peak 2015-01-15'!GG6 -> 0 | AU6: =Summer!AU6-'Summer Peak 2015-01-15'!GH6 -> 0 | AV6: =Summer!AV6-'Summer Peak 2015-01-15'!GI6 -> 0 | AW6: =Summer!AW6-'Summer Peak 2015-01-15'!GJ6 -> 0 | AX6: =Summer!AX6-'Summer Peak 2015-01-15'!GK6 -> 0 | AY6: =Summer!AY6-'Summer Peak 2015-01-15'!GL6 -> 0 | AZ6: =Summer!AZ6-'Summer Peak 2015-01-15'!GM6 -> 0 | BA6: =Summer!BA6-'Summer Peak 2015-01-15'!GN6 -> 0 | BB6: =Summer!BB6-'Summer Peak 2015-01-15'!GO6 -> 0 | BC6: =Summer!BC6-'Summer Peak 2015-01-15'!GP6 -> 0 | BD6: =Summer!BD6-'Summer Peak 2015-01-15'!GQ6 -> 0 | BE6: =Summer!BE6-'Summer Peak 2015-01-15'!GR6 -> 0 | BF6: =Summer!BF6-'Summer Peak 2015-01-15'!GS6 -> 0 | BG6: =Summer!BG6-'Summer Peak 2015-01-15'!GT6 -> 0 | BH6: =Summer!BH6-'Summer Peak 2015-01-15'!GU6 -> 0 | BI6: =Summer!BI6-'Summer Peak 2015-01-15'!GV6 -> 0 | BJ6: =Summer!BJ6-'Summer Peak 2015-01-15'!GW6 -> 0 | BK6: =Summer!BK6-'Summer Peak 2015-01-15'!GX6 -> 0 | BL6: =Summer!BL6-'Summer Peak 2015-01-15'!GY6 -> 0 | BM6: =Summer!BM6-'Summer Peak 2015-01-15'!GZ6 -> 0 | BN6: =Summer!BN6-'Summer Peak 2015-01-15'!HA6 -> 0 | BO6: =Summer!BO6-'Summer Peak 2015-01-15'!HB6 -> 0 | BP6: =Summer!BP6-'Summer Peak 2015-01-15'!HC6 -> 0 | BQ6: =Summer!BQ6-'Summer Peak 2015-01-15'!HD6 -> 0 | BR6: =Summer!BR6-'Summer Peak 2015-01-15'!HE6 -> 0 | BS6: =Summer!BS6-'Summer Peak 2015-01-15'!HF6 -> 0 | BT6: =Summer!BT6-'Summer Peak 2015-01-15'!HG6 -> 0 | BU6: =Summer!BU6-'Summer Peak 2015-01-15'!HH6 -> 0 | BV6: =Summer!BV6-'Summer Peak 2015-01-15'!HI6 -> 0 | BW6: =Summer!BW6-'Summer Peak 2015-01-15'!HJ6 -> 0 | BX6: =Summer!BX6-'Summer Peak 2015-01-15'!HK6 -> 0 | BY6: =Summer!BY6-'Summer Peak 2015-01-15'!HL6 -> 0 | BZ6: =Summer!BZ6-'Summer Peak 2015-01-15'!HM6 -> 0 | CA6: =Summer!CA6-'Summer Peak 2015-01-15'!HN6 -> 0 | CB6: =Summer!CB6-'Summer Peak 2015-01-15'!HO6 -> 0 | CC6: =Summer!CC6-'Summer Peak 2015-01-15'!HP6 -> 0 | CD6: =Summer!CD6-'Summer Peak 2015-01-15'!HQ6 -> 0 | CE6: =Summer!CE6-'Summer Peak 2015-01-15'!HR6 -> 0 | CF6: =Summer!CF6-'Summer Peak 2015-01-15'!HS6 -> 0 | CG6: =Summer!CG6-'Summer Peak 2015-01-15'!HT6 -> 0 | CH6: =Summer!CH6-'Summer Peak 2015-01-15'!HU6 -> 0 | CI6: =Summer!CI6-'Summer Peak 2015-01-15'!HV6 -> 0 | CJ6: =Summer!CJ6-'Summer Peak 2015-01-15'!HW6 -> 0 | CK6: =Summer!CK6-'Summer Peak 2015-01-15'!HX6 -> 0 | CL6: =Summer!CL6-'Summer Peak 2015-01-15'!HY6 -> 0 | CM6: =Summer!CM6-'Summer Peak 2015-01-15'!HZ6 -> 0 | CN6: =Summer!CN6-'Summer Peak 2015-01-15'!IA6 -> 0 | CO6: =Summer!CO6-'Summer Peak 2015-01-15'!IB6 -> 0 | CP6: =Summer!CP6-'Summer Peak 2015-01-15'!IC6 -> 0 | CQ6: =Summer!CQ6-'Summer Peak 2015-01-15'!ID6 -> 0 | CR6: =Summer!CR6-'Summer Peak 2015-01-15'!IE6 -> 0 | CS6: =Summer!CS6-'Summer Peak 2015-01-15'!IF6 -> 0 | CT6: =Summer!CT6-'Summer Peak 2015-01-15'!IG6 -> 0 | CU6: =Summer!CU6-'Summer Peak 2015-01-15'!IH6 -> 0 | CV6: =Summer!CV6-'Summer Peak 2015-01-15'!II6 -> 0 | CW6: =Summer!CW6-'Summer Peak 2015-01-15'!IJ6 -> 0 | CX6: =Summer!CX6-'Summer Peak 2015-01-15'!IK6 -> 0 | CY6: =Summer!CY6-'Summer Peak 2015-01-15'!IL6 -> 0 | CZ6: =Summer!CZ6-'Summer Peak 2015-01-15'!IM6 -> 0 | DA6: =Summer!DA6-'Summer Peak 2015-01-15'!IN6 -> 0 | DB6: =Summer!DB6-'Summer Peak 2015-01-15'!IO6 -> 0 | DC6: =Summer!DC6-'Summer Peak 2015-01-15'!IP6 -> 0 | DD6: =Summer!DD6-'Summer Peak 2015-01-15'!IQ6 -> 0 | DE6: =Summer!DE6-'Summer Peak 2015-01-15'!IR6 -> 0 | DF6: =Summer!DF6-'Summer Peak 2015-01-15'!IS6 -> 0 | DG6: =Summer!DG6-'Summer Peak 2015-01-15'!IT6 -> 0 | DH6: =Summer!DH6-'Summer Peak 2015-01-15'!IU6 -> 0 | DI6: =Summer!DI6-'Summer Peak 2015-01-15'!IV6 -> 0 | DJ6: =Summer!DJ6-'Summer Peak 2015-01-15'!IW6 -> 0 | DK6: =Summer!DK6-'Summer Peak 2015-01-15'!IX6 -> 0 | DL6: =Summer!DL6-'Summer Peak 2015-01-15'!IY6 -> 0 | DM6: =Summer!DM6-'Summer Peak 2015-01-15'!IZ6 -> 0 | DN6: =Summer!DN6-'Summer Peak 2015-01-15'!JA6 -> 0 | DO6: =Summer!DO6-'Summer Peak 2015-01-15'!JB6 -> 0 | DP6: =Summer!DP6-'Summer Peak 2015-01-15'!JC6 -> 0 | DQ6: =Summer!DQ6-'Summer Peak 2015-01-15'!JD6 -> 0 | DR6: =Summer!DR6-'Summer Peak 2015-01-15'!JE6 -> 0 | DS6: =Summer!DS6-'Summer Peak 2015-01-15'!JF6 -> 0
B7: PCU5 | C7: =Summer!C7-'Summer Peak 2015-01-15'!EP7 -> 0 | D7: =Summer!D7-'Summer Peak 2015-01-15'!EQ7 -> 0 | E7: =Summer!E7-'Summer Peak 2015-01-15'!ER7 -> 0 | F7: =Summer!F7-'Summer Peak 2015-01-15'!ES7 -> 0 | G7: =Summer!G7-'Summer Peak 2015-01-15'!ET7 -> 0 | H7: =Summer!H7-'Summer Peak 2015-01-15'!EU7 -> 0 | I7: =Summer!I7-'Summer Peak 2015-01-15'!EV7 -> 0 | J7: =Summer!J7-'Summer Peak 2015-01-15'!EW7 -> 0 | K7: =Summer!K7-'Summer Peak 2015-01-15'!EX7 -> 0 | L7: =Summer!L7-'Summer Peak 2015-01-15'!EY7 -> 0 | M7: =Summer!M7-'Summer Peak 2015-01-15'!EZ7 -> 0 | N7: =Summer!N7-'Summer Peak 2015-01-15'!FA7 -> 0 | O7: =Summer!O7-'Summer Peak 2015-01-15'!FB7 -> 0 | P7: =Summer!P7-'Summer Peak 2015-01-15'!FC7 -> 0 | Q7: =Summer!Q7-'Summer Peak 2015-01-15'!FD7 -> 0 | R7: =Summer!R7-'Summer Peak 2015-01-15'!FE7 -> 0 | S7: =Summer!S7-'Summer Peak 2015-01-15'!FF7 -> 0 | T7: =Summer!T7-'Summer Peak 2015-01-15'!FG7 -> 0 | U7: =Summer!U7-'Summer Peak 2015-01-15'!FH7 -> 0 | V7: =Summer!V7-'Summer Peak 2015-01-15'!FI7 -> 0 | W7: =Summer!W7-'Summer Peak 2015-01-15'!FJ7 -> 0 | X7: =Summer!X7-'Summer Peak 2015-01-15'!FK7 -> 0 | Y7: =Summer!Y7-'Summer Peak 2015-01-15'!FL7 -> 0 | Z7: =Summer!Z7-'Summer Peak 2015-01-15'!FM7 -> 0 | AA7: =Summer!AA7-'Summer Peak 2015-01-15'!FN7 -> 0 | AB7: =Summer!AB7-'Summer Peak 2015-01-15'!FO7 -> 0 | AC7: =Summer!AC7-'Summer Peak 2015-01-15'!FP7 -> 0 | AD7: =Summer!AD7-'Summer Peak 2015-01-15'!FQ7 -> 0 | AE7: =Summer!AE7-'Summer Peak 2015-01-15'!FR7 -> 0 | AF7: =Summer!AF7-'Summer Peak 2015-01-15'!FS7 -> 0 | AG7: =Summer!AG7-'Summer Peak 2015-01-15'!FT7 -> 0 | AH7: =Summer!AH7-'Summer Peak 2015-01-15'!FU7 -> 0 | AI7: =Summer!AI7-'Summer Peak 2015-01-15'!FV7 -> 0 | AJ7: =Summer!AJ7-'Summer Peak 2015-01-15'!FW7 -> 0 | AK7: =Summer!AK7-'Summer Peak 2015-01-15'!FX7 -> 0 | AL7: =Summer!AL7-'Summer Peak 2015-01-15'!FY7 -> 0 | AM7: =Summer!AM7-'Summer Peak 2015-01-15'!FZ7 -> 0 | AN7: =Summer!AN7-'Summer Peak 2015-01-15'!GA7 -> 0 | AO7: =Summer!AO7-'Summer Peak 2015-01-15'!GB7 -> 0 | AP7: =Summer!AP7-'Summer Peak 2015-01-15'!GC7 -> 0 | AQ7: =Summer!AQ7-'Summer Peak 2015-01-15'!GD7 -> 0 | AR7: =Summer!AR7-'Summer Peak 2015-01-15'!GE7 -> 0 | AS7: =Summer!AS7-'Summer Peak 2015-01-15'!GF7 -> 0 | AT7: =Summer!AT7-'Summer Peak 2015-01-15'!GG7 -> 0 | AU7: =Summer!AU7-'Summer Peak 2015-01-15'!GH7 -> 0 | AV7: =Summer!AV7-'Summer Peak 2015-01-15'!GI7 -> 0 | AW7: =Summer!AW7-'Summer Peak 2015-01-15'!GJ7 -> 0 | AX7: =Summer!AX7-'Summer Peak 2015-01-15'!GK7 -> 0 | AY7: =Summer!AY7-'Summer Peak 2015-01-15'!GL7 -> 0 | AZ7: =Summer!AZ7-'Summer Peak 2015-01-15'!GM7 -> 0 | BA7: =Summer!BA7-'Summer Peak 2015-01-15'!GN7 -> 0 | BB7: =Summer!BB7-'Summer Peak 2015-01-15'!GO7 -> 0 | BC7: =Summer!BC7-'Summer Peak 2015-01-15'!GP7 -> 0 | BD7: =Summer!BD7-'Summer Peak 2015-01-15'!GQ7 -> 0 | BE7: =Summer!BE7-'Summer Peak 2015-01-15'!GR7 -> 0 | BF7: =Summer!BF7-'Summer Peak 2015-01-15'!GS7 -> 0 | BG7: =Summer!BG7-'Summer Peak 2015-01-15'!GT7 -> 0 | BH7: =Summer!BH7-'Summer Peak 2015-01-15'!GU7 -> 0 | BI7: =Summer!BI7-'Summer Peak 2015-01-15'!GV7 -> 0 | BJ7: =Summer!BJ7-'Summer Peak 2015-01-15'!GW7 -> 0 | BK7: =Summer!BK7-'Summer Peak 2015-01-15'!GX7 -> 0 | BL7: =Summer!BL7-'Summer Peak 2015-01-15'!GY7 -> 0 | BM7: =Summer!BM7-'Summer Peak 2015-01-15'!GZ7 -> 0 | BN7: =Summer!BN7-'Summer Peak 2015-01-15'!HA7 -> 0 | BO7: =Summer!BO7-'Summer Peak 2015-01-15'!HB7 -> 0 | BP7: =Summer!BP7-'Summer Peak 2015-01-15'!HC7 -> 0 | BQ7: =Summer!BQ7-'Summer Peak 2015-01-15'!HD7 -> 0 | BR7: =Summer!BR7-'Summer Peak 2015-01-15'!HE7 -> 0 | BS7: =Summer!BS7-'Summer Peak 2015-01-15'!HF7 -> 0 | BT7: =Summer!BT7-'Summer Peak 2015-01-15'!HG7 -> 0 | BU7: =Summer!BU7-'Summer Peak 2015-01-15'!HH7 -> 0 | BV7: =Summer!BV7-'Summer Peak 2015-01-15'!HI7 -> 0 | BW7: =Summer!BW7-'Summer Peak 2015-01-15'!HJ7 -> 0 | BX7: =Summer!BX7-'Summer Peak 2015-01-15'!HK7 -> 0 | BY7: =Summer!BY7-'Summer Peak 2015-01-15'!HL7 -> 0 | BZ7: =Summer!BZ7-'Summer Peak 2015-01-15'!HM7 -> 0 | CA7: =Summer!CA7-'Summer Peak 2015-01-15'!HN7 -> 0 | CB7: =Summer!CB7-'Summer Peak 2015-01-15'!HO7 -> 0 | CC7: =Summer!CC7-'Summer Peak 2015-01-15'!HP7 -> 0 | CD7: =Summer!CD7-'Summer Peak 2015-01-15'!HQ7 -> 0 | CE7: =Summer!CE7-'Summer Peak 2015-01-15'!HR7 -> 0 | CF7: =Summer!CF7-'Summer Peak 2015-01-15'!HS7 -> 0 | CG7: =Summer!CG7-'Summer Peak 2015-01-15'!HT7 -> 0 | CH7: =Summer!CH7-'Summer Peak 2015-01-15'!HU7 -> 0 | CI7: =Summer!CI7-'Summer Peak 2015-01-15'!HV7 -> 0 | CJ7: =Summer!CJ7-'Summer Peak 2015-01-15'!HW7 -> 0 | CK7: =Summer!CK7-'Summer Peak 2015-01-15'!HX7 -> 0 | CL7: =Summer!CL7-'Summer Peak 2015-01-15'!HY7 -> 0 | CM7: =Summer!CM7-'Summer Peak 2015-01-15'!HZ7 -> 0 | CN7: =Summer!CN7-'Summer Peak 2015-01-15'!IA7 -> 0 | CO7: =Summer!CO7-'Summer Peak 2015-01-15'!IB7 -> 0 | CP7: =Summer!CP7-'Summer Peak 2015-01-15'!IC7 -> 0 | CQ7: =Summer!CQ7-'Summer Peak 2015-01-15'!ID7 -> 0 | CR7: =Summer!CR7-'Summer Peak 2015-01-15'!IE7 -> 0 | CS7: =Summer!CS7-'Summer Peak 2015-01-15'!IF7 -> 0 | CT7: =Summer!CT7-'Summer Peak 2015-01-15'!IG7 -> 0 | CU7: =Summer!CU7-'Summer Peak 2015-01-15'!IH7 -> 0 | CV7: =Summer!CV7-'Summer Peak 2015-01-15'!II7 -> 0 | CW7: =Summer!CW7-'Summer Peak 2015-01-15'!IJ7 -> 0 | CX7: =Summer!CX7-'Summer Peak 2015-01-15'!IK7 -> 0 | CY7: =Summer!CY7-'Summer Peak 2015-01-15'!IL7 -> 0 | CZ7: =Summer!CZ7-'Summer Peak 2015-01-15'!IM7 -> 0 | DA7: =Summer!DA7-'Summer Peak 2015-01-15'!IN7 -> 0 | DB7: =Summer!DB7-'Summer Peak 2015-01-15'!IO7 -> 0 | DC7: =Summer!DC7-'Summer Peak 2015-01-15'!IP7 -> 0 | DD7: =Summer!DD7-'Summer Peak 2015-01-15'!IQ7 -> 0 | DE7: =Summer!DE7-'Summer Peak 2015-01-15'!IR7 -> 0 | DF7: =Summer!DF7-'Summer Peak 2015-01-15'!IS7 -> 0 | DG7: =Summer!DG7-'Summer Peak 2015-01-15'!IT7 -> 0 | DH7: =Summer!DH7-'Summer Peak 2015-01-15'!IU7 -> 0 | DI7: =Summer!DI7-'Summer Peak 2015-01-15'!IV7 -> 0 | DJ7: =Summer!DJ7-'Summer Peak 2015-01-15'!IW7 -> 0 | DK7: =Summer!DK7-'Summer Peak 2015-01-15'!IX7 -> 0 | DL7: =Summer!DL7-'Summer Peak 2015-01-15'!IY7 -> 0 | DM7: =Summer!DM7-'Summer Peak 2015-01-15'!IZ7 -> 0 | DN7: =Summer!DN7-'Summer Peak 2015-01-15'!JA7 -> 0 | DO7: =Summer!DO7-'Summer Peak 2015-01-15'!JB7 -> 0 | DP7: =Summer!DP7-'Summer Peak 2015-01-15'!JC7 -> 0 | DQ7: =Summer!DQ7-'Summer Peak 2015-01-15'!JD7 -> 0 | DR7: =Summer!DR7-'Summer Peak 2015-01-15'!JE7 -> 0 | DS7: =Summer!DS7-'Summer Peak 2015-01-15'!JF7 -> 0
B8: PCU6 | C8: =Summer!C8-'Summer Peak 2015-01-15'!EP8 -> 0 | D8: =Summer!D8-'Summer Peak 2015-01-15'!EQ8 -> 0 | E8: =Summer!E8-'Summer Peak 2015-01-15'!ER8 -> 0 | F8: =Summer!F8-'Summer Peak 2015-01-15'!ES8 -> 0 | G8: =Summer!G8-'Summer Peak 2015-01-15'!ET8 -> 0 | H8: =Summer!H8-'Summer Peak 2015-01-15'!EU8 -> 0 | I8: =Summer!I8-'Summer Peak 2015-01-15'!EV8 -> 0 | J8: =Summer!J8-'Summer Peak 2015-01-15'!EW8 -> 0 | K8: =Summer!K8-'Summer Peak 2015-01-15'!EX8 -> 0 | L8: =Summer!L8-'Summer Peak 2015-01-15'!EY8 -> 0 | M8: =Summer!M8-'Summer Peak 2015-01-15'!EZ8 -> 0 | N8: =Summer!N8-'Summer Peak 2015-01-15'!FA8 -> 0 | O8: =Summer!O8-'Summer Peak 2015-01-15'!FB8 -> 0 | P8: =Summer!P8-'Summer Peak 2015-01-15'!FC8 -> 0 | Q8: =Summer!Q8-'Summer Peak 2015-01-15'!FD8 -> 0 | R8: =Summer!R8-'Summer Peak 2015-01-15'!FE8 -> 0 | S8: =Summer!S8-'Summer Peak 2015-01-15'!FF8 -> 0 | T8: =Summer!T8-'Summer Peak 2015-01-15'!FG8 -> 0 | U8: =Summer!U8-'Summer Peak 2015-01-15'!FH8 -> 0 | V8: =Summer!V8-'Summer Peak 2015-01-15'!FI8 -> 0 | W8: =Summer!W8-'Summer Peak 2015-01-15'!FJ8 -> 0 | X8: =Summer!X8-'Summer Peak 2015-01-15'!FK8 -> 0 | Y8: =Summer!Y8-'Summer Peak 2015-01-15'!FL8 -> 0 | Z8: =Summer!Z8-'Summer Peak 2015-01-15'!FM8 -> 0 | AA8: =Summer!AA8-'Summer Peak 2015-01-15'!FN8 -> 0 | AB8: =Summer!AB8-'Summer Peak 2015-01-15'!FO8 -> 0 | AC8: =Summer!AC8-'Summer Peak 2015-01-15'!FP8 -> 0 | AD8: =Summer!AD8-'Summer Peak 2015-01-15'!FQ8 -> 0 | AE8: =Summer!AE8-'Summer Peak 2015-01-15'!FR8 -> 0 | AF8: =Summer!AF8-'Summer Peak 2015-01-15'!FS8 -> 0 | AG8: =Summer!AG8-'Summer Peak 2015-01-15'!FT8 -> 0 | AH8: =Summer!AH8-'Summer Peak 2015-01-15'!FU8 -> 0 | AI8: =Summer!AI8-'Summer Peak 2015-01-15'!FV8 -> 0 | AJ8: =Summer!AJ8-'Summer Peak 2015-01-15'!FW8 -> 0 | AK8: =Summer!AK8-'Summer Peak 2015-01-15'!FX8 -> 0 | AL8: =Summer!AL8-'Summer Peak 2015-01-15'!FY8 -> 0 | AM8: =Summer!AM8-'Summer Peak 2015-01-15'!FZ8 -> 0 | AN8: =Summer!AN8-'Summer Peak 2015-01-15'!GA8 -> 0 | AO8: =Summer!AO8-'Summer Peak 2015-01-15'!GB8 -> 0 | AP8: =Summer!AP8-'Summer Peak 2015-01-15'!GC8 -> 0 | AQ8: =Summer!AQ8-'Summer Peak 2015-01-15'!GD8 -> 0 | AR8: =Summer!AR8-'Summer Peak 2015-01-15'!GE8 -> 0 | AS8: =Summer!AS8-'Summer Peak 2015-01-15'!GF8 -> 0 | AT8: =Summer!AT8-'Summer Peak 2015-01-15'!GG8 -> 0 | AU8: =Summer!AU8-'Summer Peak 2015-01-15'!GH8 -> 0 | AV8: =Summer!AV8-'Summer Peak 2015-01-15'!GI8 -> 0 | AW8: =Summer!AW8-'Summer Peak 2015-01-15'!GJ8 -> 0 | AX8: =Summer!AX8-'Summer Peak 2015-01-15'!GK8 -> 0 | AY8: =Summer!AY8-'Summer Peak 2015-01-15'!GL8 -> 0 | AZ8: =Summer!AZ8-'Summer Peak 2015-01-15'!GM8 -> 0 | BA8: =Summer!BA8-'Summer Peak 2015-01-15'!GN8 -> 0 | BB8: =Summer!BB8-'Summer Peak 2015-01-15'!GO8 -> 0 | BC8: =Summer!BC8-'Summer Peak 2015-01-15'!GP8 -> 0 | BD8: =Summer!BD8-'Summer Peak 2015-01-15'!GQ8 -> 0 | BE8: =Summer!BE8-'Summer Peak 2015-01-15'!GR8 -> 0 | BF8: =Summer!BF8-'Summer Peak 2015-01-15'!GS8 -> 0 | BG8: =Summer!BG8-'Summer Peak 2015-01-15'!GT8 -> 0 | BH8: =Summer!BH8-'Summer Peak 2015-01-15'!GU8 -> 0 | BI8: =Summer!BI8-'Summer Peak 2015-01-15'!GV8 -> 0 | BJ8: =Summer!BJ8-'Summer Peak 2015-01-15'!GW8 -> 0 | BK8: =Summer!BK8-'Summer Peak 2015-01-15'!GX8 -> 0 | BL8: =Summer!BL8-'Summer Peak 2015-01-15'!GY8 -> 0 | BM8: =Summer!BM8-'Summer Peak 2015-01-15'!GZ8 -> 0 | BN8: =Summer!BN8-'Summer Peak 2015-01-15'!HA8 -> 0 | BO8: =Summer!BO8-'Summer Peak 2015-01-15'!HB8 -> 0 | BP8: =Summer!BP8-'Summer Peak 2015-01-15'!HC8 -> 0 | BQ8: =Summer!BQ8-'Summer Peak 2015-01-15'!HD8 -> 0 | BR8: =Summer!BR8-'Summer Peak 2015-01-15'!HE8 -> 0 | BS8: =Summer!BS8-'Summer Peak 2015-01-15'!HF8 -> 0 | BT8: =Summer!BT8-'Summer Peak 2015-01-15'!HG8 -> 0 | BU8: =Summer!BU8-'Summer Peak 2015-01-15'!HH8 -> 0 | BV8: =Summer!BV8-'Summer Peak 2015-01-15'!HI8 -> 0 | BW8: =Summer!BW8-'Summer Peak 2015-01-15'!HJ8 -> 0 | BX8: =Summer!BX8-'Summer Peak 2015-01-15'!HK8 -> 0 | BY8: =Summer!BY8-'Summer Peak 2015-01-15'!HL8 -> 0 | BZ8: =Summer!BZ8-'Summer Peak 2015-01-15'!HM8 -> 0 | CA8: =Summer!CA8-'Summer Peak 2015-01-15'!HN8 -> 0 | CB8: =Summer!CB8-'Summer Peak 2015-01-15'!HO8 -> 0 | CC8: =Summer!CC8-'Summer Peak 2015-01-15'!HP8 -> 0 | CD8: =Summer!CD8-'Summer Peak 2015-01-15'!HQ8 -> 0 | CE8: =Summer!CE8-'Summer Peak 2015-01-15'!HR8 -> 0 | CF8: =Summer!CF8-'Summer Peak 2015-01-15'!HS8 -> 0 | CG8: =Summer!CG8-'Summer Peak 2015-01-15'!HT8 -> 0 | CH8: =Summer!CH8-'Summer Peak 2015-01-15'!HU8 -> 0 | CI8: =Summer!CI8-'Summer Peak 2015-01-15'!HV8 -> 0 | CJ8: =Summer!CJ8-'Summer Peak 2015-01-15'!HW8 -> 0 | CK8: =Summer!CK8-'Summer Peak 2015-01-15'!HX8 -> 0 | CL8: =Summer!CL8-'Summer Peak 2015-01-15'!HY8 -> 0 | CM8: =Summer!CM8-'Summer Peak 2015-01-15'!HZ8 -> 0 | CN8: =Summer!CN8-'Summer Peak 2015-01-15'!IA8 -> 0 | CO8: =Summer!CO8-'Summer Peak 2015-01-15'!IB8 -> 0 | CP8: =Summer!CP8-'Summer Peak 2015-01-15'!IC8 -> 0 | CQ8: =Summer!CQ8-'Summer Peak 2015-01-15'!ID8 -> 0 | CR8: =Summer!CR8-'Summer Peak 2015-01-15'!IE8 -> 0 | CS8: =Summer!CS8-'Summer Peak 2015-01-15'!IF8 -> 0 | CT8: =Summer!CT8-'Summer Peak 2015-01-15'!IG8 -> 0 | CU8: =Summer!CU8-'Summer Peak 2015-01-15'!IH8 -> 0 | CV8: =Summer!CV8-'Summer Peak 2015-01-15'!II8 -> 0 | CW8: =Summer!CW8-'Summer Peak 2015-01-15'!IJ8 -> 0 | CX8: =Summer!CX8-'Summer Peak 2015-01-15'!IK8 -> 0 | CY8: =Summer!CY8-'Summer Peak 2015-01-15'!IL8 -> 0 | CZ8: =Summer!CZ8-'Summer Peak 2015-01-15'!IM8 -> 0 | DA8: =Summer!DA8-'Summer Peak 2015-01-15'!IN8 -> 0 | DB8: =Summer!DB8-'Summer Peak 2015-01-15'!IO8 -> 0 | DC8: =Summer!DC8-'Summer Peak 2015-01-15'!IP8 -> 0 | DD8: =Summer!DD8-'Summer Peak 2015-01-15'!IQ8 -> 0 | DE8: =Summer!DE8-'Summer Peak 2015-01-15'!IR8 -> 0 | DF8: =Summer!DF8-'Summer Peak 2015-01-15'!IS8 -> 0 | DG8: =Summer!DG8-'Summer Peak 2015-01-15'!IT8 -> 0 | DH8: =Summer!DH8-'Summer Peak 2015-01-15'!IU8 -> 0 | DI8: =Summer!DI8-'Summer Peak 2015-01-15'!IV8 -> 0 | DJ8: =Summer!DJ8-'Summer Peak 2015-01-15'!IW8 -> 0 | DK8: =Summer!DK8-'Summer Peak 2015-01-15'!IX8 -> 0 | DL8: =Summer!DL8-'Summer Peak 2015-01-15'!IY8 -> 0 | DM8: =Summer!DM8-'Summer Peak 2015-01-15'!IZ8 -> 0 | DN8: =Summer!DN8-'Summer Peak 2015-01-15'!JA8 -> 0 | DO8: =Summer!DO8-'Summer Peak 2015-01-15'!JB8 -> 0 | DP8: =Summer!DP8-'Summer Peak 2015-01-15'!JC8 -> 0 | DQ8: =Summer!DQ8-'Summer Peak 2015-01-15'!JD8 -> 0 | DR8: =Summer!DR8-'Summer Peak 2015-01-15'!JE8 -> 0 | DS8: =Summer!DS8-'Summer Peak 2015-01-15'!JF8 -> 0
